Workbook

Sheet Cover
C9: AusNet Services
C10: Business Case Evaluation
C11: Demand driven augex (LV augmentation) with flexible services

Sheet Outputs->
C6: Outputs
C7: Section 1.
C9: =Cover!$C$9 -> AusNet Services
C10: =Cover!$C$10 -> Business Case Evaluation
C11: =Cover!$C$11 -> Demand driven augex (LV augmentation) with flexible services

Sheet Output
B1: Outputs
B2: =Cover!$C$9 -> AusNet Services
B3: =Cover!$C$10 -> Business Case Evaluation
B4: =Cover!$C$11 -> Demand driven augex (LV augmentation) with flexible services
B6: Outputs
G8: FY27 to FY31 (undiscounted) in 30 June 2024 dollars | J8: Full assessment period (discounted)
F9: Dollars | G9: Capex | H9: Opex | I9: Total Financial Costs | J9: Total cost | K9: Total benefits | L9: NPV
F10: =General!D9 -> Base Case | G10: =-BaseCase_Analysis!H26 -> 0 | H10: =-BaseCase_Analysis!H27 -> 0 | I10: =G10+H10 -> 0 | J10: =BaseCase_Analysis!H20+BaseCase_Analysis!H21 -> 0 | K10: =BaseCase_Analysis!H22 -> 0 | L10: =BaseCase_Analysis!H23 -> 0
F11: =General!D10 -> Option 1 | G11: =-Option1_Analysis!H26 -> 148.725 | H11: =-Option1_Analysis!H27 -> 4.66265 | I11: =G11+H11 -> 153.38765 | J11: =Option1_Analysis!H20+Option1_Analysis!H21 -> -187.4684068 | K11: =Option1_Analysis!H22 -> 3716.068629 | L11: =Option1_Analysis!H23 -> 3528.600223
F12: =General!D11 -> Option 2 | G12: =-Option2_Analysis!H26 -> 119.538 | H12: =-Option2_Analysis!H27 -> 10.57424 | I12: 130.11224 | J12: =Option2_Analysis!H20+Option2_Analysis!H21 -> -185.7749124 | K12: =Option2_Analysis!H22 -> 3715.27361 | L12: =Option2_Analysis!H23 -> 3529.498698
F13: =General!D12 -> Option 3 | G13: =-Option3_Analysis!H26 -> 497.103 | H13: =-Option3_Analysis!H27 -> 15.13653 | I13: 512.23953 | J13: =Option3_Analysis!H20+Option3_Analysis!H21 -> -618.9133297 | K13: =Option3_Analysis!H22 -> 3839.180951 | L13: =Option3_Analysis!H23 -> 3220.267621
F14: =General!D13 -> Option 4 | G14: =-#REF! ->  | H14: =-#REF! ->  | J14: =#REF!+#REF! ->  | K14: =#REF! ->  | L14: =#REF! -> 

Sheet Assumptions->
C6: Assumptions
C7: Section 2.
C9: =Cover!$C$9 -> AusNet Services
C10: =Cover!$C$10 -> Business Case Evaluation
C11: =Cover!$C$11 -> Demand driven augex (LV augmentation) with flexible services

Sheet General
B1: Assumptions: General
B2: =Cover!$C$9 -> AusNet Services
B3: =Cover!$C$10 -> Business Case Evaluation
B4: =Cover!$C$11 -> Demand driven augex (LV augmentation) with flexible services
B6: Project Details
D8: Option Name | G8: Description
D9: Base Case | G9: Do Nothing
D10: Option 1 | G10: Economic Approach to Electrification - network projects
D11: Option 2 | G11: Economic Approach to Electrification - network and non-network projects
D12: Option 3 | G12: Deterministic Approach to Electrification (No load at risk)
D13: Option 4
D14: Option 5
B16: Modelling Controls
D18: Model Start Date | H18: 2023-07-01
D19: Model End Date | H19: =EOMONTH(H18+(50*365),0) -> 2073-06-30
D20: Regulatory Period Start Date | H20: 2026-07-01
D21: Regulatory Period End Date | H21: 2031-06-30
D22: Dollar Basis Needed for EDPR | H22: 2024-06-30
D23: Denomination | H23: Dollars
D24: CPI p.a. (future where no RBA forecast) | H24: 0.025
H27: Regulatory Period Indicator | J27: =IF(AND(J$28>=$H$20,J$29<=$H$21),1,0) -> 0 | K27: =IF(AND(K$28>=$H$20,K$29<=$H$21),1,0) -> 0 | L27: 0 | M27: 1 | N27: 1 | O27: 1 | P27: 1 | Q27: 1 | R27: 0 | S27: 0 | T27: 0 | U27: 0 | V27: 0 | W27: 0 | X27: 0 | Y27: 0 | Z27: 0 | AA27: 0 | AB27: 0 | AC27: 0 | AD27: 0 | AE27: 0 | AF27: 0 | AG27: 0 | AH27: 0 | AI27: 0 | AJ27: 0 | AK27: 0 | AL27: 0 | AM27: 0 | AN27: 0 | AO27: 0 | AP27: =IF(AND(AP$28>=$H$20,AP$29<=$H$21),1,0) -> 0 | AQ27: 0 | AR27: 0 | AS27: 0 | AT27: 0 | AU27: 0 | AV27: 0 | AW27: 0 | AX27: 0 | AY27: 0 | AZ27: 0 | BA27: 0 | BB27: 0 | BC27: 0 | BD27: 0 | BE27: 0 | BF27: 0 | BG27: 0
H28: Period Start Date | J28: =EDATE($H$18,(J30-1)*12) -> 2023-07-01 | K28: =EDATE($H$18,(K30-1)*12) -> 2024-07-01 | L28: 2025-07-01 | M28: 2026-07-01 | N28: 2027-07-01 | O28: 2028-07-01 | P28: 2029-07-01 | Q28: 2030-07-01 | R28: 2031-07-01 | S28: 2032-07-01 | T28: 2033-07-01 | U28: 2034-07-01 | V28: 2035-07-01 | W28: 2036-07-01 | X28: 2037-07-01 | Y28: 2038-07-01 | Z28: 2039-07-01 | AA28: 2040-07-01 | AB28: 2041-07-01 | AC28: 2042-07-01 | AD28: 2043-07-01 | AE28: 2044-07-01 | AF28: 2045-07-01 | AG28: 2046-07-01 | AH28: 2047-07-01 | AI28: 2048-07-01 | AJ28: 2049-07-01 | AK28: 2050-07-01 | AL28: 2051-07-01 | AM28: 2052-07-01 | AN28: 2053-07-01 | AO28: 2054-07-01 | AP28: 2055-07-01 | AQ28: 2056-07-01 | AR28: 2057-07-01 | AS28: 2058-07-01 | AT28: 2059-07-01 | AU28: 2060-07-01 | AV28: 2061-07-01 | AW28: 2062-07-01 | AX28: 2063-07-01 | AY28: 2064-07-01 | AZ28: 2065-07-01 | BA28: 2066-07-01 | BB28: 2067-07-01 | BC28: 2068-07-01 | BD28: 2069-07-01 | BE28: 2070-07-01 | BF28: 2071-07-01 | BG28: 2072-07-01
H29: Period End Date | J29: =EDATE(J28,12)-1 -> 2024-06-30 | K29: =EDATE(K28,12)-1 -> 2025-06-30 | L29: 2026-06-30 | M29: =EDATE(M28,12)-1 -> 2027-06-30 | N29: 2028-06-30 | O29: 2029-06-30 | P29: 2030-06-30 | Q29: 2031-06-30 | R29: 2032-06-30 | S29: 2033-06-30 | T29: 2034-06-30 | U29: 2035-06-30 | V29: 2036-06-30 | W29: 2037-06-30 | X29: 2038-06-30 | Y29: 2039-06-30 | Z29: 2040-06-30 | AA29: 2041-06-30 | AB29: 2042-06-30 | AC29: 2043-06-30 | AD29: 2044-06-30 | AE29: 2045-06-30 | AF29: 2046-06-30 | AG29: 2047-06-30 | AH29: 2048-06-30 | AI29: 2049-06-30 | AJ29: 2050-06-30 | AK29: 2051-06-30 | AL29: 2052-06-30 | AM29: 2053-06-30 | AN29: 2054-06-30 | AO29: 2055-06-30 | AP29: 2056-06-30 | AQ29: 2057-06-30 | AR29: 2058-06-30 | AS29: 2059-06-30 | AT29: 2060-06-30 | AU29: 2061-06-30 | AV29: 2062-06-30 | AW29: 2063-06-30 | AX29: 2064-06-30 | AY29: 2065-06-30 | AZ29: 2066-06-30 | BA29: 2067-06-30 | BB29: 2068-06-30 | BC29: 2069-06-30 | BD29: 2070-06-30 | BE29: 2071-06-30 | BF29: 2072-06-30 | BG29: 2073-06-30
H30: ="Project Year" -> Project Year | J30: =COLUMNS($J30:J30) -> 1 | K30: =COLUMNS($J30:K30) -> 2 | L30: =COLUMNS($J30:L30) -> 3 | M30: =COLUMNS($J30:M30) -> 4 | N30: =COLUMNS($J30:N30) -> 5 | O30: =COLUMNS($J30:O30) -> 6 | P30: =COLUMNS($J30:P30) -> 7 | Q30: =COLUMNS($J30:Q30) -> 8 | R30: =COLUMNS($J30:R30) -> 9 | S30: =COLUMNS($J30:S30) -> 10 | T30: =COLUMNS($J30:T30) -> 11 | U30: =COLUMNS($J30:U30) -> 12 | V30: =COLUMNS($J30:V30) -> 13 | W30: =COLUMNS($J30:W30) -> 14 | X30: =COLUMNS($J30:X30) -> 15 | Y30: =COLUMNS($J30:Y30) -> 16 | Z30: =COLUMNS($J30:Z30) -> 17 | AA30: =COLUMNS($J30:AA30) -> 18 | AB30: =COLUMNS($J30:AB30) -> 19 | AC30: =COLUMNS($J30:AC30) -> 20 | AD30: =COLUMNS($J30:AD30) -> 21 | AE30: =COLUMNS($J30:AE30) -> 22 | AF30: =COLUMNS($J30:AF30) -> 23 | AG30: =COLUMNS($J30:AG30) -> 24 | AH30: =COLUMNS($J30:AH30) -> 25 | AI30: =COLUMNS($J30:AI30) -> 26 | AJ30: =COLUMNS($J30:AJ30) -> 27 | AK30: =COLUMNS($J30:AK30) -> 28 | AL30: =COLUMNS($J30:AL30) -> 29 | AM30: =COLUMNS($J30:AM30) -> 30 | AN30: =COLUMNS($J30:AN30) -> 31 | AO30: =COLUMNS($J30:AO30) -> 32 | AP30: =COLUMNS($J30:AP30) -> 33 | AQ30: =COLUMNS($J30:AQ30) -> 34 | AR30: =COLUMNS($J30:AR30) -> 35 | AS30: =COLUMNS($J30:AS30) -> 36 | AT30: =COLUMNS($J30:AT30) -> 37 | AU30: =COLUMNS($J30:AU30) -> 38 | AV30: =COLUMNS($J30:AV30) -> 39 | AW30: =COLUMNS($J30:AW30) -> 40 | AX30: =COLUMNS($J30:AX30) -> 41 | AY30: =COLUMNS($J30:AY30) -> 42 | AZ30: =COLUMNS($J30:AZ30) -> 43 | BA30: =COLUMNS($J30:BA30) -> 44 | BB30: =COLUMNS($J30:BB30) -> 45 | BC30: =COLUMNS($J30:BC30) -> 46 | BD30: =COLUMNS($J30:BD30) -> 47 | BE30: =COLUMNS($J30:BE30) -> 48 | BF30: =COLUMNS($J30:BF30) -> 49 | BG30: =COLUMNS($J30:BG30) -> 50
H31: Financial Year | J31: =YEAR(J29) -> 2024 | K31: =YEAR(K29) -> 2025 | L31: 2026 | M31: 2027 | N31: 2028 | O31: 2029 | P31: 2030 | Q31: 2031 | R31: 2032 | S31: 2033 | T31: 2034 | U31: 2035 | V31: 2036 | W31: 2037 | X31: 2038 | Y31: 2039 | Z31: 2040 | AA31: 2041 | AB31: 2042 | AC31: 2043 | AD31: 2044 | AE31: 2045 | AF31: 2046 | AG31: 2047 | AH31: 2048 | AI31: 2049 | AJ31: 2050 | AK31: 2051 | AL31: 2052 | AM31: 2053 | AN31: 2054 | AO31: 2055 | AP31: 2056 | AQ31: 2057 | AR31: 2058 | AS31: 2059 | AT31: 2060 | AU31: 2061 | AV31: 2062 | AW31: 2063 | AX31: 2064 | AY31: 2065 | AZ31: 2066 | BA31: 2067 | BB31: 2068 | BC31: 2069 | BD31: 2070 | BE31: 2071 | BF31: 2072 | BG31: 2073
H32: WACC | J32: 0.0556 | K32: =J32 -> 0.0556 | L32: =K32 -> 0.0556 | M32: 0.0556 | N32: 0.0556 | O32: 0.0556 | P32: 0.0556 | Q32: 0.0556 | R32: 0.0556 | S32: 0.0556 | T32: 0.0556 | U32: 0.0556 | V32: 0.0556 | W32: 0.0556 | X32: 0.0556 | Y32: 0.0556 | Z32: 0.0556 | AA32: 0.0556 | AB32: 0.0556 | AC32: 0.0556 | AD32: 0.0556 | AE32: 0.0556 | AF32: 0.0556 | AG32: 0.0556 | AH32: 0.0556 | AI32: 0.0556 | AJ32: 0.0556 | AK32: 0.0556 | AL32: 0.0556 | AM32: 0.0556 | AN32: 0.0556 | AO32: 0.0556 | AP32: 0.0556 | AQ32: 0.0556 | AR32: 0.0556 | AS32: 0.0556 | AT32: 0.0556 | AU32: 0.0556 | AV32: 0.0556 | AW32: 0.0556 | AX32: 0.0556 | AY32: 0.0556 | AZ32: 0.0556 | BA32: 0.0556 | BB32: 0.0556 | BC32: 0.0556 | BD32: 0.0556 | BE32: 0.0556 | BF32: 0.0556 | BG32: 0.0556

Sheet Analysis->
C6: Analysis
C7: Section 3.
C9: =Cover!$C$9 -> AusNet Services
C10: =Cover!$C$10 -> Business Case Evaluation
C11: =Cover!$C$11 -> Demand driven augex (LV augmentation) with flexible services

Sheet BaseCase_Analysis
B1: Analysis: Base Case
B2: =Cover!$C$9 -> AusNet Services
B3: =Cover!$C$10 -> Business Case Evaluation
B4: =Cover!$C$11 -> Demand driven augex (LV augmentation) with flexible services
B6: Regulatory Period Indicator | J6: =IF(AND(J$7>=General!$H$20,J$8<=General!$H$21),1,0) -> 0 | K6: =IF(AND(K$7>=General!$H$20,K$8<=General!$H$21),1,0) -> 0 | L6: =IF(AND(L$7>=General!$H$20,L$8<=General!$H$21),1,0) -> 0 | M6: =IF(AND(M$7>=General!$H$20,M$8<=General!$H$21),1,0) -> 1 | N6: =IF(AND(N$7>=General!$H$20,N$8<=General!$H$21),1,0) -> 1 | O6: =IF(AND(O$7>=General!$H$20,O$8<=General!$H$21),1,0) -> 1 | P6: =IF(AND(P$7>=General!$H$20,P$8<=General!$H$21),1,0) -> 1 | Q6: =IF(AND(Q$7>=General!$H$20,Q$8<=General!$H$21),1,0) -> 1 | R6: =IF(AND(R$7>=General!$H$20,R$8<=General!$H$21),1,0) -> 0 | S6: =IF(AND(S$7>=General!$H$20,S$8<=General!$H$21),1,0) -> 0 | T6: =IF(AND(T$7>=General!$H$20,T$8<=General!$H$21),1,0) -> 0 | U6: =IF(AND(U$7>=General!$H$20,U$8<=General!$H$21),1,0) -> 0 | V6: =IF(AND(V$7>=General!$H$20,V$8<=General!$H$21),1,0) -> 0 | W6: =IF(AND(W$7>=General!$H$20,W$8<=General!$H$21),1,0) -> 0 | X6: =IF(AND(X$7>=General!$H$20,X$8<=General!$H$21),1,0) -> 0 | Y6: =IF(AND(Y$7>=General!$H$20,Y$8<=General!$H$21),1,0) -> 0 | Z6: =IF(AND(Z$7>=General!$H$20,Z$8<=General!$H$21),1,0) -> 0 | AA6: =IF(AND(AA$7>=General!$H$20,AA$8<=General!$H$21),1,0) -> 0 | AB6: =IF(AND(AB$7>=General!$H$20,AB$8<=General!$H$21),1,0) -> 0 | AC6: =IF(AND(AC$7>=General!$H$20,AC$8<=General!$H$21),1,0) -> 0 | AD6: =IF(AND(AD$7>=General!$H$20,AD$8<=General!$H$21),1,0) -> 0 | AE6: =IF(AND(AE$7>=General!$H$20,AE$8<=General!$H$21),1,0) -> 0 | AF6: =IF(AND(AF$7>=General!$H$20,AF$8<=General!$H$21),1,0) -> 0 | AG6: =IF(AND(AG$7>=General!$H$20,AG$8<=General!$H$21),1,0) -> 0 | AH6: =IF(AND(AH$7>=General!$H$20,AH$8<=General!$H$21),1,0) -> 0 | AI6: =IF(AND(AI$7>=General!$H$20,AI$8<=General!$H$21),1,0) -> 0 | AJ6: =IF(AND(AJ$7>=General!$H$20,AJ$8<=General!$H$21),1,0) -> 0 | AK6: =IF(AND(AK$7>=General!$H$20,AK$8<=General!$H$21),1,0) -> 0 | AL6: =IF(AND(AL$7>=General!$H$20,AL$8<=General!$H$21),1,0) -> 0 | AM6: =IF(AND(AM$7>=General!$H$20,AM$8<=General!$H$21),1,0) -> 0 | AN6: =IF(AND(AN$7>=General!$H$20,AN$8<=General!$H$21),1,0) -> 0 | AO6: =IF(AND(AO$7>=General!$H$20,AO$8<=General!$H$21),1,0) -> 0 | AP6: =IF(AND(AP$7>=General!$H$20,AP$8<=General!$H$21),1,0) -> 0 | AQ6: =IF(AND(AQ$7>=General!$H$20,AQ$8<=General!$H$21),1,0) -> 0 | AR6: =IF(AND(AR$7>=General!$H$20,AR$8<=General!$H$21),1,0) -> 0 | AS6: =IF(AND(AS$7>=General!$H$20,AS$8<=General!$H$21),1,0) -> 0 | AT6: =IF(AND(AT$7>=General!$H$20,AT$8<=General!$H$21),1,0) -> 0 | AU6: =IF(AND(AU$7>=General!$H$20,AU$8<=General!$H$21),1,0) -> 0 | AV6: =IF(AND(AV$7>=General!$H$20,AV$8<=General!$H$21),1,0) -> 0 | AW6: =IF(AND(AW$7>=General!$H$20,AW$8<=General!$H$21),1,0) -> 0 | AX6: =IF(AND(AX$7>=General!$H$20,AX$8<=General!$H$21),1,0) -> 0 | AY6: =IF(AND(AY$7>=General!$H$20,AY$8<=General!$H$21),1,0) -> 0 | AZ6: =IF(AND(AZ$7>=General!$H$20,AZ$8<=General!$H$21),1,0) -> 0 | BA6: =IF(AND(BA$7>=General!$H$20,BA$8<=General!$H$21),1,0) -> 0 | BB6: =IF(AND(BB$7>=General!$H$20,BB$8<=General!$H$21),1,0) -> 0 | BC6: =IF(AND(BC$7>=General!$H$20,BC$8<=General!$H$21),1,0) -> 0 | BD6: =IF(AND(BD$7>=General!$H$20,BD$8<=General!$H$21),1,0) -> 0 | BE6: =IF(AND(BE$7>=General!$H$20,BE$8<=General!$H$21),1,0) -> 0 | BF6: =IF(AND(BF$7>=General!$H$20,BF$8<=General!$H$21),1,0) -> 0 | BG6: =IF(AND(BG$7>=General!$H$20,BG$8<=General!$H$21),1,0) -> 0
B7: Period Start Date | J7: =EDATE(General!$H$18,(J9-1)*12) -> 2023-07-01 | K7: =EDATE(General!$H$18,(K9-1)*12) -> 2024-07-01 | L7: =EDATE(General!$H$18,(L9-1)*12) -> 2025-07-01 | M7: =EDATE(General!$H$18,(M9-1)*12) -> 2026-07-01 | N7: =EDATE(General!$H$18,(N9-1)*12) -> 2027-07-01 | O7: =EDATE(General!$H$18,(O9-1)*12) -> 2028-07-01 | P7: =EDATE(General!$H$18,(P9-1)*12) -> 2029-07-01 | Q7: =EDATE(General!$H$18,(Q9-1)*12) -> 2030-07-01 | R7: =EDATE(General!$H$18,(R9-1)*12) -> 2031-07-01 | S7: =EDATE(General!$H$18,(S9-1)*12) -> 2032-07-01 | T7: =EDATE(General!$H$18,(T9-1)*12) -> 2033-07-01 | U7: =EDATE(General!$H$18,(U9-1)*12) -> 2034-07-01 | V7: =EDATE(General!$H$18,(V9-1)*12) -> 2035-07-01 | W7: =EDATE(General!$H$18,(W9-1)*12) -> 2036-07-01 | X7: =EDATE(General!$H$18,(X9-1)*12) -> 2037-07-01 | Y7: =EDATE(General!$H$18,(Y9-1)*12) -> 2038-07-01 | Z7: =EDATE(General!$H$18,(Z9-1)*12) -> 2039-07-01 | AA7: =EDATE(General!$H$18,(AA9-1)*12) -> 2040-07-01 | AB7: =EDATE(General!$H$18,(AB9-1)*12) -> 2041-07-01 | AC7: =EDATE(General!$H$18,(AC9-1)*12) -> 2042-07-01 | AD7: =EDATE(General!$H$18,(AD9-1)*12) -> 2043-07-01 | AE7: =EDATE(General!$H$18,(AE9-1)*12) -> 2044-07-01 | AF7: =EDATE(General!$H$18,(AF9-1)*12) -> 2045-07-01 | AG7: =EDATE(General!$H$18,(AG9-1)*12) -> 2046-07-01 | AH7: =EDATE(General!$H$18,(AH9-1)*12) -> 2047-07-01 | AI7: =EDATE(General!$H$18,(AI9-1)*12) -> 2048-07-01 | AJ7: =EDATE(General!$H$18,(AJ9-1)*12) -> 2049-07-01 | AK7: =EDATE(General!$H$18,(AK9-1)*12) -> 2050-07-01 | AL7: =EDATE(General!$H$18,(AL9-1)*12) -> 2051-07-01 | AM7: =EDATE(General!$H$18,(AM9-1)*12) -> 2052-07-01 | AN7: =EDATE(General!$H$18,(AN9-1)*12) -> 2053-07-01 | AO7: =EDATE(General!$H$18,(AO9-1)*12) -> 2054-07-01 | AP7: =EDATE(General!$H$18,(AP9-1)*12) -> 2055-07-01 | AQ7: =EDATE(General!$H$18,(AQ9-1)*12) -> 2056-07-01 | AR7: =EDATE(General!$H$18,(AR9-1)*12) -> 2057-07-01 | AS7: =EDATE(General!$H$18,(AS9-1)*12) -> 2058-07-01 | AT7: =EDATE(General!$H$18,(AT9-1)*12) -> 2059-07-01 | AU7: =EDATE(General!$H$18,(AU9-1)*12) -> 2060-07-01 | AV7: =EDATE(General!$H$18,(AV9-1)*12) -> 2061-07-01 | AW7: =EDATE(General!$H$18,(AW9-1)*12) -> 2062-07-01 | AX7: =EDATE(General!$H$18,(AX9-1)*12) -> 2063-07-01 | AY7: =EDATE(General!$H$18,(AY9-1)*12) -> 2064-07-01 | AZ7: =EDATE(General!$H$18,(AZ9-1)*12) -> 2065-07-01 | BA7: =EDATE(General!$H$18,(BA9-1)*12) -> 2066-07-01 | BB7: =EDATE(General!$H$18,(BB9-1)*12) -> 2067-07-01 | BC7: =EDATE(General!$H$18,(BC9-1)*12) -> 2068-07-01 | BD7: =EDATE(General!$H$18,(BD9-1)*12) -> 2069-07-01 | BE7: =EDATE(General!$H$18,(BE9-1)*12) -> 2070-07-01 | BF7: =EDATE(General!$H$18,(BF9-1)*12) -> 2071-07-01 | BG7: =EDATE(General!$H$18,(BG9-1)*12) -> 2072-07-01
B8: Period End Date | J8: =EDATE(J7,12)-1 -> 2024-06-30 | K8: =EDATE(K7,12)-1 -> 2025-06-30 | L8: 2026-06-30 | M8: 2027-06-30 | N8: 2028-06-30 | O8: 2029-06-30 | P8: 2030-06-30 | Q8: 2031-06-30 | R8: 2032-06-30 | S8: 2033-06-30 | T8: 2034-06-30 | U8: 2035-06-30 | V8: 2036-06-30 | W8: 2037-06-30 | X8: 2038-06-30 | Y8: 2039-06-30 | Z8: 2040-06-30 | AA8: 2041-06-30 | AB8: 2042-06-30 | AC8: 2043-06-30 | AD8: 2044-06-30 | AE8: 2045-06-30 | AF8: 2046-06-30 | AG8: 2047-06-30 | AH8: 2048-06-30 | AI8: 2049-06-30 | AJ8: 2050-06-30 | AK8: 2051-06-30 | AL8: 2052-06-30 | AM8: 2053-06-30 | AN8: 2054-06-30 | AO8: 2055-06-30 | AP8: 2056-06-30 | AQ8: 2057-06-30 | AR8: 2058-06-30 | AS8: 2059-06-30 | AT8: 2060-06-30 | AU8: 2061-06-30 | AV8: 2062-06-30 | AW8: 2063-06-30 | AX8: 2064-06-30 | AY8: 2065-06-30 | AZ8: 2066-06-30 | BA8: 2067-06-30 | BB8: 2068-06-30 | BC8: 2069-06-30 | BD8: 2070-06-30 | BE8: 2071-06-30 | BF8: 2072-06-30 | BG8: 2073-06-30
B9: ="Project Year" -> Project Year | J9: =COLUMNS($J9:J9) -> 1 | K9: =COLUMNS($J9:K9) -> 2 | L9: =COLUMNS($J9:L9) -> 3 | M9: =COLUMNS($J9:M9) -> 4 | N9: =COLUMNS($J9:N9) -> 5 | O9: =COLUMNS($J9:O9) -> 6 | P9: =COLUMNS($J9:P9) -> 7 | Q9: =COLUMNS($J9:Q9) -> 8 | R9: =COLUMNS($J9:R9) -> 9 | S9: =COLUMNS($J9:S9) -> 10 | T9: =COLUMNS($J9:T9) -> 11 | U9: =COLUMNS($J9:U9) -> 12 | V9: =COLUMNS($J9:V9) -> 13 | W9: =COLUMNS($J9:W9) -> 14 | X9: =COLUMNS($J9:X9) -> 15 | Y9: =COLUMNS($J9:Y9) -> 16 | Z9: =COLUMNS($J9:Z9) -> 17 | AA9: =COLUMNS($J9:AA9) -> 18 | AB9: =COLUMNS($J9:AB9) -> 19 | AC9: =COLUMNS($J9:AC9) -> 20 | AD9: =COLUMNS($J9:AD9) -> 21 | AE9: =COLUMNS($J9:AE9) -> 22 | AF9: =COLUMNS($J9:AF9) -> 23 | AG9: =COLUMNS($J9:AG9) -> 24 | AH9: =COLUMNS($J9:AH9) -> 25 | AI9: =COLUMNS($J9:AI9) -> 26 | AJ9: =COLUMNS($J9:AJ9) -> 27 | AK9: =COLUMNS($J9:AK9) -> 28 | AL9: =COLUMNS($J9:AL9) -> 29 | AM9: =COLUMNS($J9:AM9) -> 30 | AN9: =COLUMNS($J9:AN9) -> 31 | AO9: =COLUMNS($J9:AO9) -> 32 | AP9: =COLUMNS($J9:AP9) -> 33 | AQ9: =COLUMNS($J9:AQ9) -> 34 | AR9: =COLUMNS($J9:AR9) -> 35 | AS9: =COLUMNS($J9:AS9) -> 36 | AT9: =COLUMNS($J9:AT9) -> 37 | AU9: =COLUMNS($J9:AU9) -> 38 | AV9: =COLUMNS($J9:AV9) -> 39 | AW9: =COLUMNS($J9:AW9) -> 40 | AX9: =COLUMNS($J9:AX9) -> 41 | AY9: =COLUMNS($J9:AY9) -> 42 | AZ9: =COLUMNS($J9:AZ9) -> 43 | BA9: =COLUMNS($J9:BA9) -> 44 | BB9: =COLUMNS($J9:BB9) -> 45 | BC9: =COLUMNS($J9:BC9) -> 46 | BD9: =COLUMNS($J9:BD9) -> 47 | BE9: =COLUMNS($J9:BE9) -> 48 | BF9: =COLUMNS($J9:BF9) -> 49 | BG9: =COLUMNS($J9:BG9) -> 50
B10: Financial Year | J10: =YEAR(J8) -> 2024 | K10: =YEAR(K8) -> 2025 | L10: 2026 | M10: 2027 | N10: 2028 | O10: 2029 | P10: 2030 | Q10: 2031 | R10: 2032 | S10: 2033 | T10: 2034 | U10: 2035 | V10: 2036 | W10: 2037 | X10: 2038 | Y10: 2039 | Z10: 2040 | AA10: 2041 | AB10: 2042 | AC10: 2043 | AD10: 2044 | AE10: 2045 | AF10: 2046 | AG10: 2047 | AH10: 2048 | AI10: 2049 | AJ10: 2050 | AK10: 2051 | AL10: 2052 | AM10: 2053 | AN10: 2054 | AO10: 2055 | AP10: 2056 | AQ10: 2057 | AR10: 2058 | AS10: 2059 | AT10: 2060 | AU10: 2061 | AV10: 2062 | AW10: 2063 | AX10: 2064 | AY10: 2065 | AZ10: 2066 | BA10: 2067 | BB10: 2068 | BC10: 2069 | BD10: 2070 | BE10: 2071 | BF10: 2072 | BG10: 2073
B11: CPI index | J11: 1 | K11: =J11*(1+IF(OR(ISBLANK(VLOOKUP(DATE(YEAR(K8),MONTH(K8),1),CPI_Con_F!$D$18:$G$67,4,FALSE)),ISERROR(VLOOKUP(DATE(YEAR(K8),MONTH(K8),1),CPI_Con_F!$D$18:$G$67,4,FALSE))),General!$H$24,VLOOKUP(DATE(YEAR(K8),MONTH(K8),1),CPI_Con_F!$D$18:$G$67,4,FALSE))) -> 1.03 | L11: =K11*(1+IF(OR(ISBLANK(VLOOKUP(DATE(YEAR(L8),MONTH(L8),1),CPI_Con_F!$D$18:$G$67,4,FALSE)),ISERROR(VLOOKUP(DATE(YEAR(L8),MONTH(L8),1),CPI_Con_F!$D$18:$G$67,4,FALSE))),General!$H$24,VLOOKUP(DATE(YEAR(L8),MONTH(L8),1),CPI_Con_F!$D$18:$G$67,4,FALSE))) -> 1.05575 | M11: =L11*(1+IF(OR(ISBLANK(VLOOKUP(DATE(YEAR(M8),MONTH(M8),1),CPI_Con_F!$D$18:$G$67,4,FALSE)),ISERROR(VLOOKUP(DATE(YEAR(M8),MONTH(M8),1),CPI_Con_F!$D$18:$G$67,4,FALSE))),General!$H$24,VLOOKUP(DATE(YEAR(M8),MONTH(M8),1),CPI_Con_F!$D$18:$G$67,4,FALSE))) -> 1.08214375 | N11: =M11*(1+IF(OR(ISBLANK(VLOOKUP(DATE(YEAR(N8),MONTH(N8),1),CPI_Con_F!$D$18:$G$67,4,FALSE)),ISERROR(VLOOKUP(DATE(YEAR(N8),MONTH(N8),1),CPI_Con_F!$D$18:$G$67,4,FALSE))),General!$H$24,VLOOKUP(DATE(YEAR(N8),MONTH(N8),1),CPI_Con_F!$D$18:$G$67,4,FALSE))) -> 1.109197344 | O11: =N11*(1+IF(OR(ISBLANK(VLOOKUP(DATE(YEAR(O8),MONTH(O8),1),CPI_Con_F!$D$18:$G$67,4,FALSE)),ISERROR(VLOOKUP(DATE(YEAR(O8),MONTH(O8),1),CPI_Con_F!$D$18:$G$67,4,FALSE))),General!$H$24,VLOOKUP(DATE(YEAR(O8),MONTH(O8),1),CPI_Con_F!$D$18:$G$67,4,FALSE))) -> 1.136927277 | P11: =O11*(1+IF(OR(ISBLANK(VLOOKUP(DATE(YEAR(P8),MONTH(P8),1),CPI_Con_F!$D$18:$G$67,4,FALSE)),ISERROR(VLOOKUP(DATE(YEAR(P8),MONTH(P8),1),CPI_Con_F!$D$18:$G$67,4,FALSE))),General!$H$24,VLOOKUP(DATE(YEAR(P8),MONTH(P8),1),CPI_Con_F!$D$18:$G$67,4,FALSE))) -> 1.165350459 | Q11: =P11*(1+IF(OR(ISBLANK(VLOOKUP(DATE(YEAR(Q8),MONTH(Q8),1),CPI_Con_F!$D$18:$G$67,4,FALSE)),ISERROR(VLOOKUP(DATE(YEAR(Q8),MONTH(Q8),1),CPI_Con_F!$D$18:$G$67,4,FALSE))),General!$H$24,VLOOKUP(DATE(YEAR(Q8),MONTH(Q8),1),CPI_Con_F!$D$18:$G$67,4,FALSE))) -> 1.194484221 | R11: =Q11*(1+IF(OR(ISBLANK(VLOOKUP(DATE(YEAR(R8),MONTH(R8),1),CPI_Con_F!$D$18:$G$67,4,FALSE)),ISERROR(VLOOKUP(DATE(YEAR(R8),MONTH(R8),1),CPI_Con_F!$D$18:$G$67,4,FALSE))),General!$H$24,VLOOKUP(DATE(YEAR(R8),MONTH(R8),1),CPI_Con_F!$D$18:$G$67,4,FALSE))) -> 1.224346326 | S11: =R11*(1+IF(OR(ISBLANK(VLOOKUP(DATE(YEAR(S8),MONTH(S8),1),CPI_Con_F!$D$18:$G$67,4,FALSE)),ISERROR(VLOOKUP(DATE(YEAR(S8),MONTH(S8),1),CPI_Con_F!$D$18:$G$67,4,FALSE))),General!$H$24,VLOOKUP(DATE(YEAR(S8),MONTH(S8),1),CPI_Con_F!$D$18:$G$67,4,FALSE))) -> 1.254954984 | T11: =S11*(1+IF(OR(ISBLANK(VLOOKUP(DATE(YEAR(T8),MONTH(T8),1),CPI_Con_F!$D$18:$G$67,4,FALSE)),ISERROR(VLOOKUP(DATE(YEAR(T8),MONTH(T8),1),CPI_Con_F!$D$18:$G$67,4,FALSE))),General!$H$24,VLOOKUP(DATE(YEAR(T8),MONTH(T8),1),CPI_Con_F!$D$18:$G$67,4,FALSE))) -> 1.286328859 | U11: =T11*(1+IF(OR(ISBLANK(VLOOKUP(DATE(YEAR(U8),MONTH(U8),1),CPI_Con_F!$D$18:$G$67,4,FALSE)),ISERROR(VLOOKUP(DATE(YEAR(U8),MONTH(U8),1),CPI_Con_F!$D$18:$G$67,4,FALSE))),General!$H$24,VLOOKUP(DATE(YEAR(U8),MONTH(U8),1),CPI_Con_F!$D$18:$G$67,4,FALSE))) -> 1.318487081 | V11: =U11*(1+IF(OR(ISBLANK(VLOOKUP(DATE(YEAR(V8),MONTH(V8),1),CPI_Con_F!$D$18:$G$67,4,FALSE)),ISERROR(VLOOKUP(DATE(YEAR(V8),MONTH(V8),1),CPI_Con_F!$D$18:$G$67,4,FALSE))),General!$H$24,VLOOKUP(DATE(YEAR(V8),MONTH(V8),1),CPI_Con_F!$D$18:$G$67,4,FALSE))) -> 1.351449258 | W11: =V11*(1+IF(OR(ISBLANK(VLOOKUP(DATE(YEAR(W8),MONTH(W8),1),CPI_Con_F!$D$18:$G$67,4,FALSE)),ISERROR(VLOOKUP(DATE(YEAR(W8),MONTH(W8),1),CPI_Con_F!$D$18:$G$67,4,FALSE))),General!$H$24,VLOOKUP(DATE(YEAR(W8),MONTH(W8),1),CPI_Con_F!$D$18:$G$67,4,FALSE))) -> 1.385235489 | X11: =W11*(1+IF(OR(ISBLANK(VLOOKUP(DATE(YEAR(X8),MONTH(X8),1),CPI_Con_F!$D$18:$G$67,4,FALSE)),ISERROR(VLOOKUP(DATE(YEAR(X8),MONTH(X8),1),CPI_Con_F!$D$18:$G$67,4,FALSE))),General!$H$24,VLOOKUP(DATE(YEAR(X8),MONTH(X8),1),CPI_Con_F!$D$18:$G$67,4,FALSE))) -> 1.419866376 | Y11: =X11*(1+IF(OR(ISBLANK(VLOOKUP(DATE(YEAR(Y8),MONTH(Y8),1),CPI_Con_F!$D$18:$G$67,4,FALSE)),ISERROR(VLOOKUP(DATE(YEAR(Y8),MONTH(Y8),1),CPI_Con_F!$D$18:$G$67,4,FALSE))),General!$H$24,VLOOKUP(DATE(YEAR(Y8),MONTH(Y8),1),CPI_Con_F!$D$18:$G$67,4,FALSE))) -> 1.455363036 | Z11: =Y11*(1+IF(OR(ISBLANK(VLOOKUP(DATE(YEAR(Z8),MONTH(Z8),1),CPI_Con_F!$D$18:$G$67,4,FALSE)),ISERROR(VLOOKUP(DATE(YEAR(Z8),MONTH(Z8),1),CPI_Con_F!$D$18:$G$67,4,FALSE))),General!$H$24,VLOOKUP(DATE(YEAR(Z8),MONTH(Z8),1),CPI_Con_F!$D$18:$G$67,4,FALSE))) -> 1.491747111 | AA11: =Z11*(1+IF(OR(ISBLANK(VLOOKUP(DATE(YEAR(AA8),MONTH(AA8),1),CPI_Con_F!$D$18:$G$67,4,FALSE)),ISERROR(VLOOKUP(DATE(YEAR(AA8),MONTH(AA8),1),CPI_Con_F!$D$18:$G$67,4,FALSE))),General!$H$24,VLOOKUP(DATE(YEAR(AA8),MONTH(AA8),1),CPI_Con_F!$D$18:$G$67,4,FALSE))) -> 1.529040789 | AB11: =AA11*(1+IF(OR(ISBLANK(VLOOKUP(DATE(YEAR(AB8),MONTH(AB8),1),CPI_Con_F!$D$18:$G$67,4,FALSE)),ISERROR(VLOOKUP(DATE(YEAR(AB8),MONTH(AB8),1),CPI_Con_F!$D$18:$G$67,4,FALSE))),General!$H$24,VLOOKUP(DATE(YEAR(AB8),MONTH(AB8),1),CPI_Con_F!$D$18:$G$67,4,FALSE))) -> 1.567266809 | AC11: =AB11*(1+IF(OR(ISBLANK(VLOOKUP(DATE(YEAR(AC8),MONTH(AC8),1),CPI_Con_F!$D$18:$G$67,4,FALSE)),ISERROR(VLOOKUP(DATE(YEAR(AC8),MONTH(AC8),1),CPI_Con_F!$D$18:$G$67,4,FALSE))),General!$H$24,VLOOKUP(DATE(YEAR(AC8),MONTH(AC8),1),CPI_Con_F!$D$18:$G$67,4,FALSE))) -> 1.606448479 | AD11: =AC11*(1+IF(OR(ISBLANK(VLOOKUP(DATE(YEAR(AD8),MONTH(AD8),1),CPI_Con_F!$D$18:$G$67,4,FALSE)),ISERROR(VLOOKUP(DATE(YEAR(AD8),MONTH(AD8),1),CPI_Con_F!$D$18:$G$67,4,FALSE))),General!$H$24,VLOOKUP(DATE(YEAR(AD8),MONTH(AD8),1),CPI_Con_F!$D$18:$G$67,4,FALSE))) -> 1.646609691 | AE11: =AD11*(1+IF(OR(ISBLANK(VLOOKUP(DATE(YEAR(AE8),MONTH(AE8),1),CPI_Con_F!$D$18:$G$67,4,FALSE)),ISERROR(VLOOKUP(DATE(YEAR(AE8),MONTH(AE8),1),CPI_Con_F!$D$18:$G$67,4,FALSE))),General!$H$24,VLOOKUP(DATE(YEAR(AE8),MONTH(AE8),1),CPI_Con_F!$D$18:$G$67,4,FALSE))) -> 1.687774933 | AF11: =AE11*(1+IF(OR(ISBLANK(VLOOKUP(DATE(YEAR(AF8),MONTH(AF8),1),CPI_Con_F!$D$18:$G$67,4,FALSE)),ISERROR(VLOOKUP(DATE(YEAR(AF8),MONTH(AF8),1),CPI_Con_F!$D$18:$G$67,4,FALSE))),General!$H$24,VLOOKUP(DATE(YEAR(AF8),MONTH(AF8),1),CPI_Con_F!$D$18:$G$67,4,FALSE))) -> 1.729969307 | AG11: =AF11*(1+IF(OR(ISBLANK(VLOOKUP(DATE(YEAR(AG8),MONTH(AG8),1),CPI_Con_F!$D$18:$G$67,4,FALSE)),ISERROR(VLOOKUP(DATE(YEAR(AG8),MONTH(AG8),1),CPI_Con_F!$D$18:$G$67,4,FALSE))),General!$H$24,VLOOKUP(DATE(YEAR(AG8),MONTH(AG8),1),CPI_Con_F!$D$18:$G$67,4,FALSE))) -> 1.77321854 | AH11: =AG11*(1+IF(OR(ISBLANK(VLOOKUP(DATE(YEAR(AH8),MONTH(AH8),1),CPI_Con_F!$D$18:$G$67,4,FALSE)),ISERROR(VLOOKUP(DATE(YEAR(AH8),MONTH(AH8),1),CPI_Con_F!$D$18:$G$67,4,FALSE))),General!$H$24,VLOOKUP(DATE(YEAR(AH8),MONTH(AH8),1),CPI_Con_F!$D$18:$G$67,4,FALSE))) -> 1.817549003 | AI11: =AH11*(1+IF(OR(ISBLANK(VLOOKUP(DATE(YEAR(AI8),MONTH(AI8),1),CPI_Con_F!$D$18:$G$67,4,FALSE)),ISERROR(VLOOKUP(DATE(YEAR(AI8),MONTH(AI8),1),CPI_Con_F!$D$18:$G$67,4,FALSE))),General!$H$24,VLOOKUP(DATE(YEAR(AI8),MONTH(AI8),1),CPI_Con_F!$D$18:$G$67,4,FALSE))) -> 1.862987728 | AJ11: =AI11*(1+IF(OR(ISBLANK(VLOOKUP(DATE(YEAR(AJ8),MONTH(AJ8),1),CPI_Con_F!$D$18:$G$67,4,FALSE)),ISERROR(VLOOKUP(DATE(YEAR(AJ8),MONTH(AJ8),1),CPI_Con_F!$D$18:$G$67,4,FALSE))),General!$H$24,VLOOKUP(DATE(YEAR(AJ8),MONTH(AJ8),1),CPI_Con_F!$D$18:$G$67,4,FALSE))) -> 1.909562421 | AK11: =AJ11*(1+IF(OR(ISBLANK(VLOOKUP(DATE(YEAR(AK8),MONTH(AK8),1),CPI_Con_F!$D$18:$G$67,4,FALSE)),ISERROR(VLOOKUP(DATE(YEAR(AK8),MONTH(AK8),1),CPI_Con_F!$D$18:$G$67,4,FALSE))),General!$H$24,VLOOKUP(DATE(YEAR(AK8),MONTH(AK8),1),CPI_Con_F!$D$18:$G$67,4,FALSE))) -> 1.957301482 | AL11: =AK11*(1+IF(OR(ISBLANK(VLOOKUP(DATE(YEAR(AL8),MONTH(AL8),1),CPI_Con_F!$D$18:$G$67,4,FALSE)),ISERROR(VLOOKUP(DATE(YEAR(AL8),MONTH(AL8),1),CPI_Con_F!$D$18:$G$67,4,FALSE))),General!$H$24,VLOOKUP(DATE(YEAR(AL8),MONTH(AL8),1),CPI_Con_F!$D$18:$G$67,4,FALSE))) -> 2.006234019 | AM11: =AL11*(1+IF(OR(ISBLANK(VLOOKUP(DATE(YEAR(AM8),MONTH(AM8),1),CPI_Con_F!$D$18:$G$67,4,FALSE)),ISERROR(VLOOKUP(DATE(YEAR(AM8),MONTH(AM8),1),CPI_Con_F!$D$18:$G$67,4,FALSE))),General!$H$24,VLOOKUP(DATE(YEAR(AM8),MONTH(AM8),1),CPI_Con_F!$D$18:$G$67,4,FALSE))) -> 2.056389869 | AN11: =AM11*(1+IF(OR(ISBLANK(VLOOKUP(DATE(YEAR(AN8),MONTH(AN8),1),CPI_Con_F!$D$18:$G$67,4,FALSE)),ISERROR(VLOOKUP(DATE(YEAR(AN8),MONTH(AN8),1),CPI_Con_F!$D$18:$G$67,4,FALSE))),General!$H$24,VLOOKUP(DATE(YEAR(AN8),MONTH(AN8),1),CPI_Con_F!$D$18:$G$67,4,FALSE))) -> 2.107799616 | AO11: =AN11*(1+IF(OR(ISBLANK(VLOOKUP(DATE(YEAR(AO8),MONTH(AO8),1),CPI_Con_F!$D$18:$G$67,4,FALSE)),ISERROR(VLOOKUP(DATE(YEAR(AO8),MONTH(AO8),1),CPI_Con_F!$D$18:$G$67,4,FALSE))),General!$H$24,VLOOKUP(DATE(YEAR(AO8),MONTH(AO8),1),CPI_Con_F!$D$18:$G$67,4,FALSE))) -> 2.160494606 | AP11: =AO11*(1+IF(OR(ISBLANK(VLOOKUP(DATE(YEAR(AP8),MONTH(AP8),1),CPI_Con_F!$D$18:$G$67,4,FALSE)),ISERROR(VLOOKUP(DATE(YEAR(AP8),MONTH(AP8),1),CPI_Con_F!$D$18:$G$67,4,FALSE))),General!$H$24,VLOOKUP(DATE(YEAR(AP8),MONTH(AP8),1),CPI_Con_F!$D$18:$G$67,4,FALSE))) -> 2.214506972 | AQ11: =AP11*(1+IF(OR(ISBLANK(VLOOKUP(DATE(YEAR(AQ8),MONTH(AQ8),1),CPI_Con_F!$D$18:$G$67,4,FALSE)),ISERROR(VLOOKUP(DATE(YEAR(AQ8),MONTH(AQ8),1),CPI_Con_F!$D$18:$G$67,4,FALSE))),General!$H$24,VLOOKUP(DATE(YEAR(AQ8),MONTH(AQ8),1),CPI_Con_F!$D$18:$G$67,4,FALSE))) -> 2.269869646 | AR11: =AQ11*(1+IF(OR(ISBLANK(VLOOKUP(DATE(YEAR(AR8),MONTH(AR8),1),CPI_Con_F!$D$18:$G$67,4,FALSE)),ISERROR(VLOOKUP(DATE(YEAR(AR8),MONTH(AR8),1),CPI_Con_F!$D$18:$G$67,4,FALSE))),General!$H$24,VLOOKUP(DATE(YEAR(AR8),MONTH(AR8),1),CPI_Con_F!$D$18:$G$67,4,FALSE))) -> 2.326616387 | AS11: =AR11*(1+IF(OR(ISBLANK(VLOOKUP(DATE(YEAR(AS8),MONTH(AS8),1),CPI_Con_F!$D$18:$G$67,4,FALSE)),ISERROR(VLOOKUP(DATE(YEAR(AS8),MONTH(AS8),1),CPI_Con_F!$D$18:$G$67,4,FALSE))),General!$H$24,VLOOKUP(DATE(YEAR(AS8),MONTH(AS8),1),CPI_Con_F!$D$18:$G$67,4,FALSE))) -> 2.384781797 | AT11: =AS11*(1+IF(OR(ISBLANK(VLOOKUP(DATE(YEAR(AT8),MONTH(AT8),1),CPI_Con_F!$D$18:$G$67,4,FALSE)),ISERROR(VLOOKUP(DATE(YEAR(AT8),MONTH(AT8),1),CPI_Con_F!$D$18:$G$67,4,FALSE))),General!$H$24,VLOOKUP(DATE(YEAR(AT8),MONTH(AT8),1),CPI_Con_F!$D$18:$G$67,4,FALSE))) -> 2.444401342 | AU11: =AT11*(1+IF(OR(ISBLANK(VLOOKUP(DATE(YEAR(AU8),MONTH(AU8),1),CPI_Con_F!$D$18:$G$67,4,FALSE)),ISERROR(VLOOKUP(DATE(YEAR(AU8),MONTH(AU8),1),CPI_Con_F!$D$18:$G$67,4,FALSE))),General!$H$24,VLOOKUP(DATE(YEAR(AU8),MONTH(AU8),1),CPI_Con_F!$D$18:$G$67,4,FALSE))) -> 2.505511375 | AV11: =AU11*(1+IF(OR(ISBLANK(VLOOKUP(DATE(YEAR(AV8),MONTH(AV8),1),CPI_Con_F!$D$18:$G$67,4,FALSE)),ISERROR(VLOOKUP(DATE(YEAR(AV8),MONTH(AV8),1),CPI_Con_F!$D$18:$G$67,4,FALSE))),General!$H$24,VLOOKUP(DATE(YEAR(AV8),MONTH(AV8),1),CPI_Con_F!$D$18:$G$67,4,FALSE))) -> 2.56814916 | AW11: =AV11*(1+IF(OR(ISBLANK(VLOOKUP(DATE(YEAR(AW8),MONTH(AW8),1),CPI_Con_F!$D$18:$G$67,4,FALSE)),ISERROR(VLOOKUP(DATE(YEAR(AW8),MONTH(AW8),1),CPI_Con_F!$D$18:$G$67,4,FALSE))),General!$H$24,VLOOKUP(DATE(YEAR(AW8),MONTH(AW8),1),CPI_Con_F!$D$18:$G$67,4,FALSE))) -> 2.632352889 | AX11: =AW11*(1+IF(OR(ISBLANK(VLOOKUP(DATE(YEAR(AX8),MONTH(AX8),1),CPI_Con_F!$D$18:$G$67,4,FALSE)),ISERROR(VLOOKUP(DATE(YEAR(AX8),MONTH(AX8),1),CPI_Con_F!$D$18:$G$67,4,FALSE))),General!$H$24,VLOOKUP(DATE(YEAR(AX8),MONTH(AX8),1),CPI_Con_F!$D$18:$G$67,4,FALSE))) -> 2.698161711 | AY11: =AX11*(1+IF(OR(ISBLANK(VLOOKUP(DATE(YEAR(AY8),MONTH(AY8),1),CPI_Con_F!$D$18:$G$67,4,FALSE)),ISERROR(VLOOKUP(DATE(YEAR(AY8),MONTH(AY8),1),CPI_Con_F!$D$18:$G$67,4,FALSE))),General!$H$24,VLOOKUP(DATE(YEAR(AY8),MONTH(AY8),1),CPI_Con_F!$D$18:$G$67,4,FALSE))) -> 2.765615754 | AZ11: =AY11*(1+IF(OR(ISBLANK(VLOOKUP(DATE(YEAR(AZ8),MONTH(AZ8),1),CPI_Con_F!$D$18:$G$67,4,FALSE)),ISERROR(VLOOKUP(DATE(YEAR(AZ8),MONTH(AZ8),1),CPI_Con_F!$D$18:$G$67,4,FALSE))),General!$H$24,VLOOKUP(DATE(YEAR(AZ8),MONTH(AZ8),1),CPI_Con_F!$D$18:$G$67,4,FALSE))) -> 2.834756147 | BA11: =AZ11*(1+IF(OR(ISBLANK(VLOOKUP(DATE(YEAR(BA8),MONTH(BA8),1),CPI_Con_F!$D$18:$G$67,4,FALSE)),ISERROR(VLOOKUP(DATE(YEAR(BA8),MONTH(BA8),1),CPI_Con_F!$D$18:$G$67,4,FALSE))),General!$H$24,VLOOKUP(DATE(YEAR(BA8),MONTH(BA8),1),CPI_Con_F!$D$18:$G$67,4,FALSE))) -> 2.905625051 | BB11: =BA11*(1+IF(OR(ISBLANK(VLOOKUP(DATE(YEAR(BB8),MONTH(BB8),1),CPI_Con_F!$D$18:$G$67,4,FALSE)),ISERROR(VLOOKUP(DATE(YEAR(BB8),MONTH(BB8),1),CPI_Con_F!$D$18:$G$67,4,FALSE))),General!$H$24,VLOOKUP(DATE(YEAR(BB8),MONTH(BB8),1),CPI_Con_F!$D$18:$G$67,4,FALSE))) -> 2.978265677 | BC11: =BB11*(1+IF(OR(ISBLANK(VLOOKUP(DATE(YEAR(BC8),MONTH(BC8),1),CPI_Con_F!$D$18:$G$67,4,FALSE)),ISERROR(VLOOKUP(DATE(YEAR(BC8),MONTH(BC8),1),CPI_Con_F!$D$18:$G$67,4,FALSE))),General!$H$24,VLOOKUP(DATE(YEAR(BC8),MONTH(BC8),1),CPI_Con_F!$D$18:$G$67,4,FALSE))) -> 3.052722319 | BD11: =BC11*(1+IF(OR(ISBLANK(VLOOKUP(DATE(YEAR(BD8),MONTH(BD8),1),CPI_Con_F!$D$18:$G$67,4,FALSE)),ISERROR(VLOOKUP(DATE(YEAR(BD8),MONTH(BD8),1),CPI_Con_F!$D$18:$G$67,4,FALSE))),General!$H$24,VLOOKUP(DATE(YEAR(BD8),MONTH(BD8),1),CPI_Con_F!$D$18:$G$67,4,FALSE))) -> 3.129040377 | BE11: =BD11*(1+IF(OR(ISBLANK(VLOOKUP(DATE(YEAR(BE8),MONTH(BE8),1),CPI_Con_F!$D$18:$G$67,4,FALSE)),ISERROR(VLOOKUP(DATE(YEAR(BE8),MONTH(BE8),1),CPI_Con_F!$D$18:$G$67,4,FALSE))),General!$H$24,VLOOKUP(DATE(YEAR(BE8),MONTH(BE8),1),CPI_Con_F!$D$18:$G$67,4,FALSE))) -> 3.207266387 | BF11: =BE11*(1+IF(OR(ISBLANK(VLOOKUP(DATE(YEAR(BF8),MONTH(BF8),1),CPI_Con_F!$D$18:$G$67,4,FALSE)),ISERROR(VLOOKUP(DATE(YEAR(BF8),MONTH(BF8),1),CPI_Con_F!$D$18:$G$67,4,FALSE))),General!$H$24,VLOOKUP(DATE(YEAR(BF8),MONTH(BF8),1),CPI_Con_F!$D$18:$G$67,4,FALSE))) -> 3.287448046 | BG11: =BF11*(1+IF(OR(ISBLANK(VLOOKUP(DATE(YEAR(BG8),MONTH(BG8),1),CPI_Con_F!$D$18:$G$67,4,FALSE)),ISERROR(VLOOKUP(DATE(YEAR(BG8),MONTH(BG8),1),CPI_Con_F!$D$18:$G$67,4,FALSE))),General!$H$24,VLOOKUP(DATE(YEAR(BG8),MONTH(BG8),1),CPI_Con_F!$D$18:$G$67,4,FALSE))) -> 3.369634248
B12: CPI Index (lagged) | J12: =IF(J9=1,1,I11) -> 1 | K12: 1 | L12: 1.03 | M12: 1.05575 | N12: 1.08214375 | O12: 1.109197344 | P12: 1.136927277 | Q12: 1.165350459 | R12: 1.194484221 | S12: 1.224346326 | T12: 1.254954984 | U12: 1.286328859 | V12: 1.318487081 | W12: 1.351449258 | X12: 1.385235489 | Y12: 1.419866376 | Z12: 1.455363036 | AA12: 1.491747111 | AB12: 1.529040789 | AC12: 1.567266809 | AD12: 1.606448479 | AE12: 1.646609691 | AF12: 1.687774933 | AG12: 1.729969307 | AH12: 1.77321854 | AI12: 1.817549003 | AJ12: 1.862987728 | AK12: 1.909562421 | AL12: 1.957301482 | AM12: 2.006234019 | AN12: 2.056389869 | AO12: 2.107799616 | AP12: =IF(AP9=1,1,AO11) -> 2.160494606 | AQ12: 2.214506972 | AR12: 2.269869646 | AS12: 2.326616387 | AT12: 2.384781797 | AU12: 2.444401342 | AV12: 2.505511375 | AW12: 2.56814916 | AX12: 2.632352889 | AY12: 2.698161711 | AZ12: 2.765615754 | BA12: 2.834756147 | BB12: 2.905625051 | BC12: 2.978265677 | BD12: 3.052722319 | BE12: 3.129040377 | BF12: 3.207266387 | BG12: 3.287448046
B13: Discount Index (pre tax) | J13: =(1+General!J32)^(J$9-1) -> 1 | K13: =(1+General!K32)^(K$9-1) -> 1.0556 | L13: =(1+General!L32)^(L$9-1) -> 1.11429136 | M13: =(1+General!M32)^(M$9-1) -> 1.17624596 | N13: =(1+General!N32)^(N$9-1) -> 1.241645235 | O13: =(1+General!O32)^(O$9-1) -> 1.31068071 | P13: =(1+General!P32)^(P$9-1) -> 1.383554558 | Q13: =(1+General!Q32)^(Q$9-1) -> 1.460480191 | R13: =(1+General!R32)^(R$9-1) -> 1.54168289 | S13: =(1+General!S32)^(S$9-1) -> 1.627400458 | T13: =(1+General!T32)^(T$9-1) -> 1.717883924 | U13: =(1+General!U32)^(U$9-1) -> 1.81339827 | V13: =(1+General!V32)^(V$9-1) -> 1.914223214 | W13: =(1+General!W32)^(W$9-1) -> 2.020654024 | X13: =(1+General!X32)^(X$9-1) -> 2.133002388 | Y13: =(1+General!Y32)^(Y$9-1) -> 2.251597321 | Z13: =(1+General!Z32)^(Z$9-1) -> 2.376786132 | AA13: =(1+General!AA32)^(AA$9-1) -> 2.508935441 | AB13: =(1+General!AB32)^(AB$9-1) -> 2.648432251 | AC13: =(1+General!AC32)^(AC$9-1) -> 2.795685084 | AD13: =(1+General!AD32)^(AD$9-1) -> 2.951125175 | AE13: =(1+General!AE32)^(AE$9-1) -> 3.115207735 | AF13: =(1+General!AF32)^(AF$9-1) -> 3.288413285 | AG13: =(1+General!AG32)^(AG$9-1) -> 3.471249064 | AH13: =(1+General!AH32)^(AH$9-1) -> 3.664250512 | AI13: =(1+General!AI32)^(AI$9-1) -> 3.86798284 | AJ13: =(1+General!AJ32)^(AJ$9-1) -> 4.083042686 | AK13: =(1+General!AK32)^(AK$9-1) -> 4.310059859 | AL13: =(1+General!AL32)^(AL$9-1) -> 4.549699187 | AM13: =(1+General!AM32)^(AM$9-1) -> 4.802662462 | AN13: =(1+General!AN32)^(AN$9-1) -> 5.069690495 | AO13: =(1+General!AO32)^(AO$9-1) -> 5.351565287 | AP13: =(1+General!AP32)^(AP$9-1) -> 5.649112317 | AQ13: =(1+General!AQ32)^(AQ$9-1) -> 5.963202961 | AR13: =(1+General!AR32)^(AR$9-1) -> 6.294757046 | AS13: =(1+General!AS32)^(AS$9-1) -> 6.644745538 | AT13: =(1+General!AT32)^(AT$9-1) -> 7.01419339 | AU13: =(1+General!AU32)^(AU$9-1) -> 7.404182542 | AV13: =(1+General!AV32)^(AV$9-1) -> 7.815855092 | AW13: =(1+General!AW32)^(AW$9-1) -> 8.250416635 | AX13: =(1+General!AX32)^(AX$9-1) -> 8.709139799 | AY13: =(1+General!AY32)^(AY$9-1) -> 9.193367972 | AZ13: =(1+General!AZ32)^(AZ$9-1) -> 9.704519232 | BA13: =(1+General!BA32)^(BA$9-1) -> 10.2440905 | BB13: =(1+General!BB32)^(BB$9-1) -> 10.81366193 | BC13: =(1+General!BC32)^(BC$9-1) -> 11.41490154 | BD13: =(1+General!BD32)^(BD$9-1) -> 12.04957006 | BE13: =(1+General!BE32)^(BE$9-1) -> 12.71952616 | BF13: =(1+General!BF32)^(BF$9-1) -> 13.42673181 | BG13: =(1+General!BG32)^(BG$9-1) -> 14.1732581
J16: ="FY "&RIGHT(J10,2) -> FY 24 | K16: FY 25 | L16: FY 26 | M16: FY 27 | N16: FY 28 | O16: FY 29 | P16: FY 30 | Q16: FY 31 | R16: FY 32 | S16: FY 33 | T16: FY 34 | U16: FY 35 | V16: FY 36 | W16: FY 37 | X16: FY 38 | Y16: FY 39 | Z16: FY 40 | AA16: FY 41 | AB16: FY 42 | AC16: FY 43 | AD16: FY 44 | AE16: FY 45 | AF16: FY 46 | AG16: FY 47 | AH16: FY 48 | AI16: FY 49 | AJ16: FY 50 | AK16: FY 51 | AL16: FY 52 | AM16: FY 53 | AN16: FY 54 | AO16: FY 55 | AP16: ="FY "&RIGHT(AP10,2) -> FY 56 | AQ16: FY 57 | AR16: FY 58 | AS16: FY 59 | AT16: FY 60 | AU16: FY 61 | AV16: FY 62 | AW16: FY 63 | AX16: FY 64 | AY16: FY 65 | AZ16: FY 66 | BA16: FY 67 | BB16: FY 68 | BC16: FY 69 | BD16: FY 70 | BE16: FY 71 | BF16: FY 72 | BG16: FY 73
B17: Summary | J17: =J9 -> 1 | K17: 2 | L17: 3 | M17: 4 | N17: 5 | O17: 6 | P17: 7 | Q17: 8 | R17: 9 | S17: 10 | T17: 11 | U17: 12 | V17: 13 | W17: 14 | X17: 15 | Y17: 16 | Z17: 17 | AA17: 18 | AB17: 19 | AC17: 20 | AD17: 21 | AE17: 22 | AF17: 23 | AG17: 24 | AH17: 25 | AI17: 26 | AJ17: 27 | AK17: 28 | AL17: 29 | AM17: 30 | AN17: 31 | AO17: 32 | AP17: =AP9 -> 33 | AQ17: 34 | AR17: 35 | AS17: 36 | AT17: 37 | AU17: 38 | AV17: 39 | AW17: 40 | AX17: 41 | AY17: 42 | AZ17: 43 | BA17: 44 | BB17: 45 | BC17: 46 | BD17: 47 | BE17: 48 | BF17: 49 | BG17: 50
A19: To determine the highest value project | E19: Present Value Cost
F20: Capital Expenditure | H20: =SUM(J20:BG20) -> 0 | J20: =-(J46)*J11/J13 -> 0 | K20: 0 | L20: 0 | M20: 0 | N20: 0 | O20: 0 | P20: 0 | Q20: 0 | R20: 0 | S20: 0 | T20: 0 | U20: 0 | V20: 0 | W20: 0 | X20: 0 | Y20: 0 | Z20: 0 | AA20: 0 | AB20: 0 | AC20: 0 | AD20: 0 | AE20: 0 | AF20: 0 | AG20: 0 | AH20: 0 | AI20: 0 | AJ20: 0 | AK20: 0 | AL20: 0 | AM20: 0 | AN20: 0 | AO20: 0 | AP20: =-(AP46)*AP11/AP13 -> 0 | AQ20: 0 | AR20: 0 | AS20: 0 | AT20: 0 | AU20: 0 | AV20: 0 | AW20: 0 | AX20: 0 | AY20: 0 | AZ20: 0 | BA20: 0 | BB20: 0 | BC20: 0 | BD20: 0 | BE20: 0 | BF20: 0 | BG20: 0
F21: Operating Expenditure | H21: =SUM(J21:BG21) -> 0 | J21: =-J75*J11/J13 -> 0 | K21: 0 | L21: 0 | M21: 0 | N21: 0 | O21: 0 | P21: 0 | Q21: 0 | R21: 0 | S21: 0 | T21: 0 | U21: 0 | V21: 0 | W21: 0 | X21: 0 | Y21: 0 | Z21: 0 | AA21: 0 | AB21: 0 | AC21: 0 | AD21: 0 | AE21: 0 | AF21: 0 | AG21: 0 | AH21: 0 | AI21: 0 | AJ21: 0 | AK21: 0 | AL21: 0 | AM21: 0 | AN21: 0 | AO21: 0 | AP21: =-AP75*AP11/AP13 -> 0 | AQ21: 0 | AR21: 0 | AS21: 0 | AT21: 0 | AU21: 0 | AV21: 0 | AW21: 0 | AX21: 0 | AY21: 0 | AZ21: 0 | BA21: 0 | BB21: 0 | BC21: 0 | BD21: 0 | BE21: 0 | BF21: 0 | BG21: 0
F22: Net Benefits | H22: =SUM(J22:BG22) -> 0 | J22: =(J106)*J11/J13 -> 0 | K22: 0 | L22: 0 | M22: 0 | N22: 0 | O22: 0 | P22: 0 | Q22: 0 | R22: 0 | S22: 0 | T22: 0 | U22: 0 | V22: 0 | W22: 0 | X22: 0 | Y22: 0 | Z22: 0 | AA22: 0 | AB22: 0 | AC22: 0 | AD22: 0 | AE22: 0 | AF22: 0 | AG22: 0 | AH22: 0 | AI22: 0 | AJ22: 0 | AK22: 0 | AL22: 0 | AM22: 0 | AN22: 0 | AO22: 0 | AP22: =(AP106)*AP11/AP13 -> 0 | AQ22: 0 | AR22: 0 | AS22: 0 | AT22: 0 | AU22: 0 | AV22: 0 | AW22: 0 | AX22: 0 | AY22: 0 | AZ22: 0 | BA22: =(BA106)*BA11/BA13 -> 0 | BB22: 0 | BC22: 0 | BD22: 0 | BE22: 0 | BF22: 0 | BG22: 0
E23: Total Present Value | H23: =SUM(J23:BG23) -> 0 | J23: =SUM(J20:J22) -> 0 | K23: =SUM(K20:K22) -> 0 | L23: 0 | M23: =SUM(M20:M22) -> 0 | N23: 0 | O23: 0 | P23: 0 | Q23: 0 | R23: 0 | S23: 0 | T23: 0 | U23: 0 | V23: 0 | W23: 0 | X23: 0 | Y23: 0 | Z23: 0 | AA23: 0 | AB23: 0 | AC23: 0 | AD23: 0 | AE23: 0 | AF23: 0 | AG23: 0 | AH23: 0 | AI23: 0 | AJ23: 0 | AK23: 0 | AL23: 0 | AM23: 0 | AN23: 0 | AO23: 0 | AP23: =SUM(AP20:AP22) -> 0 | AQ23: 0 | AR23: 0 | AS23: 0 | AT23: 0 | AU23: 0 | AV23: 0 | AW23: 0 | AX23: 0 | AY23: 0 | AZ23: 0 | BA23: 0 | BB23: 0 | BC23: 0 | BD23: 0 | BE23: 0 | BF23: 0 | BG23: 0
A25: To determine the capex & opex need for the EDPR period | E25: Undiscounted
F26: Capital Expenditure | H26: =SUM(J26:BG26) -> 0 | J26: =-(J60)*J$6 -> 0 | K26: =-(K60)*K$6 -> 0 | L26: 0 | M26: 0 | N26: 0 | O26: 0 | P26: =-(P60)*P$6 -> 0 | Q26: 0 | R26: 0 | S26: 0 | T26: 0 | U26: 0 | V26: 0 | W26: 0 | X26: 0 | Y26: 0 | Z26: 0 | AA26: 0 | AB26: 0 | AC26: 0 | AD26: 0 | AE26: 0 | AF26: 0 | AG26: 0 | AH26: 0 | AI26: 0 | AJ26: 0 | AK26: 0 | AL26: 0 | AM26: 0 | AN26: 0 | AO26: 0 | AP26: 0 | AQ26: 0 | AR26: 0 | AS26: 0 | AT26: 0 | AU26: 0 | AV26: 0 | AW26: 0 | AX26: 0 | AY26: 0 | AZ26: 0 | BA26: 0 | BB26: 0 | BC26: 0 | BD26: 0 | BE26: 0 | BF26: 0 | BG26: 0
F27: Operating Expenditure | H27: =SUM(J27:BG27) -> 0 | J27: =-J89*J$6 -> 0 | K27: =-K89*K$6 -> 0 | L27: 0 | M27: 0 | N27: 0 | O27: 0 | P27: 0 | Q27: 0 | R27: 0 | S27: 0 | T27: 0 | U27: 0 | V27: 0 | W27: 0 | X27: 0 | Y27: 0 | Z27: 0 | AA27: 0 | AB27: 0 | AC27: 0 | AD27: 0 | AE27: 0 | AF27: 0 | AG27: 0 | AH27: 0 | AI27: 0 | AJ27: 0 | AK27: 0 | AL27: 0 | AM27: 0 | AN27: 0 | AO27: 0 | AP27: 0 | AQ27: 0 | AR27: 0 | AS27: 0 | AT27: 0 | AU27: 0 | AV27: 0 | AW27: 0 | AX27: 0 | AY27: 0 | AZ27: 0 | BA27: 0 | BB27: 0 | BC27: 0 | BD27: 0 | BE27: 0 | BF27: 0 | BG27: 0
F28: Net Benefits | H28: =SUM(J28:BG28) -> 0 | J28: =(J122)*J$6 -> 0 | K28: =(K122)*K$6 -> 0 | L28: 0 | M28: 0 | N28: 0 | O28: 0 | P28: 0 | Q28: 0 | R28: 0 | S28: 0 | T28: 0 | U28: 0 | V28: 0 | W28: 0 | X28: 0 | Y28: 0 | Z28: 0 | AA28: 0 | AB28: 0 | AC28: 0 | AD28: 0 | AE28: 0 | AF28: 0 | AG28: 0 | AH28: 0 | AI28: 0 | AJ28: 0 | AK28: 0 | AL28: 0 | AM28: 0 | AN28: 0 | AO28: 0 | AP28: 0 | AQ28: 0 | AR28: 0 | AS28: 0 | AT28: 0 | AU28: 0 | AV28: 0 | AW28: 0 | AX28: 0 | AY28: 0 | AZ28: 0 | BA28: 0 | BB28: 0 | BC28: 0 | BD28: 0 | BE28: 0 | BF28: 0 | BG28: 0
E29: Undiscounted Total Value | H29: =SUM(J29:BG29) -> 0 | J29: =SUM(J26:J28) -> 0 | K29: =SUM(K26:K28) -> 0 | L29: =SUM(L26:L28) -> 0 | M29: =SUM(M26:M28) -> 0 | N29: =SUM(N26:N28) -> 0 | O29: =SUM(O26:O28) -> 0 | P29: =SUM(P26:P28) -> 0 | Q29: =SUM(Q26:Q28) -> 0 | R29: =SUM(R26:R28) -> 0 | S29: =SUM(S26:S28) -> 0 | T29: =SUM(T26:T28) -> 0 | U29: =SUM(U26:U28) -> 0 | V29: =SUM(V26:V28) -> 0 | W29: =SUM(W26:W28) -> 0 | X29: =SUM(X26:X28) -> 0 | Y29: =SUM(Y26:Y28) -> 0 | Z29: =SUM(Z26:Z28) -> 0 | AA29: =SUM(AA26:AA28) -> 0 | AB29: =SUM(AB26:AB28) -> 0 | AC29: =SUM(AC26:AC28) -> 0 | AD29: =SUM(AD26:AD28) -> 0 | AE29: =SUM(AE26:AE28) -> 0 | AF29: =SUM(AF26:AF28) -> 0 | AG29: =SUM(AG26:AG28) -> 0 | AH29: =SUM(AH26:AH28) -> 0 | AI29: =SUM(AI26:AI28) -> 0 | AJ29: =SUM(AJ26:AJ28) -> 0 | AK29: =SUM(AK26:AK28) -> 0 | AL29: =SUM(AL26:AL28) -> 0 | AM29: =SUM(AM26:AM28) -> 0 | AN29: =SUM(AN26:AN28) -> 0 | AO29: =SUM(AO26:AO28) -> 0 | AP29: =SUM(AP26:AP28) -> 0 | AQ29: =SUM(AQ26:AQ28) -> 0 | AR29: =SUM(AR26:AR28) -> 0 | AS29: =SUM(AS26:AS28) -> 0 | AT29: =SUM(AT26:AT28) -> 0 | AU29: =SUM(AU26:AU28) -> 0 | AV29: =SUM(AV26:AV28) -> 0 | AW29: =SUM(AW26:AW28) -> 0 | AX29: =SUM(AX26:AX28) -> 0 | AY29: =SUM(AY26:AY28) -> 0 | AZ29: =SUM(AZ26:AZ28) -> 0 | BA29: =SUM(BA26:BA28) -> 0 | BB29: =SUM(BB26:BB28) -> 0 | BC29: =SUM(BC26:BC28) -> 0 | BD29: =SUM(BD26:BD28) -> 0 | BE29: =SUM(BE26:BE28) -> 0 | BF29: =SUM(BF26:BF28) -> 0 | BG29: =SUM(BG26:BG28) -> 0
B32: Capital Expenditure
F35: Category | G35: Description (optional) | I35: Dollar Basis
F36: =General!D9 -> Base Case | G36: =General!G9 -> Do Nothing | M36: 0 | N36: 0 | O36: 0 | P36: 0 | Q36: 0
F46: Total Direct Capex | J46: =SUM(J36:J45) -> 0 | K46: =SUM(K36:K45) -> 0 | L46: =SUM(L36:L45) -> 0 | M46: 0 | N46: 0 | O46: 0 | P46: 0 | Q46: =SUM(Q36:Q45) -> 0 | R46: 0 | S46: 0 | T46: 0 | U46: 0 | V46: 0 | W46: 0 | X46: 0 | Y46: 0 | Z46: 0 | AA46: 0 | AB46: 0 | AC46: 0 | AD46: 0 | AE46: 0 | AF46: 0 | AG46: 0 | AH46: 0 | AI46: 0 | AJ46: 0 | AK46: 0 | AL46: 0 | AM46: 0 | AN46: 0 | AO46: 0 | AP46: 0 | AQ46: 0 | AR46: 0 | AS46: 0 | AT46: 0 | AU46: 0 | AV46: 0 | AW46: 0 | AX46: 0 | AY46: 0 | AZ46: 0 | BA46: 0 | BB46: 0 | BC46: 0 | BD46: 0 | BE46: 0 | BF46: 0 | BG46: 0
G49: Dollar Basis for Conversion | H49: Conversion Factor
F50: =F36 -> Base Case | G50: 2024-06-30 | H50: 1 | J50: =J36*$H50 -> 0 | K50: 0 | L50: 0 | M50: 0 | N50: 0 | O50: 0 | P50: 0 | Q50: 0 | R50: 0 | S50: 0 | T50: 0 | U50: 0 | V50: 0 | W50: 0 | X50: 0 | Y50: 0 | Z50: 0 | AA50: 0 | AB50: 0 | AC50: 0 | AD50: 0 | AE50: 0 | AF50: 0 | AG50: 0 | AH50: 0 | AI50: 0 | AJ50: 0 | AK50: 0 | AL50: 0 | AM50: 0 | AN50: 0 | AO50: 0 | AP50: =AP36*$H50 -> 0 | AQ50: 0 | AR50: 0 | AS50: 0 | AT50: 0 | AU50: 0 | AV50: 0 | AW50: 0 | AX50: 0 | AY50: 0 | AZ50: 0 | BA50: 0 | BB50: 0 | BC50: 0 | BD50: 0 | BE50: 0 | BF50: 0 | BG50: 0
J51: =J37*$H51 -> 0 | K51: 0 | L51: 0 | M51: 0 | N51: 0 | O51: 0 | P51: 0 | Q51: 0 | R51: 0 | S51: 0 | T51: 0 | U51: 0 | V51: 0 | W51: 0 | X51: 0 | Y51: 0 | Z51: 0 | AA51: 0 | AB51: 0 | AC51: 0 | AD51: 0 | AE51: 0 | AF51: 0 | AG51: 0 | AH51: 0 | AI51: 0 | AJ51: 0 | AK51: 0 | AL51: 0 | AM51: 0 | AN51: 0 | AO51: 0 | AP51: =AP37*$H51 -> 0 | AQ51: 0 | AR51: 0 | AS51: 0 | AT51: 0 | AU51: 0 | AV51: 0 | AW51: 0 | AX51: 0 | AY51: 0 | AZ51: 0 | BA51: 0 | BB51: 0 | BC51: 0 | BD51: 0 | BE51: 0 | BF51: 0 | BG51: 0
J52: =J38*$H52 -> 0 | K52: 0 | L52: 0 | M52: 0 | N52: 0 | O52: 0 | P52: 0 | Q52: 0 | R52: 0 | S52: 0 | T52: 0 | U52: 0 | V52: 0 | W52: 0 | X52: 0 | Y52: 0 | Z52: 0 | AA52: 0 | AB52: 0 | AC52: 0 | AD52: 0 | AE52: 0 | AF52: 0 | AG52: 0 | AH52: 0 | AI52: 0 | AJ52: 0 | AK52: 0 | AL52: 0 | AM52: 0 | AN52: 0 | AO52: 0 | AP52: =AP38*$H52 -> 0 | AQ52: 0 | AR52: 0 | AS52: 0 | AT52: 0 | AU52: 0 | AV52: 0 | AW52: 0 | AX52: 0 | AY52: 0 | AZ52: 0 | BA52: 0 | BB52: 0 | BC52: 0 | BD52: 0 | BE52: 0 | BF52: 0 | BG52: 0
J53: =J39*$H53 -> 0 | K53: 0 | L53: 0 | M53: 0 | N53: 0 | O53: 0 | P53: 0 | Q53: 0 | R53: 0 | S53: 0 | T53: 0 | U53: 0 | V53: 0 | W53: 0 | X53: 0 | Y53: 0 | Z53: 0 | AA53: 0 | AB53: 0 | AC53: 0 | AD53: 0 | AE53: 0 | AF53: 0 | AG53: 0 | AH53: 0 | AI53: 0 | AJ53: 0 | AK53: 0 | AL53: 0 | AM53: 0 | AN53: 0 | AO53: 0 | AP53: =AP39*$H53 -> 0 | AQ53: 0 | AR53: 0 | AS53: 0 | AT53: 0 | AU53: 0 | AV53: 0 | AW53: 0 | AX53: 0 | AY53: 0 | AZ53: 0 | BA53: 0 | BB53: 0 | BC53: 0 | BD53: 0 | BE53: 0 | BF53: 0 | BG53: 0
J54: =J40*$H54 -> 0 | K54: 0 | L54: 0 | M54: 0 | N54: 0 | O54: 0 | P54: 0 | Q54: 0 | R54: 0 | S54: 0 | T54: 0 | U54: 0 | V54: 0 | W54: 0 | X54: 0 | Y54: 0 | Z54: 0 | AA54: 0 | AB54: 0 | AC54: 0 | AD54: 0 | AE54: 0 | AF54: 0 | AG54: 0 | AH54: 0 | AI54: 0 | AJ54: 0 | AK54: 0 | AL54: 0 | AM54: 0 | AN54: 0 | AO54: 0 | AP54: =AP40*$H54 -> 0 | AQ54: 0 | AR54: 0 | AS54: 0 | AT54: 0 | AU54: 0 | AV54: 0 | AW54: 0 | AX54: 0 | AY54: 0 | AZ54: 0 | BA54: 0 | BB54: 0 | BC54: 0 | BD54: 0 | BE54: 0 | BF54: 0 | BG54: 0
J55: =J41*$H55 -> 0 | K55: 0 | L55: 0 | M55: 0 | N55: 0 | O55: 0 | P55: 0 | Q55: 0 | R55: 0 | S55: 0 | T55: 0 | U55: 0 | V55: 0 | W55: 0 | X55: 0 | Y55: 0 | Z55: 0 | AA55: 0 | AB55: 0 | AC55: 0 | AD55: 0 | AE55: 0 | AF55: 0 | AG55: 0 | AH55: 0 | AI55: 0 | AJ55: 0 | AK55: 0 | AL55: 0 | AM55: 0 | AN55: 0 | AO55: 0 | AP55: =AP41*$H55 -> 0 | AQ55: 0 | AR55: 0 | AS55: 0 | AT55: 0 | AU55: 0 | AV55: 0 | AW55: 0 | AX55: 0 | AY55: 0 | AZ55: 0 | BA55: 0 | BB55: 0 | BC55: 0 | BD55: 0 | BE55: 0 | BF55: 0 | BG55: 0
J56: =J42*$H56 -> 0 | K56: 0 | L56: 0 | M56: 0 | N56: 0 | O56: 0 | P56: 0 | Q56: 0 | R56: 0 | S56: 0 | T56: 0 | U56: 0 | V56: 0 | W56: 0 | X56: 0 | Y56: 0 | Z56: 0 | AA56: 0 | AB56: 0 | AC56: 0 | AD56: 0 | AE56: 0 | AF56: 0 | AG56: 0 | AH56: 0 | AI56: 0 | AJ56: 0 | AK56: 0 | AL56: 0 | AM56: 0 | AN56: 0 | AO56: 0 | AP56: =AP42*$H56 -> 0 | AQ56: 0 | AR56: 0 | AS56: 0 | AT56: 0 | AU56: 0 | AV56: 0 | AW56: 0 | AX56: 0 | AY56: 0 | AZ56: 0 | BA56: 0 | BB56: 0 | BC56: 0 | BD56: 0 | BE56: 0 | BF56: 0 | BG56: 0
J57: =J43*$H57 -> 0 | K57: 0 | L57: 0 | M57: 0 | N57: 0 | O57: 0 | P57: 0 | Q57: 0 | R57: 0 | S57: 0 | T57: 0 | U57: 0 | V57: 0 | W57: 0 | X57: 0 | Y57: 0 | Z57: 0 | AA57: 0 | AB57: 0 | AC57: 0 | AD57: 0 | AE57: 0 | AF57: 0 | AG57: 0 | AH57: 0 | AI57: 0 | AJ57: 0 | AK57: 0 | AL57: 0 | AM57: 0 | AN57: 0 | AO57: 0 | AP57: =AP43*$H57 -> 0 | AQ57: 0 | AR57: 0 | AS57: 0 | AT57: 0 | AU57: 0 | AV57: 0 | AW57: 0 | AX57: 0 | AY57: 0 | AZ57: 0 | BA57: 0 | BB57: 0 | BC57: 0 | BD57: 0 | BE57: 0 | BF57: 0 | BG57: 0
J58: =J44*$H58 -> 0 | K58: 0 | L58: 0 | M58: 0 | N58: 0 | O58: 0 | P58: 0 | Q58: 0 | R58: 0 | S58: 0 | T58: 0 | U58: 0 | V58: 0 | W58: 0 | X58: 0 | Y58: 0 | Z58: 0 | AA58: 0 | AB58: 0 | AC58: 0 | AD58: 0 | AE58: 0 | AF58: 0 | AG58: 0 | AH58: 0 | AI58: 0 | AJ58: 0 | AK58: 0 | AL58: 0 | AM58: 0 | AN58: 0 | AO58: 0 | AP58: =AP44*$H58 -> 0 | AQ58: 0 | AR58: 0 | AS58: 0 | AT58: 0 | AU58: 0 | AV58: 0 | AW58: 0 | AX58: 0 | AY58: 0 | AZ58: 0 | BA58: 0 | BB58: 0 | BC58: 0 | BD58: 0 | BE58: 0 | BF58: 0 | BG58: 0
J59: =J45*$H59 -> 0 | K59: 0 | L59: 0 | M59: 0 | N59: 0 | O59: 0 | P59: 0 | Q59: 0 | R59: 0 | S59: 0 | T59: 0 | U59: 0 | V59: 0 | W59: 0 | X59: 0 | Y59: 0 | Z59: 0 | AA59: 0 | AB59: 0 | AC59: 0 | AD59: 0 | AE59: 0 | AF59: 0 | AG59: 0 | AH59: 0 | AI59: 0 | AJ59: 0 | AK59: 0 | AL59: 0 | AM59: 0 | AN59: 0 | AO59: 0 | AP59: =AP45*$H59 -> 0 | AQ59: 0 | AR59: 0 | AS59: 0 | AT59: 0 | AU59: 0 | AV59: 0 | AW59: 0 | AX59: 0 | AY59: 0 | AZ59: 0 | BA59: 0 | BB59: 0 | BC59: 0 | BD59: 0 | BE59: 0 | BF59: 0 | BG59: 0
F60: Total Direct Capex | J60: =SUM(J50:J59) -> 0 | K60: =SUM(K50:K59) -> 0 | L60: 0 | M60: 0 | N60: 0 | O60: 0 | P60: 0 | Q60: 0 | R60: 0 | S60: 0 | T60: 0 | U60: 0 | V60: 0 | W60: 0 | X60: 0 | Y60: 0 | Z60: 0 | AA60: 0 | AB60: 0 | AC60: 0 | AD60: 0 | AE60: 0 | AF60: 0 | AG60: 0 | AH60: 0 | AI60: 0 | AJ60: 0 | AK60: 0 | AL60: 0 | AM60: 0 | AN60: 0 | AO60: 0 | AP60: 0 | AQ60: 0 | AR60: 0 | AS60: 0 | AT60: 0 | AU60: 0 | AV60: 0 | AW60: 0 | AX60: 0 | AY60: 0 | AZ60: 0 | BA60: 0 | BB60: 0 | BC60: 0 | BD60: 0 | BE60: 0 | BF60: 0 | BG60: 0
B62: Operating Expenditure (enter costs as positive numbers and savings as negative numbers)
F64: Category | G64: Description (optional) | I64: Dollar Basis
F65: =F36 -> Base Case | G65: =G36 -> Do Nothing | M65: 0 | N65: 0 | O65: 0 | P65: 0 | Q65: 0 | R65: 0 | S65: 0 | T65: 0 | U65: 0 | V65: 0 | W65: 0 | X65: 0 | Y65: 0 | Z65: 0 | AA65: 0 | AB65: 0 | AC65: 0 | AD65: 0 | AE65: 0 | AF65: 0
F75: Total Opex | J75: =SUM(J65:J74) -> 0 | K75: =SUM(K65:K74) -> 0 | L75: 0 | M75: 0 | N75: 0 | O75: 0 | P75: =SUM(P65:P74) -> 0 | Q75: 0 | R75: 0 | S75: 0 | T75: 0 | U75: 0 | V75: 0 | W75: 0 | X75: 0 | Y75: 0 | Z75: 0 | AA75: 0 | AB75: 0 | AC75: 0 | AD75: 0 | AE75: 0 | AF75: 0 | AG75: 0 | AH75: 0 | AI75: 0 | AJ75: 0 | AK75: 0 | AL75: 0 | AM75: 0 | AN75: 0 | AO75: 0 | AP75: 0 | AQ75: 0 | AR75: 0 | AS75: 0 | AT75: 0 | AU75: 0 | AV75: 0 | AW75: 0 | AX75: 0 | AY75: 0 | AZ75: 0 | BA75: 0 | BB75: 0 | BC75: 0 | BD75: 0 | BE75: 0 | BF75: 0 | BG75: 0
F78: Category | G78: Dollar Basis for Conversion | H78: Conversion Factor
F79: =F65 -> Base Case | G79: 2024-06-30 | H79: 1 | J79: =J65*$H79 -> 0 | K79: 0 | L79: 0 | M79: 0 | N79: 0 | O79: 0 | P79: 0 | Q79: 0 | R79: 0 | S79: 0 | T79: 0 | U79: 0 | V79: 0 | W79: 0 | X79: 0 | Y79: 0 | Z79: 0 | AA79: 0 | AB79: 0 | AC79: 0 | AD79: 0 | AE79: 0 | AF79: 0 | AG79: 0 | AH79: 0 | AI79: 0 | AJ79: 0 | AK79: 0 | AL79: 0 | AM79: 0 | AN79: 0 | AO79: 0 | AP79: =AP65*$H79 -> 0 | AQ79: 0 | AR79: 0 | AS79: 0 | AT79: 0 | AU79: 0 | AV79: 0 | AW79: 0 | AX79: 0 | AY79: 0 | AZ79: 0 | BA79: 0 | BB79: 0 | BC79: 0 | BD79: 0 | BE79: 0 | BF79: 0 | BG79: 0
H80: 1 | J80: =J66*$H80 -> 0 | K80: 0 | L80: 0 | M80: 0 | N80: 0 | O80: 0 | P80: 0 | Q80: 0 | R80: 0 | S80: 0 | T80: 0 | U80: 0 | V80: 0 | W80: 0 | X80: 0 | Y80: 0 | Z80: 0 | AA80: 0 | AB80: 0 | AC80: 0 | AD80: 0 | AE80: 0 | AF80: 0 | AG80: 0 | AH80: 0 | AI80: 0 | AJ80: 0 | AK80: 0 | AL80: 0 | AM80: 0 | AN80: 0 | AO80: 0 | AP80: =AP66*$H80 -> 0 | AQ80: 0 | AR80: 0 | AS80: 0 | AT80: 0 | AU80: 0 | AV80: 0 | AW80: 0 | AX80: 0 | AY80: 0 | AZ80: 0 | BA80: 0 | BB80: 0 | BC80: 0 | BD80: 0 | BE80: 0 | BF80: 0 | BG80: 0
H81: 1 | J81: =J67*$H81 -> 0 | K81: 0 | L81: 0 | M81: 0 | N81: 0 | O81: 0 | P81: 0 | Q81: 0 | R81: 0 | S81: 0 | T81: 0 | U81: 0 | V81: 0 | W81: 0 | X81: 0 | Y81: 0 | Z81: 0 | AA81: 0 | AB81: 0 | AC81: 0 | AD81: 0 | AE81: 0 | AF81: 0 | AG81: 0 | AH81: 0 | AI81: 0 | AJ81: 0 | AK81: 0 | AL81: 0 | AM81: 0 | AN81: 0 | AO81: 0 | AP81: =AP67*$H81 -> 0 | AQ81: 0 | AR81: 0 | AS81: 0 | AT81: 0 | AU81: 0 | AV81: 0 | AW81: 0 | AX81: 0 | AY81: 0 | AZ81: 0 | BA81: 0 | BB81: 0 | BC81: 0 | BD81: 0 | BE81: 0 | BF81: 0 | BG81: 0
H82: 1 | J82: =J68*$H82 -> 0 | K82: 0 | L82: 0 | M82: 0 | N82: 0 | O82: 0 | P82: 0 | Q82: 0 | R82: 0 | S82: 0 | T82: 0 | U82: 0 | V82: 0 | W82: 0 | X82: 0 | Y82: 0 | Z82: 0 | AA82: 0 | AB82: 0 | AC82: 0 | AD82: 0 | AE82: 0 | AF82: 0 | AG82: 0 | AH82: 0 | AI82: 0 | AJ82: 0 | AK82: 0 | AL82: 0 | AM82: 0 | AN82: 0 | AO82: 0 | AP82: =AP68*$H82 -> 0 | AQ82: 0 | AR82: 0 | AS82: 0 | AT82: 0 | AU82: 0 | AV82: 0 | AW82: 0 | AX82: 0 | AY82: 0 | AZ82: 0 | BA82: 0 | BB82: 0 | BC82: 0 | BD82: 0 | BE82: 0 | BF82: 0 | BG82: 0
H83: =IF(ISERROR(VLOOKUP(I69&G83,CPI_Con_F!$C$72:$H$171,6,FALSE)),0,VLOOKUP(I69&G83,CPI_Con_F!$C$72:$H$171,6,FALSE)) -> 0 | J83: =J69*$H83 -> 0 | K83: 0 | L83: 0 | M83: 0 | N83: 0 | O83: 0 | P83: 0 | Q83: 0 | R83: 0 | S83: 0 | T83: 0 | U83: 0 | V83: 0 | W83: 0 | X83: 0 | Y83: 0 | Z83: 0 | AA83: 0 | AB83: 0 | AC83: 0 | AD83: 0 | AE83: 0 | AF83: 0 | AG83: 0 | AH83: 0 | AI83: 0 | AJ83: 0 | AK83: 0 | AL83: 0 | AM83: 0 | AN83: 0 | AO83: 0 | AP83: =AP69*$H83 -> 0 | AQ83: 0 | AR83: 0 | AS83: 0 | AT83: 0 | AU83: 0 | AV83: 0 | AW83: 0 | AX83: 0 | AY83: 0 | AZ83: 0 | BA83: 0 | BB83: 0 | BC83: 0 | BD83: 0 | BE83: 0 | BF83: 0 | BG83: 0
H84: =IF(ISERROR(VLOOKUP(I70&G84,CPI_Con_F!$C$72:$H$171,6,FALSE)),0,VLOOKUP(I70&G84,CPI_Con_F!$C$72:$H$171,6,FALSE)) -> 0 | J84: =J70*$H84 -> 0 | K84: 0 | L84: 0 | M84: 0 | N84: 0 | O84: 0 | P84: 0 | Q84: 0 | R84: 0 | S84: 0 | T84: 0 | U84: 0 | V84: 0 | W84: 0 | X84: 0 | Y84: 0 | Z84: 0 | AA84: 0 | AB84: 0 | AC84: 0 | AD84: 0 | AE84: 0 | AF84: 0 | AG84: 0 | AH84: 0 | AI84: 0 | AJ84: 0 | AK84: 0 | AL84: 0 | AM84: 0 | AN84: 0 | AO84: 0 | AP84: =AP70*$H84 -> 0 | AQ84: 0 | AR84: 0 | AS84: 0 | AT84: 0 | AU84: 0 | AV84: 0 | AW84: 0 | AX84: 0 | AY84: 0 | AZ84: 0 | BA84: 0 | BB84: 0 | BC84: 0 | BD84: 0 | BE84: 0 | BF84: 0 | BG84: 0
H85: =IF(ISERROR(VLOOKUP(I71&G85,CPI_Con_F!$C$72:$H$171,6,FALSE)),0,VLOOKUP(I71&G85,CPI_Con_F!$C$72:$H$171,6,FALSE)) -> 0 | J85: =J71*$H85 -> 0 | K85: 0 | L85: 0 | M85: 0 | N85: 0 | O85: 0 | P85: 0 | Q85: 0 | R85: 0 | S85: 0 | T85: 0 | U85: 0 | V85: 0 | W85: 0 | X85: 0 | Y85: 0 | Z85: 0 | AA85: 0 | AB85: 0 | AC85: 0 | AD85: 0 | AE85: 0 | AF85: 0 | AG85: 0 | AH85: 0 | AI85: 0 | AJ85: 0 | AK85: 0 | AL85: 0 | AM85: 0 | AN85: 0 | AO85: 0 | AP85: =AP71*$H85 -> 0 | AQ85: 0 | AR85: 0 | AS85: 0 | AT85: 0 | AU85: 0 | AV85: 0 | AW85: 0 | AX85: 0 | AY85: 0 | AZ85: 0 | BA85: 0 | BB85: 0 | BC85: 0 | BD85: 0 | BE85: 0 | BF85: 0 | BG85: 0
H86: =IF(ISERROR(VLOOKUP(I72&G86,CPI_Con_F!$C$72:$H$171,6,FALSE)),0,VLOOKUP(I72&G86,CPI_Con_F!$C$72:$H$171,6,FALSE)) -> 0 | J86: =J72*$H86 -> 0 | K86: 0 | L86: 0 | M86: 0 | N86: 0 | O86: 0 | P86: 0 | Q86: 0 | R86: 0 | S86: 0 | T86: 0 | U86: 0 | V86: 0 | W86: 0 | X86: 0 | Y86: 0 | Z86: 0 | AA86: 0 | AB86: 0 | AC86: 0 | AD86: 0 | AE86: 0 | AF86: 0 | AG86: 0 | AH86: 0 | AI86: 0 | AJ86: 0 | AK86: 0 | AL86: 0 | AM86: 0 | AN86: 0 | AO86: 0 | AP86: =AP72*$H86 -> 0 | AQ86: 0 | AR86: 0 | AS86: 0 | AT86: 0 | AU86: 0 | AV86: 0 | AW86: 0 | AX86: 0 | AY86: 0 | AZ86: 0 | BA86: 0 | BB86: 0 | BC86: 0 | BD86: 0 | BE86: 0 | BF86: 0 | BG86: 0
H87: =IF(ISERROR(VLOOKUP(I73&G87,CPI_Con_F!$C$72:$H$171,6,FALSE)),0,VLOOKUP(I73&G87,CPI_Con_F!$C$72:$H$171,6,FALSE)) -> 0 | J87: =J73*$H87 -> 0 | K87: 0 | L87: 0 | M87: 0 | N87: 0 | O87: 0 | P87: 0 | Q87: 0 | R87: 0 | S87: 0 | T87: 0 | U87: 0 | V87: 0 | W87: 0 | X87: 0 | Y87: 0 | Z87: 0 | AA87: 0 | AB87: 0 | AC87: 0 | AD87: 0 | AE87: 0 | AF87: 0 | AG87: 0 | AH87: 0 | AI87: 0 | AJ87: 0 | AK87: 0 | AL87: 0 | AM87: 0 | AN87: 0 | AO87: 0 | AP87: =AP73*$H87 -> 0 | AQ87: 0 | AR87: 0 | AS87: 0 | AT87: 0 | AU87: 0 | AV87: 0 | AW87: 0 | AX87: 0 | AY87: 0 | AZ87: 0 | BA87: 0 | BB87: 0 | BC87: 0 | BD87: 0 | BE87: 0 | BF87: 0 | BG87: 0
H88: =IF(ISERROR(VLOOKUP(I74&G88,CPI_Con_F!$C$72:$H$171,6,FALSE)),0,VLOOKUP(I74&G88,CPI_Con_F!$C$72:$H$171,6,FALSE)) -> 0 | J88: =J74*$H88 -> 0 | K88: 0 | L88: 0 | M88: 0 | N88: 0 | O88: 0 | P88: 0 | Q88: 0 | R88: 0 | S88: 0 | T88: 0 | U88: 0 | V88: 0 | W88: 0 | X88: 0 | Y88: 0 | Z88: 0 | AA88: 0 | AB88: 0 | AC88: 0 | AD88: 0 | AE88: 0 | AF88: 0 | AG88: 0 | AH88: 0 | AI88: 0 | AJ88: 0 | AK88: 0 | AL88: 0 | AM88: 0 | AN88: 0 | AO88: 0 | AP88: =AP74*$H88 -> 0 | AQ88: 0 | AR88: 0 | AS88: 0 | AT88: 0 | AU88: 0 | AV88: 0 | AW88: 0 | AX88: 0 | AY88: 0 | AZ88: 0 | BA88: 0 | BB88: 0 | BC88: 0 | BD88: 0 | BE88: 0 | BF88: 0 | BG88: 0
F89: Total Opex | J89: =SUM(J79:J88) -> 0 | K89: =SUM(K79:K88) -> 0 | L89: 0 | M89: 0 | N89: 0 | O89: 0 | P89: =SUM(P79:P88) -> 0 | Q89: =SUM(Q79:Q88) -> 0 | R89: 0 | S89: 0 | T89: 0 | U89: 0 | V89: 0 | W89: 0 | X89: 0 | Y89: 0 | Z89: 0 | AA89: 0 | AB89: 0 | AC89: 0 | AD89: 0 | AE89: 0 | AF89: 0 | AG89: 0 | AH89: 0 | AI89: 0 | AJ89: 0 | AK89: 0 | AL89: 0 | AM89: 0 | AN89: 0 | AO89: 0 | AP89: 0 | AQ89: 0 | AR89: 0 | AS89: 0 | AT89: 0 | AU89: 0 | AV89: 0 | AW89: 0 | AX89: 0 | AY89: 0 | AZ89: 0 | BA89: 0 | BB89: 0 | BC89: 0 | BD89: 0 | BE89: 0 | BF89: 0 | BG89: 0
B91: Benefits
F93: Category | G93: Description (optional) | I93: Dollar basis
F94: Electrification | G94: Expected Energy at Risk | J94: 0 | K94: 0 | L94: 0 | M94: 0 | N94: 0 | O94: 0 | P94: 0 | Q94: 0 | R94: 0 | S94: 0 | T94: 0 | U94: 0 | V94: 0 | W94: 0 | X94: 0 | Y94: 0 | Z94: 0 | AA94: 0 | AB94: 0 | AC94: 0 | AD94: 0 | AE94: 0 | AF94: 0 | AG94: 0 | AH94: 0 | AI94: 0 | AJ94: 0 | AK94: 0 | AL94: 0 | AM94: 0 | AN94: 0 | AO94: 0 | AP94: 0 | AQ94: 0 | AR94: 0 | AS94: 0 | AT94: 0 | AU94: 0 | AV94: 0 | AW94: 0 | AX94: 0 | AY94: 0 | AZ94: 0 | BA94: 0 | BB94: 0 | BC94: 0 | BD94: 0 | BE94: 0 | BF94: 0 | BG94: 0
J95: 0 | K95: 0 | L95: 0 | M95: 0 | N95: 0 | O95: 0 | P95: 0 | Q95: 0 | R95: 0 | S95: 0 | T95: 0 | U95: 0 | V95: 0 | W95: 0 | X95: 0 | Y95: 0 | Z95: 0 | AA95: 0 | AB95: 0 | AC95: 0 | AD95: 0 | AE95: 0 | AF95: 0 | AG95: 0 | AH95: 0 | AI95: 0 | AJ95: 0 | AK95: 0 | AL95: 0 | AM95: 0 | AN95: 0 | AO95: 0 | AP95: 0 | AQ95: 0 | AR95: 0 | AS95: 0 | AT95: 0 | AU95: 0 | AV95: 0 | AW95: 0 | AX95: 0 | AY95: 0 | AZ95: 0 | BA95: 0 | BB95: 0 | BC95: 0 | BD95: 0 | BE95: 0 | BF95: 0 | BG95: 0
J96: 0 | K96: 0 | L96: 0 | M96: 0 | N96: 0 | O96: 0 | P96: 0 | Q96: 0 | R96: 0 | S96: 0 | T96: 0 | U96: 0 | V96: 0 | W96: 0 | X96: 0 | Y96: 0 | Z96: 0 | AA96: 0 | AB96: 0 | AC96: 0 | AD96: 0 | AE96: 0 | AF96: 0 | AG96: 0 | AH96: 0 | AI96: 0 | AJ96: 0 | AK96: 0 | AL96: 0 | AM96: 0 | AN96: 0 | AO96: 0 | AP96: 0 | AQ96: 0 | AR96: 0 | AS96: 0 | AT96: 0 | AU96: 0 | AV96: 0 | AW96: 0 | AX96: 0 | AY96: 0 | AZ96: 0 | BA96: 0 | BB96: 0 | BC96: 0 | BD96: 0 | BE96: 0 | BF96: 0 | BG96: 0
J97: 0 | K97: 0 | L97: 0 | M97: 0 | N97: 0 | O97: 0 | P97: 0 | Q97: 0 | R97: 0 | S97: 0 | T97: 0 | U97: 0 | V97: 0 | W97: 0 | X97: 0 | Y97: 0 | Z97: 0 | AA97: 0 | AB97: 0 | AC97: 0 | AD97: 0 | AE97: 0 | AF97: 0 | AG97: 0 | AH97: 0 | AI97: 0 | AJ97: 0 | AK97: 0 | AL97: 0 | AM97: 0 | AN97: 0 | AO97: 0 | AP97: 0 | AQ97: 0 | AR97: 0 | AS97: 0 | AT97: 0 | AU97: 0 | AV97: 0 | AW97: 0 | AX97: 0 | AY97: 0 | AZ97: 0 | BA97: 0 | BB97: 0 | BC97: 0 | BD97: 0 | BE97: 0 | BF97: 0 | BG97: 0
J98: 0 | K98: 0 | L98: 0 | M98: 0 | N98: 0 | O98: 0 | P98: 0 | Q98: 0 | R98: 0 | S98: 0 | T98: 0 | U98: 0 | V98: 0 | W98: 0 | X98: 0 | Y98: 0 | Z98: 0 | AA98: 0 | AB98: 0 | AC98: 0 | AD98: 0 | AE98: 0 | AF98: 0 | AG98: 0 | AH98: 0 | AI98: 0 | AJ98: 0 | AK98: 0 | AL98: 0 | AM98: 0 | AN98: 0 | AO98: 0 | AP98: 0 | AQ98: 0 | AR98: 0 | AS98: 0 | AT98: 0 | AU98: 0 | AV98: 0 | AW98: 0 | AX98: 0 | AY98: 0 | AZ98: 0 | BA98: 0 | BB98: 0 | BC98: 0 | BD98: 0 | BE98: 0 | BF98: 0 | BG98: 0
J99: 0 | K99: 0 | L99: 0 | M99: 0 | N99: 0 | O99: 0 | P99: 0 | Q99: 0 | R99: 0 | S99: 0 | T99: 0 | U99: 0 | V99: 0 | W99: 0 | X99: 0 | Y99: 0 | Z99: 0 | AA99: 0 | AB99: 0 | AC99: 0 | AD99: 0 | AE99: 0 | AF99: 0 | AG99: 0 | AH99: 0 | AI99: 0 | AJ99: 0 | AK99: 0 | AL99: 0 | AM99: 0 | AN99: 0 | AO99: 0 | AP99: 0 | AQ99: 0 | AR99: 0 | AS99: 0 | AT99: 0 | AU99: 0 | AV99: 0 | AW99: 0 | AX99: 0 | AY99: 0 | AZ99: 0 | BA99: 0 | BB99: 0 | BC99: 0 | BD99: 0 | BE99: 0 | BF99: 0 | BG99: 0
J100: 0 | K100: 0 | L100: 0 | M100: 0 | N100: 0 | O100: 0 | P100: 0 | Q100: 0 | R100: 0 | S100: 0 | T100: 0 | U100: 0 | V100: 0 | W100: 0 | X100: 0 | Y100: 0 | Z100: 0 | AA100: 0 | AB100: 0 | AC100: 0 | AD100: 0 | AE100: 0 | AF100: 0 | AG100: 0 | AH100: 0 | AI100: 0 | AJ100: 0 | AK100: 0 | AL100: 0 | AM100: 0 | AN100: 0 | AO100: 0 | AP100: 0 | AQ100: 0 | AR100: 0 | AS100: 0 | AT100: 0 | AU100: 0 | AV100: 0 | AW100: 0 | AX100: 0 | AY100: 0 | AZ100: 0 | BA100: 0 | BB100: 0 | BC100: 0 | BD100: 0 | BE100: 0 | BF100: 0 | BG100: 0
J101: 0 | K101: 0 | L101: 0 | M101: 0 | N101: 0 | O101: 0 | P101: 0 | Q101: 0 | R101: 0 | S101: 0 | T101: 0 | U101: 0 | V101: 0 | W101: 0 | X101: 0 | Y101: 0 | Z101: 0 | AA101: 0 | AB101: 0 | AC101: 0 | AD101: 0 | AE101: 0 | AF101: 0 | AG101: 0 | AH101: 0 | AI101: 0 | AJ101: 0 | AK101: 0 | AL101: 0 | AM101: 0 | AN101: 0 | AO101: 0 | AP101: 0 | AQ101: 0 | AR101: 0 | AS101: 0 | AT101: 0 | AU101: 0 | AV101: 0 | AW101: 0 | AX101: 0 | AY101: 0 | AZ101: 0 | BA101: 0 | BB101: 0 | BC101: 0 | BD101: 0 | BE101: 0 | BF101: 0 | BG101: 0
J102: 0 | K102: 0 | L102: 0 | M102: 0 | N102: 0 | O102: 0 | P102: 0 | Q102: 0 | R102: 0 | S102: 0 | T102: 0 | U102: 0 | V102: 0 | W102: 0 | X102: 0 | Y102: 0 | Z102: 0 | AA102: 0 | AB102: 0 | AC102: 0 | AD102: 0 | AE102: 0 | AF102: 0 | AG102: 0 | AH102: 0 | AI102: 0 | AJ102: 0 | AK102: 0 | AL102: 0 | AM102: 0 | AN102: 0 | AO102: 0 | AP102: 0 | AQ102: 0 | AR102: 0 | AS102: 0 | AT102: 0 | AU102: 0 | AV102: 0 | AW102: 0 | AX102: 0 | AY102: 0 | AZ102: 0 | BA102: 0 | BB102: 0 | BC102: 0 | BD102: 0 | BE102: 0 | BF102: 0 | BG102: 0
J103: 0 | K103: 0 | L103: 0 | M103: 0 | N103: 0 | O103: 0 | P103: 0 | Q103: 0 | R103: 0 | S103: 0 | T103: 0 | U103: 0 | V103: 0 | W103: 0 | X103: 0 | Y103: 0 | Z103: 0 | AA103: 0 | AB103: 0 | AC103: 0 | AD103: 0 | AE103: 0 | AF103: 0 | AG103: 0 | AH103: 0 | AI103: 0 | AJ103: 0 | AK103: 0 | AL103: 0 | AM103: 0 | AN103: 0 | AO103: 0 | AP103: 0 | AQ103: 0 | AR103: 0 | AS103: 0 | AT103: 0 | AU103: 0 | AV103: 0 | AW103: 0 | AX103: 0 | AY103: 0 | AZ103: 0 | BA103: 0 | BB103: 0 | BC103: 0 | BD103: 0 | BE103: 0 | BF103: 0 | BG103: 0
J104: 0 | K104: 0 | L104: 0 | M104: 0 | N104: 0 | O104: 0 | P104: 0 | Q104: 0 | R104: 0 | S104: 0 | T104: 0 | U104: 0 | V104: 0 | W104: 0 | X104: 0 | Y104: 0 | Z104: 0 | AA104: 0 | AB104: 0 | AC104: 0 | AD104: 0 | AE104: 0 | AF104: 0 | AG104: 0 | AH104: 0 | AI104: 0 | AJ104: 0 | AK104: 0 | AL104: 0 | AM104: 0 | AN104: 0 | AO104: 0 | AP104: 0 | AQ104: 0 | AR104: 0 | AS104: 0 | AT104: 0 | AU104: 0 | AV104: 0 | AW104: 0 | AX104: 0 | AY104: 0 | AZ104: 0 | BA104: 0 | BB104: 0 | BC104: 0 | BD104: 0 | BE104: 0 | BF104: 0 | BG104: 0
J105: 0 | K105: 0 | L105: 0 | M105: 0 | N105: 0 | O105: 0 | P105: 0 | Q105: 0 | R105: 0 | S105: 0 | T105: 0 | U105: 0 | V105: 0 | W105: 0 | X105: 0 | Y105: 0 | Z105: 0 | AA105: 0 | AB105: 0 | AC105: 0 | AD105: 0 | AE105: 0 | AF105: 0 | AG105: 0 | AH105: 0 | AI105: 0 | AJ105: 0 | AK105: 0 | AL105: 0 | AM105: 0 | AN105: 0 | AO105: 0 | AP105: 0 | AQ105: 0 | AR105: 0 | AS105: 0 | AT105: 0 | AU105: 0 | AV105: 0 | AW105: 0 | AX105: 0 | AY105: 0 | AZ105: 0 | BA105: 0 | BB105: 0 | BC105: 0 | BD105: 0 | BE105: 0 | BF105: 0 | BG105: 0
F106: Net Benefits | J106: =SUM(J94:J105) -> 0 | K106: =SUM(K94:K105) -> 0 | L106: 0 | M106: 0 | N106: 0 | O106: 0 | P106: 0 | Q106: 0 | R106: 0 | S106: 0 | T106: 0 | U106: 0 | V106: 0 | W106: 0 | X106: 0 | Y106: 0 | Z106: 0 | AA106: 0 | AB106: 0 | AC106: 0 | AD106: 0 | AE106: 0 | AF106: 0 | AG106: 0 | AH106: 0 | AI106: 0 | AJ106: 0 | AK106: 0 | AL106: 0 | AM106: 0 | AN106: 0 | AO106: 0 | AP106: 0 | AQ106: 0 | AR106: 0 | AS106: 0 | AT106: 0 | AU106: 0 | AV106: 0 | AW106: 0 | AX106: 0 | AY106: 0 | AZ106: 0 | BA106: 0 | BB106: 0 | BC106: 0 | BD106: =SUM(BD94:BD105) -> 0 | BE106: 0 | BF106: 0 | BG106: 0
F109: Category | G109: Dollar basis | H109: Conversion Factor
F110: =F94 -> Electrification | G110: 2024-06-30 | H110: 1 | J110: =J94*$H110 -> 0 | K110: 0 | L110: 0 | M110: 0 | N110: 0 | O110: 0 | P110: 0 | Q110: 0 | R110: 0 | S110: 0 | T110: 0 | U110: 0 | V110: 0 | W110: 0 | X110: 0 | Y110: 0 | Z110: 0 | AA110: 0 | AB110: 0 | AC110: 0 | AD110: 0 | AE110: 0 | AF110: 0 | AG110: 0 | AH110: 0 | AI110: 0 | AJ110: 0 | AK110: 0 | AL110: 0 | AM110: 0 | AN110: 0 | AO110: 0 | AP110: =AP94*$H110 -> 0 | AQ110: 0 | AR110: 0 | AS110: 0 | AT110: 0 | AU110: 0 | AV110: 0 | AW110: 0 | AX110: 0 | AY110: 0 | AZ110: 0 | BA110: 0 | BB110: 0 | BC110: 0 | BD110: =BD94*$H110 -> 0 | BE110: 0 | BF110: 0 | BG110: 0
J111: =J95*$H111 -> 0 | K111: 0 | L111: 0 | M111: 0 | N111: 0 | O111: 0 | P111: 0 | Q111: 0 | R111: 0 | S111: 0 | T111: 0 | U111: 0 | V111: 0 | W111: 0 | X111: 0 | Y111: 0 | Z111: 0 | AA111: 0 | AB111: 0 | AC111: 0 | AD111: 0 | AE111: 0 | AF111: 0 | AG111: 0 | AH111: 0 | AI111: 0 | AJ111: 0 | AK111: 0 | AL111: 0 | AM111: 0 | AN111: 0 | AO111: 0 | AP111: =AP95*$H111 -> 0 | AQ111: 0 | AR111: 0 | AS111: 0 | AT111: 0 | AU111: 0 | AV111: 0 | AW111: 0 | AX111: 0 | AY111: 0 | AZ111: 0 | BA111: 0 | BB111: 0 | BC111: 0 | BD111: =BD95*$H111 -> 0 | BE111: 0 | BF111: 0 | BG111: 0
J112: =J96*$H112 -> 0 | K112: 0 | L112: 0 | M112: 0 | N112: 0 | O112: 0 | P112: 0 | Q112: 0 | R112: 0 | S112: 0 | T112: 0 | U112: 0 | V112: 0 | W112: 0 | X112: 0 | Y112: 0 | Z112: 0 | AA112: 0 | AB112: 0 | AC112: 0 | AD112: 0 | AE112: 0 | AF112: 0 | AG112: 0 | AH112: 0 | AI112: 0 | AJ112: 0 | AK112: 0 | AL112: 0 | AM112: 0 | AN112: 0 | AO112: 0 | AP112: =AP96*$H112 -> 0 | AQ112: 0 | AR112: 0 | AS112: 0 | AT112: 0 | AU112: 0 | AV112: 0 | AW112: 0 | AX112: 0 | AY112: 0 | AZ112: 0 | BA112: 0 | BB112: 0 | BC112: 0 | BD112: =BD96*$H112 -> 0 | BE112: 0 | BF112: 0 | BG112: 0
J113: =J97*$H113 -> 0 | K113: 0 | L113: 0 | M113: 0 | N113: 0 | O113: 0 | P113: 0 | Q113: 0 | R113: 0 | S113: 0 | T113: 0 | U113: 0 | V113: 0 | W113: 0 | X113: 0 | Y113: 0 | Z113: 0 | AA113: 0 | AB113: 0 | AC113: 0 | AD113: 0 | AE113: 0 | AF113: 0 | AG113: 0 | AH113: 0 | AI113: 0 | AJ113: 0 | AK113: 0 | AL113: 0 | AM113: 0 | AN113: 0 | AO113: 0 | AP113: =AP97*$H113 -> 0 | AQ113: 0 | AR113: 0 | AS113: 0 | AT113: 0 | AU113: 0 | AV113: 0 | AW113: 0 | AX113: 0 | AY113: 0 | AZ113: 0 | BA113: 0 | BB113: 0 | BC113: 0 | BD113: =BD97*$H113 -> 0 | BE113: 0 | BF113: 0 | BG113: 0
J114: =J98*$H114 -> 0 | K114: 0 | L114: 0 | M114: 0 | N114: 0 | O114: 0 | P114: 0 | Q114: 0 | R114: 0 | S114: 0 | T114: 0 | U114: 0 | V114: 0 | W114: 0 | X114: 0 | Y114: 0 | Z114: 0 | AA114: 0 | AB114: 0 | AC114: 0 | AD114: 0 | AE114: 0 | AF114: 0 | AG114: 0 | AH114: 0 | AI114: 0 | AJ114: 0 | AK114: 0 | AL114: 0 | AM114: 0 | AN114: 0 | AO114: 0 | AP114: =AP98*$H114 -> 0 | AQ114: 0 | AR114: 0 | AS114: 0 | AT114: 0 | AU114: 0 | AV114: 0 | AW114: 0 | AX114: 0 | AY114: 0 | AZ114: 0 | BA114: 0 | BB114: 0 | BC114: 0 | BD114: =BD98*$H114 -> 0 | BE114: 0 | BF114: 0 | BG114: 0
J115: =J99*$H115 -> 0 | K115: 0 | L115: 0 | M115: 0 | N115: 0 | O115: 0 | P115: 0 | Q115: 0 | R115: 0 | S115: 0 | T115: 0 | U115: 0 | V115: 0 | W115: 0 | X115: 0 | Y115: 0 | Z115: 0 | AA115: 0 | AB115: 0 | AC115: 0 | AD115: 0 | AE115: 0 | AF115: 0 | AG115: 0 | AH115: 0 | AI115: 0 | AJ115: 0 | AK115: 0 | AL115: 0 | AM115: 0 | AN115: 0 | AO115: 0 | AP115: =AP99*$H115 -> 0 | AQ115: 0 | AR115: 0 | AS115: 0 | AT115: 0 | AU115: 0 | AV115: 0 | AW115: 0 | AX115: 0 | AY115: 0 | AZ115: 0 | BA115: 0 | BB115: 0 | BC115: 0 | BD115: =BD99*$H115 -> 0 | BE115: 0 | BF115: 0 | BG115: 0
J116: =J100*$H116 -> 0 | K116: 0 | L116: 0 | M116: 0 | N116: 0 | O116: 0 | P116: 0 | Q116: 0 | R116: 0 | S116: 0 | T116: 0 | U116: 0 | V116: 0 | W116: 0 | X116: 0 | Y116: 0 | Z116: 0 | AA116: 0 | AB116: 0 | AC116: 0 | AD116: 0 | AE116: 0 | AF116: 0 | AG116: 0 | AH116: 0 | AI116: 0 | AJ116: 0 | AK116: 0 | AL116: 0 | AM116: 0 | AN116: 0 | AO116: 0 | AP116: =AP100*$H116 -> 0 | AQ116: 0 | AR116: 0 | AS116: 0 | AT116: 0 | AU116: 0 | AV116: 0 | AW116: 0 | AX116: 0 | AY116: 0 | AZ116: 0 | BA116: 0 | BB116: 0 | BC116: 0 | BD116: =BD100*$H116 -> 0 | BE116: 0 | BF116: 0 | BG116: 0
J117: =J101*$H117 -> 0 | K117: 0 | L117: 0 | M117: 0 | N117: 0 | O117: 0 | P117: 0 | Q117: 0 | R117: 0 | S117: 0 | T117: 0 | U117: 0 | V117: 0 | W117: 0 | X117: 0 | Y117: 0 | Z117: 0 | AA117: 0 | AB117: 0 | AC117: 0 | AD117: 0 | AE117: 0 | AF117: 0 | AG117: 0 | AH117: 0 | AI117: 0 | AJ117: 0 | AK117: 0 | AL117: 0 | AM117: 0 | AN117: 0 | AO117: 0 | AP117: =AP101*$H117 -> 0 | AQ117: 0 | AR117: 0 | AS117: 0 | AT117: 0 | AU117: 0 | AV117: 0 | AW117: 0 | AX117: 0 | AY117: 0 | AZ117: 0 | BA117: 0 | BB117: 0 | BC117: 0 | BD117: =BD101*$H117 -> 0 | BE117: 0 | BF117: 0 | BG117: 0
J118: =J102*$H118 -> 0 | K118: 0 | L118: 0 | M118: 0 | N118: 0 | O118: 0 | P118: 0 | Q118: 0 | R118: 0 | S118: 0 | T118: 0 | U118: 0 | V118: 0 | W118: 0 | X118: 0 | Y118: 0 | Z118: 0 | AA118: 0 | AB118: 0 | AC118: 0 | AD118: 0 | AE118: 0 | AF118: 0 | AG118: 0 | AH118: 0 | AI118: 0 | AJ118: 0 | AK118: 0 | AL118: 0 | AM118: 0 | AN118: 0 | AO118: 0 | AP118: =AP102*$H118 -> 0 | AQ118: 0 | AR118: 0 | AS118: 0 | AT118: 0 | AU118: 0 | AV118: 0 | AW118: 0 | AX118: 0 | AY118: 0 | AZ118: 0 | BA118: 0 | BB118: 0 | BC118: 0 | BD118: =BD102*$H118 -> 0 | BE118: 0 | BF118: 0 | BG118: 0
J119: =J103*$H119 -> 0 | K119: 0 | L119: 0 | M119: 0 | N119: 0 | O119: 0 | P119: 0 | Q119: 0 | R119: 0 | S119: 0 | T119: 0 | U119: 0 | V119: 0 | W119: 0 | X119: 0 | Y119: 0 | Z119: 0 | AA119: 0 | AB119: 0 | AC119: 0 | AD119: 0 | AE119: 0 | AF119: 0 | AG119: 0 | AH119: 0 | AI119: 0 | AJ119: 0 | AK119: 0 | AL119: 0 | AM119: 0 | AN119: 0 | AO119: 0 | AP119: =AP103*$H119 -> 0 | AQ119: 0 | AR119: 0 | AS119: 0 | AT119: 0 | AU119: 0 | AV119: 0 | AW119: 0 | AX119: 0 | AY119: 0 | AZ119: 0 | BA119: 0 | BB119: 0 | BC119: 0 | BD119: =BD103*$H119 -> 0 | BE119: 0 | BF119: 0 | BG119: 0
J120: =J104*$H120 -> 0 | K120: 0 | L120: 0 | M120: 0 | N120: 0 | O120: 0 | P120: 0 | Q120: 0 | R120: 0 | S120: 0 | T120: 0 | U120: 0 | V120: 0 | W120: 0 | X120: 0 | Y120: 0 | Z120: 0 | AA120: 0 | AB120: 0 | AC120: 0 | AD120: 0 | AE120: 0 | AF120: 0 | AG120: 0 | AH120: 0 | AI120: 0 | AJ120: 0 | AK120: 0 | AL120: 0 | AM120: 0 | AN120: 0 | AO120: 0 | AP120: =AP104*$H120 -> 0 | AQ120: 0 | AR120: 0 | AS120: 0 | AT120: 0 | AU120: 0 | AV120: 0 | AW120: 0 | AX120: 0 | AY120: 0 | AZ120: 0 | BA120: 0 | BB120: 0 | BC120: 0 | BD120: =BD104*$H120 -> 0 | BE120: 0 | BF120: 0 | BG120: 0
J121: =J105*$H121 -> 0 | K121: 0 | L121: 0 | M121: 0 | N121: 0 | O121: 0 | P121: 0 | Q121: 0 | R121: 0 | S121: 0 | T121: 0 | U121: 0 | V121: 0 | W121: 0 | X121: 0 | Y121: 0 | Z121: 0 | AA121: 0 | AB121: 0 | AC121: 0 | AD121: 0 | AE121: 0 | AF121: 0 | AG121: 0 | AH121: 0 | AI121: 0 | AJ121: 0 | AK121: 0 | AL121: 0 | AM121: 0 | AN121: 0 | AO121: 0 | AP121: =AP105*$H121 -> 0 | AQ121: 0 | AR121: 0 | AS121: 0 | AT121: 0 | AU121: 0 | AV121: 0 | AW121: 0 | AX121: 0 | AY121: 0 | AZ121: 0 | BA121: 0 | BB121: 0 | BC121: 0 | BD121: =BD105*$H121 -> 0 | BE121: 0 | BF121: 0 | BG121: 0
F122: Net Benefits | J122: =SUM(J110:J121) -> 0 | K122: =SUM(K110:K121) -> 0 | L122: 0 | M122: 0 | N122: 0 | O122: 0 | P122: 0 | Q122: 0 | R122: 0 | S122: 0 | T122: 0 | U122: 0 | V122: 0 | W122: 0 | X122: 0 | Y122: 0 | Z122: 0 | AA122: 0 | AB122: 0 | AC122: 0 | AD122: 0 | AE122: 0 | AF122: 0 | AG122: 0 | AH122: 0 | AI122: 0 | AJ122: 0 | AK122: 0 | AL122: 0 | AM122: 0 | AN122: 0 | AO122: 0 | AP122: 0 | AQ122: 0 | AR122: 0 | AS122: 0 | AT122: 0 | AU122: 0 | AV122: 0 | AW122: 0 | AX122: 0 | AY122: 0 | AZ122: 0 | BA122: 0 | BB122: 0 | BC122: 0 | BD122: =SUM(BD110:BD121) -> 0 | BE122: 0 | BF122: 0 | BG122: 0
A124: END OF INPUTS FOR THIS OPTION

Sheet Option1_Analysis
B1: Analysis: Option 1
B2: =Cover!$C$9 -> AusNet Services
B3: =Cover!$C$10 -> Business Case Evaluation
B4: =Cover!$C$11 -> Demand driven augex (LV augmentation) with flexible services
B6: Regulatory Period Indicator | J6: =IF(AND(J$7>=General!$H$20,J$8<=General!$H$21),1,0) -> 0 | K6: =IF(AND(K$7>=General!$H$20,K$8<=General!$H$21),1,0) -> 0 | L6: =IF(AND(L$7>=General!$H$20,L$8<=General!$H$21),1,0) -> 0 | M6: =IF(AND(M$7>=General!$H$20,M$8<=General!$H$21),1,0) -> 1 | N6: =IF(AND(N$7>=General!$H$20,N$8<=General!$H$21),1,0) -> 1 | O6: =IF(AND(O$7>=General!$H$20,O$8<=General!$H$21),1,0) -> 1 | P6: =IF(AND(P$7>=General!$H$20,P$8<=General!$H$21),1,0) -> 1 | Q6: =IF(AND(Q$7>=General!$H$20,Q$8<=General!$H$21),1,0) -> 1 | R6: =IF(AND(R$7>=General!$H$20,R$8<=General!$H$21),1,0) -> 0 | S6: =IF(AND(S$7>=General!$H$20,S$8<=General!$H$21),1,0) -> 0 | T6: =IF(AND(T$7>=General!$H$20,T$8<=General!$H$21),1,0) -> 0 | U6: =IF(AND(U$7>=General!$H$20,U$8<=General!$H$21),1,0) -> 0 | V6: =IF(AND(V$7>=General!$H$20,V$8<=General!$H$21),1,0) -> 0 | W6: =IF(AND(W$7>=General!$H$20,W$8<=General!$H$21),1,0) -> 0 | X6: =IF(AND(X$7>=General!$H$20,X$8<=General!$H$21),1,0) -> 0 | Y6: =IF(AND(Y$7>=General!$H$20,Y$8<=General!$H$21),1,0) -> 0 | Z6: =IF(AND(Z$7>=General!$H$20,Z$8<=General!$H$21),1,0) -> 0 | AA6: =IF(AND(AA$7>=General!$H$20,AA$8<=General!$H$21),1,0) -> 0 | AB6: =IF(AND(AB$7>=General!$H$20,AB$8<=General!$H$21),1,0) -> 0 | AC6: =IF(AND(AC$7>=General!$H$20,AC$8<=General!$H$21),1,0) -> 0 | AD6: =IF(AND(AD$7>=General!$H$20,AD$8<=General!$H$21),1,0) -> 0 | AE6: =IF(AND(AE$7>=General!$H$20,AE$8<=General!$H$21),1,0) -> 0 | AF6: =IF(AND(AF$7>=General!$H$20,AF$8<=General!$H$21),1,0) -> 0 | AG6: =IF(AND(AG$7>=General!$H$20,AG$8<=General!$H$21),1,0) -> 0 | AH6: =IF(AND(AH$7>=General!$H$20,AH$8<=General!$H$21),1,0) -> 0 | AI6: =IF(AND(AI$7>=General!$H$20,AI$8<=General!$H$21),1,0) -> 0 | AJ6: =IF(AND(AJ$7>=General!$H$20,AJ$8<=General!$H$21),1,0) -> 0 | AK6: =IF(AND(AK$7>=General!$H$20,AK$8<=General!$H$21),1,0) -> 0 | AL6: =IF(AND(AL$7>=General!$H$20,AL$8<=General!$H$21),1,0) -> 0 | AM6: =IF(AND(AM$7>=General!$H$20,AM$8<=General!$H$21),1,0) -> 0 | AN6: =IF(AND(AN$7>=General!$H$20,AN$8<=General!$H$21),1,0) -> 0 | AO6: =IF(AND(AO$7>=General!$H$20,AO$8<=General!$H$21),1,0) -> 0 | AP6: =IF(AND(AP$7>=General!$H$20,AP$8<=General!$H$21),1,0) -> 0 | AQ6: =IF(AND(AQ$7>=General!$H$20,AQ$8<=General!$H$21),1,0) -> 0 | AR6: =IF(AND(AR$7>=General!$H$20,AR$8<=General!$H$21),1,0) -> 0 | AS6: =IF(AND(AS$7>=General!$H$20,AS$8<=General!$H$21),1,0) -> 0 | AT6: =IF(AND(AT$7>=General!$H$20,AT$8<=General!$H$21),1,0) -> 0 | AU6: =IF(AND(AU$7>=General!$H$20,AU$8<=General!$H$21),1,0) -> 0 | AV6: =IF(AND(AV$7>=General!$H$20,AV$8<=General!$H$21),1,0) -> 0 | AW6: =IF(AND(AW$7>=General!$H$20,AW$8<=General!$H$21),1,0) -> 0 | AX6: =IF(AND(AX$7>=General!$H$20,AX$8<=General!$H$21),1,0) -> 0 | AY6: =IF(AND(AY$7>=General!$H$20,AY$8<=General!$H$21),1,0) -> 0 | AZ6: =IF(AND(AZ$7>=General!$H$20,AZ$8<=General!$H$21),1,0) -> 0 | BA6: =IF(AND(BA$7>=General!$H$20,BA$8<=General!$H$21),1,0) -> 0 | BB6: =IF(AND(BB$7>=General!$H$20,BB$8<=General!$H$21),1,0) -> 0 | BC6: =IF(AND(BC$7>=General!$H$20,BC$8<=General!$H$21),1,0) -> 0 | BD6: =IF(AND(BD$7>=General!$H$20,BD$8<=General!$H$21),1,0) -> 0 | BE6: =IF(AND(BE$7>=General!$H$20,BE$8<=General!$H$21),1,0) -> 0 | BF6: =IF(AND(BF$7>=General!$H$20,BF$8<=General!$H$21),1,0) -> 0 | BG6: =IF(AND(BG$7>=General!$H$20,BG$8<=General!$H$21),1,0) -> 0
B7: Period Start Date | J7: =EDATE(General!$H$18,(J9-1)*12) -> 2023-07-01 | K7: =EDATE(General!$H$18,(K9-1)*12) -> 2024-07-01 | L7: =EDATE(General!$H$18,(L9-1)*12) -> 2025-07-01 | M7: =EDATE(General!$H$18,(M9-1)*12) -> 2026-07-01 | N7: =EDATE(General!$H$18,(N9-1)*12) -> 2027-07-01 | O7: =EDATE(General!$H$18,(O9-1)*12) -> 2028-07-01 | P7: =EDATE(General!$H$18,(P9-1)*12) -> 2029-07-01 | Q7: =EDATE(General!$H$18,(Q9-1)*12) -> 2030-07-01 | R7: =EDATE(General!$H$18,(R9-1)*12) -> 2031-07-01 | S7: =EDATE(General!$H$18,(S9-1)*12) -> 2032-07-01 | T7: =EDATE(General!$H$18,(T9-1)*12) -> 2033-07-01 | U7: =EDATE(General!$H$18,(U9-1)*12) -> 2034-07-01 | V7: =EDATE(General!$H$18,(V9-1)*12) -> 2035-07-01 | W7: =EDATE(General!$H$18,(W9-1)*12) -> 2036-07-01 | X7: =EDATE(General!$H$18,(X9-1)*12) -> 2037-07-01 | Y7: =EDATE(General!$H$18,(Y9-1)*12) -> 2038-07-01 | Z7: =EDATE(General!$H$18,(Z9-1)*12) -> 2039-07-01 | AA7: =EDATE(General!$H$18,(AA9-1)*12) -> 2040-07-01 | AB7: =EDATE(General!$H$18,(AB9-1)*12) -> 2041-07-01 | AC7: =EDATE(General!$H$18,(AC9-1)*12) -> 2042-07-01 | AD7: =EDATE(General!$H$18,(AD9-1)*12) -> 2043-07-01 | AE7: =EDATE(General!$H$18,(AE9-1)*12) -> 2044-07-01 | AF7: =EDATE(General!$H$18,(AF9-1)*12) -> 2045-07-01 | AG7: =EDATE(General!$H$18,(AG9-1)*12) -> 2046-07-01 | AH7: =EDATE(General!$H$18,(AH9-1)*12) -> 2047-07-01 | AI7: =EDATE(General!$H$18,(AI9-1)*12) -> 2048-07-01 | AJ7: =EDATE(General!$H$18,(AJ9-1)*12) -> 2049-07-01 | AK7: =EDATE(General!$H$18,(AK9-1)*12) -> 2050-07-01 | AL7: =EDATE(General!$H$18,(AL9-1)*12) -> 2051-07-01 | AM7: =EDATE(General!$H$18,(AM9-1)*12) -> 2052-07-01 | AN7: =EDATE(General!$H$18,(AN9-1)*12) -> 2053-07-01 | AO7: =EDATE(General!$H$18,(AO9-1)*12) -> 2054-07-01 | AP7: =EDATE(General!$H$18,(AP9-1)*12) -> 2055-07-01 | AQ7: =EDATE(General!$H$18,(AQ9-1)*12) -> 2056-07-01 | AR7: =EDATE(General!$H$18,(AR9-1)*12) -> 2057-07-01 | AS7: =EDATE(General!$H$18,(AS9-1)*12) -> 2058-07-01 | AT7: =EDATE(General!$H$18,(AT9-1)*12) -> 2059-07-01 | AU7: =EDATE(General!$H$18,(AU9-1)*12) -> 2060-07-01 | AV7: =EDATE(General!$H$18,(AV9-1)*12) -> 2061-07-01 | AW7: =EDATE(General!$H$18,(AW9-1)*12) -> 2062-07-01 | AX7: =EDATE(General!$H$18,(AX9-1)*12) -> 2063-07-01 | AY7: =EDATE(General!$H$18,(AY9-1)*12) -> 2064-07-01 | AZ7: =EDATE(General!$H$18,(AZ9-1)*12) -> 2065-07-01 | BA7: =EDATE(General!$H$18,(BA9-1)*12) -> 2066-07-01 | BB7: =EDATE(General!$H$18,(BB9-1)*12) -> 2067-07-01 | BC7: =EDATE(General!$H$18,(BC9-1)*12) -> 2068-07-01 | BD7: =EDATE(General!$H$18,(BD9-1)*12) -> 2069-07-01 | BE7: =EDATE(General!$H$18,(BE9-1)*12) -> 2070-07-01 | BF7: =EDATE(General!$H$18,(BF9-1)*12) -> 2071-07-01 | BG7: =EDATE(General!$H$18,(BG9-1)*12) -> 2072-07-01
B8: Period End Date | J8: =EDATE(J7,12)-1 -> 2024-06-30 | K8: =EDATE(K7,12)-1 -> 2025-06-30 | L8: 2026-06-30 | M8: 2027-06-30 | N8: 2028-06-30 | O8: 2029-06-30 | P8: 2030-06-30 | Q8: 2031-06-30 | R8: 2032-06-30 | S8: 2033-06-30 | T8: 2034-06-30 | U8: 2035-06-30 | V8: 2036-06-30 | W8: 2037-06-30 | X8: 2038-06-30 | Y8: 2039-06-30 | Z8: 2040-06-30 | AA8: 2041-06-30 | AB8: 2042-06-30 | AC8: 2043-06-30 | AD8: 2044-06-30 | AE8: 2045-06-30 | AF8: 2046-06-30 | AG8: 2047-06-30 | AH8: 2048-06-30 | AI8: 2049-06-30 | AJ8: 2050-06-30 | AK8: 2051-06-30 | AL8: 2052-06-30 | AM8: 2053-06-30 | AN8: 2054-06-30 | AO8: 2055-06-30 | AP8: 2056-06-30 | AQ8: 2057-06-30 | AR8: 2058-06-30 | AS8: 2059-06-30 | AT8: 2060-06-30 | AU8: 2061-06-30 | AV8: 2062-06-30 | AW8: 2063-06-30 | AX8: 2064-06-30 | AY8: 2065-06-30 | AZ8: 2066-06-30 | BA8: 2067-06-30 | BB8: 2068-06-30 | BC8: 2069-06-30 | BD8: 2070-06-30 | BE8: 2071-06-30 | BF8: 2072-06-30 | BG8: 2073-06-30
B9: ="Project Year" -> Project Year | J9: =COLUMNS($J9:J9) -> 1 | K9: =COLUMNS($J9:K9) -> 2 | L9: =COLUMNS($J9:L9) -> 3 | M9: =COLUMNS($J9:M9) -> 4 | N9: =COLUMNS($J9:N9) -> 5 | O9: =COLUMNS($J9:O9) -> 6 | P9: =COLUMNS($J9:P9) -> 7 | Q9: =COLUMNS($J9:Q9) -> 8 | R9: =COLUMNS($J9:R9) -> 9 | S9: =COLUMNS($J9:S9) -> 10 | T9: =COLUMNS($J9:T9) -> 11 | U9: =COLUMNS($J9:U9) -> 12 | V9: =COLUMNS($J9:V9) -> 13 | W9: =COLUMNS($J9:W9) -> 14 | X9: =COLUMNS($J9:X9) -> 15 | Y9: =COLUMNS($J9:Y9) -> 16 | Z9: =COLUMNS($J9:Z9) -> 17 | AA9: =COLUMNS($J9:AA9) -> 18 | AB9: =COLUMNS($J9:AB9) -> 19 | AC9: =COLUMNS($J9:AC9) -> 20 | AD9: =COLUMNS($J9:AD9) -> 21 | AE9: =COLUMNS($J9:AE9) -> 22 | AF9: =COLUMNS($J9:AF9) -> 23 | AG9: =COLUMNS($J9:AG9) -> 24 | AH9: =COLUMNS($J9:AH9) -> 25 | AI9: =COLUMNS($J9:AI9) -> 26 | AJ9: =COLUMNS($J9:AJ9) -> 27 | AK9: =COLUMNS($J9:AK9) -> 28 | AL9: =COLUMNS($J9:AL9) -> 29 | AM9: =COLUMNS($J9:AM9) -> 30 | AN9: =COLUMNS($J9:AN9) -> 31 | AO9: =COLUMNS($J9:AO9) -> 32 | AP9: =COLUMNS($J9:AP9) -> 33 | AQ9: =COLUMNS($J9:AQ9) -> 34 | AR9: =COLUMNS($J9:AR9) -> 35 | AS9: =COLUMNS($J9:AS9) -> 36 | AT9: =COLUMNS($J9:AT9) -> 37 | AU9: =COLUMNS($J9:AU9) -> 38 | AV9: =COLUMNS($J9:AV9) -> 39 | AW9: =COLUMNS($J9:AW9) -> 40 | AX9: =COLUMNS($J9:AX9) -> 41 | AY9: =COLUMNS($J9:AY9) -> 42 | AZ9: =COLUMNS($J9:AZ9) -> 43 | BA9: =COLUMNS($J9:BA9) -> 44 | BB9: =COLUMNS($J9:BB9) -> 45 | BC9: =COLUMNS($J9:BC9) -> 46 | BD9: =COLUMNS($J9:BD9) -> 47 | BE9: =COLUMNS($J9:BE9) -> 48 | BF9: =COLUMNS($J9:BF9) -> 49 | BG9: =COLUMNS($J9:BG9) -> 50
B10: Financial Year | J10: =YEAR(J8) -> 2024 | K10: =YEAR(K8) -> 2025 | L10: 2026 | M10: 2027 | N10: 2028 | O10: 2029 | P10: 2030 | Q10: 2031 | R10: 2032 | S10: 2033 | T10: 2034 | U10: 2035 | V10: 2036 | W10: 2037 | X10: 2038 | Y10: 2039 | Z10: 2040 | AA10: 2041 | AB10: 2042 | AC10: 2043 | AD10: 2044 | AE10: 2045 | AF10: 2046 | AG10: 2047 | AH10: 2048 | AI10: 2049 | AJ10: 2050 | AK10: 2051 | AL10: 2052 | AM10: 2053 | AN10: 2054 | AO10: 2055 | AP10: 2056 | AQ10: 2057 | AR10: 2058 | AS10: 2059 | AT10: 2060 | AU10: 2061 | AV10: 2062 | AW10: 2063 | AX10: 2064 | AY10: 2065 | AZ10: 2066 | BA10: 2067 | BB10: 2068 | BC10: 2069 | BD10: 2070 | BE10: 2071 | BF10: 2072 | BG10: 2073
B11: CPI index | J11: 1 | K11: =J11*(1+IF(OR(ISBLANK(VLOOKUP(DATE(YEAR(K8),MONTH(K8),1),CPI_Con_F!$D$18:$G$67,4,FALSE)),ISERROR(VLOOKUP(DATE(YEAR(K8),MONTH(K8),1),CPI_Con_F!$D$18:$G$67,4,FALSE))),General!$H$24,VLOOKUP(DATE(YEAR(K8),MONTH(K8),1),CPI_Con_F!$D$18:$G$67,4,FALSE))) -> 1.03 | L11: =K11*(1+IF(OR(ISBLANK(VLOOKUP(DATE(YEAR(L8),MONTH(L8),1),CPI_Con_F!$D$18:$G$67,4,FALSE)),ISERROR(VLOOKUP(DATE(YEAR(L8),MONTH(L8),1),CPI_Con_F!$D$18:$G$67,4,FALSE))),General!$H$24,VLOOKUP(DATE(YEAR(L8),MONTH(L8),1),CPI_Con_F!$D$18:$G$67,4,FALSE))) -> 1.05575 | M11: =L11*(1+IF(OR(ISBLANK(VLOOKUP(DATE(YEAR(M8),MONTH(M8),1),CPI_Con_F!$D$18:$G$67,4,FALSE)),ISERROR(VLOOKUP(DATE(YEAR(M8),MONTH(M8),1),CPI_Con_F!$D$18:$G$67,4,FALSE))),General!$H$24,VLOOKUP(DATE(YEAR(M8),MONTH(M8),1),CPI_Con_F!$D$18:$G$67,4,FALSE))) -> 1.08214375 | N11: =M11*(1+IF(OR(ISBLANK(VLOOKUP(DATE(YEAR(N8),MONTH(N8),1),CPI_Con_F!$D$18:$G$67,4,FALSE)),ISERROR(VLOOKUP(DATE(YEAR(N8),MONTH(N8),1),CPI_Con_F!$D$18:$G$67,4,FALSE))),General!$H$24,VLOOKUP(DATE(YEAR(N8),MONTH(N8),1),CPI_Con_F!$D$18:$G$67,4,FALSE))) -> 1.109197344 | O11: =N11*(1+IF(OR(ISBLANK(VLOOKUP(DATE(YEAR(O8),MONTH(O8),1),CPI_Con_F!$D$18:$G$67,4,FALSE)),ISERROR(VLOOKUP(DATE(YEAR(O8),MONTH(O8),1),CPI_Con_F!$D$18:$G$67,4,FALSE))),General!$H$24,VLOOKUP(DATE(YEAR(O8),MONTH(O8),1),CPI_Con_F!$D$18:$G$67,4,FALSE))) -> 1.136927277 | P11: =O11*(1+IF(OR(ISBLANK(VLOOKUP(DATE(YEAR(P8),MONTH(P8),1),CPI_Con_F!$D$18:$G$67,4,FALSE)),ISERROR(VLOOKUP(DATE(YEAR(P8),MONTH(P8),1),CPI_Con_F!$D$18:$G$67,4,FALSE))),General!$H$24,VLOOKUP(DATE(YEAR(P8),MONTH(P8),1),CPI_Con_F!$D$18:$G$67,4,FALSE))) -> 1.165350459 | Q11: =P11*(1+IF(OR(ISBLANK(VLOOKUP(DATE(YEAR(Q8),MONTH(Q8),1),CPI_Con_F!$D$18:$G$67,4,FALSE)),ISERROR(VLOOKUP(DATE(YEAR(Q8),MONTH(Q8),1),CPI_Con_F!$D$18:$G$67,4,FALSE))),General!$H$24,VLOOKUP(DATE(YEAR(Q8),MONTH(Q8),1),CPI_Con_F!$D$18:$G$67,4,FALSE))) -> 1.194484221 | R11: =Q11*(1+IF(OR(ISBLANK(VLOOKUP(DATE(YEAR(R8),MONTH(R8),1),CPI_Con_F!$D$18:$G$67,4,FALSE)),ISERROR(VLOOKUP(DATE(YEAR(R8),MONTH(R8),1),CPI_Con_F!$D$18:$G$67,4,FALSE))),General!$H$24,VLOOKUP(DATE(YEAR(R8),MONTH(R8),1),CPI_Con_F!$D$18:$G$67,4,FALSE))) -> 1.224346326 | S11: =R11*(1+IF(OR(ISBLANK(VLOOKUP(DATE(YEAR(S8),MONTH(S8),1),CPI_Con_F!$D$18:$G$67,4,FALSE)),ISERROR(VLOOKUP(DATE(YEAR(S8),MONTH(S8),1),CPI_Con_F!$D$18:$G$67,4,FALSE))),General!$H$24,VLOOKUP(DATE(YEAR(S8),MONTH(S8),1),CPI_Con_F!$D$18:$G$67,4,FALSE))) -> 1.254954984 | T11: =S11*(1+IF(OR(ISBLANK(VLOOKUP(DATE(YEAR(T8),MONTH(T8),1),CPI_Con_F!$D$18:$G$67,4,FALSE)),ISERROR(VLOOKUP(DATE(YEAR(T8),MONTH(T8),1),CPI_Con_F!$D$18:$G$67,4,FALSE))),General!$H$24,VLOOKUP(DATE(YEAR(T8),MONTH(T8),1),CPI_Con_F!$D$18:$G$67,4,FALSE))) -> 1.286328859 | U11: =T11*(1+IF(OR(ISBLANK(VLOOKUP(DATE(YEAR(U8),MONTH(U8),1),CPI_Con_F!$D$18:$G$67,4,FALSE)),ISERROR(VLOOKUP(DATE(YEAR(U8),MONTH(U8),1),CPI_Con_F!$D$18:$G$67,4,FALSE))),General!$H$24,VLOOKUP(DATE(YEAR(U8),MONTH(U8),1),CPI_Con_F!$D$18:$G$67,4,FALSE))) -> 1.318487081 | V11: =U11*(1+IF(OR(ISBLANK(VLOOKUP(DATE(YEAR(V8),MONTH(V8),1),CPI_Con_F!$D$18:$G$67,4,FALSE)),ISERROR(VLOOKUP(DATE(YEAR(V8),MONTH(V8),1),CPI_Con_F!$D$18:$G$67,4,FALSE))),General!$H$24,VLOOKUP(DATE(YEAR(V8),MONTH(V8),1),CPI_Con_F!$D$18:$G$67,4,FALSE))) -> 1.351449258 | W11: =V11*(1+IF(OR(ISBLANK(VLOOKUP(DATE(YEAR(W8),MONTH(W8),1),CPI_Con_F!$D$18:$G$67,4,FALSE)),ISERROR(VLOOKUP(DATE(YEAR(W8),MONTH(W8),1),CPI_Con_F!$D$18:$G$67,4,FALSE))),General!$H$24,VLOOKUP(DATE(YEAR(W8),MONTH(W8),1),CPI_Con_F!$D$18:$G$67,4,FALSE))) -> 1.385235489 | X11: =W11*(1+IF(OR(ISBLANK(VLOOKUP(DATE(YEAR(X8),MONTH(X8),1),CPI_Con_F!$D$18:$G$67,4,FALSE)),ISERROR(VLOOKUP(DATE(YEAR(X8),MONTH(X8),1),CPI_Con_F!$D$18:$G$67,4,FALSE))),General!$H$24,VLOOKUP(DATE(YEAR(X8),MONTH(X8),1),CPI_Con_F!$D$18:$G$67,4,FALSE))) -> 1.419866376 | Y11: =X11*(1+IF(OR(ISBLANK(VLOOKUP(DATE(YEAR(Y8),MONTH(Y8),1),CPI_Con_F!$D$18:$G$67,4,FALSE)),ISERROR(VLOOKUP(DATE(YEAR(Y8),MONTH(Y8),1),CPI_Con_F!$D$18:$G$67,4,FALSE))),General!$H$24,VLOOKUP(DATE(YEAR(Y8),MONTH(Y8),1),CPI_Con_F!$D$18:$G$67,4,FALSE))) -> 1.455363036 | Z11: =Y11*(1+IF(OR(ISBLANK(VLOOKUP(DATE(YEAR(Z8),MONTH(Z8),1),CPI_Con_F!$D$18:$G$67,4,FALSE)),ISERROR(VLOOKUP(DATE(YEAR(Z8),MONTH(Z8),1),CPI_Con_F!$D$18:$G$67,4,FALSE))),General!$H$24,VLOOKUP(DATE(YEAR(Z8),MONTH(Z8),1),CPI_Con_F!$D$18:$G$67,4,FALSE))) -> 1.491747111 | AA11: =Z11*(1+IF(OR(ISBLANK(VLOOKUP(DATE(YEAR(AA8),MONTH(AA8),1),CPI_Con_F!$D$18:$G$67,4,FALSE)),ISERROR(VLOOKUP(DATE(YEAR(AA8),MONTH(AA8),1),CPI_Con_F!$D$18:$G$67,4,FALSE))),General!$H$24,VLOOKUP(DATE(YEAR(AA8),MONTH(AA8),1),CPI_Con_F!$D$18:$G$67,4,FALSE))) -> 1.529040789 | AB11: =AA11*(1+IF(OR(ISBLANK(VLOOKUP(DATE(YEAR(AB8),MONTH(AB8),1),CPI_Con_F!$D$18:$G$67,4,FALSE)),ISERROR(VLOOKUP(DATE(YEAR(AB8),MONTH(AB8),1),CPI_Con_F!$D$18:$G$67,4,FALSE))),General!$H$24,VLOOKUP(DATE(YEAR(AB8),MONTH(AB8),1),CPI_Con_F!$D$18:$G$67,4,FALSE))) -> 1.567266809 | AC11: =AB11*(1+IF(OR(ISBLANK(VLOOKUP(DATE(YEAR(AC8),MONTH(AC8),1),CPI_Con_F!$D$18:$G$67,4,FALSE)),ISERROR(VLOOKUP(DATE(YEAR(AC8),MONTH(AC8),1),CPI_Con_F!$D$18:$G$67,4,FALSE))),General!$H$24,VLOOKUP(DATE(YEAR(AC8),MONTH(AC8),1),CPI_Con_F!$D$18:$G$67,4,FALSE))) -> 1.606448479 | AD11: =AC11*(1+IF(OR(ISBLANK(VLOOKUP(DATE(YEAR(AD8),MONTH(AD8),1),CPI_Con_F!$D$18:$G$67,4,FALSE)),ISERROR(VLOOKUP(DATE(YEAR(AD8),MONTH(AD8),1),CPI_Con_F!$D$18:$G$67,4,FALSE))),General!$H$24,VLOOKUP(DATE(YEAR(AD8),MONTH(AD8),1),CPI_Con_F!$D$18:$G$67,4,FALSE))) -> 1.646609691 | AE11: =AD11*(1+IF(OR(ISBLANK(VLOOKUP(DATE(YEAR(AE8),MONTH(AE8),1),CPI_Con_F!$D$18:$G$67,4,FALSE)),ISERROR(VLOOKUP(DATE(YEAR(AE8),MONTH(AE8),1),CPI_Con_F!$D$18:$G$67,4,FALSE))),General!$H$24,VLOOKUP(DATE(YEAR(AE8),MONTH(AE8),1),CPI_Con_F!$D$18:$G$67,4,FALSE))) -> 1.687774933 | AF11: =AE11*(1+IF(OR(ISBLANK(VLOOKUP(DATE(YEAR(AF8),MONTH(AF8),1),CPI_Con_F!$D$18:$G$67,4,FALSE)),ISERROR(VLOOKUP(DATE(YEAR(AF8),MONTH(AF8),1),CPI_Con_F!$D$18:$G$67,4,FALSE))),General!$H$24,VLOOKUP(DATE(YEAR(AF8),MONTH(AF8),1),CPI_Con_F!$D$18:$G$67,4,FALSE))) -> 1.729969307 | AG11: =AF11*(1+IF(OR(ISBLANK(VLOOKUP(DATE(YEAR(AG8),MONTH(AG8),1),CPI_Con_F!$D$18:$G$67,4,FALSE)),ISERROR(VLOOKUP(DATE(YEAR(AG8),MONTH(AG8),1),CPI_Con_F!$D$18:$G$67,4,FALSE))),General!$H$24,VLOOKUP(DATE(YEAR(AG8),MONTH(AG8),1),CPI_Con_F!$D$18:$G$67,4,FALSE))) -> 1.77321854 | AH11: =AG11*(1+IF(OR(ISBLANK(VLOOKUP(DATE(YEAR(AH8),MONTH(AH8),1),CPI_Con_F!$D$18:$G$67,4,FALSE)),ISERROR(VLOOKUP(DATE(YEAR(AH8),MONTH(AH8),1),CPI_Con_F!$D$18:$G$67,4,FALSE))),General!$H$24,VLOOKUP(DATE(YEAR(AH8),MONTH(AH8),1),CPI_Con_F!$D$18:$G$67,4,FALSE))) -> 1.817549003 | AI11: =AH11*(1+IF(OR(ISBLANK(VLOOKUP(DATE(YEAR(AI8),MONTH(AI8),1),CPI_Con_F!$D$18:$G$67,4,FALSE)),ISERROR(VLOOKUP(DATE(YEAR(AI8),MONTH(AI8),1),CPI_Con_F!$D$18:$G$67,4,FALSE))),General!$H$24,VLOOKUP(DATE(YEAR(AI8),MONTH(AI8),1),CPI_Con_F!$D$18:$G$67,4,FALSE))) -> 1.862987728 | AJ11: =AI11*(1+IF(OR(ISBLANK(VLOOKUP(DATE(YEAR(AJ8),MONTH(AJ8),1),CPI_Con_F!$D$18:$G$67,4,FALSE)),ISERROR(VLOOKUP(DATE(YEAR(AJ8),MONTH(AJ8),1),CPI_Con_F!$D$18:$G$67,4,FALSE))),General!$H$24,VLOOKUP(DATE(YEAR(AJ8),MONTH(AJ8),1),CPI_Con_F!$D$18:$G$67,4,FALSE))) -> 1.909562421 | AK11: =AJ11*(1+IF(OR(ISBLANK(VLOOKUP(DATE(YEAR(AK8),MONTH(AK8),1),CPI_Con_F!$D$18:$G$67,4,FALSE)),ISERROR(VLOOKUP(DATE(YEAR(AK8),MONTH(AK8),1),CPI_Con_F!$D$18:$G$67,4,FALSE))),General!$H$24,VLOOKUP(DATE(YEAR(AK8),MONTH(AK8),1),CPI_Con_F!$D$18:$G$67,4,FALSE))) -> 1.957301482 | AL11: =AK11*(1+IF(OR(ISBLANK(VLOOKUP(DATE(YEAR(AL8),MONTH(AL8),1),CPI_Con_F!$D$18:$G$67,4,FALSE)),ISERROR(VLOOKUP(DATE(YEAR(AL8),MONTH(AL8),1),CPI_Con_F!$D$18:$G$67,4,FALSE))),General!$H$24,VLOOKUP(DATE(YEAR(AL8),MONTH(AL8),1),CPI_Con_F!$D$18:$G$67,4,FALSE))) -> 2.006234019 | AM11: =AL11*(1+IF(OR(ISBLANK(VLOOKUP(DATE(YEAR(AM8),MONTH(AM8),1),CPI_Con_F!$D$18:$G$67,4,FALSE)),ISERROR(VLOOKUP(DATE(YEAR(AM8),MONTH(AM8),1),CPI_Con_F!$D$18:$G$67,4,FALSE))),General!$H$24,VLOOKUP(DATE(YEAR(AM8),MONTH(AM8),1),CPI_Con_F!$D$18:$G$67,4,FALSE))) -> 2.056389869 | AN11: =AM11*(1+IF(OR(ISBLANK(VLOOKUP(DATE(YEAR(AN8),MONTH(AN8),1),CPI_Con_F!$D$18:$G$67,4,FALSE)),ISERROR(VLOOKUP(DATE(YEAR(AN8),MONTH(AN8),1),CPI_Con_F!$D$18:$G$67,4,FALSE))),General!$H$24,VLOOKUP(DATE(YEAR(AN8),MONTH(AN8),1),CPI_Con_F!$D$18:$G$67,4,FALSE))) -> 2.107799616 | AO11: =AN11*(1+IF(OR(ISBLANK(VLOOKUP(DATE(YEAR(AO8),MONTH(AO8),1),CPI_Con_F!$D$18:$G$67,4,FALSE)),ISERROR(VLOOKUP(DATE(YEAR(AO8),MONTH(AO8),1),CPI_Con_F!$D$18:$G$67,4,FALSE))),General!$H$24,VLOOKUP(DATE(YEAR(AO8),MONTH(AO8),1),CPI_Con_F!$D$18:$G$67,4,FALSE))) -> 2.160494606 | AP11: =AO11*(1+IF(OR(ISBLANK(VLOOKUP(DATE(YEAR(AP8),MONTH(AP8),1),CPI_Con_F!$D$18:$G$67,4,FALSE)),ISERROR(VLOOKUP(DATE(YEAR(AP8),MONTH(AP8),1),CPI_Con_F!$D$18:$G$67,4,FALSE))),General!$H$24,VLOOKUP(DATE(YEAR(AP8),MONTH(AP8),1),CPI_Con_F!$D$18:$G$67,4,FALSE))) -> 2.214506972 | AQ11: =AP11*(1+IF(OR(ISBLANK(VLOOKUP(DATE(YEAR(AQ8),MONTH(AQ8),1),CPI_Con_F!$D$18:$G$67,4,FALSE)),ISERROR(VLOOKUP(DATE(YEAR(AQ8),MONTH(AQ8),1),CPI_Con_F!$D$18:$G$67,4,FALSE))),General!$H$24,VLOOKUP(DATE(YEAR(AQ8),MONTH(AQ8),1),CPI_Con_F!$D$18:$G$67,4,FALSE))) -> 2.269869646 | AR11: =AQ11*(1+IF(OR(ISBLANK(VLOOKUP(DATE(YEAR(AR8),MONTH(AR8),1),CPI_Con_F!$D$18:$G$67,4,FALSE)),ISERROR(VLOOKUP(DATE(YEAR(AR8),MONTH(AR8),1),CPI_Con_F!$D$18:$G$67,4,FALSE))),General!$H$24,VLOOKUP(DATE(YEAR(AR8),MONTH(AR8),1),CPI_Con_F!$D$18:$G$67,4,FALSE))) -> 2.326616387 | AS11: =AR11*(1+IF(OR(ISBLANK(VLOOKUP(DATE(YEAR(AS8),MONTH(AS8),1),CPI_Con_F!$D$18:$G$67,4,FALSE)),ISERROR(VLOOKUP(DATE(YEAR(AS8),MONTH(AS8),1),CPI_Con_F!$D$18:$G$67,4,FALSE))),General!$H$24,VLOOKUP(DATE(YEAR(AS8),MONTH(AS8),1),CPI_Con_F!$D$18:$G$67,4,FALSE))) -> 2.384781797 | AT11: =AS11*(1+IF(OR(ISBLANK(VLOOKUP(DATE(YEAR(AT8),MONTH(AT8),1),CPI_Con_F!$D$18:$G$67,4,FALSE)),ISERROR(VLOOKUP(DATE(YEAR(AT8),MONTH(AT8),1),CPI_Con_F!$D$18:$G$67,4,FALSE))),General!$H$24,VLOOKUP(DATE(YEAR(AT8),MONTH(AT8),1),CPI_Con_F!$D$18:$G$67,4,FALSE))) -> 2.444401342 | AU11: =AT11*(1+IF(OR(ISBLANK(VLOOKUP(DATE(YEAR(AU8),MONTH(AU8),1),CPI_Con_F!$D$18:$G$67,4,FALSE)),ISERROR(VLOOKUP(DATE(YEAR(AU8),MONTH(AU8),1),CPI_Con_F!$D$18:$G$67,4,FALSE))),General!$H$24,VLOOKUP(DATE(YEAR(AU8),MONTH(AU8),1),CPI_Con_F!$D$18:$G$67,4,FALSE))) -> 2.505511375 | AV11: =AU11*(1+IF(OR(ISBLANK(VLOOKUP(DATE(YEAR(AV8),MONTH(AV8),1),CPI_Con_F!$D$18:$G$67,4,FALSE)),ISERROR(VLOOKUP(DATE(YEAR(AV8),MONTH(AV8),1),CPI_Con_F!$D$18:$G$67,4,FALSE))),General!$H$24,VLOOKUP(DATE(YEAR(AV8),MONTH(AV8),1),CPI_Con_F!$D$18:$G$67,4,FALSE))) -> 2.56814916 | AW11: =AV11*(1+IF(OR(ISBLANK(VLOOKUP(DATE(YEAR(AW8),MONTH(AW8),1),CPI_Con_F!$D$18:$G$67,4,FALSE)),ISERROR(VLOOKUP(DATE(YEAR(AW8),MONTH(AW8),1),CPI_Con_F!$D$18:$G$67,4,FALSE))),General!$H$24,VLOOKUP(DATE(YEAR(AW8),MONTH(AW8),1),CPI_Con_F!$D$18:$G$67,4,FALSE))) -> 2.632352889 | AX11: =AW11*(1+IF(OR(ISBLANK(VLOOKUP(DATE(YEAR(AX8),MONTH(AX8),1),CPI_Con_F!$D$18:$G$67,4,FALSE)),ISERROR(VLOOKUP(DATE(YEAR(AX8),MONTH(AX8),1),CPI_Con_F!$D$18:$G$67,4,FALSE))),General!$H$24,VLOOKUP(DATE(YEAR(AX8),MONTH(AX8),1),CPI_Con_F!$D$18:$G$67,4,FALSE))) -> 2.698161711 | AY11: =AX11*(1+IF(OR(ISBLANK(VLOOKUP(DATE(YEAR(AY8),MONTH(AY8),1),CPI_Con_F!$D$18:$G$67,4,FALSE)),ISERROR(VLOOKUP(DATE(YEAR(AY8),MONTH(AY8),1),CPI_Con_F!$D$18:$G$67,4,FALSE))),General!$H$24,VLOOKUP(DATE(YEAR(AY8),MONTH(AY8),1),CPI_Con_F!$D$18:$G$67,4,FALSE))) -> 2.765615754 | AZ11: =AY11*(1+IF(OR(ISBLANK(VLOOKUP(DATE(YEAR(AZ8),MONTH(AZ8),1),CPI_Con_F!$D$18:$G$67,4,FALSE)),ISERROR(VLOOKUP(DATE(YEAR(AZ8),MONTH(AZ8),1),CPI_Con_F!$D$18:$G$67,4,FALSE))),General!$H$24,VLOOKUP(DATE(YEAR(AZ8),MONTH(AZ8),1),CPI_Con_F!$D$18:$G$67,4,FALSE))) -> 2.834756147 | BA11: =AZ11*(1+IF(OR(ISBLANK(VLOOKUP(DATE(YEAR(BA8),MONTH(BA8),1),CPI_Con_F!$D$18:$G$67,4,FALSE)),ISERROR(VLOOKUP(DATE(YEAR(BA8),MONTH(BA8),1),CPI_Con_F!$D$18:$G$67,4,FALSE))),General!$H$24,VLOOKUP(DATE(YEAR(BA8),MONTH(BA8),1),CPI_Con_F!$D$18:$G$67,4,FALSE))) -> 2.905625051 | BB11: =BA11*(1+IF(OR(ISBLANK(VLOOKUP(DATE(YEAR(BB8),MONTH(BB8),1),CPI_Con_F!$D$18:$G$67,4,FALSE)),ISERROR(VLOOKUP(DATE(YEAR(BB8),MONTH(BB8),1),CPI_Con_F!$D$18:$G$67,4,FALSE))),General!$H$24,VLOOKUP(DATE(YEAR(BB8),MONTH(BB8),1),CPI_Con_F!$D$18:$G$67,4,FALSE))) -> 2.978265677 | BC11: =BB11*(1+IF(OR(ISBLANK(VLOOKUP(DATE(YEAR(BC8),MONTH(BC8),1),CPI_Con_F!$D$18:$G$67,4,FALSE)),ISERROR(VLOOKUP(DATE(YEAR(BC8),MONTH(BC8),1),CPI_Con_F!$D$18:$G$67,4,FALSE))),General!$H$24,VLOOKUP(DATE(YEAR(BC8),MONTH(BC8),1),CPI_Con_F!$D$18:$G$67,4,FALSE))) -> 3.052722319 | BD11: =BC11*(1+IF(OR(ISBLANK(VLOOKUP(DATE(YEAR(BD8),MONTH(BD8),1),CPI_Con_F!$D$18:$G$67,4,FALSE)),ISERROR(VLOOKUP(DATE(YEAR(BD8),MONTH(BD8),1),CPI_Con_F!$D$18:$G$67,4,FALSE))),General!$H$24,VLOOKUP(DATE(YEAR(BD8),MONTH(BD8),1),CPI_Con_F!$D$18:$G$67,4,FALSE))) -> 3.129040377 | BE11: =BD11*(1+IF(OR(ISBLANK(VLOOKUP(DATE(YEAR(BE8),MONTH(BE8),1),CPI_Con_F!$D$18:$G$67,4,FALSE)),ISERROR(VLOOKUP(DATE(YEAR(BE8),MONTH(BE8),1),CPI_Con_F!$D$18:$G$67,4,FALSE))),General!$H$24,VLOOKUP(DATE(YEAR(BE8),MONTH(BE8),1),CPI_Con_F!$D$18:$G$67,4,FALSE))) -> 3.207266387 | BF11: =BE11*(1+IF(OR(ISBLANK(VLOOKUP(DATE(YEAR(BF8),MONTH(BF8),1),CPI_Con_F!$D$18:$G$67,4,FALSE)),ISERROR(VLOOKUP(DATE(YEAR(BF8),MONTH(BF8),1),CPI_Con_F!$D$18:$G$67,4,FALSE))),General!$H$24,VLOOKUP(DATE(YEAR(BF8),MONTH(BF8),1),CPI_Con_F!$D$18:$G$67,4,FALSE))) -> 3.287448046 | BG11: =BF11*(1+IF(OR(ISBLANK(VLOOKUP(DATE(YEAR(BG8),MONTH(BG8),1),CPI_Con_F!$D$18:$G$67,4,FALSE)),ISERROR(VLOOKUP(DATE(YEAR(BG8),MONTH(BG8),1),CPI_Con_F!$D$18:$G$67,4,FALSE))),General!$H$24,VLOOKUP(DATE(YEAR(BG8),MONTH(BG8),1),CPI_Con_F!$D$18:$G$67,4,FALSE))) -> 3.369634248
B12: CPI Index (lagged) | J12: =IF(J9=1,1,I11) -> 1 | K12: 1 | L12: 1.03 | M12: 1.05575 | N12: 1.08214375 | O12: 1.109197344 | P12: 1.136927277 | Q12: 1.165350459 | R12: 1.194484221 | S12: 1.224346326 | T12: 1.254954984 | U12: 1.286328859 | V12: 1.318487081 | W12: 1.351449258 | X12: 1.385235489 | Y12: 1.419866376 | Z12: 1.455363036 | AA12: 1.491747111 | AB12: 1.529040789 | AC12: 1.567266809 | AD12: 1.606448479 | AE12: 1.646609691 | AF12: 1.687774933 | AG12: 1.729969307 | AH12: 1.77321854 | AI12: 1.817549003 | AJ12: 1.862987728 | AK12: 1.909562421 | AL12: 1.957301482 | AM12: 2.006234019 | AN12: 2.056389869 | AO12: 2.107799616 | AP12: 2.160494606 | AQ12: 2.214506972 | AR12: 2.269869646 | AS12: 2.326616387 | AT12: 2.384781797 | AU12: 2.444401342 | AV12: 2.505511375 | AW12: 2.56814916 | AX12: 2.632352889 | AY12: 2.698161711 | AZ12: 2.765615754 | BA12: 2.834756147 | BB12: 2.905625051 | BC12: 2.978265677 | BD12: 3.052722319 | BE12: 3.129040377 | BF12: 3.207266387 | BG12: 3.287448046
B13: Discount Index (pre tax) | J13: =(1+General!J32)^(J$9-1) -> 1 | K13: =(1+General!K32)^(K$9-1) -> 1.0556 | L13: =(1+General!L32)^(L$9-1) -> 1.11429136 | M13: =(1+General!M32)^(M$9-1) -> 1.17624596 | N13: =(1+General!N32)^(N$9-1) -> 1.241645235 | O13: =(1+General!O32)^(O$9-1) -> 1.31068071 | P13: =(1+General!P32)^(P$9-1) -> 1.383554558 | Q13: =(1+General!Q32)^(Q$9-1) -> 1.460480191 | R13: =(1+General!R32)^(R$9-1) -> 1.54168289 | S13: =(1+General!S32)^(S$9-1) -> 1.627400458 | T13: =(1+General!T32)^(T$9-1) -> 1.717883924 | U13: =(1+General!U32)^(U$9-1) -> 1.81339827 | V13: =(1+General!V32)^(V$9-1) -> 1.914223214 | W13: =(1+General!W32)^(W$9-1) -> 2.020654024 | X13: =(1+General!X32)^(X$9-1) -> 2.133002388 | Y13: =(1+General!Y32)^(Y$9-1) -> 2.251597321 | Z13: =(1+General!Z32)^(Z$9-1) -> 2.376786132 | AA13: =(1+General!AA32)^(AA$9-1) -> 2.508935441 | AB13: =(1+General!AB32)^(AB$9-1) -> 2.648432251 | AC13: =(1+General!AC32)^(AC$9-1) -> 2.795685084 | AD13: =(1+General!AD32)^(AD$9-1) -> 2.951125175 | AE13: =(1+General!AE32)^(AE$9-1) -> 3.115207735 | AF13: =(1+General!AF32)^(AF$9-1) -> 3.288413285 | AG13: =(1+General!AG32)^(AG$9-1) -> 3.471249064 | AH13: =(1+General!AH32)^(AH$9-1) -> 3.664250512 | AI13: =(1+General!AI32)^(AI$9-1) -> 3.86798284 | AJ13: =(1+General!AJ32)^(AJ$9-1) -> 4.083042686 | AK13: =(1+General!AK32)^(AK$9-1) -> 4.310059859 | AL13: =(1+General!AL32)^(AL$9-1) -> 4.549699187 | AM13: =(1+General!AM32)^(AM$9-1) -> 4.802662462 | AN13: =(1+General!AN32)^(AN$9-1) -> 5.069690495 | AO13: =(1+General!AO32)^(AO$9-1) -> 5.351565287 | AP13: =(1+General!AP32)^(AP$9-1) -> 5.649112317 | AQ13: =(1+General!AQ32)^(AQ$9-1) -> 5.963202961 | AR13: =(1+General!AR32)^(AR$9-1) -> 6.294757046 | AS13: =(1+General!AS32)^(AS$9-1) -> 6.644745538 | AT13: =(1+General!AT32)^(AT$9-1) -> 7.01419339 | AU13: =(1+General!AU32)^(AU$9-1) -> 7.404182542 | AV13: =(1+General!AV32)^(AV$9-1) -> 7.815855092 | AW13: =(1+General!AW32)^(AW$9-1) -> 8.250416635 | AX13: =(1+General!AX32)^(AX$9-1) -> 8.709139799 | AY13: =(1+General!AY32)^(AY$9-1) -> 9.193367972 | AZ13: =(1+General!AZ32)^(AZ$9-1) -> 9.704519232 | BA13: =(1+General!BA32)^(BA$9-1) -> 10.2440905 | BB13: =(1+General!BB32)^(BB$9-1) -> 10.81366193 | BC13: =(1+General!BC32)^(BC$9-1) -> 11.41490154 | BD13: =(1+General!BD32)^(BD$9-1) -> 12.04957006 | BE13: =(1+General!BE32)^(BE$9-1) -> 12.71952616 | BF13: =(1+General!BF32)^(BF$9-1) -> 13.42673181 | BG13: =(1+General!BG32)^(BG$9-1) -> 14.1732581
J16: ="FY "&RIGHT(J10,2) -> FY 24 | K16: FY 25 | L16: FY 26 | M16: FY 27 | N16: FY 28 | O16: FY 29 | P16: FY 30 | Q16: FY 31 | R16: FY 32 | S16: FY 33 | T16: FY 34 | U16: FY 35 | V16: FY 36 | W16: FY 37 | X16: FY 38 | Y16: FY 39 | Z16: FY 40 | AA16: FY 41 | AB16: FY 42 | AC16: FY 43 | AD16: FY 44 | AE16: FY 45 | AF16: FY 46 | AG16: FY 47 | AH16: FY 48 | AI16: FY 49 | AJ16: FY 50 | AK16: FY 51 | AL16: FY 52 | AM16: FY 53 | AN16: FY 54 | AO16: FY 55 | AP16: FY 56 | AQ16: FY 57 | AR16: FY 58 | AS16: FY 59 | AT16: FY 60 | AU16: FY 61 | AV16: FY 62 | AW16: FY 63 | AX16: FY 64 | AY16: FY 65 | AZ16: FY 66 | BA16: FY 67 | BB16: FY 68 | BC16: FY 69 | BD16: FY 70 | BE16: FY 71 | BF16: FY 72 | BG16: FY 73
B17: Summary | J17: =J9 -> 1 | K17: 2 | L17: 3 | M17: 4 | N17: 5 | O17: 6 | P17: 7 | Q17: 8 | R17: 9 | S17: 10 | T17: 11 | U17: 12 | V17: 13 | W17: 14 | X17: 15 | Y17: 16 | Z17: 17 | AA17: 18 | AB17: 19 | AC17: 20 | AD17: 21 | AE17: 22 | AF17: 23 | AG17: 24 | AH17: 25 | AI17: 26 | AJ17: 27 | AK17: 28 | AL17: 29 | AM17: 30 | AN17: 31 | AO17: 32 | AP17: 33 | AQ17: 34 | AR17: 35 | AS17: 36 | AT17: 37 | AU17: 38 | AV17: 39 | AW17: 40 | AX17: 41 | AY17: 42 | AZ17: 43 | BA17: 44 | BB17: 45 | BC17: 46 | BD17: 47 | BE17: 48 | BF17: 49 | BG17: 50
A19: To determine the highest value project | E19: Present Value Cost
F20: Capital Expenditure | H20: =SUM(J20:BG20) -> -176.1047359 | J20: -0.996 | K20: 0 | L20: -29.25387216 | M20: -30.23848922 | N20: -26.23974438 | O20: -24.84153701 | P20: -24.27303597 | Q20: -23.74115594 | R20: -14.69279547 | S20: -1.45745622 | T20: -0.3706494813 | U20: 0 | V20: 0 | W20: 0 | X20: 0 | Y20: 0 | Z20: 0 | AA20: 0 | AB20: 0 | AC20: 0 | AD20: 0 | AE20: 0 | AF20: 0 | AG20: 0 | AH20: 0 | AI20: 0 | AJ20: 0 | AK20: 0 | AL20: 0 | AM20: 0 | AN20: 0 | AO20: 0 | AP20: 0 | AQ20: 0 | AR20: 0 | AS20: 0 | AT20: 0 | AU20: 0 | AV20: 0 | AW20: 0 | AX20: 0 | AY20: 0 | AZ20: 0 | BA20: 0 | BB20: 0 | BC20: 0 | BD20: 0 | BE20: 0 | BF20: 0 | BG20: 0
F21: Operating Expenditure | H21: =SUM(J21:BG21) -> -11.36367093 | J21: 0 | K21: -0.009757483895 | L21: -0.009474631482 | M21: -0.2943993109 | N21: -0.5806636655 | O21: -0.8187610297 | P21: -1.03624082 | Q21: -1.241928754 | R21: -1.436456822 | S21: -1.537485218 | T21: -1.507068279 | U21: -1.466980052 | V21: -1.424454863 | W21: 0 | X21: 0 | Y21: 0 | Z21: 0 | AA21: 0 | AB21: 0 | AC21: 0 | AD21: 0 | AE21: 0 | AF21: 0 | AG21: 0 | AH21: 0 | AI21: 0 | AJ21: 0 | AK21: 0 | AL21: 0 | AM21: 0 | AN21: 0 | AO21: 0 | AP21: 0 | AQ21: 0 | AR21: 0 | AS21: 0 | AT21: 0 | AU21: 0 | AV21: 0 | AW21: 0 | AX21: 0 | AY21: 0 | AZ21: 0 | BA21: 0 | BB21: 0 | BC21: 0 | BD21: 0 | BE21: 0 | BF21: 0 | BG21: 0
F22: Net Benefits | H22: =SUM(J22:BG22) -> 3716.068629 | J22: 0 | K22: 28.32666546 | L22: 27.49308163 | M22: 84.82312962 | N22: 90.30702776 | O22: 396.7160894 | P22: 439.5207811 | Q22: 445.3999478 | R22: 447.1342132 | S22: 441.3111623 | T22: 435.5620149 | U22: 440.9870849 | V22: 438.4874314 | W22: 0 | X22: 0 | Y22: 0 | Z22: 0 | AA22: 0 | AB22: 0 | AC22: 0 | AD22: 0 | AE22: 0 | AF22: 0 | AG22: 0 | AH22: 0 | AI22: 0 | AJ22: 0 | AK22: 0 | AL22: 0 | AM22: 0 | AN22: 0 | AO22: 0 | AP22: 0 | AQ22: 0 | AR22: 0 | AS22: 0 | AT22: 0 | AU22: 0 | AV22: 0 | AW22: 0 | AX22: 0 | AY22: 0 | AZ22: 0 | BA22: 0 | BB22: 0 | BC22: 0 | BD22: 0 | BE22: 0 | BF22: 0 | BG22: 0
E23: Total Present Value | H23: =SUM(J23:BG23) -> 3528.600223 | J23: =SUM(J20:J22) -> -0.996 | K23: =SUM(K20:K22) -> 28.31690798 | L23: -1.770265168 | M23: =SUM(M20:M22) -> 54.29024109 | N23: 63.48661971 | O23: 371.0557913 | P23: 414.2115044 | Q23: 420.4168631 | R23: 431.0049609 | S23: 438.3162208 | T23: 433.6842971 | U23: 439.5201048 | V23: 437.0629766 | W23: 0 | X23: 0 | Y23: 0 | Z23: 0 | AA23: 0 | AB23: 0 | AC23: 0 | AD23: 0 | AE23: 0 | AF23: 0 | AG23: 0 | AH23: 0 | AI23: 0 | AJ23: 0 | AK23: 0 | AL23: 0 | AM23: 0 | AN23: 0 | AO23: 0 | AP23: 0 | AQ23: 0 | AR23: 0 | AS23: 0 | AT23: 0 | AU23: 0 | AV23: 0 | AW23: 0 | AX23: 0 | AY23: 0 | AZ23: 0 | BA23: 0 | BB23: 0 | BC23: 0 | BD23: 0 | BE23: 0 | BF23: 0 | BG23: 0
A25: To determine the capex & opex need for the EDPR period | E25: Undiscounted
F26: Capital Expenditure | H26: =SUM(J26:BG26) -> -148.725 | J26: 0 | K26: 0 | L26: 0 | M26: -32.868 | N26: -29.373 | O26: -28.638 | P26: -28.818 | Q26: -29.028 | R26: 0 | S26: 0 | T26: 0 | U26: 0 | V26: 0 | W26: 0 | X26: 0 | Y26: 0 | Z26: 0 | AA26: 0 | AB26: 0 | AC26: 0 | AD26: 0 | AE26: 0 | AF26: 0 | AG26: 0 | AH26: 0 | AI26: 0 | AJ26: 0 | AK26: 0 | AL26: 0 | AM26: 0 | AN26: 0 | AO26: 0 | AP26: 0 | AQ26: 0 | AR26: 0 | AS26: 0 | AT26: 0 | AU26: 0 | AV26: 0 | AW26: 0 | AX26: 0 | AY26: 0 | AZ26: 0 | BA26: 0 | BB26: 0 | BC26: 0 | BD26: 0 | BE26: 0 | BF26: 0 | BG26: 0
F27: Operating Expenditure | H27: =SUM(J27:BG27) -> -4.66265 | J27: 0 | K27: 0 | L27: 0 | M27: -0.32 | N27: -0.65 | O27: -0.94389 | P27: -1.23027 | Q27: -1.51849 | R27: 0 | S27: 0 | T27: 0 | U27: 0 | V27: 0 | W27: 0 | X27: 0 | Y27: 0 | Z27: 0 | AA27: 0 | AB27: 0 | AC27: 0 | AD27: 0 | AE27: 0 | AF27: 0 | AG27: 0 | AH27: 0 | AI27: 0 | AJ27: 0 | AK27: 0 | AL27: 0 | AM27: 0 | AN27: 0 | AO27: 0 | AP27: 0 | AQ27: 0 | AR27: 0 | AS27: 0 | AT27: 0 | AU27: 0 | AV27: 0 | AW27: 0 | AX27: 0 | AY27: 0 | AZ27: 0 | BA27: 0 | BB27: 0 | BC27: 0 | BD27: 0 | BE27: 0 | BF27: 0 | BG27: 0
F28: Net Benefits | H28: =SUM(J28:BG28) -> 1717.037644 | J28: 0 | K28: 0 | L28: 0 | M28: 92.19926973 | N28: 101.0904789 | O28: 457.3451056 | P28: 521.8181149 | Q28: 544.5846747 | R28: 0 | S28: 0 | T28: 0 | U28: 0 | V28: 0 | W28: 0 | X28: 0 | Y28: 0 | Z28: 0 | AA28: 0 | AB28: 0 | AC28: 0 | AD28: 0 | AE28: 0 | AF28: 0 | AG28: 0 | AH28: 0 | AI28: 0 | AJ28: 0 | AK28: 0 | AL28: 0 | AM28: 0 | AN28: 0 | AO28: 0 | AP28: 0 | AQ28: 0 | AR28: 0 | AS28: 0 | AT28: 0 | AU28: 0 | AV28: 0 | AW28: 0 | AX28: 0 | AY28: 0 | AZ28: 0 | BA28: 0 | BB28: 0 | BC28: 0 | BD28: 0 | BE28: 0 | BF28: 0 | BG28: 0
E29: Undiscounted Total Value | H29: =SUM(J29:BG29) -> 1563.649994 | J29: =SUM(J26:J28) -> 0 | K29: =SUM(K26:K28) -> 0 | L29: 0 | M29: 59.01126973 | N29: 71.06747892 | O29: 427.7632156 | P29: 491.7698449 | Q29: 514.0381847 | R29: 0 | S29: 0 | T29: 0 | U29: 0 | V29: 0 | W29: 0 | X29: 0 | Y29: 0 | Z29: 0 | AA29: 0 | AB29: 0 | AC29: 0 | AD29: 0 | AE29: 0 | AF29: 0 | AG29: 0 | AH29: 0 | AI29: 0 | AJ29: 0 | AK29: 0 | AL29: 0 | AM29: 0 | AN29: 0 | AO29: 0 | AP29: 0 | AQ29: 0 | AR29: 0 | AS29: 0 | AT29: 0 | AU29: 0 | AV29: 0 | AW29: 0 | AX29: 0 | AY29: 0 | AZ29: 0 | BA29: 0 | BB29: 0 | BC29: 0 | BD29: 0 | BE29: 0 | BF29: 0 | BG29: 0
B32: Capital Expenditure
F35: Category | G35: Description (optional) | I35: Dollar Basis
F36: Option 1 SWER | G36: =General!G10 -> Economic Approach to Electrification - network projects | U36: =Option2_Analysis!U36 -> 0 | V36: =Option2_Analysis!V36 -> 0
F37: Option 1 DSS | G37: =General!G11 -> Economic Approach to Electrification - network and non-network projects | U37: =Option2_Analysis!U37 -> 0 | V37: =Option2_Analysis!V37 -> 0
F46: Total Direct Capex | J46: =SUM(J36:J45) -> 0 | K46: =SUM(K36:K45) -> 0 | L46: =SUM(L36:L45) -> 0 | M46: 0 | N46: 0 | O46: 0 | P46: 0 | Q46: =SUM(Q36:Q45) -> 0 | R46: 0 | S46: 0 | T46: 0 | U46: 0 | V46: 0 | W46: 0 | X46: 0 | Y46: 0 | Z46: 0 | AA46: 0 | AB46: 0 | AC46: 0 | AD46: 0 | AE46: 0 | AF46: 0 | AG46: 0 | AH46: 0 | AI46: 0 | AJ46: 0 | AK46: 0 | AL46: 0 | AM46: 0 | AN46: 0 | AO46: 0 | AP46: 0 | AQ46: 0 | AR46: 0 | AS46: 0 | AT46: 0 | AU46: 0 | AV46: 0 | AW46: 0 | AX46: 0 | AY46: 0 | AZ46: 0 | BA46: 0 | BB46: 0 | BC46: 0 | BD46: 0 | BE46: 0 | BF46: 0 | BG46: 0
G49: Dollar Basis for Conversion | H49: Conversion Factor
F50: =F36 -> Option 1 SWER | G50: 2024-06-30 | H50: 1 | U50: =U36*$H50 -> 0 | V50: 0 | W50: 0 | X50: 0 | Y50: 0 | Z50: 0 | AA50: 0 | AB50: 0 | AC50: 0 | AD50: 0 | AE50: 0 | AF50: 0 | AG50: 0 | AH50: 0 | AI50: 0 | AJ50: 0 | AK50: 0 | AL50: 0 | AM50: 0 | AN50: 0 | AO50: 0 | AP50: 0 | AQ50: 0 | AR50: 0 | AS50: 0 | AT50: 0 | AU50: 0 | AV50: 0 | AW50: 0 | AX50: 0 | AY50: 0 | AZ50: 0 | BA50: 0 | BB50: 0 | BC50: 0 | BD50: 0 | BE50: 0 | BF50: 0 | BG50: 0
F51: =F37 -> Option 1 DSS | G51: 2024-06-30 | H51: 1 | U51: 0 | V51: 0 | W51: 0 | X51: 0 | Y51: 0 | Z51: 0 | AA51: 0 | AB51: 0 | AC51: 0 | AD51: 0 | AE51: 0 | AF51: 0 | AG51: 0 | AH51: 0 | AI51: 0 | AJ51: 0 | AK51: 0 | AL51: 0 | AM51: 0 | AN51: 0 | AO51: 0 | AP51: 0 | AQ51: 0 | AR51: 0 | AS51: 0 | AT51: 0 | AU51: 0 | AV51: 0 | AW51: 0 | AX51: 0 | AY51: 0 | AZ51: 0 | BA51: 0 | BB51: 0 | BC51: 0 | BD51: 0 | BE51: 0 | BF51: 0 | BG51: 0
J52: 0 | K52: 0 | L52: 0 | M52: 0 | N52: 0 | O52: 0 | P52: 0 | Q52: 0 | R52: 0 | S52: 0 | T52: 0 | U52: 0 | V52: 0 | W52: 0 | X52: 0 | Y52: 0 | Z52: 0 | AA52: 0 | AB52: 0 | AC52: 0 | AD52: 0 | AE52: 0 | AF52: 0 | AG52: 0 | AH52: 0 | AI52: 0 | AJ52: 0 | AK52: 0 | AL52: 0 | AM52: 0 | AN52: 0 | AO52: 0 | AP52: 0 | AQ52: 0 | AR52: 0 | AS52: 0 | AT52: 0 | AU52: 0 | AV52: 0 | AW52: 0 | AX52: 0 | AY52: 0 | AZ52: 0 | BA52: 0 | BB52: 0 | BC52: 0 | BD52: 0 | BE52: 0 | BF52: 0 | BG52: 0
J53: 0 | K53: 0 | L53: 0 | M53: 0 | N53: 0 | O53: 0 | P53: 0 | Q53: 0 | R53: 0 | S53: 0 | T53: 0 | U53: 0 | V53: 0 | W53: 0 | X53: 0 | Y53: 0 | Z53: 0 | AA53: 0 | AB53: 0 | AC53: 0 | AD53: 0 | AE53: 0 | AF53: 0 | AG53: 0 | AH53: 0 | AI53: 0 | AJ53: 0 | AK53: 0 | AL53: 0 | AM53: 0 | AN53: 0 | AO53: 0 | AP53: 0 | AQ53: 0 | AR53: 0 | AS53: 0 | AT53: 0 | AU53: 0 | AV53: 0 | AW53: 0 | AX53: 0 | AY53: 0 | AZ53: 0 | BA53: 0 | BB53: 0 | BC53: 0 | BD53: 0 | BE53: 0 | BF53: 0 | BG53: 0
J54: 0 | K54: 0 | L54: 0 | M54: 0 | N54: 0 | O54: 0 | P54: 0 | Q54: 0 | R54: 0 | S54: 0 | T54: 0 | U54: 0 | V54: 0 | W54: 0 | X54: 0 | Y54: 0 | Z54: 0 | AA54: 0 | AB54: 0 | AC54: 0 | AD54: 0 | AE54: 0 | AF54: 0 | AG54: 0 | AH54: 0 | AI54: 0 | AJ54: 0 | AK54: 0 | AL54: 0 | AM54: 0 | AN54: 0 | AO54: 0 | AP54: 0 | AQ54: 0 | AR54: 0 | AS54: 0 | AT54: 0 | AU54: 0 | AV54: 0 | AW54: 0 | AX54: 0 | AY54: 0 | AZ54: 0 | BA54: 0 | BB54: 0 | BC54: 0 | BD54: 0 | BE54: 0 | BF54: 0 | BG54: 0
J55: 0 | K55: 0 | L55: 0 | M55: 0 | N55: 0 | O55: =O41*$H55 -> 0 | P55: 0 | Q55: 0 | R55: 0 | S55: 0 | T55: 0 | U55: 0 | V55: 0 | W55: 0 | X55: 0 | Y55: 0 | Z55: 0 | AA55: 0 | AB55: 0 | AC55: 0 | AD55: 0 | AE55: 0 | AF55: 0 | AG55: 0 | AH55: 0 | AI55: 0 | AJ55: 0 | AK55: 0 | AL55: 0 | AM55: 0 | AN55: 0 | AO55: 0 | AP55: 0 | AQ55: 0 | AR55: 0 | AS55: 0 | AT55: 0 | AU55: 0 | AV55: 0 | AW55: 0 | AX55: 0 | AY55: 0 | AZ55: 0 | BA55: 0 | BB55: 0 | BC55: 0 | BD55: 0 | BE55: 0 | BF55: 0 | BG55: 0
J56: =J42*$H56 -> 0 | K56: 0 | L56: 0 | M56: 0 | N56: 0 | O56: 0 | P56: 0 | Q56: 0 | R56: 0 | S56: 0 | T56: 0 | U56: 0 | V56: 0 | W56: 0 | X56: 0 | Y56: 0 | Z56: 0 | AA56: 0 | AB56: 0 | AC56: 0 | AD56: 0 | AE56: 0 | AF56: 0 | AG56: 0 | AH56: 0 | AI56: 0 | AJ56: 0 | AK56: 0 | AL56: 0 | AM56: 0 | AN56: 0 | AO56: 0 | AP56: 0 | AQ56: 0 | AR56: 0 | AS56: 0 | AT56: 0 | AU56: 0 | AV56: 0 | AW56: 0 | AX56: 0 | AY56: 0 | AZ56: 0 | BA56: 0 | BB56: 0 | BC56: 0 | BD56: 0 | BE56: 0 | BF56: 0 | BG56: 0
J57: 0 | K57: 0 | L57: 0 | M57: 0 | N57: 0 | O57: 0 | P57: 0 | Q57: 0 | R57: 0 | S57: 0 | T57: 0 | U57: 0 | V57: 0 | W57: 0 | X57: 0 | Y57: 0 | Z57: 0 | AA57: 0 | AB57: 0 | AC57: 0 | AD57: 0 | AE57: 0 | AF57: 0 | AG57: 0 | AH57: 0 | AI57: 0 | AJ57: 0 | AK57: 0 | AL57: 0 | AM57: 0 | AN57: 0 | AO57: 0 | AP57: 0 | AQ57: 0 | AR57: 0 | AS57: 0 | AT57: 0 | AU57: 0 | AV57: 0 | AW57: 0 | AX57: 0 | AY57: 0 | AZ57: 0 | BA57: 0 | BB57: 0 | BC57: 0 | BD57: 0 | BE57: 0 | BF57: 0 | BG57: 0
J58: 0 | K58: 0 | L58: 0 | M58: 0 | N58: 0 | O58: 0 | P58: 0 | Q58: 0 | R58: 0 | S58: 0 | T58: 0 | U58: 0 | V58: 0 | W58: 0 | X58: 0 | Y58: 0 | Z58: 0 | AA58: 0 | AB58: 0 | AC58: 0 | AD58: 0 | AE58: 0 | AF58: 0 | AG58: 0 | AH58: 0 | AI58: 0 | AJ58: 0 | AK58: 0 | AL58: 0 | AM58: 0 | AN58: 0 | AO58: 0 | AP58: 0 | AQ58: 0 | AR58: 0 | AS58: 0 | AT58: 0 | AU58: 0 | AV58: 0 | AW58: 0 | AX58: 0 | AY58: 0 | AZ58: 0 | BA58: 0 | BB58: 0 | BC58: 0 | BD58: 0 | BE58: 0 | BF58: 0 | BG58: 0
J59: 0 | K59: 0 | L59: 0 | M59: 0 | N59: 0 | O59: 0 | P59: 0 | Q59: 0 | R59: 0 | S59: 0 | T59: 0 | U59: 0 | V59: 0 | W59: 0 | X59: 0 | Y59: 0 | Z59: 0 | AA59: 0 | AB59: 0 | AC59: 0 | AD59: 0 | AE59: 0 | AF59: 0 | AG59: 0 | AH59: 0 | AI59: 0 | AJ59: 0 | AK59: 0 | AL59: 0 | AM59: 0 | AN59: 0 | AO59: 0 | AP59: 0 | AQ59: 0 | AR59: 0 | AS59: 0 | AT59: 0 | AU59: 0 | AV59: 0 | AW59: 0 | AX59: 0 | AY59: 0 | AZ59: 0 | BA59: 0 | BB59: 0 | BC59: 0 | BD59: 0 | BE59: 0 | BF59: 0 | BG59: 0
F60: Total Direct Capex | J60: =SUM(J50:J59) -> 0 | K60: =SUM(K50:K59) -> 0 | L60: 0 | M60: 0 | N60: 0 | O60: 0 | P60: 0 | Q60: 0 | R60: 0 | S60: 0 | T60: 0 | U60: 0 | V60: 0 | W60: 0 | X60: 0 | Y60: 0 | Z60: 0 | AA60: 0 | AB60: 0 | AC60: 0 | AD60: 0 | AE60: 0 | AF60: 0 | AG60: 0 | AH60: 0 | AI60: 0 | AJ60: 0 | AK60: 0 | AL60: 0 | AM60: 0 | AN60: 0 | AO60: 0 | AP60: 0 | AQ60: 0 | AR60: 0 | AS60: 0 | AT60: 0 | AU60: 0 | AV60: 0 | AW60: 0 | AX60: 0 | AY60: 0 | AZ60: 0 | BA60: 0 | BB60: 0 | BC60: 0 | BD60: 0 | BE60: 0 | BF60: 0 | BG60: 0
B62: Operating Expenditure (enter costs as positive numbers and savings as negative numbers)
F64: Category | G64: Description (optional) | I64: Dollar Basis
F65: =F36 -> Option 1 SWER | G65: =G36 -> Economic Approach to Electrification - network projects
F66: =F37 -> Option 1 DSS | G66: =G37 -> Economic Approach to Electrification - network and non-network projects
F75: Total Opex | J75: =SUM(J65:J74) -> 0 | K75: =SUM(K65:K74) -> 0 | L75: 0 | M75: 0 | N75: 0 | O75: 0 | P75: =SUM(P65:P74) -> 0 | Q75: 0 | R75: 0 | S75: 0 | T75: 0 | U75: 0 | V75: 0 | W75: 0 | X75: 0 | Y75: 0 | Z75: 0 | AA75: 0 | AB75: 0 | AC75: 0 | AD75: 0 | AE75: 0 | AF75: 0 | AG75: 0 | AH75: 0 | AI75: 0 | AJ75: 0 | AK75: 0 | AL75: 0 | AM75: 0 | AN75: 0 | AO75: 0 | AP75: 0 | AQ75: 0 | AR75: 0 | AS75: 0 | AT75: 0 | AU75: 0 | AV75: 0 | AW75: 0 | AX75: 0 | AY75: 0 | AZ75: 0 | BA75: 0 | BB75: 0 | BC75: 0 | BD75: 0 | BE75: 0 | BF75: 0 | BG75: 0
F78: Category | G78: Dollar Basis for Conversion | H78: Conversion Factor
F79: =F65 -> Option 1 SWER | G79: 2024-06-30 | H79: 1 | W79: =W65*$H79 -> 0 | X79: 0 | Y79: 0 | Z79: 0 | AA79: 0 | AB79: 0 | AC79: 0 | AD79: 0 | AE79: 0 | AF79: 0 | AG79: 0 | AH79: 0 | AI79: 0 | AJ79: 0 | AK79: 0 | AL79: 0 | AM79: 0 | AN79: 0 | AO79: 0 | AP79: 0 | AQ79: 0 | AR79: 0 | AS79: 0 | AT79: 0 | AU79: 0 | AV79: 0 | AW79: 0 | AX79: 0 | AY79: 0 | AZ79: 0 | BA79: 0 | BB79: 0 | BC79: 0 | BD79: 0 | BE79: 0 | BF79: 0 | BG79: 0
F80: =F66 -> Option 1 DSS | G80: 2024-06-30 | H80: 1 | W80: 0 | X80: 0 | Y80: 0 | Z80: 0 | AA80: 0 | AB80: 0 | AC80: 0 | AD80: 0 | AE80: 0 | AF80: 0 | AG80: 0 | AH80: 0 | AI80: 0 | AJ80: 0 | AK80: 0 | AL80: 0 | AM80: 0 | AN80: 0 | AO80: 0 | AP80: 0 | AQ80: 0 | AR80: 0 | AS80: 0 | AT80: 0 | AU80: 0 | AV80: 0 | AW80: 0 | AX80: 0 | AY80: 0 | AZ80: 0 | BA80: 0 | BB80: 0 | BC80: 0 | BD80: 0 | BE80: 0 | BF80: 0 | BG80: 0
J81: 0 | K81: 0 | L81: 0 | M81: 0 | N81: 0 | O81: 0 | P81: 0 | Q81: 0 | R81: 0 | S81: 0 | T81: 0 | U81: 0 | V81: 0 | W81: 0 | X81: 0 | Y81: 0 | Z81: 0 | AA81: 0 | AB81: 0 | AC81: 0 | AD81: 0 | AE81: 0 | AF81: 0 | AG81: 0 | AH81: 0 | AI81: 0 | AJ81: 0 | AK81: 0 | AL81: 0 | AM81: 0 | AN81: 0 | AO81: 0 | AP81: 0 | AQ81: 0 | AR81: 0 | AS81: 0 | AT81: 0 | AU81: 0 | AV81: 0 | AW81: 0 | AX81: 0 | AY81: 0 | AZ81: 0 | BA81: 0 | BB81: 0 | BC81: 0 | BD81: 0 | BE81: 0 | BF81: 0 | BG81: 0
J82: 0 | K82: 0 | L82: 0 | M82: 0 | N82: 0 | O82: 0 | P82: 0 | Q82: 0 | R82: 0 | S82: 0 | T82: 0 | U82: 0 | V82: 0 | W82: 0 | X82: 0 | Y82: 0 | Z82: 0 | AA82: 0 | AB82: 0 | AC82: 0 | AD82: 0 | AE82: 0 | AF82: 0 | AG82: 0 | AH82: 0 | AI82: 0 | AJ82: 0 | AK82: 0 | AL82: 0 | AM82: 0 | AN82: 0 | AO82: 0 | AP82: 0 | AQ82: 0 | AR82: 0 | AS82: 0 | AT82: 0 | AU82: 0 | AV82: 0 | AW82: 0 | AX82: 0 | AY82: 0 | AZ82: 0 | BA82: 0 | BB82: 0 | BC82: 0 | BD82: 0 | BE82: 0 | BF82: 0 | BG82: 0
J83: 0 | K83: 0 | L83: 0 | M83: 0 | N83: 0 | O83: 0 | P83: 0 | Q83: 0 | R83: 0 | S83: 0 | T83: 0 | U83: 0 | V83: 0 | W83: 0 | X83: 0 | Y83: 0 | Z83: 0 | AA83: 0 | AB83: 0 | AC83: 0 | AD83: 0 | AE83: 0 | AF83: 0 | AG83: 0 | AH83: 0 | AI83: 0 | AJ83: 0 | AK83: 0 | AL83: 0 | AM83: 0 | AN83: 0 | AO83: 0 | AP83: 0 | AQ83: 0 | AR83: 0 | AS83: 0 | AT83: 0 | AU83: 0 | AV83: 0 | AW83: 0 | AX83: 0 | AY83: 0 | AZ83: 0 | BA83: 0 | BB83: 0 | BC83: 0 | BD83: 0 | BE83: 0 | BF83: 0 | BG83: 0
J84: 0 | K84: 0 | L84: 0 | M84: 0 | N84: 0 | O84: =O70*$H84 -> 0 | P84: 0 | Q84: 0 | R84: 0 | S84: 0 | T84: 0 | U84: 0 | V84: 0 | W84: 0 | X84: 0 | Y84: 0 | Z84: 0 | AA84: 0 | AB84: 0 | AC84: 0 | AD84: 0 | AE84: 0 | AF84: 0 | AG84: 0 | AH84: 0 | AI84: 0 | AJ84: 0 | AK84: 0 | AL84: 0 | AM84: 0 | AN84: 0 | AO84: 0 | AP84: 0 | AQ84: 0 | AR84: 0 | AS84: 0 | AT84: 0 | AU84: 0 | AV84: 0 | AW84: 0 | AX84: 0 | AY84: 0 | AZ84: 0 | BA84: 0 | BB84: 0 | BC84: 0 | BD84: 0 | BE84: 0 | BF84: 0 | BG84: 0
J85: =J71*$H85 -> 0 | K85: 0 | L85: 0 | M85: 0 | N85: 0 | O85: 0 | P85: 0 | Q85: 0 | R85: 0 | S85: 0 | T85: 0 | U85: 0 | V85: 0 | W85: 0 | X85: 0 | Y85: 0 | Z85: 0 | AA85: 0 | AB85: 0 | AC85: 0 | AD85: 0 | AE85: 0 | AF85: 0 | AG85: 0 | AH85: 0 | AI85: 0 | AJ85: 0 | AK85: 0 | AL85: 0 | AM85: 0 | AN85: 0 | AO85: 0 | AP85: 0 | AQ85: 0 | AR85: 0 | AS85: 0 | AT85: 0 | AU85: 0 | AV85: 0 | AW85: 0 | AX85: 0 | AY85: 0 | AZ85: 0 | BA85: 0 | BB85: 0 | BC85: 0 | BD85: 0 | BE85: 0 | BF85: 0 | BG85: 0
J86: 0 | K86: 0 | L86: 0 | M86: 0 | N86: 0 | O86: 0 | P86: 0 | Q86: 0 | R86: 0 | S86: 0 | T86: 0 | U86: 0 | V86: 0 | W86: 0 | X86: 0 | Y86: 0 | Z86: 0 | AA86: 0 | AB86: 0 | AC86: 0 | AD86: 0 | AE86: 0 | AF86: 0 | AG86: 0 | AH86: 0 | AI86: 0 | AJ86: 0 | AK86: 0 | AL86: 0 | AM86: 0 | AN86: 0 | AO86: 0 | AP86: 0 | AQ86: 0 | AR86: 0 | AS86: 0 | AT86: 0 | AU86: 0 | AV86: 0 | AW86: 0 | AX86: 0 | AY86: 0 | AZ86: 0 | BA86: 0 | BB86: 0 | BC86: 0 | BD86: 0 | BE86: 0 | BF86: 0 | BG86: 0
J87: 0 | K87: 0 | L87: 0 | M87: 0 | N87: 0 | O87: 0 | P87: 0 | Q87: 0 | R87: 0 | S87: 0 | T87: 0 | U87: 0 | V87: 0 | W87: 0 | X87: 0 | Y87: 0 | Z87: 0 | AA87: 0 | AB87: 0 | AC87: 0 | AD87: 0 | AE87: 0 | AF87: 0 | AG87: 0 | AH87: 0 | AI87: 0 | AJ87: 0 | AK87: 0 | AL87: 0 | AM87: 0 | AN87: 0 | AO87: 0 | AP87: 0 | AQ87: 0 | AR87: 0 | AS87: 0 | AT87: 0 | AU87: 0 | AV87: 0 | AW87: 0 | AX87: 0 | AY87: 0 | AZ87: 0 | BA87: 0 | BB87: 0 | BC87: 0 | BD87: 0 | BE87: 0 | BF87: 0 | BG87: 0
J88: 0 | K88: 0 | L88: 0 | M88: 0 | N88: 0 | O88: 0 | P88: 0 | Q88: 0 | R88: 0 | S88: 0 | T88: 0 | U88: 0 | V88: 0 | W88: 0 | X88: 0 | Y88: 0 | Z88: 0 | AA88: 0 | AB88: 0 | AC88: 0 | AD88: 0 | AE88: 0 | AF88: 0 | AG88: 0 | AH88: 0 | AI88: 0 | AJ88: 0 | AK88: 0 | AL88: 0 | AM88: 0 | AN88: 0 | AO88: 0 | AP88: 0 | AQ88: 0 | AR88: 0 | AS88: 0 | AT88: 0 | AU88: 0 | AV88: 0 | AW88: 0 | AX88: 0 | AY88: 0 | AZ88: 0 | BA88: 0 | BB88: 0 | BC88: 0 | BD88: 0 | BE88: 0 | BF88: 0 | BG88: 0
F89: Total Opex | J89: =SUM(J79:J88) -> 0 | K89: =SUM(K79:K88) -> 0 | L89: 0 | M89: 0 | N89: 0 | O89: 0 | P89: =SUM(P79:P88) -> 0 | Q89: =SUM(Q79:Q88) -> 0 | R89: 0 | S89: 0 | T89: 0 | U89: 0 | V89: 0 | W89: 0 | X89: 0 | Y89: 0 | Z89: 0 | AA89: 0 | AB89: 0 | AC89: 0 | AD89: 0 | AE89: 0 | AF89: 0 | AG89: 0 | AH89: 0 | AI89: 0 | AJ89: 0 | AK89: 0 | AL89: 0 | AM89: 0 | AN89: 0 | AO89: 0 | AP89: 0 | AQ89: 0 | AR89: 0 | AS89: 0 | AT89: 0 | AU89: 0 | AV89: 0 | AW89: 0 | AX89: 0 | AY89: 0 | AZ89: 0 | BA89: 0 | BB89: 0 | BC89: 0 | BD89: 0 | BE89: 0 | BF89: 0 | BG89: 0
B91: Benefits
F93: Category | G93: Description (optional) | I93: Dollar basis
F94: =F65 -> Option 1 SWER | G94: Expected Energy at Risk | J94: =Option2_Analysis!J94 -> 0 | K94: =Option2_Analysis!K94 -> 29.03070686 | L94: =Option2_Analysis!L94 -> 29.01757359 | M94: =Option2_Analysis!M94 -> 92.19926973 | N94: =Option2_Analysis!N94 -> 101.0904789 | O94: =Option2_Analysis!O94 -> 102.8386746 | P94: =Option2_Analysis!P94 -> 104.4033999 | Q94: =Option2_Analysis!Q94 -> 106.2088787 | R94: =Option2_Analysis!R94 -> 108.2332928 | S94: =Option2_Analysis!S94 -> 110.0760101 | T94: =Option2_Analysis!T94 -> 112.2532863 | U94: =Option2_Analysis!U94 -> 114.5155085 | V94: =Option2_Analysis!V94 -> 116.9948376
F95: =F66 -> Option 1 DSS | G95: Expected Energy at Risk | J95: =Option2_Analysis!J95 -> 0 | K95: =Option2_Analysis!K95 -> 0 | L95: =Option2_Analysis!L95 -> 0 | M95: =Option2_Analysis!M95 -> 0 | N95: =Option2_Analysis!N95 -> 0 | O95: =Option2_Analysis!O95 -> 354.5064309 | P95: =Option2_Analysis!P95 -> 417.414715 | Q95: =Option2_Analysis!Q95 -> 438.375796 | R95: =Option2_Analysis!R95 -> 454.792994 | S95: =Option2_Analysis!S95 -> 462.2074555 | T95: =Option2_Analysis!T95 -> 469.4369851 | U95: =Option2_Analysis!U95 -> 492.0017859 | V95: =Option2_Analysis!V95 -> 504.0886515
J96: 0 | K96: 0 | L96: 0 | M96: 0 | N96: 0 | O96: 0 | P96: 0 | Q96: 0 | R96: 0 | S96: 0 | T96: 0 | U96: 0 | V96: 0 | W96: 0 | X96: 0 | Y96: 0 | Z96: 0 | AA96: 0 | AB96: 0 | AC96: 0 | AD96: 0 | AE96: 0 | AF96: 0 | AG96: 0 | AH96: 0 | AI96: 0 | AJ96: 0 | AK96: 0 | AL96: 0 | AM96: 0 | AN96: 0 | AO96: 0 | AP96: 0 | AQ96: 0 | AR96: 0 | AS96: 0 | AT96: 0 | AU96: 0 | AV96: 0 | AW96: 0 | AX96: 0 | AY96: 0 | AZ96: 0 | BA96: 0 | BB96: 0 | BC96: 0 | BD96: 0 | BE96: 0 | BF96: 0 | BG96: 0
J97: 0 | K97: 0 | L97: 0 | M97: 0 | N97: 0 | O97: 0 | P97: 0 | Q97: 0 | R97: 0 | S97: 0 | T97: 0 | U97: 0 | V97: 0 | W97: 0 | X97: 0 | Y97: 0 | Z97: 0 | AA97: 0 | AB97: 0 | AC97: 0 | AD97: 0 | AE97: 0 | AF97: 0 | AG97: 0 | AH97: 0 | AI97: 0 | AJ97: 0 | AK97: 0 | AL97: 0 | AM97: 0 | AN97: 0 | AO97: 0 | AP97: 0 | AQ97: 0 | AR97: 0 | AS97: 0 | AT97: 0 | AU97: 0 | AV97: 0 | AW97: 0 | AX97: 0 | AY97: 0 | AZ97: 0 | BA97: 0 | BB97: 0 | BC97: 0 | BD97: 0 | BE97: 0 | BF97: 0 | BG97: 0
J98: 0 | K98: 0 | L98: 0 | M98: 0 | N98: 0 | O98: 0 | P98: 0 | Q98: 0 | R98: 0 | S98: 0 | T98: 0 | U98: 0 | V98: 0 | W98: 0 | X98: 0 | Y98: 0 | Z98: 0 | AA98: 0 | AB98: 0 | AC98: 0 | AD98: 0 | AE98: 0 | AF98: 0 | AG98: 0 | AH98: 0 | AI98: 0 | AJ98: 0 | AK98: 0 | AL98: 0 | AM98: 0 | AN98: 0 | AO98: 0 | AP98: 0 | AQ98: 0 | AR98: 0 | AS98: 0 | AT98: 0 | AU98: 0 | AV98: 0 | AW98: 0 | AX98: 0 | AY98: 0 | AZ98: 0 | BA98: 0 | BB98: 0 | BC98: 0 | BD98: 0 | BE98: 0 | BF98: 0 | BG98: 0
J99: 0 | K99: 0 | L99: 0 | M99: 0 | N99: 0 | O99: 0 | P99: 0 | Q99: 0 | R99: 0 | S99: 0 | T99: 0 | U99: 0 | V99: 0 | W99: 0 | X99: 0 | Y99: 0 | Z99: 0 | AA99: 0 | AB99: 0 | AC99: 0 | AD99: 0 | AE99: 0 | AF99: 0 | AG99: 0 | AH99: 0 | AI99: 0 | AJ99: 0 | AK99: 0 | AL99: 0 | AM99: 0 | AN99: 0 | AO99: 0 | AP99: 0 | AQ99: 0 | AR99: 0 | AS99: 0 | AT99: 0 | AU99: 0 | AV99: 0 | AW99: 0 | AX99: 0 | AY99: 0 | AZ99: 0 | BA99: 0 | BB99: 0 | BC99: 0 | BD99: 0 | BE99: 0 | BF99: 0 | BG99: 0
J100: 0 | K100: 0 | L100: 0 | M100: 0 | N100: 0 | O100: 0 | P100: 0 | Q100: 0 | R100: 0 | S100: 0 | T100: 0 | U100: 0 | V100: 0 | W100: 0 | X100: 0 | Y100: 0 | Z100: 0 | AA100: 0 | AB100: 0 | AC100: 0 | AD100: 0 | AE100: 0 | AF100: 0 | AG100: 0 | AH100: 0 | AI100: 0 | AJ100: 0 | AK100: 0 | AL100: 0 | AM100: 0 | AN100: 0 | AO100: 0 | AP100: 0 | AQ100: 0 | AR100: 0 | AS100: 0 | AT100: 0 | AU100: 0 | AV100: 0 | AW100: 0 | AX100: 0 | AY100: 0 | AZ100: 0 | BA100: 0 | BB100: 0 | BC100: 0 | BD100: 0 | BE100: 0 | BF100: 0 | BG100: 0
J101: 0 | K101: 0 | L101: 0 | M101: 0 | N101: 0 | O101: 0 | P101: 0 | Q101: 0 | R101: 0 | S101: 0 | T101: 0 | U101: 0 | V101: 0 | W101: 0 | X101: 0 | Y101: 0 | Z101: 0 | AA101: 0 | AB101: 0 | AC101: 0 | AD101: 0 | AE101: 0 | AF101: 0 | AG101: 0 | AH101: 0 | AI101: 0 | AJ101: 0 | AK101: 0 | AL101: 0 | AM101: 0 | AN101: 0 | AO101: 0 | AP101: 0 | AQ101: 0 | AR101: 0 | AS101: 0 | AT101: 0 | AU101: 0 | AV101: 0 | AW101: 0 | AX101: 0 | AY101: 0 | AZ101: 0 | BA101: 0 | BB101: 0 | BC101: 0 | BD101: 0 | BE101: 0 | BF101: 0 | BG101: 0
J102: 0 | K102: 0 | L102: 0 | M102: 0 | N102: 0 | O102: 0 | P102: 0 | Q102: 0 | R102: 0 | S102: 0 | T102: 0 | U102: 0 | V102: 0 | W102: 0 | X102: 0 | Y102: 0 | Z102: 0 | AA102: 0 | AB102: 0 | AC102: 0 | AD102: 0 | AE102: 0 | AF102: 0 | AG102: 0 | AH102: 0 | AI102: 0 | AJ102: 0 | AK102: 0 | AL102: 0 | AM102: 0 | AN102: 0 | AO102: 0 | AP102: 0 | AQ102: 0 | AR102: 0 | AS102: 0 | AT102: 0 | AU102: 0 | AV102: 0 | AW102: 0 | AX102: 0 | AY102: 0 | AZ102: 0 | BA102: 0 | BB102: 0 | BC102: 0 | BD102: 0 | BE102: 0 | BF102: 0 | BG102: 0
J103: 0 | K103: 0 | L103: 0 | M103: 0 | N103: 0 | O103: 0 | P103: 0 | Q103: 0 | R103: 0 | S103: 0 | T103: 0 | U103: 0 | V103: 0 | W103: 0 | X103: 0 | Y103: 0 | Z103: 0 | AA103: 0 | AB103: 0 | AC103: 0 | AD103: 0 | AE103: 0 | AF103: 0 | AG103: 0 | AH103: 0 | AI103: 0 | AJ103: 0 | AK103: 0 | AL103: 0 | AM103: 0 | AN103: 0 | AO103: 0 | AP103: 0 | AQ103: 0 | AR103: 0 | AS103: 0 | AT103: 0 | AU103: 0 | AV103: 0 | AW103: 0 | AX103: 0 | AY103: 0 | AZ103: 0 | BA103: 0 | BB103: 0 | BC103: 0 | BD103: 0 | BE103: 0 | BF103: 0 | BG103: 0
J104: 0 | K104: 0 | L104: 0 | M104: 0 | N104: 0 | O104: 0 | P104: 0 | Q104: 0 | R104: 0 | S104: 0 | T104: 0 | U104: 0 | V104: 0 | W104: 0 | X104: 0 | Y104: 0 | Z104: 0 | AA104: 0 | AB104: 0 | AC104: 0 | AD104: 0 | AE104: 0 | AF104: 0 | AG104: 0 | AH104: 0 | AI104: 0 | AJ104: 0 | AK104: 0 | AL104: 0 | AM104: 0 | AN104: 0 | AO104: 0 | AP104: 0 | AQ104: 0 | AR104: 0 | AS104: 0 | AT104: 0 | AU104: 0 | AV104: 0 | AW104: 0 | AX104: 0 | AY104: 0 | AZ104: 0 | BA104: 0 | BB104: 0 | BC104: 0 | BD104: 0 | BE104: 0 | BF104: 0 | BG104: 0
J105: 0 | K105: 0 | L105: 0 | M105: 0 | N105: 0 | O105: 0 | P105: 0 | Q105: 0 | R105: 0 | S105: 0 | T105: 0 | U105: 0 | V105: 0 | W105: 0 | X105: 0 | Y105: 0 | Z105: 0 | AA105: 0 | AB105: 0 | AC105: 0 | AD105: 0 | AE105: 0 | AF105: 0 | AG105: 0 | AH105: 0 | AI105: 0 | AJ105: 0 | AK105: 0 | AL105: 0 | AM105: 0 | AN105: 0 | AO105: 0 | AP105: 0 | AQ105: 0 | AR105: 0 | AS105: 0 | AT105: 0 | AU105: 0 | AV105: 0 | AW105: 0 | AX105: 0 | AY105: 0 | AZ105: 0 | BA105: 0 | BB105: 0 | BC105: 0 | BD105: 0 | BE105: 0 | BF105: 0 | BG105: 0
F106: Net Benefits | J106: =SUM(J94:J105) -> 0 | K106: =SUM(K94:K105) -> 29.03070686 | L106: 29.01757359 | M106: 92.19926973 | N106: 101.0904789 | O106: 457.3451056 | P106: 521.8181149 | Q106: 544.5846747 | R106: 563.0262868 | S106: 572.2834656 | T106: 581.6902714 | U106: 606.5172944 | V106: 621.083489 | W106: 0 | X106: 0 | Y106: 0 | Z106: 0 | AA106: 0 | AB106: 0 | AC106: 0 | AD106: 0 | AE106: 0 | AF106: 0 | AG106: 0 | AH106: 0 | AI106: 0 | AJ106: 0 | AK106: 0 | AL106: 0 | AM106: 0 | AN106: 0 | AO106: 0 | AP106: 0 | AQ106: 0 | AR106: 0 | AS106: 0 | AT106: 0 | AU106: 0 | AV106: 0 | AW106: 0 | AX106: 0 | AY106: 0 | AZ106: 0 | BA106: 0 | BB106: 0 | BC106: 0 | BD106: =SUM(BD94:BD105) -> 0 | BE106: 0 | BF106: 0 | BG106: 0
F109: Category | G109: Dollar basis | H109: Conversion Factor
F110: =F94 -> Option 1 SWER | G110: 2024-06-30 | H110: 1 | J110: =J94*$H110 -> 0 | K110: 29.03070686 | L110: 29.01757359 | M110: 92.19926973 | N110: 101.0904789 | O110: 102.8386746 | P110: 104.4033999 | Q110: 106.2088787 | R110: 108.2332928 | S110: 110.0760101 | T110: 112.2532863 | U110: 114.5155085 | V110: 116.9948376 | W110: 0 | X110: 0 | Y110: 0 | Z110: 0 | AA110: 0 | AB110: 0 | AC110: 0 | AD110: 0 | AE110: 0 | AF110: 0 | AG110: 0 | AH110: 0 | AI110: 0 | AJ110: 0 | AK110: 0 | AL110: 0 | AM110: 0 | AN110: 0 | AO110: 0 | AP110: 0 | AQ110: 0 | AR110: 0 | AS110: 0 | AT110: 0 | AU110: 0 | AV110: 0 | AW110: 0 | AX110: 0 | AY110: 0 | AZ110: 0 | BA110: 0 | BB110: 0 | BC110: 0 | BD110: =BD94*$H110 -> 0 | BE110: 0 | BF110: 0 | BG110: 0
F111: Option 1 DSS | G111: 2024-06-30 | H111: 1 | J111: 0 | K111: 0 | L111: 0 | M111: 0 | N111: 0 | O111: 354.5064309 | P111: 417.414715 | Q111: 438.375796 | R111: 454.792994 | S111: 462.2074555 | T111: 469.4369851 | U111: 492.0017859 | V111: 504.0886515 | W111: 0 | X111: 0 | Y111: 0 | Z111: 0 | AA111: 0 | AB111: 0 | AC111: 0 | AD111: 0 | AE111: 0 | AF111: 0 | AG111: 0 | AH111: 0 | AI111: 0 | AJ111: 0 | AK111: 0 | AL111: 0 | AM111: 0 | AN111: 0 | AO111: 0 | AP111: 0 | AQ111: 0 | AR111: 0 | AS111: 0 | AT111: 0 | AU111: 0 | AV111: 0 | AW111: 0 | AX111: 0 | AY111: 0 | AZ111: 0 | BA111: 0 | BB111: 0 | BC111: 0 | BD111: 0 | BE111: 0 | BF111: 0 | BG111: 0
J112: 0 | K112: 0 | L112: 0 | M112: 0 | N112: 0 | O112: 0 | P112: 0 | Q112: 0 | R112: 0 | S112: 0 | T112: 0 | U112: 0 | V112: 0 | W112: 0 | X112: 0 | Y112: 0 | Z112: 0 | AA112: 0 | AB112: 0 | AC112: 0 | AD112: 0 | AE112: 0 | AF112: 0 | AG112: 0 | AH112: 0 | AI112: 0 | AJ112: 0 | AK112: 0 | AL112: 0 | AM112: 0 | AN112: 0 | AO112: 0 | AP112: 0 | AQ112: 0 | AR112: 0 | AS112: 0 | AT112: 0 | AU112: 0 | AV112: 0 | AW112: 0 | AX112: 0 | AY112: 0 | AZ112: 0 | BA112: 0 | BB112: 0 | BC112: 0 | BD112: 0 | BE112: 0 | BF112: 0 | BG112: 0
J113: 0 | K113: 0 | L113: 0 | M113: 0 | N113: 0 | O113: 0 | P113: 0 | Q113: 0 | R113: 0 | S113: 0 | T113: 0 | U113: 0 | V113: 0 | W113: 0 | X113: 0 | Y113: 0 | Z113: 0 | AA113: 0 | AB113: 0 | AC113: 0 | AD113: 0 | AE113: 0 | AF113: 0 | AG113: 0 | AH113: 0 | AI113: 0 | AJ113: 0 | AK113: 0 | AL113: 0 | AM113: 0 | AN113: 0 | AO113: 0 | AP113: 0 | AQ113: 0 | AR113: 0 | AS113: 0 | AT113: 0 | AU113: 0 | AV113: 0 | AW113: 0 | AX113: 0 | AY113: 0 | AZ113: 0 | BA113: 0 | BB113: 0 | BC113: 0 | BD113: 0 | BE113: 0 | BF113: 0 | BG113: 0
J114: 0 | K114: 0 | L114: 0 | M114: 0 | N114: 0 | O114: 0 | P114: 0 | Q114: 0 | R114: 0 | S114: 0 | T114: 0 | U114: 0 | V114: 0 | W114: 0 | X114: 0 | Y114: 0 | Z114: 0 | AA114: 0 | AB114: 0 | AC114: 0 | AD114: 0 | AE114: 0 | AF114: 0 | AG114: 0 | AH114: 0 | AI114: 0 | AJ114: 0 | AK114: 0 | AL114: 0 | AM114: 0 | AN114: 0 | AO114: 0 | AP114: 0 | AQ114: 0 | AR114: 0 | AS114: 0 | AT114: 0 | AU114: 0 | AV114: 0 | AW114: 0 | AX114: 0 | AY114: 0 | AZ114: 0 | BA114: 0 | BB114: 0 | BC114: 0 | BD114: 0 | BE114: 0 | BF114: 0 | BG114: 0
J115: 0 | K115: 0 | L115: 0 | M115: 0 | N115: 0 | O115: =O99*$H115 -> 0 | P115: 0 | Q115: 0 | R115: 0 | S115: 0 | T115: 0 | U115: 0 | V115: 0 | W115: 0 | X115: 0 | Y115: 0 | Z115: 0 | AA115: 0 | AB115: 0 | AC115: 0 | AD115: 0 | AE115: 0 | AF115: 0 | AG115: 0 | AH115: 0 | AI115: 0 | AJ115: 0 | AK115: 0 | AL115: 0 | AM115: 0 | AN115: 0 | AO115: 0 | AP115: 0 | AQ115: 0 | AR115: 0 | AS115: 0 | AT115: 0 | AU115: 0 | AV115: 0 | AW115: 0 | AX115: 0 | AY115: 0 | AZ115: 0 | BA115: 0 | BB115: 0 | BC115: 0 | BD115: =BD99*$H115 -> 0 | BE115: 0 | BF115: 0 | BG115: 0
J116: =J100*$H116 -> 0 | K116: 0 | L116: 0 | M116: 0 | N116: 0 | O116: 0 | P116: 0 | Q116: 0 | R116: 0 | S116: 0 | T116: 0 | U116: 0 | V116: 0 | W116: 0 | X116: 0 | Y116: 0 | Z116: 0 | AA116: 0 | AB116: 0 | AC116: 0 | AD116: 0 | AE116: 0 | AF116: 0 | AG116: 0 | AH116: 0 | AI116: 0 | AJ116: 0 | AK116: 0 | AL116: 0 | AM116: 0 | AN116: 0 | AO116: 0 | AP116: 0 | AQ116: 0 | AR116: 0 | AS116: 0 | AT116: 0 | AU116: 0 | AV116: 0 | AW116: 0 | AX116: 0 | AY116: 0 | AZ116: 0 | BA116: 0 | BB116: 0 | BC116: 0 | BD116: =BD100*$H116 -> 0 | BE116: 0 | BF116: 0 | BG116: 0
J117: 0 | K117: 0 | L117: 0 | M117: 0 | N117: 0 | O117: 0 | P117: 0 | Q117: 0 | R117: 0 | S117: 0 | T117: 0 | U117: 0 | V117: 0 | W117: 0 | X117: 0 | Y117: 0 | Z117: 0 | AA117: 0 | AB117: 0 | AC117: 0 | AD117: 0 | AE117: 0 | AF117: 0 | AG117: 0 | AH117: 0 | AI117: 0 | AJ117: 0 | AK117: 0 | AL117: 0 | AM117: 0 | AN117: 0 | AO117: 0 | AP117: 0 | AQ117: 0 | AR117: 0 | AS117: 0 | AT117: 0 | AU117: 0 | AV117: 0 | AW117: 0 | AX117: 0 | AY117: 0 | AZ117: 0 | BA117: 0 | BB117: 0 | BC117: 0 | BD117: =BD101*$H117 -> 0 | BE117: 0 | BF117: 0 | BG117: 0
J118: 0 | K118: 0 | L118: 0 | M118: 0 | N118: 0 | O118: 0 | P118: 0 | Q118: 0 | R118: 0 | S118: 0 | T118: 0 | U118: 0 | V118: 0 | W118: 0 | X118: 0 | Y118: 0 | Z118: 0 | AA118: 0 | AB118: 0 | AC118: 0 | AD118: 0 | AE118: 0 | AF118: 0 | AG118: 0 | AH118: 0 | AI118: 0 | AJ118: 0 | AK118: 0 | AL118: 0 | AM118: 0 | AN118: 0 | AO118: 0 | AP118: 0 | AQ118: 0 | AR118: 0 | AS118: 0 | AT118: 0 | AU118: 0 | AV118: 0 | AW118: 0 | AX118: 0 | AY118: 0 | AZ118: 0 | BA118: 0 | BB118: 0 | BC118: 0 | BD118: =BD102*$H118 -> 0 | BE118: 0 | BF118: 0 | BG118: 0
J119: 0 | K119: 0 | L119: 0 | M119: 0 | N119: 0 | O119: 0 | P119: 0 | Q119: 0 | R119: 0 | S119: 0 | T119: 0 | U119: 0 | V119: 0 | W119: 0 | X119: 0 | Y119: 0 | Z119: 0 | AA119: 0 | AB119: 0 | AC119: 0 | AD119: 0 | AE119: 0 | AF119: 0 | AG119: 0 | AH119: 0 | AI119: 0 | AJ119: 0 | AK119: 0 | AL119: 0 | AM119: 0 | AN119: 0 | AO119: 0 | AP119: 0 | AQ119: 0 | AR119: 0 | AS119: 0 | AT119: 0 | AU119: 0 | AV119: 0 | AW119: 0 | AX119: 0 | AY119: 0 | AZ119: 0 | BA119: 0 | BB119: 0 | BC119: 0 | BD119: =BD103*$H119 -> 0 | BE119: 0 | BF119: 0 | BG119: 0
J120: 0 | K120: 0 | L120: 0 | M120: 0 | N120: 0 | O120: 0 | P120: 0 | Q120: 0 | R120: 0 | S120: 0 | T120: 0 | U120: 0 | V120: 0 | W120: 0 | X120: 0 | Y120: 0 | Z120: 0 | AA120: 0 | AB120: 0 | AC120: 0 | AD120: 0 | AE120: 0 | AF120: 0 | AG120: 0 | AH120: 0 | AI120: 0 | AJ120: 0 | AK120: 0 | AL120: 0 | AM120: 0 | AN120: 0 | AO120: 0 | AP120: 0 | AQ120: 0 | AR120: 0 | AS120: 0 | AT120: 0 | AU120: 0 | AV120: 0 | AW120: 0 | AX120: 0 | AY120: 0 | AZ120: 0 | BA120: 0 | BB120: 0 | BC120: 0 | BD120: =BD104*$H120 -> 0 | BE120: 0 | BF120: 0 | BG120: 0
J121: 0 | K121: 0 | L121: 0 | M121: 0 | N121: 0 | O121: 0 | P121: 0 | Q121: 0 | R121: 0 | S121: 0 | T121: 0 | U121: 0 | V121: 0 | W121: 0 | X121: 0 | Y121: 0 | Z121: 0 | AA121: 0 | AB121: 0 | AC121: 0 | AD121: 0 | AE121: 0 | AF121: 0 | AG121: 0 | AH121: 0 | AI121: 0 | AJ121: 0 | AK121: 0 | AL121: 0 | AM121: 0 | AN121: 0 | AO121: 0 | AP121: 0 | AQ121: 0 | AR121: 0 | AS121: 0 | AT121: 0 | AU121: 0 | AV121: 0 | AW121: 0 | AX121: 0 | AY121: 0 | AZ121: 0 | BA121: 0 | BB121: 0 | BC121: 0 | BD121: =BD105*$H121 -> 0 | BE121: 0 | BF121: 0 | BG121: 0
F122: Net Benefits | J122: =SUM(J110:J121) -> 0 | K122: =SUM(K110:K121) -> 29.03070686 | L122: 29.01757359 | M122: 92.19926973 | N122: 101.0904789 | O122: 457.3451056 | P122: 521.8181149 | Q122: 544.5846747 | R122: 563.0262868 | S122: 572.2834656 | T122: 581.6902714 | U122: 606.5172944 | V122: 621.083489 | W122: 0 | X122: 0 | Y122: 0 | Z122: 0 | AA122: 0 | AB122: 0 | AC122: 0 | AD122: 0 | AE122: 0 | AF122: 0 | AG122: 0 | AH122: 0 | AI122: 0 | AJ122: 0 | AK122: 0 | AL122: 0 | AM122: 0 | AN122: 0 | AO122: 0 | AP122: 0 | AQ122: 0 | AR122: 0 | AS122: 0 | AT122: 0 | AU122: 0 | AV122: 0 | AW122: 0 | AX122: 0 | AY122: 0 | AZ122: 0 | BA122: 0 | BB122: 0 | BC122: 0 | BD122: =SUM(BD110:BD121) -> 0 | BE122: 0 | BF122: 0 | BG122: 0
A124: END OF INPUTS FOR THIS OPTION

Sheet Option2_Analysis
B1: Analysis: Option 2
B2: =Cover!$C$9 -> AusNet Services
B3: =Cover!$C$10 -> Business Case Evaluation
B4: =Cover!$C$11 -> Demand driven augex (LV augmentation) with flexible services
B6: Regulatory Period Indicator | J6: =IF(AND(J$7>=General!$H$20,J$8<=General!$H$21),1,0) -> 0 | K6: =IF(AND(K$7>=General!$H$20,K$8<=General!$H$21),1,0) -> 0 | L6: =IF(AND(L$7>=General!$H$20,L$8<=General!$H$21),1,0) -> 0 | M6: =IF(AND(M$7>=General!$H$20,M$8<=General!$H$21),1,0) -> 1 | N6: =IF(AND(N$7>=General!$H$20,N$8<=General!$H$21),1,0) -> 1 | O6: =IF(AND(O$7>=General!$H$20,O$8<=General!$H$21),1,0) -> 1 | P6: =IF(AND(P$7>=General!$H$20,P$8<=General!$H$21),1,0) -> 1 | Q6: =IF(AND(Q$7>=General!$H$20,Q$8<=General!$H$21),1,0) -> 1 | R6: =IF(AND(R$7>=General!$H$20,R$8<=General!$H$21),1,0) -> 0 | S6: =IF(AND(S$7>=General!$H$20,S$8<=General!$H$21),1,0) -> 0 | T6: =IF(AND(T$7>=General!$H$20,T$8<=General!$H$21),1,0) -> 0 | U6: =IF(AND(U$7>=General!$H$20,U$8<=General!$H$21),1,0) -> 0 | V6: =IF(AND(V$7>=General!$H$20,V$8<=General!$H$21),1,0) -> 0 | W6: =IF(AND(W$7>=General!$H$20,W$8<=General!$H$21),1,0) -> 0 | X6: =IF(AND(X$7>=General!$H$20,X$8<=General!$H$21),1,0) -> 0 | Y6: =IF(AND(Y$7>=General!$H$20,Y$8<=General!$H$21),1,0) -> 0 | Z6: =IF(AND(Z$7>=General!$H$20,Z$8<=General!$H$21),1,0) -> 0 | AA6: =IF(AND(AA$7>=General!$H$20,AA$8<=General!$H$21),1,0) -> 0 | AB6: =IF(AND(AB$7>=General!$H$20,AB$8<=General!$H$21),1,0) -> 0 | AC6: =IF(AND(AC$7>=General!$H$20,AC$8<=General!$H$21),1,0) -> 0 | AD6: =IF(AND(AD$7>=General!$H$20,AD$8<=General!$H$21),1,0) -> 0 | AE6: =IF(AND(AE$7>=General!$H$20,AE$8<=General!$H$21),1,0) -> 0 | AF6: =IF(AND(AF$7>=General!$H$20,AF$8<=General!$H$21),1,0) -> 0 | AG6: =IF(AND(AG$7>=General!$H$20,AG$8<=General!$H$21),1,0) -> 0 | AH6: =IF(AND(AH$7>=General!$H$20,AH$8<=General!$H$21),1,0) -> 0 | AI6: =IF(AND(AI$7>=General!$H$20,AI$8<=General!$H$21),1,0) -> 0 | AJ6: =IF(AND(AJ$7>=General!$H$20,AJ$8<=General!$H$21),1,0) -> 0 | AK6: =IF(AND(AK$7>=General!$H$20,AK$8<=General!$H$21),1,0) -> 0 | AL6: =IF(AND(AL$7>=General!$H$20,AL$8<=General!$H$21),1,0) -> 0 | AM6: =IF(AND(AM$7>=General!$H$20,AM$8<=General!$H$21),1,0) -> 0 | AN6: =IF(AND(AN$7>=General!$H$20,AN$8<=General!$H$21),1,0) -> 0 | AO6: =IF(AND(AO$7>=General!$H$20,AO$8<=General!$H$21),1,0) -> 0 | AP6: =IF(AND(AP$7>=General!$H$20,AP$8<=General!$H$21),1,0) -> 0 | AQ6: =IF(AND(AQ$7>=General!$H$20,AQ$8<=General!$H$21),1,0) -> 0 | AR6: =IF(AND(AR$7>=General!$H$20,AR$8<=General!$H$21),1,0) -> 0 | AS6: =IF(AND(AS$7>=General!$H$20,AS$8<=General!$H$21),1,0) -> 0 | AT6: =IF(AND(AT$7>=General!$H$20,AT$8<=General!$H$21),1,0) -> 0 | AU6: =IF(AND(AU$7>=General!$H$20,AU$8<=General!$H$21),1,0) -> 0 | AV6: =IF(AND(AV$7>=General!$H$20,AV$8<=General!$H$21),1,0) -> 0 | AW6: =IF(AND(AW$7>=General!$H$20,AW$8<=General!$H$21),1,0) -> 0 | AX6: =IF(AND(AX$7>=General!$H$20,AX$8<=General!$H$21),1,0) -> 0 | AY6: =IF(AND(AY$7>=General!$H$20,AY$8<=General!$H$21),1,0) -> 0 | AZ6: =IF(AND(AZ$7>=General!$H$20,AZ$8<=General!$H$21),1,0) -> 0 | BA6: =IF(AND(BA$7>=General!$H$20,BA$8<=General!$H$21),1,0) -> 0 | BB6: =IF(AND(BB$7>=General!$H$20,BB$8<=General!$H$21),1,0) -> 0 | BC6: =IF(AND(BC$7>=General!$H$20,BC$8<=General!$H$21),1,0) -> 0 | BD6: =IF(AND(BD$7>=General!$H$20,BD$8<=General!$H$21),1,0) -> 0 | BE6: =IF(AND(BE$7>=General!$H$20,BE$8<=General!$H$21),1,0) -> 0 | BF6: =IF(AND(BF$7>=General!$H$20,BF$8<=General!$H$21),1,0) -> 0 | BG6: =IF(AND(BG$7>=General!$H$20,BG$8<=General!$H$21),1,0) -> 0
B7: Period Start Date | J7: =EDATE(General!$H$18,(J9-1)*12) -> 2023-07-01 | K7: =EDATE(General!$H$18,(K9-1)*12) -> 2024-07-01 | L7: =EDATE(General!$H$18,(L9-1)*12) -> 2025-07-01 | M7: =EDATE(General!$H$18,(M9-1)*12) -> 2026-07-01 | N7: =EDATE(General!$H$18,(N9-1)*12) -> 2027-07-01 | O7: =EDATE(General!$H$18,(O9-1)*12) -> 2028-07-01 | P7: =EDATE(General!$H$18,(P9-1)*12) -> 2029-07-01 | Q7: =EDATE(General!$H$18,(Q9-1)*12) -> 2030-07-01 | R7: =EDATE(General!$H$18,(R9-1)*12) -> 2031-07-01 | S7: =EDATE(General!$H$18,(S9-1)*12) -> 2032-07-01 | T7: =EDATE(General!$H$18,(T9-1)*12) -> 2033-07-01 | U7: =EDATE(General!$H$18,(U9-1)*12) -> 2034-07-01 | V7: =EDATE(General!$H$18,(V9-1)*12) -> 2035-07-01 | W7: =EDATE(General!$H$18,(W9-1)*12) -> 2036-07-01 | X7: =EDATE(General!$H$18,(X9-1)*12) -> 2037-07-01 | Y7: =EDATE(General!$H$18,(Y9-1)*12) -> 2038-07-01 | Z7: =EDATE(General!$H$18,(Z9-1)*12) -> 2039-07-01 | AA7: =EDATE(General!$H$18,(AA9-1)*12) -> 2040-07-01 | AB7: =EDATE(General!$H$18,(AB9-1)*12) -> 2041-07-01 | AC7: =EDATE(General!$H$18,(AC9-1)*12) -> 2042-07-01 | AD7: =EDATE(General!$H$18,(AD9-1)*12) -> 2043-07-01 | AE7: =EDATE(General!$H$18,(AE9-1)*12) -> 2044-07-01 | AF7: =EDATE(General!$H$18,(AF9-1)*12) -> 2045-07-01 | AG7: =EDATE(General!$H$18,(AG9-1)*12) -> 2046-07-01 | AH7: =EDATE(General!$H$18,(AH9-1)*12) -> 2047-07-01 | AI7: =EDATE(General!$H$18,(AI9-1)*12) -> 2048-07-01 | AJ7: =EDATE(General!$H$18,(AJ9-1)*12) -> 2049-07-01 | AK7: =EDATE(General!$H$18,(AK9-1)*12) -> 2050-07-01 | AL7: =EDATE(General!$H$18,(AL9-1)*12) -> 2051-07-01 | AM7: =EDATE(General!$H$18,(AM9-1)*12) -> 2052-07-01 | AN7: =EDATE(General!$H$18,(AN9-1)*12) -> 2053-07-01 | AO7: =EDATE(General!$H$18,(AO9-1)*12) -> 2054-07-01 | AP7: =EDATE(General!$H$18,(AP9-1)*12) -> 2055-07-01 | AQ7: =EDATE(General!$H$18,(AQ9-1)*12) -> 2056-07-01 | AR7: =EDATE(General!$H$18,(AR9-1)*12) -> 2057-07-01 | AS7: =EDATE(General!$H$18,(AS9-1)*12) -> 2058-07-01 | AT7: =EDATE(General!$H$18,(AT9-1)*12) -> 2059-07-01 | AU7: =EDATE(General!$H$18,(AU9-1)*12) -> 2060-07-01 | AV7: =EDATE(General!$H$18,(AV9-1)*12) -> 2061-07-01 | AW7: =EDATE(General!$H$18,(AW9-1)*12) -> 2062-07-01 | AX7: =EDATE(General!$H$18,(AX9-1)*12) -> 2063-07-01 | AY7: =EDATE(General!$H$18,(AY9-1)*12) -> 2064-07-01 | AZ7: =EDATE(General!$H$18,(AZ9-1)*12) -> 2065-07-01 | BA7: =EDATE(General!$H$18,(BA9-1)*12) -> 2066-07-01 | BB7: =EDATE(General!$H$18,(BB9-1)*12) -> 2067-07-01 | BC7: =EDATE(General!$H$18,(BC9-1)*12) -> 2068-07-01 | BD7: =EDATE(General!$H$18,(BD9-1)*12) -> 2069-07-01 | BE7: =EDATE(General!$H$18,(BE9-1)*12) -> 2070-07-01 | BF7: =EDATE(General!$H$18,(BF9-1)*12) -> 2071-07-01 | BG7: =EDATE(General!$H$18,(BG9-1)*12) -> 2072-07-01
B8: Period End Date | J8: =EDATE(J7,12)-1 -> 2024-06-30 | K8: =EDATE(K7,12)-1 -> 2025-06-30 | L8: 2026-06-30 | M8: 2027-06-30 | N8: 2028-06-30 | O8: 2029-06-30 | P8: 2030-06-30 | Q8: 2031-06-30 | R8: 2032-06-30 | S8: 2033-06-30 | T8: 2034-06-30 | U8: 2035-06-30 | V8: 2036-06-30 | W8: 2037-06-30 | X8: 2038-06-30 | Y8: 2039-06-30 | Z8: 2040-06-30 | AA8: 2041-06-30 | AB8: 2042-06-30 | AC8: 2043-06-30 | AD8: 2044-06-30 | AE8: 2045-06-30 | AF8: 2046-06-30 | AG8: 2047-06-30 | AH8: 2048-06-30 | AI8: 2049-06-30 | AJ8: 2050-06-30 | AK8: 2051-06-30 | AL8: 2052-06-30 | AM8: 2053-06-30 | AN8: 2054-06-30 | AO8: 2055-06-30 | AP8: 2056-06-30 | AQ8: 2057-06-30 | AR8: 2058-06-30 | AS8: 2059-06-30 | AT8: 2060-06-30 | AU8: 2061-06-30 | AV8: 2062-06-30 | AW8: 2063-06-30 | AX8: 2064-06-30 | AY8: 2065-06-30 | AZ8: 2066-06-30 | BA8: 2067-06-30 | BB8: 2068-06-30 | BC8: 2069-06-30 | BD8: 2070-06-30 | BE8: 2071-06-30 | BF8: 2072-06-30 | BG8: 2073-06-30
B9: ="Project Year" -> Project Year | J9: =COLUMNS($J9:J9) -> 1 | K9: =COLUMNS($J9:K9) -> 2 | L9: =COLUMNS($J9:L9) -> 3 | M9: =COLUMNS($J9:M9) -> 4 | N9: =COLUMNS($J9:N9) -> 5 | O9: =COLUMNS($J9:O9) -> 6 | P9: =COLUMNS($J9:P9) -> 7 | Q9: =COLUMNS($J9:Q9) -> 8 | R9: =COLUMNS($J9:R9) -> 9 | S9: =COLUMNS($J9:S9) -> 10 | T9: =COLUMNS($J9:T9) -> 11 | U9: =COLUMNS($J9:U9) -> 12 | V9: =COLUMNS($J9:V9) -> 13 | W9: =COLUMNS($J9:W9) -> 14 | X9: =COLUMNS($J9:X9) -> 15 | Y9: =COLUMNS($J9:Y9) -> 16 | Z9: =COLUMNS($J9:Z9) -> 17 | AA9: =COLUMNS($J9:AA9) -> 18 | AB9: =COLUMNS($J9:AB9) -> 19 | AC9: =COLUMNS($J9:AC9) -> 20 | AD9: =COLUMNS($J9:AD9) -> 21 | AE9: =COLUMNS($J9:AE9) -> 22 | AF9: =COLUMNS($J9:AF9) -> 23 | AG9: =COLUMNS($J9:AG9) -> 24 | AH9: =COLUMNS($J9:AH9) -> 25 | AI9: =COLUMNS($J9:AI9) -> 26 | AJ9: =COLUMNS($J9:AJ9) -> 27 | AK9: =COLUMNS($J9:AK9) -> 28 | AL9: =COLUMNS($J9:AL9) -> 29 | AM9: =COLUMNS($J9:AM9) -> 30 | AN9: =COLUMNS($J9:AN9) -> 31 | AO9: =COLUMNS($J9:AO9) -> 32 | AP9: =COLUMNS($J9:AP9) -> 33 | AQ9: =COLUMNS($J9:AQ9) -> 34 | AR9: =COLUMNS($J9:AR9) -> 35 | AS9: =COLUMNS($J9:AS9) -> 36 | AT9: =COLUMNS($J9:AT9) -> 37 | AU9: =COLUMNS($J9:AU9) -> 38 | AV9: =COLUMNS($J9:AV9) -> 39 | AW9: =COLUMNS($J9:AW9) -> 40 | AX9: =COLUMNS($J9:AX9) -> 41 | AY9: =COLUMNS($J9:AY9) -> 42 | AZ9: =COLUMNS($J9:AZ9) -> 43 | BA9: =COLUMNS($J9:BA9) -> 44 | BB9: =COLUMNS($J9:BB9) -> 45 | BC9: =COLUMNS($J9:BC9) -> 46 | BD9: =COLUMNS($J9:BD9) -> 47 | BE9: =COLUMNS($J9:BE9) -> 48 | BF9: =COLUMNS($J9:BF9) -> 49 | BG9: =COLUMNS($J9:BG9) -> 50
B10: Financial Year | J10: =YEAR(J8) -> 2024 | K10: =YEAR(K8) -> 2025 | L10: 2026 | M10: 2027 | N10: 2028 | O10: 2029 | P10: 2030 | Q10: 2031 | R10: 2032 | S10: 2033 | T10: 2034 | U10: 2035 | V10: 2036 | W10: 2037 | X10: 2038 | Y10: 2039 | Z10: 2040 | AA10: 2041 | AB10: 2042 | AC10: 2043 | AD10: 2044 | AE10: 2045 | AF10: 2046 | AG10: 2047 | AH10: 2048 | AI10: 2049 | AJ10: 2050 | AK10: 2051 | AL10: 2052 | AM10: 2053 | AN10: 2054 | AO10: 2055 | AP10: 2056 | AQ10: 2057 | AR10: 2058 | AS10: 2059 | AT10: 2060 | AU10: 2061 | AV10: 2062 | AW10: 2063 | AX10: 2064 | AY10: 2065 | AZ10: 2066 | BA10: 2067 | BB10: 2068 | BC10: 2069 | BD10: 2070 | BE10: 2071 | BF10: 2072 | BG10: 2073
B11: CPI index | J11: 1 | K11: =J11*(1+IF(OR(ISBLANK(VLOOKUP(DATE(YEAR(K8),MONTH(K8),1),CPI_Con_F!$D$18:$G$67,4,FALSE)),ISERROR(VLOOKUP(DATE(YEAR(K8),MONTH(K8),1),CPI_Con_F!$D$18:$G$67,4,FALSE))),General!$H$24,VLOOKUP(DATE(YEAR(K8),MONTH(K8),1),CPI_Con_F!$D$18:$G$67,4,FALSE))) -> 1.03 | L11: =K11*(1+IF(OR(ISBLANK(VLOOKUP(DATE(YEAR(L8),MONTH(L8),1),CPI_Con_F!$D$18:$G$67,4,FALSE)),ISERROR(VLOOKUP(DATE(YEAR(L8),MONTH(L8),1),CPI_Con_F!$D$18:$G$67,4,FALSE))),General!$H$24,VLOOKUP(DATE(YEAR(L8),MONTH(L8),1),CPI_Con_F!$D$18:$G$67,4,FALSE))) -> 1.05575 | M11: =L11*(1+IF(OR(ISBLANK(VLOOKUP(DATE(YEAR(M8),MONTH(M8),1),CPI_Con_F!$D$18:$G$67,4,FALSE)),ISERROR(VLOOKUP(DATE(YEAR(M8),MONTH(M8),1),CPI_Con_F!$D$18:$G$67,4,FALSE))),General!$H$24,VLOOKUP(DATE(YEAR(M8),MONTH(M8),1),CPI_Con_F!$D$18:$G$67,4,FALSE))) -> 1.08214375 | N11: =M11*(1+IF(OR(ISBLANK(VLOOKUP(DATE(YEAR(N8),MONTH(N8),1),CPI_Con_F!$D$18:$G$67,4,FALSE)),ISERROR(VLOOKUP(DATE(YEAR(N8),MONTH(N8),1),CPI_Con_F!$D$18:$G$67,4,FALSE))),General!$H$24,VLOOKUP(DATE(YEAR(N8),MONTH(N8),1),CPI_Con_F!$D$18:$G$67,4,FALSE))) -> 1.109197344 | O11: =N11*(1+IF(OR(ISBLANK(VLOOKUP(DATE(YEAR(O8),MONTH(O8),1),CPI_Con_F!$D$18:$G$67,4,FALSE)),ISERROR(VLOOKUP(DATE(YEAR(O8),MONTH(O8),1),CPI_Con_F!$D$18:$G$67,4,FALSE))),General!$H$24,VLOOKUP(DATE(YEAR(O8),MONTH(O8),1),CPI_Con_F!$D$18:$G$67,4,FALSE))) -> 1.136927277 | P11: =O11*(1+IF(OR(ISBLANK(VLOOKUP(DATE(YEAR(P8),MONTH(P8),1),CPI_Con_F!$D$18:$G$67,4,FALSE)),ISERROR(VLOOKUP(DATE(YEAR(P8),MONTH(P8),1),CPI_Con_F!$D$18:$G$67,4,FALSE))),General!$H$24,VLOOKUP(DATE(YEAR(P8),MONTH(P8),1),CPI_Con_F!$D$18:$G$67,4,FALSE))) -> 1.165350459 | Q11: =P11*(1+IF(OR(ISBLANK(VLOOKUP(DATE(YEAR(Q8),MONTH(Q8),1),CPI_Con_F!$D$18:$G$67,4,FALSE)),ISERROR(VLOOKUP(DATE(YEAR(Q8),MONTH(Q8),1),CPI_Con_F!$D$18:$G$67,4,FALSE))),General!$H$24,VLOOKUP(DATE(YEAR(Q8),MONTH(Q8),1),CPI_Con_F!$D$18:$G$67,4,FALSE))) -> 1.194484221 | R11: =Q11*(1+IF(OR(ISBLANK(VLOOKUP(DATE(YEAR(R8),MONTH(R8),1),CPI_Con_F!$D$18:$G$67,4,FALSE)),ISERROR(VLOOKUP(DATE(YEAR(R8),MONTH(R8),1),CPI_Con_F!$D$18:$G$67,4,FALSE))),General!$H$24,VLOOKUP(DATE(YEAR(R8),MONTH(R8),1),CPI_Con_F!$D$18:$G$67,4,FALSE))) -> 1.224346326 | S11: =R11*(1+IF(OR(ISBLANK(VLOOKUP(DATE(YEAR(S8),MONTH(S8),1),CPI_Con_F!$D$18:$G$67,4,FALSE)),ISERROR(VLOOKUP(DATE(YEAR(S8),MONTH(S8),1),CPI_Con_F!$D$18:$G$67,4,FALSE))),General!$H$24,VLOOKUP(DATE(YEAR(S8),MONTH(S8),1),CPI_Con_F!$D$18:$G$67,4,FALSE))) -> 1.254954984 | T11: =S11*(1+IF(OR(ISBLANK(VLOOKUP(DATE(YEAR(T8),MONTH(T8),1),CPI_Con_F!$D$18:$G$67,4,FALSE)),ISERROR(VLOOKUP(DATE(YEAR(T8),MONTH(T8),1),CPI_Con_F!$D$18:$G$67,4,FALSE))),General!$H$24,VLOOKUP(DATE(YEAR(T8),MONTH(T8),1),CPI_Con_F!$D$18:$G$67,4,FALSE))) -> 1.286328859 | U11: =T11*(1+IF(OR(ISBLANK(VLOOKUP(DATE(YEAR(U8),MONTH(U8),1),CPI_Con_F!$D$18:$G$67,4,FALSE)),ISERROR(VLOOKUP(DATE(YEAR(U8),MONTH(U8),1),CPI_Con_F!$D$18:$G$67,4,FALSE))),General!$H$24,VLOOKUP(DATE(YEAR(U8),MONTH(U8),1),CPI_Con_F!$D$18:$G$67,4,FALSE))) -> 1.318487081 | V11: =U11*(1+IF(OR(ISBLANK(VLOOKUP(DATE(YEAR(V8),MONTH(V8),1),CPI_Con_F!$D$18:$G$67,4,FALSE)),ISERROR(VLOOKUP(DATE(YEAR(V8),MONTH(V8),1),CPI_Con_F!$D$18:$G$67,4,FALSE))),General!$H$24,VLOOKUP(DATE(YEAR(V8),MONTH(V8),1),CPI_Con_F!$D$18:$G$67,4,FALSE))) -> 1.351449258 | W11: =V11*(1+IF(OR(ISBLANK(VLOOKUP(DATE(YEAR(W8),MONTH(W8),1),CPI_Con_F!$D$18:$G$67,4,FALSE)),ISERROR(VLOOKUP(DATE(YEAR(W8),MONTH(W8),1),CPI_Con_F!$D$18:$G$67,4,FALSE))),General!$H$24,VLOOKUP(DATE(YEAR(W8),MONTH(W8),1),CPI_Con_F!$D$18:$G$67,4,FALSE))) -> 1.385235489 | X11: =W11*(1+IF(OR(ISBLANK(VLOOKUP(DATE(YEAR(X8),MONTH(X8),1),CPI_Con_F!$D$18:$G$67,4,FALSE)),ISERROR(VLOOKUP(DATE(YEAR(X8),MONTH(X8),1),CPI_Con_F!$D$18:$G$67,4,FALSE))),General!$H$24,VLOOKUP(DATE(YEAR(X8),MONTH(X8),1),CPI_Con_F!$D$18:$G$67,4,FALSE))) -> 1.419866376 | Y11: =X11*(1+IF(OR(ISBLANK(VLOOKUP(DATE(YEAR(Y8),MONTH(Y8),1),CPI_Con_F!$D$18:$G$67,4,FALSE)),ISERROR(VLOOKUP(DATE(YEAR(Y8),MONTH(Y8),1),CPI_Con_F!$D$18:$G$67,4,FALSE))),General!$H$24,VLOOKUP(DATE(YEAR(Y8),MONTH(Y8),1),CPI_Con_F!$D$18:$G$67,4,FALSE))) -> 1.455363036 | Z11: =Y11*(1+IF(OR(ISBLANK(VLOOKUP(DATE(YEAR(Z8),MONTH(Z8),1),CPI_Con_F!$D$18:$G$67,4,FALSE)),ISERROR(VLOOKUP(DATE(YEAR(Z8),MONTH(Z8),1),CPI_Con_F!$D$18:$G$67,4,FALSE))),General!$H$24,VLOOKUP(DATE(YEAR(Z8),MONTH(Z8),1),CPI_Con_F!$D$18:$G$67,4,FALSE))) -> 1.491747111 | AA11: =Z11*(1+IF(OR(ISBLANK(VLOOKUP(DATE(YEAR(AA8),MONTH(AA8),1),CPI_Con_F!$D$18:$G$67,4,FALSE)),ISERROR(VLOOKUP(DATE(YEAR(AA8),MONTH(AA8),1),CPI_Con_F!$D$18:$G$67,4,FALSE))),General!$H$24,VLOOKUP(DATE(YEAR(AA8),MONTH(AA8),1),CPI_Con_F!$D$18:$G$67,4,FALSE))) -> 1.529040789 | AB11: =AA11*(1+IF(OR(ISBLANK(VLOOKUP(DATE(YEAR(AB8),MONTH(AB8),1),CPI_Con_F!$D$18:$G$67,4,FALSE)),ISERROR(VLOOKUP(DATE(YEAR(AB8),MONTH(AB8),1),CPI_Con_F!$D$18:$G$67,4,FALSE))),General!$H$24,VLOOKUP(DATE(YEAR(AB8),MONTH(AB8),1),CPI_Con_F!$D$18:$G$67,4,FALSE))) -> 1.567266809 | AC11: =AB11*(1+IF(OR(ISBLANK(VLOOKUP(DATE(YEAR(AC8),MONTH(AC8),1),CPI_Con_F!$D$18:$G$67,4,FALSE)),ISERROR(VLOOKUP(DATE(YEAR(AC8),MONTH(AC8),1),CPI_Con_F!$D$18:$G$67,4,FALSE))),General!$H$24,VLOOKUP(DATE(YEAR(AC8),MONTH(AC8),1),CPI_Con_F!$D$18:$G$67,4,FALSE))) -> 1.606448479 | AD11: =AC11*(1+IF(OR(ISBLANK(VLOOKUP(DATE(YEAR(AD8),MONTH(AD8),1),CPI_Con_F!$D$18:$G$67,4,FALSE)),ISERROR(VLOOKUP(DATE(YEAR(AD8),MONTH(AD8),1),CPI_Con_F!$D$18:$G$67,4,FALSE))),General!$H$24,VLOOKUP(DATE(YEAR(AD8),MONTH(AD8),1),CPI_Con_F!$D$18:$G$67,4,FALSE))) -> 1.646609691 | AE11: =AD11*(1+IF(OR(ISBLANK(VLOOKUP(DATE(YEAR(AE8),MONTH(AE8),1),CPI_Con_F!$D$18:$G$67,4,FALSE)),ISERROR(VLOOKUP(DATE(YEAR(AE8),MONTH(AE8),1),CPI_Con_F!$D$18:$G$67,4,FALSE))),General!$H$24,VLOOKUP(DATE(YEAR(AE8),MONTH(AE8),1),CPI_Con_F!$D$18:$G$67,4,FALSE))) -> 1.687774933 | AF11: =AE11*(1+IF(OR(ISBLANK(VLOOKUP(DATE(YEAR(AF8),MONTH(AF8),1),CPI_Con_F!$D$18:$G$67,4,FALSE)),ISERROR(VLOOKUP(DATE(YEAR(AF8),MONTH(AF8),1),CPI_Con_F!$D$18:$G$67,4,FALSE))),General!$H$24,VLOOKUP(DATE(YEAR(AF8),MONTH(AF8),1),CPI_Con_F!$D$18:$G$67,4,FALSE))) -> 1.729969307 | AG11: =AF11*(1+IF(OR(ISBLANK(VLOOKUP(DATE(YEAR(AG8),MONTH(AG8),1),CPI_Con_F!$D$18:$G$67,4,FALSE)),ISERROR(VLOOKUP(DATE(YEAR(AG8),MONTH(AG8),1),CPI_Con_F!$D$18:$G$67,4,FALSE))),General!$H$24,VLOOKUP(DATE(YEAR(AG8),MONTH(AG8),1),CPI_Con_F!$D$18:$G$67,4,FALSE))) -> 1.77321854 | AH11: =AG11*(1+IF(OR(ISBLANK(VLOOKUP(DATE(YEAR(AH8),MONTH(AH8),1),CPI_Con_F!$D$18:$G$67,4,FALSE)),ISERROR(VLOOKUP(DATE(YEAR(AH8),MONTH(AH8),1),CPI_Con_F!$D$18:$G$67,4,FALSE))),General!$H$24,VLOOKUP(DATE(YEAR(AH8),MONTH(AH8),1),CPI_Con_F!$D$18:$G$67,4,FALSE))) -> 1.817549003 | AI11: =AH11*(1+IF(OR(ISBLANK(VLOOKUP(DATE(YEAR(AI8),MONTH(AI8),1),CPI_Con_F!$D$18:$G$67,4,FALSE)),ISERROR(VLOOKUP(DATE(YEAR(AI8),MONTH(AI8),1),CPI_Con_F!$D$18:$G$67,4,FALSE))),General!$H$24,VLOOKUP(DATE(YEAR(AI8),MONTH(AI8),1),CPI_Con_F!$D$18:$G$67,4,FALSE))) -> 1.862987728 | AJ11: =AI11*(1+IF(OR(ISBLANK(VLOOKUP(DATE(YEAR(AJ8),MONTH(AJ8),1),CPI_Con_F!$D$18:$G$67,4,FALSE)),ISERROR(VLOOKUP(DATE(YEAR(AJ8),MONTH(AJ8),1),CPI_Con_F!$D$18:$G$67,4,FALSE))),General!$H$24,VLOOKUP(DATE(YEAR(AJ8),MONTH(AJ8),1),CPI_Con_F!$D$18:$G$67,4,FALSE))) -> 1.909562421 | AK11: =AJ11*(1+IF(OR(ISBLANK(VLOOKUP(DATE(YEAR(AK8),MONTH(AK8),1),CPI_Con_F!$D$18:$G$67,4,FALSE)),ISERROR(VLOOKUP(DATE(YEAR(AK8),MONTH(AK8),1),CPI_Con_F!$D$18:$G$67,4,FALSE))),General!$H$24,VLOOKUP(DATE(YEAR(AK8),MONTH(AK8),1),CPI_Con_F!$D$18:$G$67,4,FALSE))) -> 1.957301482 | AL11: =AK11*(1+IF(OR(ISBLANK(VLOOKUP(DATE(YEAR(AL8),MONTH(AL8),1),CPI_Con_F!$D$18:$G$67,4,FALSE)),ISERROR(VLOOKUP(DATE(YEAR(AL8),MONTH(AL8),1),CPI_Con_F!$D$18:$G$67,4,FALSE))),General!$H$24,VLOOKUP(DATE(YEAR(AL8),MONTH(AL8),1),CPI_Con_F!$D$18:$G$67,4,FALSE))) -> 2.006234019 | AM11: =AL11*(1+IF(OR(ISBLANK(VLOOKUP(DATE(YEAR(AM8),MONTH(AM8),1),CPI_Con_F!$D$18:$G$67,4,FALSE)),ISERROR(VLOOKUP(DATE(YEAR(AM8),MONTH(AM8),1),CPI_Con_F!$D$18:$G$67,4,FALSE))),General!$H$24,VLOOKUP(DATE(YEAR(AM8),MONTH(AM8),1),CPI_Con_F!$D$18:$G$67,4,FALSE))) -> 2.056389869 | AN11: =AM11*(1+IF(OR(ISBLANK(VLOOKUP(DATE(YEAR(AN8),MONTH(AN8),1),CPI_Con_F!$D$18:$G$67,4,FALSE)),ISERROR(VLOOKUP(DATE(YEAR(AN8),MONTH(AN8),1),CPI_Con_F!$D$18:$G$67,4,FALSE))),General!$H$24,VLOOKUP(DATE(YEAR(AN8),MONTH(AN8),1),CPI_Con_F!$D$18:$G$67,4,FALSE))) -> 2.107799616 | AO11: =AN11*(1+IF(OR(ISBLANK(VLOOKUP(DATE(YEAR(AO8),MONTH(AO8),1),CPI_Con_F!$D$18:$G$67,4,FALSE)),ISERROR(VLOOKUP(DATE(YEAR(AO8),MONTH(AO8),1),CPI_Con_F!$D$18:$G$67,4,FALSE))),General!$H$24,VLOOKUP(DATE(YEAR(AO8),MONTH(AO8),1),CPI_Con_F!$D$18:$G$67,4,FALSE))) -> 2.160494606 | AP11: =AO11*(1+IF(OR(ISBLANK(VLOOKUP(DATE(YEAR(AP8),MONTH(AP8),1),CPI_Con_F!$D$18:$G$67,4,FALSE)),ISERROR(VLOOKUP(DATE(YEAR(AP8),MONTH(AP8),1),CPI_Con_F!$D$18:$G$67,4,FALSE))),General!$H$24,VLOOKUP(DATE(YEAR(AP8),MONTH(AP8),1),CPI_Con_F!$D$18:$G$67,4,FALSE))) -> 2.214506972 | AQ11: =AP11*(1+IF(OR(ISBLANK(VLOOKUP(DATE(YEAR(AQ8),MONTH(AQ8),1),CPI_Con_F!$D$18:$G$67,4,FALSE)),ISERROR(VLOOKUP(DATE(YEAR(AQ8),MONTH(AQ8),1),CPI_Con_F!$D$18:$G$67,4,FALSE))),General!$H$24,VLOOKUP(DATE(YEAR(AQ8),MONTH(AQ8),1),CPI_Con_F!$D$18:$G$67,4,FALSE))) -> 2.269869646 | AR11: =AQ11*(1+IF(OR(ISBLANK(VLOOKUP(DATE(YEAR(AR8),MONTH(AR8),1),CPI_Con_F!$D$18:$G$67,4,FALSE)),ISERROR(VLOOKUP(DATE(YEAR(AR8),MONTH(AR8),1),CPI_Con_F!$D$18:$G$67,4,FALSE))),General!$H$24,VLOOKUP(DATE(YEAR(AR8),MONTH(AR8),1),CPI_Con_F!$D$18:$G$67,4,FALSE))) -> 2.326616387 | AS11: =AR11*(1+IF(OR(ISBLANK(VLOOKUP(DATE(YEAR(AS8),MONTH(AS8),1),CPI_Con_F!$D$18:$G$67,4,FALSE)),ISERROR(VLOOKUP(DATE(YEAR(AS8),MONTH(AS8),1),CPI_Con_F!$D$18:$G$67,4,FALSE))),General!$H$24,VLOOKUP(DATE(YEAR(AS8),MONTH(AS8),1),CPI_Con_F!$D$18:$G$67,4,FALSE))) -> 2.384781797 | AT11: =AS11*(1+IF(OR(ISBLANK(VLOOKUP(DATE(YEAR(AT8),MONTH(AT8),1),CPI_Con_F!$D$18:$G$67,4,FALSE)),ISERROR(VLOOKUP(DATE(YEAR(AT8),MONTH(AT8),1),CPI_Con_F!$D$18:$G$67,4,FALSE))),General!$H$24,VLOOKUP(DATE(YEAR(AT8),MONTH(AT8),1),CPI_Con_F!$D$18:$G$67,4,FALSE))) -> 2.444401342 | AU11: =AT11*(1+IF(OR(ISBLANK(VLOOKUP(DATE(YEAR(AU8),MONTH(AU8),1),CPI_Con_F!$D$18:$G$67,4,FALSE)),ISERROR(VLOOKUP(DATE(YEAR(AU8),MONTH(AU8),1),CPI_Con_F!$D$18:$G$67,4,FALSE))),General!$H$24,VLOOKUP(DATE(YEAR(AU8),MONTH(AU8),1),CPI_Con_F!$D$18:$G$67,4,FALSE))) -> 2.505511375 | AV11: =AU11*(1+IF(OR(ISBLANK(VLOOKUP(DATE(YEAR(AV8),MONTH(AV8),1),CPI_Con_F!$D$18:$G$67,4,FALSE)),ISERROR(VLOOKUP(DATE(YEAR(AV8),MONTH(AV8),1),CPI_Con_F!$D$18:$G$67,4,FALSE))),General!$H$24,VLOOKUP(DATE(YEAR(AV8),MONTH(AV8),1),CPI_Con_F!$D$18:$G$67,4,FALSE))) -> 2.56814916 | AW11: =AV11*(1+IF(OR(ISBLANK(VLOOKUP(DATE(YEAR(AW8),MONTH(AW8),1),CPI_Con_F!$D$18:$G$67,4,FALSE)),ISERROR(VLOOKUP(DATE(YEAR(AW8),MONTH(AW8),1),CPI_Con_F!$D$18:$G$67,4,FALSE))),General!$H$24,VLOOKUP(DATE(YEAR(AW8),MONTH(AW8),1),CPI_Con_F!$D$18:$G$67,4,FALSE))) -> 2.632352889 | AX11: =AW11*(1+IF(OR(ISBLANK(VLOOKUP(DATE(YEAR(AX8),MONTH(AX8),1),CPI_Con_F!$D$18:$G$67,4,FALSE)),ISERROR(VLOOKUP(DATE(YEAR(AX8),MONTH(AX8),1),CPI_Con_F!$D$18:$G$67,4,FALSE))),General!$H$24,VLOOKUP(DATE(YEAR(AX8),MONTH(AX8),1),CPI_Con_F!$D$18:$G$67,4,FALSE))) -> 2.698161711 | AY11: =AX11*(1+IF(OR(ISBLANK(VLOOKUP(DATE(YEAR(AY8),MONTH(AY8),1),CPI_Con_F!$D$18:$G$67,4,FALSE)),ISERROR(VLOOKUP(DATE(YEAR(AY8),MONTH(AY8),1),CPI_Con_F!$D$18:$G$67,4,FALSE))),General!$H$24,VLOOKUP(DATE(YEAR(AY8),MONTH(AY8),1),CPI_Con_F!$D$18:$G$67,4,FALSE))) -> 2.765615754 | AZ11: =AY11*(1+IF(OR(ISBLANK(VLOOKUP(DATE(YEAR(AZ8),MONTH(AZ8),1),CPI_Con_F!$D$18:$G$67,4,FALSE)),ISERROR(VLOOKUP(DATE(YEAR(AZ8),MONTH(AZ8),1),CPI_Con_F!$D$18:$G$67,4,FALSE))),General!$H$24,VLOOKUP(DATE(YEAR(AZ8),MONTH(AZ8),1),CPI_Con_F!$D$18:$G$67,4,FALSE))) -> 2.834756147 | BA11: =AZ11*(1+IF(OR(ISBLANK(VLOOKUP(DATE(YEAR(BA8),MONTH(BA8),1),CPI_Con_F!$D$18:$G$67,4,FALSE)),ISERROR(VLOOKUP(DATE(YEAR(BA8),MONTH(BA8),1),CPI_Con_F!$D$18:$G$67,4,FALSE))),General!$H$24,VLOOKUP(DATE(YEAR(BA8),MONTH(BA8),1),CPI_Con_F!$D$18:$G$67,4,FALSE))) -> 2.905625051 | BB11: =BA11*(1+IF(OR(ISBLANK(VLOOKUP(DATE(YEAR(BB8),MONTH(BB8),1),CPI_Con_F!$D$18:$G$67,4,FALSE)),ISERROR(VLOOKUP(DATE(YEAR(BB8),MONTH(BB8),1),CPI_Con_F!$D$18:$G$67,4,FALSE))),General!$H$24,VLOOKUP(DATE(YEAR(BB8),MONTH(BB8),1),CPI_Con_F!$D$18:$G$67,4,FALSE))) -> 2.978265677 | BC11: =BB11*(1+IF(OR(ISBLANK(VLOOKUP(DATE(YEAR(BC8),MONTH(BC8),1),CPI_Con_F!$D$18:$G$67,4,FALSE)),ISERROR(VLOOKUP(DATE(YEAR(BC8),MONTH(BC8),1),CPI_Con_F!$D$18:$G$67,4,FALSE))),General!$H$24,VLOOKUP(DATE(YEAR(BC8),MONTH(BC8),1),CPI_Con_F!$D$18:$G$67,4,FALSE))) -> 3.052722319 | BD11: =BC11*(1+IF(OR(ISBLANK(VLOOKUP(DATE(YEAR(BD8),MONTH(BD8),1),CPI_Con_F!$D$18:$G$67,4,FALSE)),ISERROR(VLOOKUP(DATE(YEAR(BD8),MONTH(BD8),1),CPI_Con_F!$D$18:$G$67,4,FALSE))),General!$H$24,VLOOKUP(DATE(YEAR(BD8),MONTH(BD8),1),CPI_Con_F!$D$18:$G$67,4,FALSE))) -> 3.129040377 | BE11: =BD11*(1+IF(OR(ISBLANK(VLOOKUP(DATE(YEAR(BE8),MONTH(BE8),1),CPI_Con_F!$D$18:$G$67,4,FALSE)),ISERROR(VLOOKUP(DATE(YEAR(BE8),MONTH(BE8),1),CPI_Con_F!$D$18:$G$67,4,FALSE))),General!$H$24,VLOOKUP(DATE(YEAR(BE8),MONTH(BE8),1),CPI_Con_F!$D$18:$G$67,4,FALSE))) -> 3.207266387 | BF11: =BE11*(1+IF(OR(ISBLANK(VLOOKUP(DATE(YEAR(BF8),MONTH(BF8),1),CPI_Con_F!$D$18:$G$67,4,FALSE)),ISERROR(VLOOKUP(DATE(YEAR(BF8),MONTH(BF8),1),CPI_Con_F!$D$18:$G$67,4,FALSE))),General!$H$24,VLOOKUP(DATE(YEAR(BF8),MONTH(BF8),1),CPI_Con_F!$D$18:$G$67,4,FALSE))) -> 3.287448046 | BG11: =BF11*(1+IF(OR(ISBLANK(VLOOKUP(DATE(YEAR(BG8),MONTH(BG8),1),CPI_Con_F!$D$18:$G$67,4,FALSE)),ISERROR(VLOOKUP(DATE(YEAR(BG8),MONTH(BG8),1),CPI_Con_F!$D$18:$G$67,4,FALSE))),General!$H$24,VLOOKUP(DATE(YEAR(BG8),MONTH(BG8),1),CPI_Con_F!$D$18:$G$67,4,FALSE))) -> 3.369634248
B12: CPI Index (lagged) | J12: =IF(J9=1,1,I11) -> 1 | K12: 1 | L12: 1.03 | M12: 1.05575 | N12: 1.08214375 | O12: 1.109197344 | P12: 1.136927277 | Q12: 1.165350459 | R12: 1.194484221 | S12: 1.224346326 | T12: 1.254954984 | U12: 1.286328859 | V12: 1.318487081 | W12: 1.351449258 | X12: 1.385235489 | Y12: 1.419866376 | Z12: 1.455363036 | AA12: 1.491747111 | AB12: 1.529040789 | AC12: 1.567266809 | AD12: 1.606448479 | AE12: 1.646609691 | AF12: 1.687774933 | AG12: 1.729969307 | AH12: 1.77321854 | AI12: 1.817549003 | AJ12: 1.862987728 | AK12: 1.909562421 | AL12: 1.957301482 | AM12: 2.006234019 | AN12: 2.056389869 | AO12: 2.107799616 | AP12: 2.160494606 | AQ12: 2.214506972 | AR12: 2.269869646 | AS12: 2.326616387 | AT12: 2.384781797 | AU12: 2.444401342 | AV12: 2.505511375 | AW12: 2.56814916 | AX12: 2.632352889 | AY12: 2.698161711 | AZ12: 2.765615754 | BA12: 2.834756147 | BB12: 2.905625051 | BC12: 2.978265677 | BD12: 3.052722319 | BE12: 3.129040377 | BF12: 3.207266387 | BG12: 3.287448046
B13: Discount Index (pre tax) | J13: =(1+General!J32)^(J$9-1) -> 1 | K13: =(1+General!K32)^(K$9-1) -> 1.0556 | L13: =(1+General!L32)^(L$9-1) -> 1.11429136 | M13: =(1+General!M32)^(M$9-1) -> 1.17624596 | N13: =(1+General!N32)^(N$9-1) -> 1.241645235 | O13: =(1+General!O32)^(O$9-1) -> 1.31068071 | P13: =(1+General!P32)^(P$9-1) -> 1.383554558 | Q13: =(1+General!Q32)^(Q$9-1) -> 1.460480191 | R13: =(1+General!R32)^(R$9-1) -> 1.54168289 | S13: =(1+General!S32)^(S$9-1) -> 1.627400458 | T13: =(1+General!T32)^(T$9-1) -> 1.717883924 | U13: =(1+General!U32)^(U$9-1) -> 1.81339827 | V13: =(1+General!V32)^(V$9-1) -> 1.914223214 | W13: =(1+General!W32)^(W$9-1) -> 2.020654024 | X13: =(1+General!X32)^(X$9-1) -> 2.133002388 | Y13: =(1+General!Y32)^(Y$9-1) -> 2.251597321 | Z13: =(1+General!Z32)^(Z$9-1) -> 2.376786132 | AA13: =(1+General!AA32)^(AA$9-1) -> 2.508935441 | AB13: =(1+General!AB32)^(AB$9-1) -> 2.648432251 | AC13: =(1+General!AC32)^(AC$9-1) -> 2.795685084 | AD13: =(1+General!AD32)^(AD$9-1) -> 2.951125175 | AE13: =(1+General!AE32)^(AE$9-1) -> 3.115207735 | AF13: =(1+General!AF32)^(AF$9-1) -> 3.288413285 | AG13: =(1+General!AG32)^(AG$9-1) -> 3.471249064 | AH13: =(1+General!AH32)^(AH$9-1) -> 3.664250512 | AI13: =(1+General!AI32)^(AI$9-1) -> 3.86798284 | AJ13: =(1+General!AJ32)^(AJ$9-1) -> 4.083042686 | AK13: =(1+General!AK32)^(AK$9-1) -> 4.310059859 | AL13: =(1+General!AL32)^(AL$9-1) -> 4.549699187 | AM13: =(1+General!AM32)^(AM$9-1) -> 4.802662462 | AN13: =(1+General!AN32)^(AN$9-1) -> 5.069690495 | AO13: =(1+General!AO32)^(AO$9-1) -> 5.351565287 | AP13: =(1+General!AP32)^(AP$9-1) -> 5.649112317 | AQ13: =(1+General!AQ32)^(AQ$9-1) -> 5.963202961 | AR13: =(1+General!AR32)^(AR$9-1) -> 6.294757046 | AS13: =(1+General!AS32)^(AS$9-1) -> 6.644745538 | AT13: =(1+General!AT32)^(AT$9-1) -> 7.01419339 | AU13: =(1+General!AU32)^(AU$9-1) -> 7.404182542 | AV13: =(1+General!AV32)^(AV$9-1) -> 7.815855092 | AW13: =(1+General!AW32)^(AW$9-1) -> 8.250416635 | AX13: =(1+General!AX32)^(AX$9-1) -> 8.709139799 | AY13: =(1+General!AY32)^(AY$9-1) -> 9.193367972 | AZ13: =(1+General!AZ32)^(AZ$9-1) -> 9.704519232 | BA13: =(1+General!BA32)^(BA$9-1) -> 10.2440905 | BB13: =(1+General!BB32)^(BB$9-1) -> 10.81366193 | BC13: =(1+General!BC32)^(BC$9-1) -> 11.41490154 | BD13: =(1+General!BD32)^(BD$9-1) -> 12.04957006 | BE13: =(1+General!BE32)^(BE$9-1) -> 12.71952616 | BF13: =(1+General!BF32)^(BF$9-1) -> 13.42673181 | BG13: =(1+General!BG32)^(BG$9-1) -> 14.1732581
J16: ="FY "&RIGHT(J10,2) -> FY 24 | K16: FY 25 | L16: FY 26 | M16: FY 27 | N16: FY 28 | O16: FY 29 | P16: FY 30 | Q16: FY 31 | R16: FY 32 | S16: FY 33 | T16: FY 34 | U16: FY 35 | V16: FY 36 | W16: FY 37 | X16: FY 38 | Y16: FY 39 | Z16: FY 40 | AA16: FY 41 | AB16: FY 42 | AC16: FY 43 | AD16: FY 44 | AE16: FY 45 | AF16: FY 46 | AG16: FY 47 | AH16: FY 48 | AI16: FY 49 | AJ16: FY 50 | AK16: FY 51 | AL16: FY 52 | AM16: FY 53 | AN16: FY 54 | AO16: FY 55 | AP16: FY 56 | AQ16: FY 57 | AR16: FY 58 | AS16: FY 59 | AT16: FY 60 | AU16: FY 61 | AV16: FY 62 | AW16: FY 63 | AX16: FY 64 | AY16: FY 65 | AZ16: FY 66 | BA16: FY 67 | BB16: FY 68 | BC16: FY 69 | BD16: FY 70 | BE16: FY 71 | BF16: FY 72 | BG16: FY 73
B17: Summary | J17: =J9 -> 1 | K17: 2 | L17: 3 | M17: 4 | N17: 5 | O17: 6 | P17: 7 | Q17: 8 | R17: 9 | S17: 10 | T17: 11 | U17: 12 | V17: 13 | W17: 14 | X17: 15 | Y17: 16 | Z17: 17 | AA17: 18 | AB17: 19 | AC17: 20 | AD17: 21 | AE17: 22 | AF17: 23 | AG17: 24 | AH17: 25 | AI17: 26 | AJ17: 27 | AK17: 28 | AL17: 29 | AM17: 30 | AN17: 31 | AO17: 32 | AP17: 33 | AQ17: 34 | AR17: 35 | AS17: 36 | AT17: 37 | AU17: 38 | AV17: 39 | AW17: 40 | AX17: 41 | AY17: 42 | AZ17: 43 | BA17: 44 | BB17: 45 | BC17: 46 | BD17: 47 | BE17: 48 | BF17: 49 | BG17: 50
A19: To determine the highest value project | E19: Present Value Cost
F20: Capital Expenditure | H20: =SUM(J20:BG20) -> -170.5582094 | J20: -0.996 | K20: 0 | L20: -29.25387216 | M20: -30.23848922 | N20: -26.23974438 | O20: -24.58130721 | P20: -17.33174617 | Q20: -6.855393726 | R20: -12.32936867 | S20: -1.45745622 | T20: -0.3706494813 | U20: 0 | V20: 0 | W20: -0.205661455 | X20: -5.485750448 | Y20: -13.34493737 | Z20: -1.86783293 | AA20: 0 | AB20: 0 | AC20: 0 | AD20: 0 | AE20: 0 | AF20: 0 | AG20: 0 | AH20: 0 | AI20: 0 | AJ20: 0 | AK20: 0 | AL20: 0 | AM20: 0 | AN20: 0 | AO20: 0 | AP20: 0 | AQ20: 0 | AR20: 0 | AS20: 0 | AT20: 0 | AU20: 0 | AV20: 0 | AW20: 0 | AX20: 0 | AY20: 0 | AZ20: 0 | BA20: 0 | BB20: 0 | BC20: 0 | BD20: 0 | BE20: 0 | BF20: 0 | BG20: 0
F21: Operating Expenditure | H21: =SUM(J21:BG21) -> -15.21670297 | J21: 0 | K21: -0.009757483895 | L21: -0.009474631482 | M21: -0.6623984496 | N21: -1.295326639 | O21: -1.859680242 | P21: -2.381373669 | Q21: -2.807816165 | R21: -1.204664691 | S21: -1.289463184 | T21: -1.26623597 | U21: -1.233129052 | V21: -1.197382794 | W21: 0 | X21: 0 | Y21: 0 | Z21: 0 | AA21: 0 | AB21: 0 | AC21: 0 | AD21: 0 | AE21: 0 | AF21: 0 | AG21: 0 | AH21: 0 | AI21: 0 | AJ21: 0 | AK21: 0 | AL21: 0 | AM21: 0 | AN21: 0 | AO21: 0 | AP21: 0 | AQ21: 0 | AR21: 0 | AS21: 0 | AT21: 0 | AU21: 0 | AV21: 0 | AW21: 0 | AX21: 0 | AY21: 0 | AZ21: 0 | BA21: 0 | BB21: 0 | BC21: 0 | BD21: 0 | BE21: 0 | BF21: 0 | BG21: 0
F22: Net Benefits | H22: =SUM(J22:BG22) -> 3715.27361 | J22: 0 | K22: 28.32666546 | L22: 27.49308163 | M22: 84.82312962 | N22: 90.30702776 | O22: 396.7160894 | P22: 439.2407807 | Q22: 444.0792218 | R22: 447.0037093 | S22: 441.6021301 | T22: 435.8151339 | U22: 441.2021718 | V22: 438.6644687 | W22: 0 | X22: 0 | Y22: 0 | Z22: 0 | AA22: 0 | AB22: 0 | AC22: 0 | AD22: 0 | AE22: 0 | AF22: 0 | AG22: 0 | AH22: 0 | AI22: 0 | AJ22: 0 | AK22: 0 | AL22: 0 | AM22: 0 | AN22: 0 | AO22: 0 | AP22: 0 | AQ22: 0 | AR22: 0 | AS22: 0 | AT22: 0 | AU22: 0 | AV22: 0 | AW22: 0 | AX22: 0 | AY22: 0 | AZ22: 0 | BA22: 0 | BB22: 0 | BC22: 0 | BD22: 0 | BE22: 0 | BF22: 0 | BG22: 0
E23: Total Present Value | H23: =SUM(J23:BG23) -> 3529.498698 | J23: =SUM(J20:J22) -> -0.996 | K23: =SUM(K20:K22) -> 28.31690798 | L23: -1.770265168 | M23: =SUM(M20:M22) -> 53.92224195 | N23: 62.77195674 | O23: 370.2751019 | P23: 419.5276609 | Q23: 434.4160119 | R23: 433.4696759 | S23: 438.8552107 | T23: 434.1782484 | U23: 439.9690428 | V23: 437.467086 | W23: -0.205661455 | X23: -5.485750448 | Y23: -13.34493737 | Z23: -1.86783293 | AA23: 0 | AB23: 0 | AC23: 0 | AD23: 0 | AE23: 0 | AF23: 0 | AG23: 0 | AH23: 0 | AI23: 0 | AJ23: 0 | AK23: 0 | AL23: 0 | AM23: 0 | AN23: 0 | AO23: 0 | AP23: 0 | AQ23: 0 | AR23: 0 | AS23: 0 | AT23: 0 | AU23: 0 | AV23: 0 | AW23: 0 | AX23: 0 | AY23: 0 | AZ23: 0 | BA23: 0 | BB23: 0 | BC23: 0 | BD23: 0 | BE23: 0 | BF23: 0 | BG23: 0
A25: To determine the capex & opex need for the EDPR period | E25: Undiscounted
F26: Capital Expenditure | H26: =SUM(J26:BG26) -> -119.538 | J26: 0 | K26: 0 | L26: 0 | M26: -32.868 | N26: -29.373 | O26: -28.338 | P26: -20.577 | Q26: -8.382 | R26: 0 | S26: 0 | T26: 0 | U26: 0 | V26: 0 | W26: 0 | X26: 0 | Y26: 0 | Z26: 0 | AA26: 0 | AB26: 0 | AC26: 0 | AD26: 0 | AE26: 0 | AF26: 0 | AG26: 0 | AH26: 0 | AI26: 0 | AJ26: 0 | AK26: 0 | AL26: 0 | AM26: 0 | AN26: 0 | AO26: 0 | AP26: 0 | AQ26: 0 | AR26: 0 | AS26: 0 | AT26: 0 | AU26: 0 | AV26: 0 | AW26: 0 | AX26: 0 | AY26: 0 | AZ26: 0 | BA26: 0 | BB26: 0 | BC26: 0 | BD26: 0 | BE26: 0 | BF26: 0 | BG26: 0
F27: Operating Expenditure | H27: =SUM(J27:BG27) -> -10.57424 | J27: 0 | K27: 0 | L27: 0 | M27: -0.72 | N27: -1.45 | O27: -2.14389 | P27: -2.82727 | Q27: -3.43308 | R27: 0 | S27: 0 | T27: 0 | U27: 0 | V27: 0 | W27: 0 | X27: 0 | Y27: 0 | Z27: 0 | AA27: 0 | AB27: 0 | AC27: 0 | AD27: 0 | AE27: 0 | AF27: 0 | AG27: 0 | AH27: 0 | AI27: 0 | AJ27: 0 | AK27: 0 | AL27: 0 | AM27: 0 | AN27: 0 | AO27: 0 | AP27: 0 | AQ27: 0 | AR27: 0 | AS27: 0 | AT27: 0 | AU27: 0 | AV27: 0 | AW27: 0 | AX27: 0 | AY27: 0 | AZ27: 0 | BA27: 0 | BB27: 0 | BC27: 0 | BD27: 0 | BE27: 0 | BF27: 0 | BG27: 0
F28: Net Benefits | H28: =SUM(J28:BG28) -> 1715.090381 | J28: 0 | K28: 0 | L28: 0 | M28: 92.19926973 | N28: 101.0904789 | O28: 457.3451056 | P28: 521.4856863 | Q28: 542.9698403 | R28: 0 | S28: 0 | T28: 0 | U28: 0 | V28: 0 | W28: 0 | X28: 0 | Y28: 0 | Z28: 0 | AA28: 0 | AB28: 0 | AC28: 0 | AD28: 0 | AE28: 0 | AF28: 0 | AG28: 0 | AH28: 0 | AI28: 0 | AJ28: 0 | AK28: 0 | AL28: 0 | AM28: 0 | AN28: 0 | AO28: 0 | AP28: 0 | AQ28: 0 | AR28: 0 | AS28: 0 | AT28: 0 | AU28: 0 | AV28: 0 | AW28: 0 | AX28: 0 | AY28: 0 | AZ28: 0 | BA28: 0 | BB28: 0 | BC28: 0 | BD28: 0 | BE28: 0 | BF28: 0 | BG28: 0
E29: Undiscounted Total Value | H29: =SUM(J29:BG29) -> 1584.978141 | J29: =SUM(J26:J28) -> 0 | K29: =SUM(K26:K28) -> 0 | L29: 0 | M29: 58.61126973 | N29: 70.26747892 | O29: 426.8632156 | P29: 498.0814163 | Q29: 531.1547603 | R29: 0 | S29: 0 | T29: 0 | U29: 0 | V29: 0 | W29: 0 | X29: 0 | Y29: 0 | Z29: 0 | AA29: 0 | AB29: 0 | AC29: 0 | AD29: 0 | AE29: 0 | AF29: 0 | AG29: 0 | AH29: 0 | AI29: 0 | AJ29: 0 | AK29: 0 | AL29: 0 | AM29: 0 | AN29: 0 | AO29: 0 | AP29: 0 | AQ29: 0 | AR29: 0 | AS29: 0 | AT29: 0 | AU29: 0 | AV29: 0 | AW29: 0 | AX29: 0 | AY29: 0 | AZ29: 0 | BA29: 0 | BB29: 0 | BC29: 0 | BD29: 0 | BE29: 0 | BF29: 0 | BG29: 0
B32: Capital Expenditure
F35: Category | G35: Description (optional) | I35: Dollar Basis
F36: Option 2 SWER | G36: =General!G11 -> Economic Approach to Electrification - network and non-network projects | AA36: 0
F37: Option 2 DSS | G37: =General!G11 -> Economic Approach to Electrification - network and non-network projects
F39: Option 2 DSS Deferrals | G39: =G37 -> Economic Approach to Electrification - network and non-network projects | AA39: =-S39 -> 0 | AB39: 0 | AC39: 0 | AD39: 0
F46: Total Direct Capex | J46: =SUM(J36:J45) -> 0 | K46: =SUM(K36:K45) -> 0 | L46: =SUM(L36:L45) -> 0 | M46: 0 | N46: 0 | O46: 0 | P46: 0 | Q46: =SUM(Q36:Q45) -> 0 | R46: 0 | S46: 0 | T46: 0 | U46: 0 | V46: 0 | W46: 0 | X46: 0 | Y46: 0 | Z46: 0 | AA46: 0 | AB46: 0 | AC46: 0 | AD46: 0 | AE46: 0 | AF46: 0 | AG46: 0 | AH46: 0 | AI46: 0 | AJ46: 0 | AK46: 0 | AL46: 0 | AM46: 0 | AN46: 0 | AO46: 0 | AP46: 0 | AQ46: 0 | AR46: 0 | AS46: 0 | AT46: 0 | AU46: 0 | AV46: 0 | AW46: 0 | AX46: 0 | AY46: 0 | AZ46: 0 | BA46: 0 | BB46: 0 | BC46: 0 | BD46: 0 | BE46: 0 | BF46: 0 | BG46: 0
G49: Dollar Basis for Conversion | H49: Conversion Factor
F50: =F36 -> Option 2 SWER | G50: 2024-06-30 | H50: 1 | AA50: =AA36*$H50 -> 0 | AB50: 0 | AC50: 0 | AD50: 0 | AE50: 0 | AF50: 0 | AG50: 0 | AH50: 0 | AI50: 0 | AJ50: 0 | AK50: 0 | AL50: 0 | AM50: 0 | AN50: 0 | AO50: 0 | AP50: 0 | AQ50: 0 | AR50: 0 | AS50: 0 | AT50: 0 | AU50: 0 | AV50: 0 | AW50: 0 | AX50: 0 | AY50: 0 | AZ50: 0 | BA50: 0 | BB50: 0 | BC50: 0 | BD50: 0 | BE50: 0 | BF50: 0 | BG50: 0
F51: =F37 -> Option 2 DSS | G51: 2024-06-30 | H51: 1 | AA51: 0 | AB51: 0 | AC51: 0 | AD51: 0 | AE51: 0 | AF51: 0 | AG51: 0 | AH51: 0 | AI51: 0 | AJ51: 0 | AK51: 0 | AL51: 0 | AM51: 0 | AN51: 0 | AO51: 0 | AP51: 0 | AQ51: 0 | AR51: 0 | AS51: 0 | AT51: 0 | AU51: 0 | AV51: 0 | AW51: 0 | AX51: 0 | AY51: 0 | AZ51: 0 | BA51: 0 | BB51: 0 | BC51: 0 | BD51: 0 | BE51: 0 | BF51: 0 | BG51: 0
AA52: 0 | AB52: 0 | AC52: 0 | AD52: 0 | AE52: 0 | AF52: 0 | AG52: 0 | AH52: 0 | AI52: 0 | AJ52: 0 | AK52: 0 | AL52: 0 | AM52: 0 | AN52: 0 | AO52: 0 | AP52: 0 | AQ52: 0 | AR52: 0 | AS52: 0 | AT52: 0 | AU52: 0 | AV52: 0 | AW52: 0 | AX52: 0 | AY52: 0 | AZ52: 0 | BA52: 0 | BB52: 0 | BC52: 0 | BD52: 0 | BE52: 0 | BF52: 0 | BG52: 0
F53: =F39 -> Option 2 DSS Deferrals | G53: 2024-06-30 | H53: 1 | AA53: 0 | AB53: 0 | AC53: 0 | AD53: 0 | AE53: 0 | AF53: 0 | AG53: 0 | AH53: 0 | AI53: 0 | AJ53: 0 | AK53: 0 | AL53: 0 | AM53: 0 | AN53: 0 | AO53: 0 | AP53: 0 | AQ53: 0 | AR53: 0 | AS53: 0 | AT53: 0 | AU53: 0 | AV53: 0 | AW53: 0 | AX53: 0 | AY53: 0 | AZ53: 0 | BA53: 0 | BB53: 0 | BC53: 0 | BD53: 0 | BE53: 0 | BF53: 0 | BG53: 0
J54: 0 | K54: 0 | L54: 0 | M54: 0 | N54: 0 | O54: 0 | P54: 0 | Q54: 0 | R54: 0 | S54: 0 | T54: 0 | U54: 0 | V54: 0 | W54: 0 | X54: 0 | Y54: 0 | Z54: 0 | AA54: 0 | AB54: 0 | AC54: 0 | AD54: 0 | AE54: 0 | AF54: 0 | AG54: 0 | AH54: 0 | AI54: 0 | AJ54: 0 | AK54: 0 | AL54: 0 | AM54: 0 | AN54: 0 | AO54: 0 | AP54: 0 | AQ54: 0 | AR54: 0 | AS54: 0 | AT54: 0 | AU54: 0 | AV54: 0 | AW54: 0 | AX54: 0 | AY54: 0 | AZ54: 0 | BA54: 0 | BB54: 0 | BC54: 0 | BD54: 0 | BE54: 0 | BF54: 0 | BG54: 0
J55: 0 | K55: 0 | L55: 0 | M55: 0 | N55: 0 | O55: =O41*$H55 -> 0 | P55: 0 | Q55: 0 | R55: 0 | S55: 0 | T55: 0 | U55: 0 | V55: 0 | W55: 0 | X55: 0 | Y55: 0 | Z55: 0 | AA55: 0 | AB55: 0 | AC55: 0 | AD55: 0 | AE55: 0 | AF55: 0 | AG55: 0 | AH55: 0 | AI55: 0 | AJ55: 0 | AK55: 0 | AL55: 0 | AM55: 0 | AN55: 0 | AO55: 0 | AP55: 0 | AQ55: 0 | AR55: 0 | AS55: 0 | AT55: 0 | AU55: 0 | AV55: 0 | AW55: 0 | AX55: 0 | AY55: 0 | AZ55: 0 | BA55: 0 | BB55: 0 | BC55: 0 | BD55: 0 | BE55: 0 | BF55: 0 | BG55: 0
J56: =J42*$H56 -> 0 | K56: 0 | L56: 0 | M56: 0 | N56: 0 | O56: 0 | P56: 0 | Q56: 0 | R56: 0 | S56: 0 | T56: 0 | U56: 0 | V56: 0 | W56: 0 | X56: 0 | Y56: 0 | Z56: 0 | AA56: 0 | AB56: 0 | AC56: 0 | AD56: 0 | AE56: 0 | AF56: 0 | AG56: 0 | AH56: 0 | AI56: 0 | AJ56: 0 | AK56: 0 | AL56: 0 | AM56: 0 | AN56: 0 | AO56: 0 | AP56: 0 | AQ56: 0 | AR56: 0 | AS56: 0 | AT56: 0 | AU56: 0 | AV56: 0 | AW56: 0 | AX56: 0 | AY56: 0 | AZ56: 0 | BA56: 0 | BB56: 0 | BC56: 0 | BD56: 0 | BE56: 0 | BF56: 0 | BG56: 0
J57: 0 | K57: 0 | L57: 0 | M57: 0 | N57: 0 | O57: 0 | P57: 0 | Q57: 0 | R57: 0 | S57: 0 | T57: 0 | U57: 0 | V57: 0 | W57: 0 | X57: 0 | Y57: 0 | Z57: 0 | AA57: 0 | AB57: 0 | AC57: 0 | AD57: 0 | AE57: 0 | AF57: 0 | AG57: 0 | AH57: 0 | AI57: 0 | AJ57: 0 | AK57: 0 | AL57: 0 | AM57: 0 | AN57: 0 | AO57: 0 | AP57: 0 | AQ57: 0 | AR57: 0 | AS57: 0 | AT57: 0 | AU57: 0 | AV57: 0 | AW57: 0 | AX57: 0 | AY57: 0 | AZ57: 0 | BA57: 0 | BB57: 0 | BC57: 0 | BD57: 0 | BE57: 0 | BF57: 0 | BG57: 0
J58: 0 | K58: 0 | L58: 0 | M58: 0 | N58: 0 | O58: 0 | P58: 0 | Q58: 0 | R58: 0 | S58: 0 | T58: 0 | U58: 0 | V58: 0 | W58: 0 | X58: 0 | Y58: 0 | Z58: 0 | AA58: 0 | AB58: 0 | AC58: 0 | AD58: 0 | AE58: 0 | AF58: 0 | AG58: 0 | AH58: 0 | AI58: 0 | AJ58: 0 | AK58: 0 | AL58: 0 | AM58: 0 | AN58: 0 | AO58: 0 | AP58: 0 | AQ58: 0 | AR58: 0 | AS58: 0 | AT58: 0 | AU58: 0 | AV58: 0 | AW58: 0 | AX58: 0 | AY58: 0 | AZ58: 0 | BA58: 0 | BB58: 0 | BC58: 0 | BD58: 0 | BE58: 0 | BF58: 0 | BG58: 0
J59: 0 | K59: 0 | L59: 0 | M59: 0 | N59: 0 | O59: 0 | P59: 0 | Q59: 0 | R59: 0 | S59: 0 | T59: 0 | U59: 0 | V59: 0 | W59: 0 | X59: 0 | Y59: 0 | Z59: 0 | AA59: 0 | AB59: 0 | AC59: 0 | AD59: 0 | AE59: 0 | AF59: 0 | AG59: 0 | AH59: 0 | AI59: 0 | AJ59: 0 | AK59: 0 | AL59: 0 | AM59: 0 | AN59: 0 | AO59: 0 | AP59: 0 | AQ59: 0 | AR59: 0 | AS59: 0 | AT59: 0 | AU59: 0 | AV59: 0 | AW59: 0 | AX59: 0 | AY59: 0 | AZ59: 0 | BA59: 0 | BB59: 0 | BC59: 0 | BD59: 0 | BE59: 0 | BF59: 0 | BG59: 0
F60: Total Direct Capex | J60: =SUM(J50:J59) -> 0 | K60: =SUM(K50:K59) -> 0 | L60: 0 | M60: =SUM(M50:M59) -> 0 | N60: 0 | O60: 0 | P60: 0 | Q60: 0 | R60: 0 | S60: 0 | T60: 0 | U60: 0 | V60: 0 | W60: 0 | X60: 0 | Y60: 0 | Z60: 0 | AA60: 0 | AB60: 0 | AC60: 0 | AD60: 0 | AE60: 0 | AF60: 0 | AG60: 0 | AH60: 0 | AI60: 0 | AJ60: 0 | AK60: 0 | AL60: 0 | AM60: 0 | AN60: 0 | AO60: 0 | AP60: 0 | AQ60: 0 | AR60: 0 | AS60: 0 | AT60: 0 | AU60: 0 | AV60: 0 | AW60: 0 | AX60: 0 | AY60: 0 | AZ60: 0 | BA60: 0 | BB60: 0 | BC60: 0 | BD60: 0 | BE60: 0 | BF60: 0 | BG60: 0
B62: Operating Expenditure (enter costs as positive numbers and savings as negative numbers)
F64: Category | G64: Description (optional) | I64: Dollar Basis
F65: =F36 -> Option 2 SWER | G65: =G36 -> Economic Approach to Electrification - network and non-network projects
F66: =F37 -> Option 2 DSS | G66: =G37 -> Economic Approach to Electrification - network and non-network projects
F67: Option 2 Flexible Services | G67: =G66 -> Economic Approach to Electrification - network and non-network projects
F68: =F39 -> Option 2 DSS Deferrals | G68: =G67 -> Economic Approach to Electrification - network and non-network projects
F75: Total Opex | J75: =SUM(J65:J74) -> 0 | K75: =SUM(K65:K74) -> 0 | L75: 0 | M75: 0 | N75: 0 | O75: 0 | P75: =SUM(P65:P74) -> 0 | Q75: 0 | R75: 0 | S75: 0 | T75: 0 | U75: 0 | V75: 0 | W75: 0 | X75: 0 | Y75: 0 | Z75: 0 | AA75: 0 | AB75: 0 | AC75: 0 | AD75: 0 | AE75: 0 | AF75: 0 | AG75: 0 | AH75: 0 | AI75: 0 | AJ75: 0 | AK75: 0 | AL75: 0 | AM75: 0 | AN75: 0 | AO75: 0 | AP75: 0 | AQ75: 0 | AR75: 0 | AS75: 0 | AT75: 0 | AU75: 0 | AV75: 0 | AW75: 0 | AX75: 0 | AY75: 0 | AZ75: 0 | BA75: 0 | BB75: 0 | BC75: 0 | BD75: 0 | BE75: 0 | BF75: 0 | BG75: 0
F78: Category | G78: Dollar Basis for Conversion | H78: Conversion Factor
F79: =F65 -> Option 2 SWER | G79: 2024-06-30 | H79: 1 | W79: =W65*$H79 -> 0 | X79: 0 | Y79: 0 | Z79: 0 | AA79: 0 | AB79: 0 | AC79: 0 | AD79: 0 | AE79: 0 | AF79: 0 | AG79: 0 | AH79: 0 | AI79: 0 | AJ79: 0 | AK79: 0 | AL79: 0 | AM79: 0 | AN79: 0 | AO79: 0 | AP79: 0 | AQ79: 0 | AR79: 0 | AS79: 0 | AT79: 0 | AU79: 0 | AV79: 0 | AW79: 0 | AX79: 0 | AY79: 0 | AZ79: 0 | BA79: 0 | BB79: 0 | BC79: 0 | BD79: 0 | BE79: 0 | BF79: 0 | BG79: 0
F80: =F66 -> Option 2 DSS | G80: 2024-06-30 | H80: 1 | W80: 0 | X80: 0 | Y80: 0 | Z80: 0 | AA80: 0 | AB80: 0 | AC80: 0 | AD80: 0 | AE80: 0 | AF80: 0 | AG80: 0 | AH80: 0 | AI80: 0 | AJ80: 0 | AK80: 0 | AL80: 0 | AM80: 0 | AN80: 0 | AO80: 0 | AP80: 0 | AQ80: 0 | AR80: 0 | AS80: 0 | AT80: 0 | AU80: 0 | AV80: 0 | AW80: 0 | AX80: 0 | AY80: 0 | AZ80: 0 | BA80: 0 | BB80: 0 | BC80: 0 | BD80: 0 | BE80: 0 | BF80: 0 | BG80: 0
F81: =F67 -> Option 2 Flexible Services | G81: 2024-06-30 | H81: 1 | W81: 0 | X81: 0 | Y81: 0 | Z81: 0 | AA81: 0 | AB81: 0 | AC81: 0 | AD81: 0 | AE81: 0 | AF81: 0 | AG81: 0 | AH81: 0 | AI81: 0 | AJ81: 0 | AK81: 0 | AL81: 0 | AM81: 0 | AN81: 0 | AO81: 0 | AP81: 0 | AQ81: 0 | AR81: 0 | AS81: 0 | AT81: 0 | AU81: 0 | AV81: 0 | AW81: 0 | AX81: 0 | AY81: 0 | AZ81: 0 | BA81: 0 | BB81: 0 | BC81: 0 | BD81: 0 | BE81: 0 | BF81: 0 | BG81: 0
F82: =F68 -> Option 2 DSS Deferrals | G82: 2024-06-30 | H82: 1 | W82: 0 | X82: 0 | Y82: 0 | Z82: 0 | AA82: 0 | AB82: 0 | AC82: 0 | AD82: 0 | AE82: 0 | AF82: 0 | AG82: 0 | AH82: 0 | AI82: 0 | AJ82: 0 | AK82: 0 | AL82: 0 | AM82: 0 | AN82: 0 | AO82: 0 | AP82: 0 | AQ82: 0 | AR82: 0 | AS82: 0 | AT82: 0 | AU82: 0 | AV82: 0 | AW82: 0 | AX82: 0 | AY82: 0 | AZ82: 0 | BA82: 0 | BB82: 0 | BC82: 0 | BD82: 0 | BE82: 0 | BF82: 0 | BG82: 0
J83: 0 | K83: 0 | L83: 0 | M83: 0 | N83: 0 | O83: 0 | P83: 0 | Q83: 0 | R83: 0 | S83: 0 | T83: 0 | U83: 0 | V83: 0 | W83: 0 | X83: 0 | Y83: 0 | Z83: 0 | AA83: 0 | AB83: 0 | AC83: 0 | AD83: 0 | AE83: 0 | AF83: 0 | AG83: 0 | AH83: 0 | AI83: 0 | AJ83: 0 | AK83: 0 | AL83: 0 | AM83: 0 | AN83: 0 | AO83: 0 | AP83: 0 | AQ83: 0 | AR83: 0 | AS83: 0 | AT83: 0 | AU83: 0 | AV83: 0 | AW83: 0 | AX83: 0 | AY83: 0 | AZ83: 0 | BA83: 0 | BB83: 0 | BC83: 0 | BD83: 0 | BE83: 0 | BF83: 0 | BG83: 0
J84: 0 | K84: 0 | L84: 0 | M84: 0 | N84: 0 | O84: =O70*$H84 -> 0 | P84: 0 | Q84: 0 | R84: 0 | S84: 0 | T84: 0 | U84: 0 | V84: 0 | W84: 0 | X84: 0 | Y84: 0 | Z84: 0 | AA84: 0 | AB84: 0 | AC84: 0 | AD84: 0 | AE84: 0 | AF84: 0 | AG84: 0 | AH84: 0 | AI84: 0 | AJ84: 0 | AK84: 0 | AL84: 0 | AM84: 0 | AN84: 0 | AO84: 0 | AP84: 0 | AQ84: 0 | AR84: 0 | AS84: 0 | AT84: 0 | AU84: 0 | AV84: 0 | AW84: 0 | AX84: 0 | AY84: 0 | AZ84: 0 | BA84: 0 | BB84: 0 | BC84: 0 | BD84: 0 | BE84: 0 | BF84: 0 | BG84: 0
J85: =J71*$H85 -> 0 | K85: 0 | L85: 0 | M85: 0 | N85: 0 | O85: 0 | P85: 0 | Q85: 0 | R85: 0 | S85: 0 | T85: 0 | U85: 0 | V85: 0 | W85: 0 | X85: 0 | Y85: 0 | Z85: 0 | AA85: 0 | AB85: 0 | AC85: 0 | AD85: 0 | AE85: 0 | AF85: 0 | AG85: 0 | AH85: 0 | AI85: 0 | AJ85: 0 | AK85: 0 | AL85: 0 | AM85: 0 | AN85: 0 | AO85: 0 | AP85: 0 | AQ85: 0 | AR85: 0 | AS85: 0 | AT85: 0 | AU85: 0 | AV85: 0 | AW85: 0 | AX85: 0 | AY85: 0 | AZ85: 0 | BA85: 0 | BB85: 0 | BC85: 0 | BD85: 0 | BE85: 0 | BF85: 0 | BG85: 0
J86: 0 | K86: 0 | L86: 0 | M86: 0 | N86: 0 | O86: 0 | P86: 0 | Q86: 0 | R86: 0 | S86: 0 | T86: 0 | U86: 0 | V86: 0 | W86: 0 | X86: 0 | Y86: 0 | Z86: 0 | AA86: 0 | AB86: 0 | AC86: 0 | AD86: 0 | AE86: 0 | AF86: 0 | AG86: 0 | AH86: 0 | AI86: 0 | AJ86: 0 | AK86: 0 | AL86: 0 | AM86: 0 | AN86: 0 | AO86: 0 | AP86: 0 | AQ86: 0 | AR86: 0 | AS86: 0 | AT86: 0 | AU86: 0 | AV86: 0 | AW86: 0 | AX86: 0 | AY86: 0 | AZ86: 0 | BA86: 0 | BB86: 0 | BC86: 0 | BD86: 0 | BE86: 0 | BF86: 0 | BG86: 0
J87: 0 | K87: 0 | L87: 0 | M87: 0 | N87: 0 | O87: 0 | P87: 0 | Q87: 0 | R87: 0 | S87: 0 | T87: 0 | U87: 0 | V87: 0 | W87: 0 | X87: 0 | Y87: 0 | Z87: 0 | AA87: 0 | AB87: 0 | AC87: 0 | AD87: 0 | AE87: 0 | AF87: 0 | AG87: 0 | AH87: 0 | AI87: 0 | AJ87: 0 | AK87: 0 | AL87: 0 | AM87: 0 | AN87: 0 | AO87: 0 | AP87: 0 | AQ87: 0 | AR87: 0 | AS87: 0 | AT87: 0 | AU87: 0 | AV87: 0 | AW87: 0 | AX87: 0 | AY87: 0 | AZ87: 0 | BA87: 0 | BB87: 0 | BC87: 0 | BD87: 0 | BE87: 0 | BF87: 0 | BG87: 0
J88: 0 | K88: 0 | L88: 0 | M88: 0 | N88: 0 | O88: 0 | P88: 0 | Q88: 0 | R88: 0 | S88: 0 | T88: 0 | U88: 0 | V88: 0 | W88: 0 | X88: 0 | Y88: 0 | Z88: 0 | AA88: 0 | AB88: 0 | AC88: 0 | AD88: 0 | AE88: 0 | AF88: 0 | AG88: 0 | AH88: 0 | AI88: 0 | AJ88: 0 | AK88: 0 | AL88: 0 | AM88: 0 | AN88: 0 | AO88: 0 | AP88: 0 | AQ88: 0 | AR88: 0 | AS88: 0 | AT88: 0 | AU88: 0 | AV88: 0 | AW88: 0 | AX88: 0 | AY88: 0 | AZ88: 0 | BA88: 0 | BB88: 0 | BC88: 0 | BD88: 0 | BE88: 0 | BF88: 0 | BG88: 0
F89: Total Opex | J89: =SUM(J79:J88) -> 0 | K89: =SUM(K79:K88) -> 0 | L89: 0 | M89: 0 | N89: 0 | O89: 0 | P89: =SUM(P79:P88) -> 0 | Q89: =SUM(Q79:Q88) -> 0 | R89: 0 | S89: 0 | T89: 0 | U89: 0 | V89: 0 | W89: 0 | X89: 0 | Y89: 0 | Z89: 0 | AA89: 0 | AB89: 0 | AC89: 0 | AD89: 0 | AE89: 0 | AF89: 0 | AG89: 0 | AH89: 0 | AI89: 0 | AJ89: 0 | AK89: 0 | AL89: 0 | AM89: 0 | AN89: 0 | AO89: 0 | AP89: 0 | AQ89: 0 | AR89: 0 | AS89: 0 | AT89: 0 | AU89: 0 | AV89: 0 | AW89: 0 | AX89: 0 | AY89: 0 | AZ89: 0 | BA89: 0 | BB89: 0 | BC89: 0 | BD89: 0 | BE89: 0 | BF89: 0 | BG89: 0
B91: Benefits
F93: Category | G93: Description (optional) | I93: Dollar basis
F94: =F65 -> Option 2 SWER | G94: Expected Energy at Risk | J94: 0 | K94: 29.03070686 | L94: 29.01757359 | M94: 92.19926973 | N94: 101.0904789 | O94: 102.8386746 | P94: 104.4033999 | Q94: 106.2088787 | R94: 108.2332928 | S94: 110.0760101 | T94: 112.2532863 | U94: 114.5155085 | V94: 116.9948376
F95: =F66 -> Option 2 DSS | G95: Expected Energy at Risk | J95: 0 | K95: 0 | L95: 0 | M95: 0 | N95: 0 | O95: 354.5064309 | P95: 417.414715 | Q95: 438.375796 | R95: 454.792994 | S95: 462.2074555 | T95: 469.4369851 | U95: 492.0017859 | V95: 504.0886515
F96: =F67 -> Option 2 Flexible Services | G96: Expected Energy at Risk | J96: 0 | K96: 0 | L96: 0 | M96: 0 | N96: 0 | O96: 0 | P96: 0.09674493665 | Q96: 0.6550022395 | R96: 2.122705058 | S96: 2.337228633 | T96: 2.338510191 | U96: 2.338795465 | V96: 2.339075193 | W96: 0 | X96: 0 | Y96: 0 | Z96: 0 | AA96: 0 | AB96: 0 | AC96: 0 | AD96: 0 | AE96: 0 | AF96: 0 | AG96: 0 | AH96: 0 | AI96: 0 | AJ96: 0 | AK96: 0 | AL96: 0 | AM96: 0 | AN96: 0 | AO96: 0 | AP96: 0 | AQ96: 0 | AR96: 0 | AS96: 0 | AT96: 0 | AU96: 0 | AV96: 0 | AW96: 0 | AX96: 0 | AY96: 0 | AZ96: 0 | BA96: 0 | BB96: 0 | BC96: 0 | BD96: 0 | BE96: 0 | BF96: 0 | BG96: 0
F97: =F68 -> Option 2 DSS Deferrals | G97: Expected Energy at Risk | J97: 0 | K97: 0 | L97: 0 | M97: 0 | N97: 0 | O97: 0 | P97: -0.4291735886 | Q97: -2.269836668 | R97: -2.287034161 | S97: -1.959907307 | T97: -2.00047145 | U97: -2.042972837 | V97: -2.088315523 | W97: 0 | X97: 0 | Y97: 0 | Z97: 0 | AA97: 0 | AB97: 0 | AC97: 0 | AD97: 0 | AE97: 0 | AF97: 0 | AG97: 0 | AH97: 0 | AI97: 0 | AJ97: 0 | AK97: 0 | AL97: 0 | AM97: 0 | AN97: 0 | AO97: 0 | AP97: 0 | AQ97: 0 | AR97: 0 | AS97: 0 | AT97: 0 | AU97: 0 | AV97: 0 | AW97: 0 | AX97: 0 | AY97: 0 | AZ97: 0 | BA97: 0 | BB97: 0 | BC97: 0 | BD97: 0 | BE97: 0 | BF97: 0 | BG97: 0
J98: 0 | K98: 0 | L98: 0 | M98: 0 | N98: 0 | O98: 0 | P98: 0 | Q98: 0 | R98: 0 | S98: 0 | T98: 0 | U98: 0 | V98: 0 | W98: 0 | X98: 0 | Y98: 0 | Z98: 0 | AA98: 0 | AB98: 0 | AC98: 0 | AD98: 0 | AE98: 0 | AF98: 0 | AG98: 0 | AH98: 0 | AI98: 0 | AJ98: 0 | AK98: 0 | AL98: 0 | AM98: 0 | AN98: 0 | AO98: 0 | AP98: 0 | AQ98: 0 | AR98: 0 | AS98: 0 | AT98: 0 | AU98: 0 | AV98: 0 | AW98: 0 | AX98: 0 | AY98: 0 | AZ98: 0 | BA98: 0 | BB98: 0 | BC98: 0 | BD98: 0 | BE98: 0 | BF98: 0 | BG98: 0
J99: 0 | K99: 0 | L99: 0 | M99: 0 | N99: 0 | O99: 0 | P99: 0 | Q99: 0 | R99: 0 | S99: 0 | T99: 0 | U99: 0 | V99: 0 | W99: 0 | X99: 0 | Y99: 0 | Z99: 0 | AA99: 0 | AB99: 0 | AC99: 0 | AD99: 0 | AE99: 0 | AF99: 0 | AG99: 0 | AH99: 0 | AI99: 0 | AJ99: 0 | AK99: 0 | AL99: 0 | AM99: 0 | AN99: 0 | AO99: 0 | AP99: 0 | AQ99: 0 | AR99: 0 | AS99: 0 | AT99: 0 | AU99: 0 | AV99: 0 | AW99: 0 | AX99: 0 | AY99: 0 | AZ99: 0 | BA99: 0 | BB99: 0 | BC99: 0 | BD99: 0 | BE99: 0 | BF99: 0 | BG99: 0
J100: 0 | K100: 0 | L100: 0 | M100: 0 | N100: 0 | O100: 0 | P100: 0 | Q100: 0 | R100: 0 | S100: 0 | T100: 0 | U100: 0 | V100: 0 | W100: 0 | X100: 0 | Y100: 0 | Z100: 0 | AA100: 0 | AB100: 0 | AC100: 0 | AD100: 0 | AE100: 0 | AF100: 0 | AG100: 0 | AH100: 0 | AI100: 0 | AJ100: 0 | AK100: 0 | AL100: 0 | AM100: 0 | AN100: 0 | AO100: 0 | AP100: 0 | AQ100: 0 | AR100: 0 | AS100: 0 | AT100: 0 | AU100: 0 | AV100: 0 | AW100: 0 | AX100: 0 | AY100: 0 | AZ100: 0 | BA100: 0 | BB100: 0 | BC100: 0 | BD100: 0 | BE100: 0 | BF100: 0 | BG100: 0
J101: 0 | K101: 0 | L101: 0 | M101: 0 | N101: 0 | O101: 0 | P101: 0 | Q101: 0 | R101: 0 | S101: 0 | T101: 0 | U101: 0 | V101: 0 | W101: 0 | X101: 0 | Y101: 0 | Z101: 0 | AA101: 0 | AB101: 0 | AC101: 0 | AD101: 0 | AE101: 0 | AF101: 0 | AG101: 0 | AH101: 0 | AI101: 0 | AJ101: 0 | AK101: 0 | AL101: 0 | AM101: 0 | AN101: 0 | AO101: 0 | AP101: 0 | AQ101: 0 | AR101: 0 | AS101: 0 | AT101: 0 | AU101: 0 | AV101: 0 | AW101: 0 | AX101: 0 | AY101: 0 | AZ101: 0 | BA101: 0 | BB101: 0 | BC101: 0 | BD101: 0 | BE101: 0 | BF101: 0 | BG101: 0
J102: 0 | K102: 0 | L102: 0 | M102: 0 | N102: 0 | O102: 0 | P102: 0 | Q102: 0 | R102: 0 | S102: 0 | T102: 0 | U102: 0 | V102: 0 | W102: 0 | X102: 0 | Y102: 0 | Z102: 0 | AA102: 0 | AB102: 0 | AC102: 0 | AD102: 0 | AE102: 0 | AF102: 0 | AG102: 0 | AH102: 0 | AI102: 0 | AJ102: 0 | AK102: 0 | AL102: 0 | AM102: 0 | AN102: 0 | AO102: 0 | AP102: 0 | AQ102: 0 | AR102: 0 | AS102: 0 | AT102: 0 | AU102: 0 | AV102: 0 | AW102: 0 | AX102: 0 | AY102: 0 | AZ102: 0 | BA102: 0 | BB102: 0 | BC102: 0 | BD102: 0 | BE102: 0 | BF102: 0 | BG102: 0
J103: 0 | K103: 0 | L103: 0 | M103: 0 | N103: 0 | O103: 0 | P103: 0 | Q103: 0 | R103: 0 | S103: 0 | T103: 0 | U103: 0 | V103: 0 | W103: 0 | X103: 0 | Y103: 0 | Z103: 0 | AA103: 0 | AB103: 0 | AC103: 0 | AD103: 0 | AE103: 0 | AF103: 0 | AG103: 0 | AH103: 0 | AI103: 0 | AJ103: 0 | AK103: 0 | AL103: 0 | AM103: 0 | AN103: 0 | AO103: 0 | AP103: 0 | AQ103: 0 | AR103: 0 | AS103: 0 | AT103: 0 | AU103: 0 | AV103: 0 | AW103: 0 | AX103: 0 | AY103: 0 | AZ103: 0 | BA103: 0 | BB103: 0 | BC103: 0 | BD103: 0 | BE103: 0 | BF103: 0 | BG103: 0
J104: 0 | K104: 0 | L104: 0 | M104: 0 | N104: 0 | O104: 0 | P104: 0 | Q104: 0 | R104: 0 | S104: 0 | T104: 0 | U104: 0 | V104: 0 | W104: 0 | X104: 0 | Y104: 0 | Z104: 0 | AA104: 0 | AB104: 0 | AC104: 0 | AD104: 0 | AE104: 0 | AF104: 0 | AG104: 0 | AH104: 0 | AI104: 0 | AJ104: 0 | AK104: 0 | AL104: 0 | AM104: 0 | AN104: 0 | AO104: 0 | AP104: 0 | AQ104: 0 | AR104: 0 | AS104: 0 | AT104: 0 | AU104: 0 | AV104: 0 | AW104: 0 | AX104: 0 | AY104: 0 | AZ104: 0 | BA104: 0 | BB104: 0 | BC104: 0 | BD104: 0 | BE104: 0 | BF104: 0 | BG104: 0
J105: 0 | K105: 0 | L105: 0 | M105: 0 | N105: 0 | O105: 0 | P105: 0 | Q105: 0 | R105: 0 | S105: 0 | T105: 0 | U105: 0 | V105: 0 | W105: 0 | X105: 0 | Y105: 0 | Z105: 0 | AA105: 0 | AB105: 0 | AC105: 0 | AD105: 0 | AE105: 0 | AF105: 0 | AG105: 0 | AH105: 0 | AI105: 0 | AJ105: 0 | AK105: 0 | AL105: 0 | AM105: 0 | AN105: 0 | AO105: 0 | AP105: 0 | AQ105: 0 | AR105: 0 | AS105: 0 | AT105: 0 | AU105: 0 | AV105: 0 | AW105: 0 | AX105: 0 | AY105: 0 | AZ105: 0 | BA105: 0 | BB105: 0 | BC105: 0 | BD105: 0 | BE105: 0 | BF105: 0 | BG105: 0
F106: Net Benefits | J106: =SUM(J94:J105) -> 0 | K106: =SUM(K94:K105) -> 29.03070686 | L106: 29.01757359 | M106: 92.19926973 | N106: 101.0904789 | O106: 457.3451056 | P106: 521.4856863 | Q106: 542.9698403 | R106: 562.8619577 | S106: 572.6607869 | T106: 582.0283102 | U106: 606.813117 | V106: 621.3342487 | W106: 0 | X106: 0 | Y106: 0 | Z106: 0 | AA106: 0 | AB106: 0 | AC106: 0 | AD106: 0 | AE106: 0 | AF106: 0 | AG106: 0 | AH106: 0 | AI106: 0 | AJ106: 0 | AK106: 0 | AL106: 0 | AM106: 0 | AN106: 0 | AO106: 0 | AP106: 0 | AQ106: 0 | AR106: 0 | AS106: 0 | AT106: 0 | AU106: 0 | AV106: 0 | AW106: 0 | AX106: 0 | AY106: 0 | AZ106: 0 | BA106: 0 | BB106: 0 | BC106: 0 | BD106: =SUM(BD94:BD105) -> 0 | BE106: 0 | BF106: 0 | BG106: 0
F109: Category | G109: Dollar basis | H109: Conversion Factor
F110: =F94 -> Option 2 SWER | G110: 2024-06-30 | H110: 1 | J110: =J94*$H110 -> 0 | K110: 29.03070686 | L110: 29.01757359 | M110: 92.19926973 | N110: 101.0904789 | O110: 102.8386746 | P110: 104.4033999 | Q110: 106.2088787 | R110: 108.2332928 | S110: 110.0760101 | T110: 112.2532863 | U110: 114.5155085 | V110: 116.9948376 | W110: 0 | X110: 0 | Y110: 0 | Z110: 0 | AA110: 0 | AB110: 0 | AC110: 0 | AD110: 0 | AE110: 0 | AF110: 0 | AG110: 0 | AH110: 0 | AI110: 0 | AJ110: 0 | AK110: 0 | AL110: 0 | AM110: 0 | AN110: 0 | AO110: 0 | AP110: 0 | AQ110: 0 | AR110: 0 | AS110: 0 | AT110: 0 | AU110: 0 | AV110: 0 | AW110: 0 | AX110: 0 | AY110: 0 | AZ110: 0 | BA110: 0 | BB110: 0 | BC110: 0 | BD110: =BD94*$H110 -> 0 | BE110: 0 | BF110: 0 | BG110: 0
F111: Option 2 DSS | G111: 2024-06-30 | H111: 1 | J111: 0 | K111: 0 | L111: 0 | M111: 0 | N111: 0 | O111: 354.5064309 | P111: 417.414715 | Q111: 438.375796 | R111: 454.792994 | S111: 462.2074555 | T111: 469.4369851 | U111: 492.0017859 | V111: 504.0886515 | W111: 0 | X111: 0 | Y111: 0 | Z111: 0 | AA111: 0 | AB111: 0 | AC111: 0 | AD111: 0 | AE111: 0 | AF111: 0 | AG111: 0 | AH111: 0 | AI111: 0 | AJ111: 0 | AK111: 0 | AL111: 0 | AM111: 0 | AN111: 0 | AO111: 0 | AP111: 0 | AQ111: 0 | AR111: 0 | AS111: 0 | AT111: 0 | AU111: 0 | AV111: 0 | AW111: 0 | AX111: 0 | AY111: 0 | AZ111: 0 | BA111: 0 | BB111: 0 | BC111: 0 | BD111: 0 | BE111: 0 | BF111: 0 | BG111: 0
F112: Option 2 Flexible Services | G112: 2024-06-30 | H112: 1 | J112: 0 | K112: 0 | L112: 0 | M112: 0 | N112: 0 | O112: 0 | P112: 0.09674493665 | Q112: 0.6550022395 | R112: 2.122705058 | S112: 2.337228633 | T112: 2.338510191 | U112: 2.338795465 | V112: 2.339075193 | W112: 0 | X112: 0 | Y112: 0 | Z112: 0 | AA112: 0 | AB112: 0 | AC112: 0 | AD112: 0 | AE112: 0 | AF112: 0 | AG112: 0 | AH112: 0 | AI112: 0 | AJ112: 0 | AK112: 0 | AL112: 0 | AM112: 0 | AN112: 0 | AO112: 0 | AP112: 0 | AQ112: 0 | AR112: 0 | AS112: 0 | AT112: 0 | AU112: 0 | AV112: 0 | AW112: 0 | AX112: 0 | AY112: 0 | AZ112: 0 | BA112: 0 | BB112: 0 | BC112: 0 | BD112: 0 | BE112: 0 | BF112: 0 | BG112: 0
F113: Option 2 DSS Deferrals | G113: 2024-06-30 | H113: 1 | J113: 0 | K113: 0 | L113: 0 | M113: 0 | N113: 0 | O113: 0 | P113: -0.4291735886 | Q113: -2.269836668 | R113: -2.287034161 | S113: -1.959907307 | T113: -2.00047145 | U113: -2.042972837 | V113: -2.088315523 | W113: 0 | X113: 0 | Y113: 0 | Z113: 0 | AA113: 0 | AB113: 0 | AC113: 0 | AD113: 0 | AE113: 0 | AF113: 0 | AG113: 0 | AH113: 0 | AI113: 0 | AJ113: 0 | AK113: 0 | AL113: 0 | AM113: 0 | AN113: 0 | AO113: 0 | AP113: 0 | AQ113: 0 | AR113: 0 | AS113: 0 | AT113: 0 | AU113: 0 | AV113: 0 | AW113: 0 | AX113: 0 | AY113: 0 | AZ113: 0 | BA113: 0 | BB113: 0 | BC113: 0 | BD113: 0 | BE113: 0 | BF113: 0 | BG113: 0
J114: 0 | K114: 0 | L114: 0 | M114: 0 | N114: 0 | O114: 0 | P114: 0 | Q114: 0 | R114: 0 | S114: 0 | T114: 0 | U114: 0 | V114: 0 | W114: 0 | X114: 0 | Y114: 0 | Z114: 0 | AA114: 0 | AB114: 0 | AC114: 0 | AD114: 0 | AE114: 0 | AF114: 0 | AG114: 0 | AH114: 0 | AI114: 0 | AJ114: 0 | AK114: 0 | AL114: 0 | AM114: 0 | AN114: 0 | AO114: 0 | AP114: 0 | AQ114: 0 | AR114: 0 | AS114: 0 | AT114: 0 | AU114: 0 | AV114: 0 | AW114: 0 | AX114: 0 | AY114: 0 | AZ114: 0 | BA114: 0 | BB114: 0 | BC114: 0 | BD114: 0 | BE114: 0 | BF114: 0 | BG114: 0
J115: 0 | K115: 0 | L115: 0 | M115: 0 | N115: 0 | O115: =O99*$H115 -> 0 | P115: 0 | Q115: 0 | R115: 0 | S115: 0 | T115: 0 | U115: 0 | V115: 0 | W115: 0 | X115: 0 | Y115: 0 | Z115: 0 | AA115: 0 | AB115: 0 | AC115: 0 | AD115: 0 | AE115: 0 | AF115: 0 | AG115: 0 | AH115: 0 | AI115: 0 | AJ115: 0 | AK115: 0 | AL115: 0 | AM115: 0 | AN115: 0 | AO115: 0 | AP115: 0 | AQ115: 0 | AR115: 0 | AS115: 0 | AT115: 0 | AU115: 0 | AV115: 0 | AW115: 0 | AX115: 0 | AY115: 0 | AZ115: 0 | BA115: 0 | BB115: 0 | BC115: 0 | BD115: =BD99*$H115 -> 0 | BE115: 0 | BF115: 0 | BG115: 0
J116: =J100*$H116 -> 0 | K116: 0 | L116: 0 | M116: 0 | N116: 0 | O116: 0 | P116: 0 | Q116: 0 | R116: 0 | S116: 0 | T116: 0 | U116: 0 | V116: 0 | W116: 0 | X116: 0 | Y116: 0 | Z116: 0 | AA116: 0 | AB116: 0 | AC116: 0 | AD116: 0 | AE116: 0 | AF116: 0 | AG116: 0 | AH116: 0 | AI116: 0 | AJ116: 0 | AK116: 0 | AL116: 0 | AM116: 0 | AN116: 0 | AO116: 0 | AP116: 0 | AQ116: 0 | AR116: 0 | AS116: 0 | AT116: 0 | AU116: 0 | AV116: 0 | AW116: 0 | AX116: 0 | AY116: 0 | AZ116: 0 | BA116: 0 | BB116: 0 | BC116: 0 | BD116: =BD100*$H116 -> 0 | BE116: 0 | BF116: 0 | BG116: 0
J117: 0 | K117: 0 | L117: 0 | M117: 0 | N117: 0 | O117: 0 | P117: 0 | Q117: 0 | R117: 0 | S117: 0 | T117: 0 | U117: 0 | V117: 0 | W117: 0 | X117: 0 | Y117: 0 | Z117: 0 | AA117: 0 | AB117: 0 | AC117: 0 | AD117: 0 | AE117: 0 | AF117: 0 | AG117: 0 | AH117: 0 | AI117: 0 | AJ117: 0 | AK117: 0 | AL117: 0 | AM117: 0 | AN117: 0 | AO117: 0 | AP117: 0 | AQ117: 0 | AR117: 0 | AS117: 0 | AT117: 0 | AU117: 0 | AV117: 0 | AW117: 0 | AX117: 0 | AY117: 0 | AZ117: 0 | BA117: 0 | BB117: 0 | BC117: 0 | BD117: =BD101*$H117 -> 0 | BE117: 0 | BF117: 0 | BG117: 0
J118: 0 | K118: 0 | L118: 0 | M118: 0 | N118: 0 | O118: 0 | P118: 0 | Q118: 0 | R118: 0 | S118: 0 | T118: 0 | U118: 0 | V118: 0 | W118: 0 | X118: 0 | Y118: 0 | Z118: 0 | AA118: 0 | AB118: 0 | AC118: 0 | AD118: 0 | AE118: 0 | AF118: 0 | AG118: 0 | AH118: 0 | AI118: 0 | AJ118: 0 | AK118: 0 | AL118: 0 | AM118: 0 | AN118: 0 | AO118: 0 | AP118: 0 | AQ118: 0 | AR118: 0 | AS118: 0 | AT118: 0 | AU118: 0 | AV118: 0 | AW118: 0 | AX118: 0 | AY118: 0 | AZ118: 0 | BA118: 0 | BB118: 0 | BC118: 0 | BD118: =BD102*$H118 -> 0 | BE118: 0 | BF118: 0 | BG118: 0
J119: 0 | K119: 0 | L119: 0 | M119: 0 | N119: 0 | O119: 0 | P119: 0 | Q119: 0 | R119: 0 | S119: 0 | T119: 0 | U119: 0 | V119: 0 | W119: 0 | X119: 0 | Y119: 0 | Z119: 0 | AA119: 0 | AB119: 0 | AC119: 0 | AD119: 0 | AE119: 0 | AF119: 0 | AG119: 0 | AH119: 0 | AI119: 0 | AJ119: 0 | AK119: 0 | AL119: 0 | AM119: 0 | AN119: 0 | AO119: 0 | AP119: 0 | AQ119: 0 | AR119: 0 | AS119: 0 | AT119: 0 | AU119: 0 | AV119: 0 | AW119: 0 | AX119: 0 | AY119: 0 | AZ119: 0 | BA119: 0 | BB119: 0 | BC119: 0 | BD119: =BD103*$H119 -> 0 | BE119: 0 | BF119: 0 | BG119: 0
J120: 0 | K120: 0 | L120: 0 | M120: 0 | N120: 0 | O120: 0 | P120: 0 | Q120: 0 | R120: 0 | S120: 0 | T120: 0 | U120: 0 | V120: 0 | W120: 0 | X120: 0 | Y120: 0 | Z120: 0 | AA120: 0 | AB120: 0 | AC120: 0 | AD120: 0 | AE120: 0 | AF120: 0 | AG120: 0 | AH120: 0 | AI120: 0 | AJ120: 0 | AK120: 0 | AL120: 0 | AM120: 0 | AN120: 0 | AO120: 0 | AP120: 0 | AQ120: 0 | AR120: 0 | AS120: 0 | AT120: 0 | AU120: 0 | AV120: 0 | AW120: 0 | AX120: 0 | AY120: 0 | AZ120: 0 | BA120: 0 | BB120: 0 | BC120: 0 | BD120: =BD104*$H120 -> 0 | BE120: 0 | BF120: 0 | BG120: 0
J121: 0 | K121: 0 | L121: 0 | M121: 0 | N121: 0 | O121: 0 | P121: 0 | Q121: 0 | R121: 0 | S121: 0 | T121: 0 | U121: 0 | V121: 0 | W121: 0 | X121: 0 | Y121: 0 | Z121: 0 | AA121: 0 | AB121: 0 | AC121: 0 | AD121: 0 | AE121: 0 | AF121: 0 | AG121: 0 | AH121: 0 | AI121: 0 | AJ121: 0 | AK121: 0 | AL121: 0 | AM121: 0 | AN121: 0 | AO121: 0 | AP121: 0 | AQ121: 0 | AR121: 0 | AS121: 0 | AT121: 0 | AU121: 0 | AV121: 0 | AW121: 0 | AX121: 0 | AY121: 0 | AZ121: 0 | BA121: 0 | BB121: 0 | BC121: 0 | BD121: =BD105*$H121 -> 0 | BE121: 0 | BF121: 0 | BG121: 0
F122: Net Benefits | J122: =SUM(J110:J121) -> 0 | K122: =SUM(K110:K121) -> 29.03070686 | L122: 29.01757359 | M122: 92.19926973 | N122: 101.0904789 | O122: 457.3451056 | P122: 521.4856863 | Q122: 542.9698403 | R122: 562.8619577 | S122: 572.6607869 | T122: 582.0283102 | U122: 606.813117 | V122: 621.3342487 | W122: 0 | X122: 0 | Y122: 0 | Z122: 0 | AA122: 0 | AB122: 0 | AC122: 0 | AD122: 0 | AE122: 0 | AF122: 0 | AG122: 0 | AH122: 0 | AI122: 0 | AJ122: 0 | AK122: 0 | AL122: 0 | AM122: 0 | AN122: 0 | AO122: 0 | AP122: 0 | AQ122: 0 | AR122: 0 | AS122: 0 | AT122: 0 | AU122: 0 | AV122: 0 | AW122: 0 | AX122: 0 | AY122: 0 | AZ122: 0 | BA122: 0 | BB122: 0 | BC122: 0 | BD122: =SUM(BD110:BD121) -> 0 | BE122: 0 | BF122: 0 | BG122: 0
A124: END OF INPUTS FOR THIS OPTION

Sheet Option3_Analysis
B1: Analysis: Option 3
B2: =Cover!$C$9 -> AusNet Services
B3: =Cover!$C$10 -> Business Case Evaluation
B4: =Cover!$C$11 -> Demand driven augex (LV augmentation) with flexible services
B6: Regulatory Period Indicator | J6: =IF(AND(J$7>=General!$H$20,J$8<=General!$H$21),1,0) -> 0 | K6: =IF(AND(K$7>=General!$H$20,K$8<=General!$H$21),1,0) -> 0 | L6: =IF(AND(L$7>=General!$H$20,L$8<=General!$H$21),1,0) -> 0 | M6: =IF(AND(M$7>=General!$H$20,M$8<=General!$H$21),1,0) -> 1 | N6: =IF(AND(N$7>=General!$H$20,N$8<=General!$H$21),1,0) -> 1 | O6: =IF(AND(O$7>=General!$H$20,O$8<=General!$H$21),1,0) -> 1 | P6: =IF(AND(P$7>=General!$H$20,P$8<=General!$H$21),1,0) -> 1 | Q6: =IF(AND(Q$7>=General!$H$20,Q$8<=General!$H$21),1,0) -> 1 | R6: =IF(AND(R$7>=General!$H$20,R$8<=General!$H$21),1,0) -> 0 | S6: =IF(AND(S$7>=General!$H$20,S$8<=General!$H$21),1,0) -> 0 | T6: =IF(AND(T$7>=General!$H$20,T$8<=General!$H$21),1,0) -> 0 | U6: =IF(AND(U$7>=General!$H$20,U$8<=General!$H$21),1,0) -> 0 | V6: =IF(AND(V$7>=General!$H$20,V$8<=General!$H$21),1,0) -> 0 | W6: =IF(AND(W$7>=General!$H$20,W$8<=General!$H$21),1,0) -> 0 | X6: =IF(AND(X$7>=General!$H$20,X$8<=General!$H$21),1,0) -> 0 | Y6: =IF(AND(Y$7>=General!$H$20,Y$8<=General!$H$21),1,0) -> 0 | Z6: =IF(AND(Z$7>=General!$H$20,Z$8<=General!$H$21),1,0) -> 0 | AA6: =IF(AND(AA$7>=General!$H$20,AA$8<=General!$H$21),1,0) -> 0 | AB6: =IF(AND(AB$7>=General!$H$20,AB$8<=General!$H$21),1,0) -> 0 | AC6: =IF(AND(AC$7>=General!$H$20,AC$8<=General!$H$21),1,0) -> 0 | AD6: =IF(AND(AD$7>=General!$H$20,AD$8<=General!$H$21),1,0) -> 0 | AE6: =IF(AND(AE$7>=General!$H$20,AE$8<=General!$H$21),1,0) -> 0 | AF6: =IF(AND(AF$7>=General!$H$20,AF$8<=General!$H$21),1,0) -> 0 | AG6: =IF(AND(AG$7>=General!$H$20,AG$8<=General!$H$21),1,0) -> 0 | AH6: =IF(AND(AH$7>=General!$H$20,AH$8<=General!$H$21),1,0) -> 0 | AI6: =IF(AND(AI$7>=General!$H$20,AI$8<=General!$H$21),1,0) -> 0 | AJ6: =IF(AND(AJ$7>=General!$H$20,AJ$8<=General!$H$21),1,0) -> 0 | AK6: =IF(AND(AK$7>=General!$H$20,AK$8<=General!$H$21),1,0) -> 0 | AL6: =IF(AND(AL$7>=General!$H$20,AL$8<=General!$H$21),1,0) -> 0 | AM6: =IF(AND(AM$7>=General!$H$20,AM$8<=General!$H$21),1,0) -> 0 | AN6: =IF(AND(AN$7>=General!$H$20,AN$8<=General!$H$21),1,0) -> 0 | AO6: =IF(AND(AO$7>=General!$H$20,AO$8<=General!$H$21),1,0) -> 0 | AP6: =IF(AND(AP$7>=General!$H$20,AP$8<=General!$H$21),1,0) -> 0 | AQ6: =IF(AND(AQ$7>=General!$H$20,AQ$8<=General!$H$21),1,0) -> 0 | AR6: =IF(AND(AR$7>=General!$H$20,AR$8<=General!$H$21),1,0) -> 0 | AS6: =IF(AND(AS$7>=General!$H$20,AS$8<=General!$H$21),1,0) -> 0 | AT6: =IF(AND(AT$7>=General!$H$20,AT$8<=General!$H$21),1,0) -> 0 | AU6: =IF(AND(AU$7>=General!$H$20,AU$8<=General!$H$21),1,0) -> 0 | AV6: =IF(AND(AV$7>=General!$H$20,AV$8<=General!$H$21),1,0) -> 0 | AW6: =IF(AND(AW$7>=General!$H$20,AW$8<=General!$H$21),1,0) -> 0 | AX6: =IF(AND(AX$7>=General!$H$20,AX$8<=General!$H$21),1,0) -> 0 | AY6: =IF(AND(AY$7>=General!$H$20,AY$8<=General!$H$21),1,0) -> 0 | AZ6: =IF(AND(AZ$7>=General!$H$20,AZ$8<=General!$H$21),1,0) -> 0 | BA6: =IF(AND(BA$7>=General!$H$20,BA$8<=General!$H$21),1,0) -> 0 | BB6: =IF(AND(BB$7>=General!$H$20,BB$8<=General!$H$21),1,0) -> 0 | BC6: =IF(AND(BC$7>=General!$H$20,BC$8<=General!$H$21),1,0) -> 0 | BD6: =IF(AND(BD$7>=General!$H$20,BD$8<=General!$H$21),1,0) -> 0 | BE6: =IF(AND(BE$7>=General!$H$20,BE$8<=General!$H$21),1,0) -> 0 | BF6: =IF(AND(BF$7>=General!$H$20,BF$8<=General!$H$21),1,0) -> 0 | BG6: =IF(AND(BG$7>=General!$H$20,BG$8<=General!$H$21),1,0) -> 0
B7: Period Start Date | J7: =EDATE(General!$H$18,(J9-1)*12) -> 2023-07-01 | K7: =EDATE(General!$H$18,(K9-1)*12) -> 2024-07-01 | L7: =EDATE(General!$H$18,(L9-1)*12) -> 2025-07-01 | M7: =EDATE(General!$H$18,(M9-1)*12) -> 2026-07-01 | N7: =EDATE(General!$H$18,(N9-1)*12) -> 2027-07-01 | O7: =EDATE(General!$H$18,(O9-1)*12) -> 2028-07-01 | P7: =EDATE(General!$H$18,(P9-1)*12) -> 2029-07-01 | Q7: =EDATE(General!$H$18,(Q9-1)*12) -> 2030-07-01 | R7: =EDATE(General!$H$18,(R9-1)*12) -> 2031-07-01 | S7: =EDATE(General!$H$18,(S9-1)*12) -> 2032-07-01 | T7: =EDATE(General!$H$18,(T9-1)*12) -> 2033-07-01 | U7: =EDATE(General!$H$18,(U9-1)*12) -> 2034-07-01 | V7: =EDATE(General!$H$18,(V9-1)*12) -> 2035-07-01 | W7: =EDATE(General!$H$18,(W9-1)*12) -> 2036-07-01 | X7: =EDATE(General!$H$18,(X9-1)*12) -> 2037-07-01 | Y7: =EDATE(General!$H$18,(Y9-1)*12) -> 2038-07-01 | Z7: =EDATE(General!$H$18,(Z9-1)*12) -> 2039-07-01 | AA7: =EDATE(General!$H$18,(AA9-1)*12) -> 2040-07-01 | AB7: =EDATE(General!$H$18,(AB9-1)*12) -> 2041-07-01 | AC7: =EDATE(General!$H$18,(AC9-1)*12) -> 2042-07-01 | AD7: =EDATE(General!$H$18,(AD9-1)*12) -> 2043-07-01 | AE7: =EDATE(General!$H$18,(AE9-1)*12) -> 2044-07-01 | AF7: =EDATE(General!$H$18,(AF9-1)*12) -> 2045-07-01 | AG7: =EDATE(General!$H$18,(AG9-1)*12) -> 2046-07-01 | AH7: =EDATE(General!$H$18,(AH9-1)*12) -> 2047-07-01 | AI7: =EDATE(General!$H$18,(AI9-1)*12) -> 2048-07-01 | AJ7: =EDATE(General!$H$18,(AJ9-1)*12) -> 2049-07-01 | AK7: =EDATE(General!$H$18,(AK9-1)*12) -> 2050-07-01 | AL7: =EDATE(General!$H$18,(AL9-1)*12) -> 2051-07-01 | AM7: =EDATE(General!$H$18,(AM9-1)*12) -> 2052-07-01 | AN7: =EDATE(General!$H$18,(AN9-1)*12) -> 2053-07-01 | AO7: =EDATE(General!$H$18,(AO9-1)*12) -> 2054-07-01 | AP7: =EDATE(General!$H$18,(AP9-1)*12) -> 2055-07-01 | AQ7: =EDATE(General!$H$18,(AQ9-1)*12) -> 2056-07-01 | AR7: =EDATE(General!$H$18,(AR9-1)*12) -> 2057-07-01 | AS7: =EDATE(General!$H$18,(AS9-1)*12) -> 2058-07-01 | AT7: =EDATE(General!$H$18,(AT9-1)*12) -> 2059-07-01 | AU7: =EDATE(General!$H$18,(AU9-1)*12) -> 2060-07-01 | AV7: =EDATE(General!$H$18,(AV9-1)*12) -> 2061-07-01 | AW7: =EDATE(General!$H$18,(AW9-1)*12) -> 2062-07-01 | AX7: =EDATE(General!$H$18,(AX9-1)*12) -> 2063-07-01 | AY7: =EDATE(General!$H$18,(AY9-1)*12) -> 2064-07-01 | AZ7: =EDATE(General!$H$18,(AZ9-1)*12) -> 2065-07-01 | BA7: =EDATE(General!$H$18,(BA9-1)*12) -> 2066-07-01 | BB7: =EDATE(General!$H$18,(BB9-1)*12) -> 2067-07-01 | BC7: =EDATE(General!$H$18,(BC9-1)*12) -> 2068-07-01 | BD7: =EDATE(General!$H$18,(BD9-1)*12) -> 2069-07-01 | BE7: =EDATE(General!$H$18,(BE9-1)*12) -> 2070-07-01 | BF7: =EDATE(General!$H$18,(BF9-1)*12) -> 2071-07-01 | BG7: =EDATE(General!$H$18,(BG9-1)*12) -> 2072-07-01
B8: Period End Date | J8: =EDATE(J7,12)-1 -> 2024-06-30 | K8: =EDATE(K7,12)-1 -> 2025-06-30 | L8: 2026-06-30 | M8: 2027-06-30 | N8: 2028-06-30 | O8: 2029-06-30 | P8: 2030-06-30 | Q8: 2031-06-30 | R8: 2032-06-30 | S8: 2033-06-30 | T8: 2034-06-30 | U8: 2035-06-30 | V8: 2036-06-30 | W8: 2037-06-30 | X8: 2038-06-30 | Y8: 2039-06-30 | Z8: 2040-06-30 | AA8: 2041-06-30 | AB8: 2042-06-30 | AC8: 2043-06-30 | AD8: 2044-06-30 | AE8: 2045-06-30 | AF8: 2046-06-30 | AG8: 2047-06-30 | AH8: 2048-06-30 | AI8: 2049-06-30 | AJ8: 2050-06-30 | AK8: 2051-06-30 | AL8: 2052-06-30 | AM8: 2053-06-30 | AN8: 2054-06-30 | AO8: 2055-06-30 | AP8: 2056-06-30 | AQ8: 2057-06-30 | AR8: 2058-06-30 | AS8: 2059-06-30 | AT8: 2060-06-30 | AU8: 2061-06-30 | AV8: 2062-06-30 | AW8: 2063-06-30 | AX8: 2064-06-30 | AY8: 2065-06-30 | AZ8: 2066-06-30 | BA8: 2067-06-30 | BB8: 2068-06-30 | BC8: 2069-06-30 | BD8: 2070-06-30 | BE8: 2071-06-30 | BF8: 2072-06-30 | BG8: 2073-06-30
B9: ="Project Year" -> Project Year | J9: =COLUMNS($J9:J9) -> 1 | K9: =COLUMNS($J9:K9) -> 2 | L9: =COLUMNS($J9:L9) -> 3 | M9: =COLUMNS($J9:M9) -> 4 | N9: =COLUMNS($J9:N9) -> 5 | O9: =COLUMNS($J9:O9) -> 6 | P9: =COLUMNS($J9:P9) -> 7 | Q9: =COLUMNS($J9:Q9) -> 8 | R9: =COLUMNS($J9:R9) -> 9 | S9: =COLUMNS($J9:S9) -> 10 | T9: =COLUMNS($J9:T9) -> 11 | U9: =COLUMNS($J9:U9) -> 12 | V9: =COLUMNS($J9:V9) -> 13 | W9: =COLUMNS($J9:W9) -> 14 | X9: =COLUMNS($J9:X9) -> 15 | Y9: =COLUMNS($J9:Y9) -> 16 | Z9: =COLUMNS($J9:Z9) -> 17 | AA9: =COLUMNS($J9:AA9) -> 18 | AB9: =COLUMNS($J9:AB9) -> 19 | AC9: =COLUMNS($J9:AC9) -> 20 | AD9: =COLUMNS($J9:AD9) -> 21 | AE9: =COLUMNS($J9:AE9) -> 22 | AF9: =COLUMNS($J9:AF9) -> 23 | AG9: =COLUMNS($J9:AG9) -> 24 | AH9: =COLUMNS($J9:AH9) -> 25 | AI9: =COLUMNS($J9:AI9) -> 26 | AJ9: =COLUMNS($J9:AJ9) -> 27 | AK9: =COLUMNS($J9:AK9) -> 28 | AL9: =COLUMNS($J9:AL9) -> 29 | AM9: =COLUMNS($J9:AM9) -> 30 | AN9: =COLUMNS($J9:AN9) -> 31 | AO9: =COLUMNS($J9:AO9) -> 32 | AP9: =COLUMNS($J9:AP9) -> 33 | AQ9: =COLUMNS($J9:AQ9) -> 34 | AR9: =COLUMNS($J9:AR9) -> 35 | AS9: =COLUMNS($J9:AS9) -> 36 | AT9: =COLUMNS($J9:AT9) -> 37 | AU9: =COLUMNS($J9:AU9) -> 38 | AV9: =COLUMNS($J9:AV9) -> 39 | AW9: =COLUMNS($J9:AW9) -> 40 | AX9: =COLUMNS($J9:AX9) -> 41 | AY9: =COLUMNS($J9:AY9) -> 42 | AZ9: =COLUMNS($J9:AZ9) -> 43 | BA9: =COLUMNS($J9:BA9) -> 44 | BB9: =COLUMNS($J9:BB9) -> 45 | BC9: =COLUMNS($J9:BC9) -> 46 | BD9: =COLUMNS($J9:BD9) -> 47 | BE9: =COLUMNS($J9:BE9) -> 48 | BF9: =COLUMNS($J9:BF9) -> 49 | BG9: =COLUMNS($J9:BG9) -> 50
B10: Financial Year | J10: =YEAR(J8)+1 -> 2025 | K10: =YEAR(K8)+1 -> 2026 | L10: 2027 | M10: 2028 | N10: 2029 | O10: 2030 | P10: 2031 | Q10: 2032 | R10: 2033 | S10: 2034 | T10: 2035 | U10: 2036 | V10: 2037 | W10: 2038 | X10: 2039 | Y10: 2040 | Z10: 2041 | AA10: 2042 | AB10: 2043 | AC10: 2044 | AD10: 2045 | AE10: 2046 | AF10: 2047 | AG10: 2048 | AH10: 2049 | AI10: 2050 | AJ10: 2051 | AK10: 2052 | AL10: 2053 | AM10: 2054 | AN10: 2055 | AO10: 2056 | AP10: 2057 | AQ10: 2058 | AR10: 2059 | AS10: 2060 | AT10: 2061 | AU10: 2062 | AV10: 2063 | AW10: 2064 | AX10: 2065 | AY10: 2066 | AZ10: 2067 | BA10: 2068 | BB10: 2069 | BC10: 2070 | BD10: 2071 | BE10: 2072 | BF10: 2073 | BG10: 2074
B11: CPI index | J11: 1 | K11: =J11*(1+IF(OR(ISBLANK(VLOOKUP(DATE(YEAR(K8),MONTH(K8),1),CPI_Con_F!$D$18:$G$67,4,FALSE)),ISERROR(VLOOKUP(DATE(YEAR(K8),MONTH(K8),1),CPI_Con_F!$D$18:$G$67,4,FALSE))),General!$H$24,VLOOKUP(DATE(YEAR(K8),MONTH(K8),1),CPI_Con_F!$D$18:$G$67,4,FALSE))) -> 1.03 | L11: =K11*(1+IF(OR(ISBLANK(VLOOKUP(DATE(YEAR(L8),MONTH(L8),1),CPI_Con_F!$D$18:$G$67,4,FALSE)),ISERROR(VLOOKUP(DATE(YEAR(L8),MONTH(L8),1),CPI_Con_F!$D$18:$G$67,4,FALSE))),General!$H$24,VLOOKUP(DATE(YEAR(L8),MONTH(L8),1),CPI_Con_F!$D$18:$G$67,4,FALSE))) -> 1.05575 | M11: =L11*(1+IF(OR(ISBLANK(VLOOKUP(DATE(YEAR(M8),MONTH(M8),1),CPI_Con_F!$D$18:$G$67,4,FALSE)),ISERROR(VLOOKUP(DATE(YEAR(M8),MONTH(M8),1),CPI_Con_F!$D$18:$G$67,4,FALSE))),General!$H$24,VLOOKUP(DATE(YEAR(M8),MONTH(M8),1),CPI_Con_F!$D$18:$G$67,4,FALSE))) -> 1.08214375 | N11: =M11*(1+IF(OR(ISBLANK(VLOOKUP(DATE(YEAR(N8),MONTH(N8),1),CPI_Con_F!$D$18:$G$67,4,FALSE)),ISERROR(VLOOKUP(DATE(YEAR(N8),MONTH(N8),1),CPI_Con_F!$D$18:$G$67,4,FALSE))),General!$H$24,VLOOKUP(DATE(YEAR(N8),MONTH(N8),1),CPI_Con_F!$D$18:$G$67,4,FALSE))) -> 1.109197344 | O11: =N11*(1+IF(OR(ISBLANK(VLOOKUP(DATE(YEAR(O8),MONTH(O8),1),CPI_Con_F!$D$18:$G$67,4,FALSE)),ISERROR(VLOOKUP(DATE(YEAR(O8),MONTH(O8),1),CPI_Con_F!$D$18:$G$67,4,FALSE))),General!$H$24,VLOOKUP(DATE(YEAR(O8),MONTH(O8),1),CPI_Con_F!$D$18:$G$67,4,FALSE))) -> 1.136927277 | P11: =O11*(1+IF(OR(ISBLANK(VLOOKUP(DATE(YEAR(P8),MONTH(P8),1),CPI_Con_F!$D$18:$G$67,4,FALSE)),ISERROR(VLOOKUP(DATE(YEAR(P8),MONTH(P8),1),CPI_Con_F!$D$18:$G$67,4,FALSE))),General!$H$24,VLOOKUP(DATE(YEAR(P8),MONTH(P8),1),CPI_Con_F!$D$18:$G$67,4,FALSE))) -> 1.165350459 | Q11: =P11*(1+IF(OR(ISBLANK(VLOOKUP(DATE(YEAR(Q8),MONTH(Q8),1),CPI_Con_F!$D$18:$G$67,4,FALSE)),ISERROR(VLOOKUP(DATE(YEAR(Q8),MONTH(Q8),1),CPI_Con_F!$D$18:$G$67,4,FALSE))),General!$H$24,VLOOKUP(DATE(YEAR(Q8),MONTH(Q8),1),CPI_Con_F!$D$18:$G$67,4,FALSE))) -> 1.194484221 | R11: =Q11*(1+IF(OR(ISBLANK(VLOOKUP(DATE(YEAR(R8),MONTH(R8),1),CPI_Con_F!$D$18:$G$67,4,FALSE)),ISERROR(VLOOKUP(DATE(YEAR(R8),MONTH(R8),1),CPI_Con_F!$D$18:$G$67,4,FALSE))),General!$H$24,VLOOKUP(DATE(YEAR(R8),MONTH(R8),1),CPI_Con_F!$D$18:$G$67,4,FALSE))) -> 1.224346326 | S11: =R11*(1+IF(OR(ISBLANK(VLOOKUP(DATE(YEAR(S8),MONTH(S8),1),CPI_Con_F!$D$18:$G$67,4,FALSE)),ISERROR(VLOOKUP(DATE(YEAR(S8),MONTH(S8),1),CPI_Con_F!$D$18:$G$67,4,FALSE))),General!$H$24,VLOOKUP(DATE(YEAR(S8),MONTH(S8),1),CPI_Con_F!$D$18:$G$67,4,FALSE))) -> 1.254954984 | T11: =S11*(1+IF(OR(ISBLANK(VLOOKUP(DATE(YEAR(T8),MONTH(T8),1),CPI_Con_F!$D$18:$G$67,4,FALSE)),ISERROR(VLOOKUP(DATE(YEAR(T8),MONTH(T8),1),CPI_Con_F!$D$18:$G$67,4,FALSE))),General!$H$24,VLOOKUP(DATE(YEAR(T8),MONTH(T8),1),CPI_Con_F!$D$18:$G$67,4,FALSE))) -> 1.286328859 | U11: =T11*(1+IF(OR(ISBLANK(VLOOKUP(DATE(YEAR(U8),MONTH(U8),1),CPI_Con_F!$D$18:$G$67,4,FALSE)),ISERROR(VLOOKUP(DATE(YEAR(U8),MONTH(U8),1),CPI_Con_F!$D$18:$G$67,4,FALSE))),General!$H$24,VLOOKUP(DATE(YEAR(U8),MONTH(U8),1),CPI_Con_F!$D$18:$G$67,4,FALSE))) -> 1.318487081 | V11: =U11*(1+IF(OR(ISBLANK(VLOOKUP(DATE(YEAR(V8),MONTH(V8),1),CPI_Con_F!$D$18:$G$67,4,FALSE)),ISERROR(VLOOKUP(DATE(YEAR(V8),MONTH(V8),1),CPI_Con_F!$D$18:$G$67,4,FALSE))),General!$H$24,VLOOKUP(DATE(YEAR(V8),MONTH(V8),1),CPI_Con_F!$D$18:$G$67,4,FALSE))) -> 1.351449258 | W11: =V11*(1+IF(OR(ISBLANK(VLOOKUP(DATE(YEAR(W8),MONTH(W8),1),CPI_Con_F!$D$18:$G$67,4,FALSE)),ISERROR(VLOOKUP(DATE(YEAR(W8),MONTH(W8),1),CPI_Con_F!$D$18:$G$67,4,FALSE))),General!$H$24,VLOOKUP(DATE(YEAR(W8),MONTH(W8),1),CPI_Con_F!$D$18:$G$67,4,FALSE))) -> 1.385235489 | X11: =W11*(1+IF(OR(ISBLANK(VLOOKUP(DATE(YEAR(X8),MONTH(X8),1),CPI_Con_F!$D$18:$G$67,4,FALSE)),ISERROR(VLOOKUP(DATE(YEAR(X8),MONTH(X8),1),CPI_Con_F!$D$18:$G$67,4,FALSE))),General!$H$24,VLOOKUP(DATE(YEAR(X8),MONTH(X8),1),CPI_Con_F!$D$18:$G$67,4,FALSE))) -> 1.419866376 | Y11: =X11*(1+IF(OR(ISBLANK(VLOOKUP(DATE(YEAR(Y8),MONTH(Y8),1),CPI_Con_F!$D$18:$G$67,4,FALSE)),ISERROR(VLOOKUP(DATE(YEAR(Y8),MONTH(Y8),1),CPI_Con_F!$D$18:$G$67,4,FALSE))),General!$H$24,VLOOKUP(DATE(YEAR(Y8),MONTH(Y8),1),CPI_Con_F!$D$18:$G$67,4,FALSE))) -> 1.455363036 | Z11: =Y11*(1+IF(OR(ISBLANK(VLOOKUP(DATE(YEAR(Z8),MONTH(Z8),1),CPI_Con_F!$D$18:$G$67,4,FALSE)),ISERROR(VLOOKUP(DATE(YEAR(Z8),MONTH(Z8),1),CPI_Con_F!$D$18:$G$67,4,FALSE))),General!$H$24,VLOOKUP(DATE(YEAR(Z8),MONTH(Z8),1),CPI_Con_F!$D$18:$G$67,4,FALSE))) -> 1.491747111 | AA11: =Z11*(1+IF(OR(ISBLANK(VLOOKUP(DATE(YEAR(AA8),MONTH(AA8),1),CPI_Con_F!$D$18:$G$67,4,FALSE)),ISERROR(VLOOKUP(DATE(YEAR(AA8),MONTH(AA8),1),CPI_Con_F!$D$18:$G$67,4,FALSE))),General!$H$24,VLOOKUP(DATE(YEAR(AA8),MONTH(AA8),1),CPI_Con_F!$D$18:$G$67,4,FALSE))) -> 1.529040789 | AB11: =AA11*(1+IF(OR(ISBLANK(VLOOKUP(DATE(YEAR(AB8),MONTH(AB8),1),CPI_Con_F!$D$18:$G$67,4,FALSE)),ISERROR(VLOOKUP(DATE(YEAR(AB8),MONTH(AB8),1),CPI_Con_F!$D$18:$G$67,4,FALSE))),General!$H$24,VLOOKUP(DATE(YEAR(AB8),MONTH(AB8),1),CPI_Con_F!$D$18:$G$67,4,FALSE))) -> 1.567266809 | AC11: =AB11*(1+IF(OR(ISBLANK(VLOOKUP(DATE(YEAR(AC8),MONTH(AC8),1),CPI_Con_F!$D$18:$G$67,4,FALSE)),ISERROR(VLOOKUP(DATE(YEAR(AC8),MONTH(AC8),1),CPI_Con_F!$D$18:$G$67,4,FALSE))),General!$H$24,VLOOKUP(DATE(YEAR(AC8),MONTH(AC8),1),CPI_Con_F!$D$18:$G$67,4,FALSE))) -> 1.606448479 | AD11: =AC11*(1+IF(OR(ISBLANK(VLOOKUP(DATE(YEAR(AD8),MONTH(AD8),1),CPI_Con_F!$D$18:$G$67,4,FALSE)),ISERROR(VLOOKUP(DATE(YEAR(AD8),MONTH(AD8),1),CPI_Con_F!$D$18:$G$67,4,FALSE))),General!$H$24,VLOOKUP(DATE(YEAR(AD8),MONTH(AD8),1),CPI_Con_F!$D$18:$G$67,4,FALSE))) -> 1.646609691 | AE11: =AD11*(1+IF(OR(ISBLANK(VLOOKUP(DATE(YEAR(AE8),MONTH(AE8),1),CPI_Con_F!$D$18:$G$67,4,FALSE)),ISERROR(VLOOKUP(DATE(YEAR(AE8),MONTH(AE8),1),CPI_Con_F!$D$18:$G$67,4,FALSE))),General!$H$24,VLOOKUP(DATE(YEAR(AE8),MONTH(AE8),1),CPI_Con_F!$D$18:$G$67,4,FALSE))) -> 1.687774933 | AF11: =AE11*(1+IF(OR(ISBLANK(VLOOKUP(DATE(YEAR(AF8),MONTH(AF8),1),CPI_Con_F!$D$18:$G$67,4,FALSE)),ISERROR(VLOOKUP(DATE(YEAR(AF8),MONTH(AF8),1),CPI_Con_F!$D$18:$G$67,4,FALSE))),General!$H$24,VLOOKUP(DATE(YEAR(AF8),MONTH(AF8),1),CPI_Con_F!$D$18:$G$67,4,FALSE))) -> 1.729969307 | AG11: =AF11*(1+IF(OR(ISBLANK(VLOOKUP(DATE(YEAR(AG8),MONTH(AG8),1),CPI_Con_F!$D$18:$G$67,4,FALSE)),ISERROR(VLOOKUP(DATE(YEAR(AG8),MONTH(AG8),1),CPI_Con_F!$D$18:$G$67,4,FALSE))),General!$H$24,VLOOKUP(DATE(YEAR(AG8),MONTH(AG8),1),CPI_Con_F!$D$18:$G$67,4,FALSE))) -> 1.77321854 | AH11: =AG11*(1+IF(OR(ISBLANK(VLOOKUP(DATE(YEAR(AH8),MONTH(AH8),1),CPI_Con_F!$D$18:$G$67,4,FALSE)),ISERROR(VLOOKUP(DATE(YEAR(AH8),MONTH(AH8),1),CPI_Con_F!$D$18:$G$67,4,FALSE))),General!$H$24,VLOOKUP(DATE(YEAR(AH8),MONTH(AH8),1),CPI_Con_F!$D$18:$G$67,4,FALSE))) -> 1.817549003 | AI11: =AH11*(1+IF(OR(ISBLANK(VLOOKUP(DATE(YEAR(AI8),MONTH(AI8),1),CPI_Con_F!$D$18:$G$67,4,FALSE)),ISERROR(VLOOKUP(DATE(YEAR(AI8),MONTH(AI8),1),CPI_Con_F!$D$18:$G$67,4,FALSE))),General!$H$24,VLOOKUP(DATE(YEAR(AI8),MONTH(AI8),1),CPI_Con_F!$D$18:$G$67,4,FALSE))) -> 1.862987728 | AJ11: =AI11*(1+IF(OR(ISBLANK(VLOOKUP(DATE(YEAR(AJ8),MONTH(AJ8),1),CPI_Con_F!$D$18:$G$67,4,FALSE)),ISERROR(VLOOKUP(DATE(YEAR(AJ8),MONTH(AJ8),1),CPI_Con_F!$D$18:$G$67,4,FALSE))),General!$H$24,VLOOKUP(DATE(YEAR(AJ8),MONTH(AJ8),1),CPI_Con_F!$D$18:$G$67,4,FALSE))) -> 1.909562421 | AK11: =AJ11*(1+IF(OR(ISBLANK(VLOOKUP(DATE(YEAR(AK8),MONTH(AK8),1),CPI_Con_F!$D$18:$G$67,4,FALSE)),ISERROR(VLOOKUP(DATE(YEAR(AK8),MONTH(AK8),1),CPI_Con_F!$D$18:$G$67,4,FALSE))),General!$H$24,VLOOKUP(DATE(YEAR(AK8),MONTH(AK8),1),CPI_Con_F!$D$18:$G$67,4,FALSE))) -> 1.957301482 | AL11: =AK11*(1+IF(OR(ISBLANK(VLOOKUP(DATE(YEAR(AL8),MONTH(AL8),1),CPI_Con_F!$D$18:$G$67,4,FALSE)),ISERROR(VLOOKUP(DATE(YEAR(AL8),MONTH(AL8),1),CPI_Con_F!$D$18:$G$67,4,FALSE))),General!$H$24,VLOOKUP(DATE(YEAR(AL8),MONTH(AL8),1),CPI_Con_F!$D$18:$G$67,4,FALSE))) -> 2.006234019 | AM11: =AL11*(1+IF(OR(ISBLANK(VLOOKUP(DATE(YEAR(AM8),MONTH(AM8),1),CPI_Con_F!$D$18:$G$67,4,FALSE)),ISERROR(VLOOKUP(DATE(YEAR(AM8),MONTH(AM8),1),CPI_Con_F!$D$18:$G$67,4,FALSE))),General!$H$24,VLOOKUP(DATE(YEAR(AM8),MONTH(AM8),1),CPI_Con_F!$D$18:$G$67,4,FALSE))) -> 2.056389869 | AN11: =AM11*(1+IF(OR(ISBLANK(VLOOKUP(DATE(YEAR(AN8),MONTH(AN8),1),CPI_Con_F!$D$18:$G$67,4,FALSE)),ISERROR(VLOOKUP(DATE(YEAR(AN8),MONTH(AN8),1),CPI_Con_F!$D$18:$G$67,4,FALSE))),General!$H$24,VLOOKUP(DATE(YEAR(AN8),MONTH(AN8),1),CPI_Con_F!$D$18:$G$67,4,FALSE))) -> 2.107799616 | AO11: =AN11*(1+IF(OR(ISBLANK(VLOOKUP(DATE(YEAR(AO8),MONTH(AO8),1),CPI_Con_F!$D$18:$G$67,4,FALSE)),ISERROR(VLOOKUP(DATE(YEAR(AO8),MONTH(AO8),1),CPI_Con_F!$D$18:$G$67,4,FALSE))),General!$H$24,VLOOKUP(DATE(YEAR(AO8),MONTH(AO8),1),CPI_Con_F!$D$18:$G$67,4,FALSE))) -> 2.160494606 | AP11: =AO11*(1+IF(OR(ISBLANK(VLOOKUP(DATE(YEAR(AP8),MONTH(AP8),1),CPI_Con_F!$D$18:$G$67,4,FALSE)),ISERROR(VLOOKUP(DATE(YEAR(AP8),MONTH(AP8),1),CPI_Con_F!$D$18:$G$67,4,FALSE))),General!$H$24,VLOOKUP(DATE(YEAR(AP8),MONTH(AP8),1),CPI_Con_F!$D$18:$G$67,4,FALSE))) -> 2.214506972 | AQ11: =AP11*(1+IF(OR(ISBLANK(VLOOKUP(DATE(YEAR(AQ8),MONTH(AQ8),1),CPI_Con_F!$D$18:$G$67,4,FALSE)),ISERROR(VLOOKUP(DATE(YEAR(AQ8),MONTH(AQ8),1),CPI_Con_F!$D$18:$G$67,4,FALSE))),General!$H$24,VLOOKUP(DATE(YEAR(AQ8),MONTH(AQ8),1),CPI_Con_F!$D$18:$G$67,4,FALSE))) -> 2.269869646 | AR11: =AQ11*(1+IF(OR(ISBLANK(VLOOKUP(DATE(YEAR(AR8),MONTH(AR8),1),CPI_Con_F!$D$18:$G$67,4,FALSE)),ISERROR(VLOOKUP(DATE(YEAR(AR8),MONTH(AR8),1),CPI_Con_F!$D$18:$G$67,4,FALSE))),General!$H$24,VLOOKUP(DATE(YEAR(AR8),MONTH(AR8),1),CPI_Con_F!$D$18:$G$67,4,FALSE))) -> 2.326616387 | AS11: =AR11*(1+IF(OR(ISBLANK(VLOOKUP(DATE(YEAR(AS8),MONTH(AS8),1),CPI_Con_F!$D$18:$G$67,4,FALSE)),ISERROR(VLOOKUP(DATE(YEAR(AS8),MONTH(AS8),1),CPI_Con_F!$D$18:$G$67,4,FALSE))),General!$H$24,VLOOKUP(DATE(YEAR(AS8),MONTH(AS8),1),CPI_Con_F!$D$18:$G$67,4,FALSE))) -> 2.384781797 | AT11: =AS11*(1+IF(OR(ISBLANK(VLOOKUP(DATE(YEAR(AT8),MONTH(AT8),1),CPI_Con_F!$D$18:$G$67,4,FALSE)),ISERROR(VLOOKUP(DATE(YEAR(AT8),MONTH(AT8),1),CPI_Con_F!$D$18:$G$67,4,FALSE))),General!$H$24,VLOOKUP(DATE(YEAR(AT8),MONTH(AT8),1),CPI_Con_F!$D$18:$G$67,4,FALSE))) -> 2.444401342 | AU11: =AT11*(1+IF(OR(ISBLANK(VLOOKUP(DATE(YEAR(AU8),MONTH(AU8),1),CPI_Con_F!$D$18:$G$67,4,FALSE)),ISERROR(VLOOKUP(DATE(YEAR(AU8),MONTH(AU8),1),CPI_Con_F!$D$18:$G$67,4,FALSE))),General!$H$24,VLOOKUP(DATE(YEAR(AU8),MONTH(AU8),1),CPI_Con_F!$D$18:$G$67,4,FALSE))) -> 2.505511375 | AV11: =AU11*(1+IF(OR(ISBLANK(VLOOKUP(DATE(YEAR(AV8),MONTH(AV8),1),CPI_Con_F!$D$18:$G$67,4,FALSE)),ISERROR(VLOOKUP(DATE(YEAR(AV8),MONTH(AV8),1),CPI_Con_F!$D$18:$G$67,4,FALSE))),General!$H$24,VLOOKUP(DATE(YEAR(AV8),MONTH(AV8),1),CPI_Con_F!$D$18:$G$67,4,FALSE))) -> 2.56814916 | AW11: =AV11*(1+IF(OR(ISBLANK(VLOOKUP(DATE(YEAR(AW8),MONTH(AW8),1),CPI_Con_F!$D$18:$G$67,4,FALSE)),ISERROR(VLOOKUP(DATE(YEAR(AW8),MONTH(AW8),1),CPI_Con_F!$D$18:$G$67,4,FALSE))),General!$H$24,VLOOKUP(DATE(YEAR(AW8),MONTH(AW8),1),CPI_Con_F!$D$18:$G$67,4,FALSE))) -> 2.632352889 | AX11: =AW11*(1+IF(OR(ISBLANK(VLOOKUP(DATE(YEAR(AX8),MONTH(AX8),1),CPI_Con_F!$D$18:$G$67,4,FALSE)),ISERROR(VLOOKUP(DATE(YEAR(AX8),MONTH(AX8),1),CPI_Con_F!$D$18:$G$67,4,FALSE))),General!$H$24,VLOOKUP(DATE(YEAR(AX8),MONTH(AX8),1),CPI_Con_F!$D$18:$G$67,4,FALSE))) -> 2.698161711 | AY11: =AX11*(1+IF(OR(ISBLANK(VLOOKUP(DATE(YEAR(AY8),MONTH(AY8),1),CPI_Con_F!$D$18:$G$67,4,FALSE)),ISERROR(VLOOKUP(DATE(YEAR(AY8),MONTH(AY8),1),CPI_Con_F!$D$18:$G$67,4,FALSE))),General!$H$24,VLOOKUP(DATE(YEAR(AY8),MONTH(AY8),1),CPI_Con_F!$D$18:$G$67,4,FALSE))) -> 2.765615754 | AZ11: =AY11*(1+IF(OR(ISBLANK(VLOOKUP(DATE(YEAR(AZ8),MONTH(AZ8),1),CPI_Con_F!$D$18:$G$67,4,FALSE)),ISERROR(VLOOKUP(DATE(YEAR(AZ8),MONTH(AZ8),1),CPI_Con_F!$D$18:$G$67,4,FALSE))),General!$H$24,VLOOKUP(DATE(YEAR(AZ8),MONTH(AZ8),1),CPI_Con_F!$D$18:$G$67,4,FALSE))) -> 2.834756147 | BA11: =AZ11*(1+IF(OR(ISBLANK(VLOOKUP(DATE(YEAR(BA8),MONTH(BA8),1),CPI_Con_F!$D$18:$G$67,4,FALSE)),ISERROR(VLOOKUP(DATE(YEAR(BA8),MONTH(BA8),1),CPI_Con_F!$D$18:$G$67,4,FALSE))),General!$H$24,VLOOKUP(DATE(YEAR(BA8),MONTH(BA8),1),CPI_Con_F!$D$18:$G$67,4,FALSE))) -> 2.905625051 | BB11: =BA11*(1+IF(OR(ISBLANK(VLOOKUP(DATE(YEAR(BB8),MONTH(BB8),1),CPI_Con_F!$D$18:$G$67,4,FALSE)),ISERROR(VLOOKUP(DATE(YEAR(BB8),MONTH(BB8),1),CPI_Con_F!$D$18:$G$67,4,FALSE))),General!$H$24,VLOOKUP(DATE(YEAR(BB8),MONTH(BB8),1),CPI_Con_F!$D$18:$G$67,4,FALSE))) -> 2.978265677 | BC11: =BB11*(1+IF(OR(ISBLANK(VLOOKUP(DATE(YEAR(BC8),MONTH(BC8),1),CPI_Con_F!$D$18:$G$67,4,FALSE)),ISERROR(VLOOKUP(DATE(YEAR(BC8),MONTH(BC8),1),CPI_Con_F!$D$18:$G$67,4,FALSE))),General!$H$24,VLOOKUP(DATE(YEAR(BC8),MONTH(BC8),1),CPI_Con_F!$D$18:$G$67,4,FALSE))) -> 3.052722319 | BD11: =BC11*(1+IF(OR(ISBLANK(VLOOKUP(DATE(YEAR(BD8),MONTH(BD8),1),CPI_Con_F!$D$18:$G$67,4,FALSE)),ISERROR(VLOOKUP(DATE(YEAR(BD8),MONTH(BD8),1),CPI_Con_F!$D$18:$G$67,4,FALSE))),General!$H$24,VLOOKUP(DATE(YEAR(BD8),MONTH(BD8),1),CPI_Con_F!$D$18:$G$67,4,FALSE))) -> 3.129040377 | BE11: =BD11*(1+IF(OR(ISBLANK(VLOOKUP(DATE(YEAR(BE8),MONTH(BE8),1),CPI_Con_F!$D$18:$G$67,4,FALSE)),ISERROR(VLOOKUP(DATE(YEAR(BE8),MONTH(BE8),1),CPI_Con_F!$D$18:$G$67,4,FALSE))),General!$H$24,VLOOKUP(DATE(YEAR(BE8),MONTH(BE8),1),CPI_Con_F!$D$18:$G$67,4,FALSE))) -> 3.207266387 | BF11: =BE11*(1+IF(OR(ISBLANK(VLOOKUP(DATE(YEAR(BF8),MONTH(BF8),1),CPI_Con_F!$D$18:$G$67,4,FALSE)),ISERROR(VLOOKUP(DATE(YEAR(BF8),MONTH(BF8),1),CPI_Con_F!$D$18:$G$67,4,FALSE))),General!$H$24,VLOOKUP(DATE(YEAR(BF8),MONTH(BF8),1),CPI_Con_F!$D$18:$G$67,4,FALSE))) -> 3.287448046 | BG11: =BF11*(1+IF(OR(ISBLANK(VLOOKUP(DATE(YEAR(BG8),MONTH(BG8),1),CPI_Con_F!$D$18:$G$67,4,FALSE)),ISERROR(VLOOKUP(DATE(YEAR(BG8),MONTH(BG8),1),CPI_Con_F!$D$18:$G$67,4,FALSE))),General!$H$24,VLOOKUP(DATE(YEAR(BG8),MONTH(BG8),1),CPI_Con_F!$D$18:$G$67,4,FALSE))) -> 3.369634248
B12: CPI Index (lagged) | J12: =IF(J9=1,1,I11) -> 1 | K12: 1 | L12: 1.03 | M12: 1.05575 | N12: 1.08214375 | O12: 1.109197344 | P12: 1.136927277 | Q12: 1.165350459 | R12: 1.194484221 | S12: 1.224346326 | T12: 1.254954984 | U12: 1.286328859 | V12: 1.318487081 | W12: 1.351449258 | X12: 1.385235489 | Y12: 1.419866376 | Z12: 1.455363036 | AA12: 1.491747111 | AB12: 1.529040789 | AC12: 1.567266809 | AD12: 1.606448479 | AE12: 1.646609691 | AF12: 1.687774933 | AG12: 1.729969307 | AH12: 1.77321854 | AI12: 1.817549003 | AJ12: 1.862987728 | AK12: 1.909562421 | AL12: 1.957301482 | AM12: 2.006234019 | AN12: 2.056389869 | AO12: 2.107799616 | AP12: 2.160494606 | AQ12: 2.214506972 | AR12: 2.269869646 | AS12: 2.326616387 | AT12: 2.384781797 | AU12: 2.444401342 | AV12: 2.505511375 | AW12: 2.56814916 | AX12: 2.632352889 | AY12: 2.698161711 | AZ12: 2.765615754 | BA12: 2.834756147 | BB12: 2.905625051 | BC12: 2.978265677 | BD12: 3.052722319 | BE12: 3.129040377 | BF12: 3.207266387 | BG12: 3.287448046
B13: Discount Index (pre tax) | J13: =(1+General!J32)^(J$9-1) -> 1 | K13: =(1+General!K32)^(K$9-1) -> 1.0556 | L13: =(1+General!L32)^(L$9-1) -> 1.11429136 | M13: =(1+General!M32)^(M$9-1) -> 1.17624596 | N13: =(1+General!N32)^(N$9-1) -> 1.241645235 | O13: =(1+General!O32)^(O$9-1) -> 1.31068071 | P13: =(1+General!P32)^(P$9-1) -> 1.383554558 | Q13: =(1+General!Q32)^(Q$9-1) -> 1.460480191 | R13: =(1+General!R32)^(R$9-1) -> 1.54168289 | S13: =(1+General!S32)^(S$9-1) -> 1.627400458 | T13: =(1+General!T32)^(T$9-1) -> 1.717883924 | U13: =(1+General!U32)^(U$9-1) -> 1.81339827 | V13: =(1+General!V32)^(V$9-1) -> 1.914223214 | W13: =(1+General!W32)^(W$9-1) -> 2.020654024 | X13: =(1+General!X32)^(X$9-1) -> 2.133002388 | Y13: =(1+General!Y32)^(Y$9-1) -> 2.251597321 | Z13: =(1+General!Z32)^(Z$9-1) -> 2.376786132 | AA13: =(1+General!AA32)^(AA$9-1) -> 2.508935441 | AB13: =(1+General!AB32)^(AB$9-1) -> 2.648432251 | AC13: =(1+General!AC32)^(AC$9-1) -> 2.795685084 | AD13: =(1+General!AD32)^(AD$9-1) -> 2.951125175 | AE13: =(1+General!AE32)^(AE$9-1) -> 3.115207735 | AF13: =(1+General!AF32)^(AF$9-1) -> 3.288413285 | AG13: =(1+General!AG32)^(AG$9-1) -> 3.471249064 | AH13: =(1+General!AH32)^(AH$9-1) -> 3.664250512 | AI13: =(1+General!AI32)^(AI$9-1) -> 3.86798284 | AJ13: =(1+General!AJ32)^(AJ$9-1) -> 4.083042686 | AK13: =(1+General!AK32)^(AK$9-1) -> 4.310059859 | AL13: =(1+General!AL32)^(AL$9-1) -> 4.549699187 | AM13: =(1+General!AM32)^(AM$9-1) -> 4.802662462 | AN13: =(1+General!AN32)^(AN$9-1) -> 5.069690495 | AO13: =(1+General!AO32)^(AO$9-1) -> 5.351565287 | AP13: =(1+General!AP32)^(AP$9-1) -> 5.649112317 | AQ13: =(1+General!AQ32)^(AQ$9-1) -> 5.963202961 | AR13: =(1+General!AR32)^(AR$9-1) -> 6.294757046 | AS13: =(1+General!AS32)^(AS$9-1) -> 6.644745538 | AT13: =(1+General!AT32)^(AT$9-1) -> 7.01419339 | AU13: =(1+General!AU32)^(AU$9-1) -> 7.404182542 | AV13: =(1+General!AV32)^(AV$9-1) -> 7.815855092 | AW13: =(1+General!AW32)^(AW$9-1) -> 8.250416635 | AX13: =(1+General!AX32)^(AX$9-1) -> 8.709139799 | AY13: =(1+General!AY32)^(AY$9-1) -> 9.193367972 | AZ13: =(1+General!AZ32)^(AZ$9-1) -> 9.704519232 | BA13: =(1+General!BA32)^(BA$9-1) -> 10.2440905 | BB13: =(1+General!BB32)^(BB$9-1) -> 10.81366193 | BC13: =(1+General!BC32)^(BC$9-1) -> 11.41490154 | BD13: =(1+General!BD32)^(BD$9-1) -> 12.04957006 | BE13: =(1+General!BE32)^(BE$9-1) -> 12.71952616 | BF13: =(1+General!BF32)^(BF$9-1) -> 13.42673181 | BG13: =(1+General!BG32)^(BG$9-1) -> 14.1732581
J16: ="FY "&RIGHT(J10,2) -> FY 25 | K16: FY 26 | L16: FY 27 | M16: FY 28 | N16: FY 29 | O16: FY 30 | P16: FY 31 | Q16: FY 32 | R16: FY 33 | S16: FY 34 | T16: FY 35 | U16: FY 36 | V16: FY 37 | W16: FY 38 | X16: FY 39 | Y16: FY 40 | Z16: FY 41 | AA16: FY 42 | AB16: FY 43 | AC16: FY 44 | AD16: FY 45 | AE16: FY 46 | AF16: FY 47 | AG16: FY 48 | AH16: FY 49 | AI16: FY 50 | AJ16: FY 51 | AK16: FY 52 | AL16: FY 53 | AM16: FY 54 | AN16: FY 55 | AO16: FY 56 | AP16: FY 57 | AQ16: FY 58 | AR16: FY 59 | AS16: FY 60 | AT16: FY 61 | AU16: FY 62 | AV16: FY 63 | AW16: FY 64 | AX16: FY 65 | AY16: FY 66 | AZ16: FY 67 | BA16: FY 68 | BB16: FY 69 | BC16: FY 70 | BD16: FY 71 | BE16: FY 72 | BF16: FY 73 | BG16: FY 74
B17: Summary | J17: =J9 -> 1 | K17: 2 | L17: 3 | M17: 4 | N17: 5 | O17: 6 | P17: 7 | Q17: 8 | R17: 9 | S17: 10 | T17: 11 | U17: 12 | V17: 13 | W17: 14 | X17: 15 | Y17: 16 | Z17: 17 | AA17: 18 | AB17: 19 | AC17: 20 | AD17: 21 | AE17: 22 | AF17: 23 | AG17: 24 | AH17: 25 | AI17: 26 | AJ17: 27 | AK17: 28 | AL17: 29 | AM17: 30 | AN17: 31 | AO17: 32 | AP17: 33 | AQ17: 34 | AR17: 35 | AS17: 36 | AT17: 37 | AU17: 38 | AV17: 39 | AW17: 40 | AX17: 41 | AY17: 42 | AZ17: 43 | BA17: 44 | BB17: 45 | BC17: 46 | BD17: 47 | BE17: 48 | BF17: 49 | BG17: 50
A19: To determine the highest value project | E19: Present Value Cost
F20: Capital Expenditure | H20: =SUM(J20:BG20) -> -581.5459351 | J20: -0.996 | K20: 0 | L20: -95.31100286 | M20: -93.46442124 | N20: -89.2730186 | O20: -85.29812489 | P20: -82.99730786 | Q20: -80.7287632 | R20: -53.47729645 | S20: 0 | T20: 0 | U20: 0 | V20: 0 | W20: 0 | X20: 0 | Y20: 0 | Z20: 0 | AA20: 0 | AB20: 0 | AC20: 0 | AD20: 0 | AE20: 0 | AF20: 0 | AG20: 0 | AH20: 0 | AI20: 0 | AJ20: 0 | AK20: 0 | AL20: 0 | AM20: 0 | AN20: 0 | AO20: 0 | AP20: 0 | AQ20: 0 | AR20: 0 | AS20: 0 | AT20: 0 | AU20: 0 | AV20: 0 | AW20: 0 | AX20: 0 | AY20: 0 | AZ20: 0 | BA20: 0 | BB20: 0 | BC20: 0 | BD20: 0 | BE20: 0 | BF20: 0 | BG20: 0
F21: Operating Expenditure | H21: =SUM(J21:BG21) -> -37.36739464 | J21: 0 | K21: -0.009757483895 | L21: -0.009474631482 | M21: -0.9383978036 | N21: -1.822390581 | O21: -2.638287814 | P21: -3.390063271 | Q21: -4.097704868 | R21: -4.762805336 | S21: -5.14401076 | T21: -4.994894874 | U21: -4.850101597 | V21: -4.709505624 | W21: 0 | X21: 0 | Y21: 0 | Z21: 0 | AA21: 0 | AB21: 0 | AC21: 0 | AD21: 0 | AE21: 0 | AF21: 0 | AG21: 0 | AH21: 0 | AI21: 0 | AJ21: 0 | AK21: 0 | AL21: 0 | AM21: 0 | AN21: 0 | AO21: 0 | AP21: 0 | AQ21: 0 | AR21: 0 | AS21: 0 | AT21: 0 | AU21: 0 | AV21: 0 | AW21: 0 | AX21: 0 | AY21: 0 | AZ21: 0 | BA21: 0 | BB21: 0 | BC21: 0 | BD21: 0 | BE21: 0 | BF21: 0 | BG21: 0
F22: Net Benefits | H22: =SUM(J22:BG22) -> 3839.180951 | J22: 0 | K22: 28.32666546 | L22: 27.49308163 | M22: 93.2913929 | N22: 92.33212677 | O22: 443.639298 | P22: 465.2446845 | Q22: 457.5388909 | R22: 453.4196625 | S22: 446.159875 | T22: 440.6511272 | U22: 446.4807324 | V22: 444.6034139 | W22: 0 | X22: 0 | Y22: 0 | Z22: 0 | AA22: 0 | AB22: 0 | AC22: 0 | AD22: 0 | AE22: 0 | AF22: 0 | AG22: 0 | AH22: 0 | AI22: 0 | AJ22: 0 | AK22: 0 | AL22: 0 | AM22: 0 | AN22: 0 | AO22: 0 | AP22: 0 | AQ22: 0 | AR22: 0 | AS22: 0 | AT22: 0 | AU22: 0 | AV22: 0 | AW22: 0 | AX22: 0 | AY22: 0 | AZ22: 0 | BA22: 0 | BB22: 0 | BC22: 0 | BD22: 0 | BE22: 0 | BF22: 0 | BG22: 0
E23: Total Present Value | H23: =SUM(J23:BG23) -> 3220.267621 | J23: =SUM(J20:J22) -> -0.996 | K23: =SUM(K20:K22) -> 28.31690798 | L23: -67.82739586 | M23: =SUM(M20:M22) -> -1.111426145 | N23: 1.236717593 | O23: 355.7028853 | P23: 378.8573134 | Q23: 372.7124228 | R23: 395.1795607 | S23: 441.0158642 | T23: 435.6562323 | U23: 441.6306308 | V23: 439.8939083 | W23: 0 | X23: 0 | Y23: 0 | Z23: 0 | AA23: 0 | AB23: 0 | AC23: 0 | AD23: 0 | AE23: 0 | AF23: 0 | AG23: 0 | AH23: 0 | AI23: 0 | AJ23: 0 | AK23: 0 | AL23: 0 | AM23: 0 | AN23: 0 | AO23: 0 | AP23: 0 | AQ23: 0 | AR23: 0 | AS23: 0 | AT23: 0 | AU23: 0 | AV23: 0 | AW23: 0 | AX23: 0 | AY23: 0 | AZ23: 0 | BA23: 0 | BB23: 0 | BC23: 0 | BD23: 0 | BE23: 0 | BF23: 0 | BG23: 0
A25: To determine the capex & opex need for the EDPR period | E25: Undiscounted
F26: Capital Expenditure | H26: =SUM(J26:BG26) -> -497.103 | J26: 0 | K26: 0 | L26: 0 | M26: -101.592 | N26: -99.933 | O26: -98.334 | P26: -98.538 | Q26: -98.706 | R26: 0 | S26: 0 | T26: 0 | U26: 0 | V26: 0 | W26: 0 | X26: 0 | Y26: 0 | Z26: 0 | AA26: 0 | AB26: 0 | AC26: 0 | AD26: 0 | AE26: 0 | AF26: 0 | AG26: 0 | AH26: 0 | AI26: 0 | AJ26: 0 | AK26: 0 | AL26: 0 | AM26: 0 | AN26: 0 | AO26: 0 | AP26: 0 | AQ26: 0 | AR26: 0 | AS26: 0 | AT26: 0 | AU26: 0 | AV26: 0 | AW26: 0 | AX26: 0 | AY26: 0 | AZ26: 0 | BA26: 0 | BB26: 0 | BC26: 0 | BD26: 0 | BE26: 0 | BF26: 0 | BG26: 0
F27: Operating Expenditure | H27: =SUM(J27:BG27) -> -15.13653 | J27: 0 | K27: 0 | L27: 0 | M27: -1.02 | N27: -2.04 | O27: -3.04149 | P27: -4.02483 | Q27: -5.01021 | R27: 0 | S27: 0 | T27: 0 | U27: 0 | V27: 0 | W27: 0 | X27: 0 | Y27: 0 | Z27: 0 | AA27: 0 | AB27: 0 | AC27: 0 | AD27: 0 | AE27: 0 | AF27: 0 | AG27: 0 | AH27: 0 | AI27: 0 | AJ27: 0 | AK27: 0 | AL27: 0 | AM27: 0 | AN27: 0 | AO27: 0 | AP27: 0 | AQ27: 0 | AR27: 0 | AS27: 0 | AT27: 0 | AU27: 0 | AV27: 0 | AW27: 0 | AX27: 0 | AY27: 0 | AZ27: 0 | BA27: 0 | BB27: 0 | BC27: 0 | BD27: 0 | BE27: 0 | BF27: 0 | BG27: 0
F28: Net Benefits | H28: =SUM(J28:BG28) -> 1827.986224 | J28: 0 | K28: 0 | L28: 0 | M28: 101.4039253 | N28: 103.3573925 | O28: 511.4394576 | P28: 552.3586476 | Q28: 559.4268012 | R28: 0 | S28: 0 | T28: 0 | U28: 0 | V28: 0 | W28: 0 | X28: 0 | Y28: 0 | Z28: 0 | AA28: 0 | AB28: 0 | AC28: 0 | AD28: 0 | AE28: 0 | AF28: 0 | AG28: 0 | AH28: 0 | AI28: 0 | AJ28: 0 | AK28: 0 | AL28: 0 | AM28: 0 | AN28: 0 | AO28: 0 | AP28: 0 | AQ28: 0 | AR28: 0 | AS28: 0 | AT28: 0 | AU28: 0 | AV28: 0 | AW28: 0 | AX28: 0 | AY28: 0 | AZ28: 0 | BA28: 0 | BB28: 0 | BC28: 0 | BD28: 0 | BE28: 0 | BF28: 0 | BG28: 0
E29: Undiscounted Total Value | H29: =SUM(J29:BG29) -> 1315.746694 | J29: =SUM(J26:J28) -> 0 | K29: =SUM(K26:K28) -> 0 | L29: 0 | M29: -1.208074725 | N29: 1.38439252 | O29: 410.0639676 | P29: 449.7958176 | Q29: 455.7105912 | R29: 0 | S29: 0 | T29: 0 | U29: 0 | V29: 0 | W29: 0 | X29: 0 | Y29: 0 | Z29: 0 | AA29: 0 | AB29: 0 | AC29: 0 | AD29: 0 | AE29: 0 | AF29: 0 | AG29: 0 | AH29: 0 | AI29: 0 | AJ29: 0 | AK29: 0 | AL29: 0 | AM29: 0 | AN29: 0 | AO29: 0 | AP29: 0 | AQ29: 0 | AR29: 0 | AS29: 0 | AT29: 0 | AU29: 0 | AV29: 0 | AW29: 0 | AX29: 0 | AY29: 0 | AZ29: 0 | BA29: 0 | BB29: 0 | BC29: 0 | BD29: 0 | BE29: 0 | BF29: 0 | BG29: 0
B32: Capital Expenditure
B33: Note: You can enter the values in here directly, or use the "Calculations" sheets to calculate the values and then link it to this sheet
F35: Category | G35: Description (optional) | I35: Dollar Basis
F36: Option 3 SWER | G36: =General!G12 -> Deterministic Approach to Electrification (No load at risk)
F37: Option 3 DSS | G37: =General!G11 -> Economic Approach to Electrification - network and non-network projects
F46: Total Direct Capex | J46: =SUM(J36:J45) -> 0 | K46: =SUM(K36:K45) -> 0 | L46: =SUM(L36:L45) -> 0 | M46: 0 | N46: 0 | O46: 0 | P46: 0 | Q46: =SUM(Q36:Q45) -> 0 | R46: 0 | S46: 0 | T46: 0 | U46: 0 | V46: 0 | W46: 0 | X46: 0 | Y46: 0 | Z46: 0 | AA46: 0 | AB46: 0 | AC46: 0 | AD46: 0 | AE46: 0 | AF46: 0 | AG46: 0 | AH46: 0 | AI46: 0 | AJ46: 0 | AK46: 0 | AL46: 0 | AM46: 0 | AN46: 0 | AO46: 0 | AP46: 0 | AQ46: 0 | AR46: 0 | AS46: 0 | AT46: 0 | AU46: 0 | AV46: 0 | AW46: 0 | AX46: 0 | AY46: 0 | AZ46: 0 | BA46: 0 | BB46: 0 | BC46: 0 | BD46: 0 | BE46: 0 | BF46: 0 | BG46: 0
B48: Note: This table converts the values into 30 June 2024 dollars, which is needed for EDPR
G49: Dollar Basis for Conversion | H49: Conversion Factor
F50: =F36 -> Option 3 SWER | G50: 2024-06-30 | H50: 1 | J50: =J36*$H50 -> 0 | K50: 0 | L50: 0 | M50: 0 | N50: 0 | O50: 0 | P50: 0 | Q50: 0 | R50: 0 | S50: 0 | T50: 0 | U50: 0 | V50: 0 | W50: 0 | X50: 0 | Y50: 0 | Z50: 0 | AA50: 0 | AB50: 0 | AC50: 0 | AD50: 0 | AE50: 0 | AF50: 0 | AG50: 0 | AH50: 0 | AI50: 0 | AJ50: 0 | AK50: 0 | AL50: 0 | AM50: 0 | AN50: 0 | AO50: 0 | AP50: 0 | AQ50: 0 | AR50: 0 | AS50: 0 | AT50: 0 | AU50: 0 | AV50: 0 | AW50: 0 | AX50: 0 | AY50: 0 | AZ50: 0 | BA50: 0 | BB50: 0 | BC50: 0 | BD50: 0 | BE50: 0 | BF50: 0 | BG50: 0
F51: =F37 -> Option 3 DSS | G51: 2024-06-30 | H51: 1 | J51: 0 | K51: 0 | L51: 0 | M51: 0 | N51: 0 | O51: 0 | P51: 0 | Q51: 0 | R51: 0 | S51: 0 | T51: 0 | U51: 0 | V51: 0 | W51: 0 | X51: 0 | Y51: 0 | Z51: 0 | AA51: 0 | AB51: 0 | AC51: 0 | AD51: 0 | AE51: 0 | AF51: 0 | AG51: 0 | AH51: 0 | AI51: 0 | AJ51: 0 | AK51: 0 | AL51: 0 | AM51: 0 | AN51: 0 | AO51: 0 | AP51: 0 | AQ51: 0 | AR51: 0 | AS51: 0 | AT51: 0 | AU51: 0 | AV51: 0 | AW51: 0 | AX51: 0 | AY51: 0 | AZ51: 0 | BA51: 0 | BB51: 0 | BC51: 0 | BD51: 0 | BE51: 0 | BF51: 0 | BG51: 0
J52: 0 | K52: 0 | L52: 0 | M52: 0 | N52: 0 | O52: 0 | P52: 0 | Q52: 0 | R52: 0 | S52: 0 | T52: 0 | U52: 0 | V52: 0 | W52: 0 | X52: 0 | Y52: 0 | Z52: 0 | AA52: 0 | AB52: 0 | AC52: 0 | AD52: 0 | AE52: 0 | AF52: 0 | AG52: 0 | AH52: 0 | AI52: 0 | AJ52: 0 | AK52: 0 | AL52: 0 | AM52: 0 | AN52: 0 | AO52: 0 | AP52: 0 | AQ52: 0 | AR52: 0 | AS52: 0 | AT52: 0 | AU52: 0 | AV52: 0 | AW52: 0 | AX52: 0 | AY52: 0 | AZ52: 0 | BA52: 0 | BB52: 0 | BC52: 0 | BD52: 0 | BE52: 0 | BF52: 0 | BG52: 0
J53: 0 | K53: 0 | L53: 0 | M53: 0 | N53: 0 | O53: 0 | P53: 0 | Q53: 0 | R53: 0 | S53: 0 | T53: 0 | U53: 0 | V53: 0 | W53: 0 | X53: 0 | Y53: 0 | Z53: 0 | AA53: 0 | AB53: 0 | AC53: 0 | AD53: 0 | AE53: 0 | AF53: 0 | AG53: 0 | AH53: 0 | AI53: 0 | AJ53: 0 | AK53: 0 | AL53: 0 | AM53: 0 | AN53: 0 | AO53: 0 | AP53: 0 | AQ53: 0 | AR53: 0 | AS53: 0 | AT53: 0 | AU53: 0 | AV53: 0 | AW53: 0 | AX53: 0 | AY53: 0 | AZ53: 0 | BA53: 0 | BB53: 0 | BC53: 0 | BD53: 0 | BE53: 0 | BF53: 0 | BG53: 0
J54: 0 | K54: 0 | L54: 0 | M54: 0 | N54: 0 | O54: 0 | P54: 0 | Q54: 0 | R54: 0 | S54: 0 | T54: 0 | U54: 0 | V54: 0 | W54: 0 | X54: 0 | Y54: 0 | Z54: 0 | AA54: 0 | AB54: 0 | AC54: 0 | AD54: 0 | AE54: 0 | AF54: 0 | AG54: 0 | AH54: 0 | AI54: 0 | AJ54: 0 | AK54: 0 | AL54: 0 | AM54: 0 | AN54: 0 | AO54: 0 | AP54: 0 | AQ54: 0 | AR54: 0 | AS54: 0 | AT54: 0 | AU54: 0 | AV54: 0 | AW54: 0 | AX54: 0 | AY54: 0 | AZ54: 0 | BA54: 0 | BB54: 0 | BC54: 0 | BD54: 0 | BE54: 0 | BF54: 0 | BG54: 0
J55: 0 | K55: 0 | L55: 0 | M55: 0 | N55: 0 | O55: =O41*$H55 -> 0 | P55: 0 | Q55: 0 | R55: 0 | S55: 0 | T55: 0 | U55: 0 | V55: 0 | W55: 0 | X55: 0 | Y55: 0 | Z55: 0 | AA55: 0 | AB55: 0 | AC55: 0 | AD55: 0 | AE55: 0 | AF55: 0 | AG55: 0 | AH55: 0 | AI55: 0 | AJ55: 0 | AK55: 0 | AL55: 0 | AM55: 0 | AN55: 0 | AO55: 0 | AP55: 0 | AQ55: 0 | AR55: 0 | AS55: 0 | AT55: 0 | AU55: 0 | AV55: 0 | AW55: 0 | AX55: 0 | AY55: 0 | AZ55: 0 | BA55: 0 | BB55: 0 | BC55: 0 | BD55: 0 | BE55: 0 | BF55: 0 | BG55: 0
J56: =J42*$H56 -> 0 | K56: 0 | L56: 0 | M56: 0 | N56: 0 | O56: 0 | P56: 0 | Q56: 0 | R56: 0 | S56: 0 | T56: 0 | U56: 0 | V56: 0 | W56: 0 | X56: 0 | Y56: 0 | Z56: 0 | AA56: 0 | AB56: 0 | AC56: 0 | AD56: 0 | AE56: 0 | AF56: 0 | AG56: 0 | AH56: 0 | AI56: 0 | AJ56: 0 | AK56: 0 | AL56: 0 | AM56: 0 | AN56: 0 | AO56: 0 | AP56: 0 | AQ56: 0 | AR56: 0 | AS56: 0 | AT56: 0 | AU56: 0 | AV56: 0 | AW56: 0 | AX56: 0 | AY56: 0 | AZ56: 0 | BA56: 0 | BB56: 0 | BC56: 0 | BD56: 0 | BE56: 0 | BF56: 0 | BG56: 0
J57: 0 | K57: 0 | L57: 0 | M57: 0 | N57: 0 | O57: 0 | P57: 0 | Q57: 0 | R57: 0 | S57: 0 | T57: 0 | U57: 0 | V57: 0 | W57: 0 | X57: 0 | Y57: 0 | Z57: 0 | AA57: 0 | AB57: 0 | AC57: 0 | AD57: 0 | AE57: 0 | AF57: 0 | AG57: 0 | AH57: 0 | AI57: 0 | AJ57: 0 | AK57: 0 | AL57: 0 | AM57: 0 | AN57: 0 | AO57: 0 | AP57: 0 | AQ57: 0 | AR57: 0 | AS57: 0 | AT57: 0 | AU57: 0 | AV57: 0 | AW57: 0 | AX57: 0 | AY57: 0 | AZ57: 0 | BA57: 0 | BB57: 0 | BC57: 0 | BD57: 0 | BE57: 0 | BF57: 0 | BG57: 0
J58: 0 | K58: 0 | L58: 0 | M58: 0 | N58: 0 | O58: 0 | P58: 0 | Q58: 0 | R58: 0 | S58: 0 | T58: 0 | U58: 0 | V58: 0 | W58: 0 | X58: 0 | Y58: 0 | Z58: 0 | AA58: 0 | AB58: 0 | AC58: 0 | AD58: 0 | AE58: 0 | AF58: 0 | AG58: 0 | AH58: 0 | AI58: 0 | AJ58: 0 | AK58: 0 | AL58: 0 | AM58: 0 | AN58: 0 | AO58: 0 | AP58: 0 | AQ58: 0 | AR58: 0 | AS58: 0 | AT58: 0 | AU58: 0 | AV58: 0 | AW58: 0 | AX58: 0 | AY58: 0 | AZ58: 0 | BA58: 0 | BB58: 0 | BC58: 0 | BD58: 0 | BE58: 0 | BF58: 0 | BG58: 0
J59: 0 | K59: 0 | L59: 0 | M59: 0 | N59: 0 | O59: 0 | P59: 0 | Q59: 0 | R59: 0 | S59: 0 | T59: 0 | U59: 0 | V59: 0 | W59: 0 | X59: 0 | Y59: 0 | Z59: 0 | AA59: 0 | AB59: 0 | AC59: 0 | AD59: 0 | AE59: 0 | AF59: 0 | AG59: 0 | AH59: 0 | AI59: 0 | AJ59: 0 | AK59: 0 | AL59: 0 | AM59: 0 | AN59: 0 | AO59: 0 | AP59: 0 | AQ59: 0 | AR59: 0 | AS59: 0 | AT59: 0 | AU59: 0 | AV59: 0 | AW59: 0 | AX59: 0 | AY59: 0 | AZ59: 0 | BA59: 0 | BB59: 0 | BC59: 0 | BD59: 0 | BE59: 0 | BF59: 0 | BG59: 0
F60: Total Direct Capex | J60: =SUM(J50:J59) -> 0 | K60: =SUM(K50:K59) -> 0 | L60: 0 | M60: 0 | N60: 0 | O60: 0 | P60: 0 | Q60: 0 | R60: 0 | S60: 0 | T60: 0 | U60: 0 | V60: 0 | W60: 0 | X60: 0 | Y60: 0 | Z60: 0 | AA60: 0 | AB60: 0 | AC60: 0 | AD60: 0 | AE60: 0 | AF60: 0 | AG60: 0 | AH60: 0 | AI60: 0 | AJ60: 0 | AK60: 0 | AL60: 0 | AM60: 0 | AN60: 0 | AO60: 0 | AP60: 0 | AQ60: 0 | AR60: 0 | AS60: 0 | AT60: 0 | AU60: 0 | AV60: 0 | AW60: 0 | AX60: 0 | AY60: 0 | AZ60: 0 | BA60: 0 | BB60: 0 | BC60: 0 | BD60: 0 | BE60: 0 | BF60: 0 | BG60: 0
B62: Operating Expenditure (enter costs as positive numbers and savings as negative numbers)
B63: Note: You can enter the values in here directly, or use the "Calculations" sheets to calculate the values and then link it to this sheet
F64: Category | G64: Description (optional) | I64: Dollar Basis
F65: =F36 -> Option 3 SWER | G65: =G36 -> Deterministic Approach to Electrification (No load at risk)
F66: =F37 -> Option 3 DSS | G66: =G37 -> Economic Approach to Electrification - network and non-network projects
F75: Total Opex | J75: =SUM(J65:J74) -> 0 | K75: =SUM(K65:K74) -> 0 | L75: 0 | M75: 0 | N75: 0 | O75: 0 | P75: =SUM(P65:P74) -> 0 | Q75: 0 | R75: 0 | S75: 0 | T75: 0 | U75: 0 | V75: 0 | W75: 0 | X75: 0 | Y75: 0 | Z75: 0 | AA75: 0 | AB75: 0 | AC75: 0 | AD75: 0 | AE75: 0 | AF75: 0 | AG75: 0 | AH75: 0 | AI75: 0 | AJ75: 0 | AK75: 0 | AL75: 0 | AM75: 0 | AN75: 0 | AO75: 0 | AP75: 0 | AQ75: 0 | AR75: 0 | AS75: 0 | AT75: 0 | AU75: 0 | AV75: 0 | AW75: 0 | AX75: 0 | AY75: 0 | AZ75: 0 | BA75: 0 | BB75: 0 | BC75: 0 | BD75: 0 | BE75: 0 | BF75: 0 | BG75: 0
B77: Note: This table converts the values into 30 June 2024 dollars, which is needed for EDPR
F78: Category | G78: Dollar Basis for Conversion | H78: Conversion Factor
F79: =F65 -> Option 3 SWER | G79: 2024-06-30 | H79: 1 | J79: =J65*$H79 -> 0 | K79: 0 | L79: 0 | M79: 0 | N79: 0 | O79: 0 | P79: 0 | Q79: 0 | R79: 0 | S79: 0 | T79: 0 | U79: 0 | V79: 0 | W79: 0 | X79: 0 | Y79: 0 | Z79: 0 | AA79: 0 | AB79: 0 | AC79: 0 | AD79: 0 | AE79: 0 | AF79: 0 | AG79: 0 | AH79: 0 | AI79: 0 | AJ79: 0 | AK79: 0 | AL79: 0 | AM79: 0 | AN79: 0 | AO79: 0 | AP79: 0 | AQ79: 0 | AR79: 0 | AS79: 0 | AT79: 0 | AU79: 0 | AV79: 0 | AW79: 0 | AX79: 0 | AY79: 0 | AZ79: 0 | BA79: 0 | BB79: 0 | BC79: 0 | BD79: 0 | BE79: 0 | BF79: 0 | BG79: 0
F80: =F66 -> Option 3 DSS | G80: 2024-06-30 | H80: 1 | J80: 0 | K80: 0 | L80: 0 | M80: 0 | N80: 0 | O80: 0 | P80: 0 | Q80: 0 | R80: 0 | S80: 0 | T80: 0 | U80: 0 | V80: 0 | W80: 0 | X80: 0 | Y80: 0 | Z80: 0 | AA80: 0 | AB80: 0 | AC80: 0 | AD80: 0 | AE80: 0 | AF80: 0 | AG80: 0 | AH80: 0 | AI80: 0 | AJ80: 0 | AK80: 0 | AL80: 0 | AM80: 0 | AN80: 0 | AO80: 0 | AP80: 0 | AQ80: 0 | AR80: 0 | AS80: 0 | AT80: 0 | AU80: 0 | AV80: 0 | AW80: 0 | AX80: 0 | AY80: 0 | AZ80: 0 | BA80: 0 | BB80: 0 | BC80: 0 | BD80: 0 | BE80: 0 | BF80: 0 | BG80: 0
J81: 0 | K81: 0 | L81: 0 | M81: 0 | N81: 0 | O81: 0 | P81: 0 | Q81: 0 | R81: 0 | S81: 0 | T81: 0 | U81: 0 | V81: 0 | W81: 0 | X81: 0 | Y81: 0 | Z81: 0 | AA81: 0 | AB81: 0 | AC81: 0 | AD81: 0 | AE81: 0 | AF81: 0 | AG81: 0 | AH81: 0 | AI81: 0 | AJ81: 0 | AK81: 0 | AL81: 0 | AM81: 0 | AN81: 0 | AO81: 0 | AP81: 0 | AQ81: 0 | AR81: 0 | AS81: 0 | AT81: 0 | AU81: 0 | AV81: 0 | AW81: 0 | AX81: 0 | AY81: 0 | AZ81: 0 | BA81: 0 | BB81: 0 | BC81: 0 | BD81: 0 | BE81: 0 | BF81: 0 | BG81: 0
J82: 0 | K82: 0 | L82: 0 | M82: 0 | N82: 0 | O82: 0 | P82: 0 | Q82: 0 | R82: 0 | S82: 0 | T82: 0 | U82: 0 | V82: 0 | W82: 0 | X82: 0 | Y82: 0 | Z82: 0 | AA82: 0 | AB82: 0 | AC82: 0 | AD82: 0 | AE82: 0 | AF82: 0 | AG82: 0 | AH82: 0 | AI82: 0 | AJ82: 0 | AK82: 0 | AL82: 0 | AM82: 0 | AN82: 0 | AO82: 0 | AP82: 0 | AQ82: 0 | AR82: 0 | AS82: 0 | AT82: 0 | AU82: 0 | AV82: 0 | AW82: 0 | AX82: 0 | AY82: 0 | AZ82: 0 | BA82: 0 | BB82: 0 | BC82: 0 | BD82: 0 | BE82: 0 | BF82: 0 | BG82: 0
J83: 0 | K83: 0 | L83: 0 | M83: 0 | N83: 0 | O83: 0 | P83: 0 | Q83: 0 | R83: 0 | S83: 0 | T83: 0 | U83: 0 | V83: 0 | W83: 0 | X83: 0 | Y83: 0 | Z83: 0 | AA83: 0 | AB83: 0 | AC83: 0 | AD83: 0 | AE83: 0 | AF83: 0 | AG83: 0 | AH83: 0 | AI83: 0 | AJ83: 0 | AK83: 0 | AL83: 0 | AM83: 0 | AN83: 0 | AO83: 0 | AP83: 0 | AQ83: 0 | AR83: 0 | AS83: 0 | AT83: 0 | AU83: 0 | AV83: 0 | AW83: 0 | AX83: 0 | AY83: 0 | AZ83: 0 | BA83: 0 | BB83: 0 | BC83: 0 | BD83: 0 | BE83: 0 | BF83: 0 | BG83: 0
J84: 0 | K84: 0 | L84: 0 | M84: 0 | N84: 0 | O84: =O70*$H84 -> 0 | P84: 0 | Q84: 0 | R84: 0 | S84: 0 | T84: 0 | U84: 0 | V84: 0 | W84: 0 | X84: 0 | Y84: 0 | Z84: 0 | AA84: 0 | AB84: 0 | AC84: 0 | AD84: 0 | AE84: 0 | AF84: 0 | AG84: 0 | AH84: 0 | AI84: 0 | AJ84: 0 | AK84: 0 | AL84: 0 | AM84: 0 | AN84: 0 | AO84: 0 | AP84: 0 | AQ84: 0 | AR84: 0 | AS84: 0 | AT84: 0 | AU84: 0 | AV84: 0 | AW84: 0 | AX84: 0 | AY84: 0 | AZ84: 0 | BA84: 0 | BB84: 0 | BC84: 0 | BD84: 0 | BE84: 0 | BF84: 0 | BG84: 0
J85: =J71*$H85 -> 0 | K85: 0 | L85: 0 | M85: 0 | N85: 0 | O85: 0 | P85: 0 | Q85: 0 | R85: 0 | S85: 0 | T85: 0 | U85: 0 | V85: 0 | W85: 0 | X85: 0 | Y85: 0 | Z85: 0 | AA85: 0 | AB85: 0 | AC85: 0 | AD85: 0 | AE85: 0 | AF85: 0 | AG85: 0 | AH85: 0 | AI85: 0 | AJ85: 0 | AK85: 0 | AL85: 0 | AM85: 0 | AN85: 0 | AO85: 0 | AP85: 0 | AQ85: 0 | AR85: 0 | AS85: 0 | AT85: 0 | AU85: 0 | AV85: 0 | AW85: 0 | AX85: 0 | AY85: 0 | AZ85: 0 | BA85: 0 | BB85: 0 | BC85: 0 | BD85: 0 | BE85: 0 | BF85: 0 | BG85: 0
J86: 0 | K86: 0 | L86: 0 | M86: 0 | N86: 0 | O86: 0 | P86: 0 | Q86: 0 | R86: 0 | S86: 0 | T86: 0 | U86: 0 | V86: 0 | W86: 0 | X86: 0 | Y86: 0 | Z86: 0 | AA86: 0 | AB86: 0 | AC86: 0 | AD86: 0 | AE86: 0 | AF86: 0 | AG86: 0 | AH86: 0 | AI86: 0 | AJ86: 0 | AK86: 0 | AL86: 0 | AM86: 0 | AN86: 0 | AO86: 0 | AP86: 0 | AQ86: 0 | AR86: 0 | AS86: 0 | AT86: 0 | AU86: 0 | AV86: 0 | AW86: 0 | AX86: 0 | AY86: 0 | AZ86: 0 | BA86: 0 | BB86: 0 | BC86: 0 | BD86: 0 | BE86: 0 | BF86: 0 | BG86: 0
J87: 0 | K87: 0 | L87: 0 | M87: 0 | N87: 0 | O87: 0 | P87: 0 | Q87: 0 | R87: 0 | S87: 0 | T87: 0 | U87: 0 | V87: 0 | W87: 0 | X87: 0 | Y87: 0 | Z87: 0 | AA87: 0 | AB87: 0 | AC87: 0 | AD87: 0 | AE87: 0 | AF87: 0 | AG87: 0 | AH87: 0 | AI87: 0 | AJ87: 0 | AK87: 0 | AL87: 0 | AM87: 0 | AN87: 0 | AO87: 0 | AP87: 0 | AQ87: 0 | AR87: 0 | AS87: 0 | AT87: 0 | AU87: 0 | AV87: 0 | AW87: 0 | AX87: 0 | AY87: 0 | AZ87: 0 | BA87: 0 | BB87: 0 | BC87: 0 | BD87: 0 | BE87: 0 | BF87: 0 | BG87: 0
J88: 0 | K88: 0 | L88: 0 | M88: 0 | N88: 0 | O88: 0 | P88: 0 | Q88: 0 | R88: 0 | S88: 0 | T88: 0 | U88: 0 | V88: 0 | W88: 0 | X88: 0 | Y88: 0 | Z88: 0 | AA88: 0 | AB88: 0 | AC88: 0 | AD88: 0 | AE88: 0 | AF88: 0 | AG88: 0 | AH88: 0 | AI88: 0 | AJ88: 0 | AK88: 0 | AL88: 0 | AM88: 0 | AN88: 0 | AO88: 0 | AP88: 0 | AQ88: 0 | AR88: 0 | AS88: 0 | AT88: 0 | AU88: 0 | AV88: 0 | AW88: 0 | AX88: 0 | AY88: 0 | AZ88: 0 | BA88: 0 | BB88: 0 | BC88: 0 | BD88: 0 | BE88: 0 | BF88: 0 | BG88: 0
F89: Total Opex | J89: =SUM(J79:J88) -> 0 | K89: =SUM(K79:K88) -> 0 | L89: 0 | M89: 0 | N89: 0 | O89: 0 | P89: =SUM(P79:P88) -> 0 | Q89: =SUM(Q79:Q88) -> 0 | R89: 0 | S89: 0 | T89: 0 | U89: 0 | V89: 0 | W89: 0 | X89: 0 | Y89: 0 | Z89: 0 | AA89: 0 | AB89: 0 | AC89: 0 | AD89: 0 | AE89: 0 | AF89: 0 | AG89: 0 | AH89: 0 | AI89: 0 | AJ89: 0 | AK89: 0 | AL89: 0 | AM89: 0 | AN89: 0 | AO89: 0 | AP89: 0 | AQ89: 0 | AR89: 0 | AS89: 0 | AT89: 0 | AU89: 0 | AV89: 0 | AW89: 0 | AX89: 0 | AY89: 0 | AZ89: 0 | BA89: 0 | BB89: 0 | BC89: 0 | BD89: 0 | BE89: 0 | BF89: 0 | BG89: 0
B91: Benefits
B92: Note: You can enter the values in here directly, or use the "Calculations" sheets to calculate the values and then link it to this sheet
F93: Category | G93: Description (optional) | I93: Dollar basis
F94: =F65 -> Option 3 SWER | G94: Expected Energy at Risk | J94: 0 | K94: 29.03070686 | L94: 29.01757359 | M94: 101.4039253 | N94: 103.3573925 | O94: 104.8090742 | P94: 106.5053858 | Q94: 108.3973332 | R94: 110.5832989 | S94: 112.6298527 | T94: 115.0579751 | U94: 117.6194516 | V94: 120.4516745
F95: =F66 -> Option 3 DSS | G95: Expected Energy at Risk | J95: 0 | K95: 0 | L95: 0 | M95: 0 | N95: 0 | O95: 406.6303835 | P95: 445.8532618 | Q95: 451.029468 | R95: 460.3575537 | S95: 465.9413264 | T95: 473.4287731 | U95: 496.4536019 | V95: 509.2946302
J96: 0 | K96: 0 | L96: 0 | M96: 0 | N96: 0 | O96: 0 | P96: 0 | Q96: 0 | R96: 0 | S96: 0 | T96: 0 | U96: 0 | V96: 0 | W96: 0 | X96: 0 | Y96: 0 | Z96: 0 | AA96: 0 | AB96: 0 | AC96: 0 | AD96: 0 | AE96: 0 | AF96: 0 | AG96: 0 | AH96: 0 | AI96: 0 | AJ96: 0 | AK96: 0 | AL96: 0 | AM96: 0 | AN96: 0 | AO96: 0 | AP96: 0 | AQ96: 0 | AR96: 0 | AS96: 0 | AT96: 0 | AU96: 0 | AV96: 0 | AW96: 0 | AX96: 0 | AY96: 0 | AZ96: 0 | BA96: 0 | BB96: 0 | BC96: 0 | BD96: 0 | BE96: 0 | BF96: 0 | BG96: 0
J97: 0 | K97: 0 | L97: 0 | M97: 0 | N97: 0 | O97: 0 | P97: 0 | Q97: 0 | R97: 0 | S97: 0 | T97: 0 | U97: 0 | V97: 0 | W97: 0 | X97: 0 | Y97: 0 | Z97: 0 | AA97: 0 | AB97: 0 | AC97: 0 | AD97: 0 | AE97: 0 | AF97: 0 | AG97: 0 | AH97: 0 | AI97: 0 | AJ97: 0 | AK97: 0 | AL97: 0 | AM97: 0 | AN97: 0 | AO97: 0 | AP97: 0 | AQ97: 0 | AR97: 0 | AS97: 0 | AT97: 0 | AU97: 0 | AV97: 0 | AW97: 0 | AX97: 0 | AY97: 0 | AZ97: 0 | BA97: 0 | BB97: 0 | BC97: 0 | BD97: 0 | BE97: 0 | BF97: 0 | BG97: 0
J98: 0 | K98: 0 | L98: 0 | M98: 0 | N98: 0 | O98: 0 | P98: 0 | Q98: 0 | R98: 0 | S98: 0 | T98: 0 | U98: 0 | V98: 0 | W98: 0 | X98: 0 | Y98: 0 | Z98: 0 | AA98: 0 | AB98: 0 | AC98: 0 | AD98: 0 | AE98: 0 | AF98: 0 | AG98: 0 | AH98: 0 | AI98: 0 | AJ98: 0 | AK98: 0 | AL98: 0 | AM98: 0 | AN98: 0 | AO98: 0 | AP98: 0 | AQ98: 0 | AR98: 0 | AS98: 0 | AT98: 0 | AU98: 0 | AV98: 0 | AW98: 0 | AX98: 0 | AY98: 0 | AZ98: 0 | BA98: 0 | BB98: 0 | BC98: 0 | BD98: 0 | BE98: 0 | BF98: 0 | BG98: 0
J99: 0 | K99: 0 | L99: 0 | M99: 0 | N99: 0 | O99: 0 | P99: 0 | Q99: 0 | R99: 0 | S99: 0 | T99: 0 | U99: 0 | V99: 0 | W99: 0 | X99: 0 | Y99: 0 | Z99: 0 | AA99: 0 | AB99: 0 | AC99: 0 | AD99: 0 | AE99: 0 | AF99: 0 | AG99: 0 | AH99: 0 | AI99: 0 | AJ99: 0 | AK99: 0 | AL99: 0 | AM99: 0 | AN99: 0 | AO99: 0 | AP99: 0 | AQ99: 0 | AR99: 0 | AS99: 0 | AT99: 0 | AU99: 0 | AV99: 0 | AW99: 0 | AX99: 0 | AY99: 0 | AZ99: 0 | BA99: 0 | BB99: 0 | BC99: 0 | BD99: 0 | BE99: 0 | BF99: 0 | BG99: 0
J100: 0 | K100: 0 | L100: 0 | M100: 0 | N100: 0 | O100: 0 | P100: 0 | Q100: 0 | R100: 0 | S100: 0 | T100: 0 | U100: 0 | V100: 0 | W100: 0 | X100: 0 | Y100: 0 | Z100: 0 | AA100: 0 | AB100: 0 | AC100: 0 | AD100: 0 | AE100: 0 | AF100: 0 | AG100: 0 | AH100: 0 | AI100: 0 | AJ100: 0 | AK100: 0 | AL100: 0 | AM100: 0 | AN100: 0 | AO100: 0 | AP100: 0 | AQ100: 0 | AR100: 0 | AS100: 0 | AT100: 0 | AU100: 0 | AV100: 0 | AW100: 0 | AX100: 0 | AY100: 0 | AZ100: 0 | BA100: 0 | BB100: 0 | BC100: 0 | BD100: 0 | BE100: 0 | BF100: 0 | BG100: 0
J101: 0 | K101: 0 | L101: 0 | M101: 0 | N101: 0 | O101: 0 | P101: 0 | Q101: 0 | R101: 0 | S101: 0 | T101: 0 | U101: 0 | V101: 0 | W101: 0 | X101: 0 | Y101: 0 | Z101: 0 | AA101: 0 | AB101: 0 | AC101: 0 | AD101: 0 | AE101: 0 | AF101: 0 | AG101: 0 | AH101: 0 | AI101: 0 | AJ101: 0 | AK101: 0 | AL101: 0 | AM101: 0 | AN101: 0 | AO101: 0 | AP101: 0 | AQ101: 0 | AR101: 0 | AS101: 0 | AT101: 0 | AU101: 0 | AV101: 0 | AW101: 0 | AX101: 0 | AY101: 0 | AZ101: 0 | BA101: 0 | BB101: 0 | BC101: 0 | BD101: 0 | BE101: 0 | BF101: 0 | BG101: 0
J102: 0 | K102: 0 | L102: 0 | M102: 0 | N102: 0 | O102: 0 | P102: 0 | Q102: 0 | R102: 0 | S102: 0 | T102: 0 | U102: 0 | V102: 0 | W102: 0 | X102: 0 | Y102: 0 | Z102: 0 | AA102: 0 | AB102: 0 | AC102: 0 | AD102: 0 | AE102: 0 | AF102: 0 | AG102: 0 | AH102: 0 | AI102: 0 | AJ102: 0 | AK102: 0 | AL102: 0 | AM102: 0 | AN102: 0 | AO102: 0 | AP102: 0 | AQ102: 0 | AR102: 0 | AS102: 0 | AT102: 0 | AU102: 0 | AV102: 0 | AW102: 0 | AX102: 0 | AY102: 0 | AZ102: 0 | BA102: 0 | BB102: 0 | BC102: 0 | BD102: 0 | BE102: 0 | BF102: 0 | BG102: 0
J103: 0 | K103: 0 | L103: 0 | M103: 0 | N103: 0 | O103: 0 | P103: 0 | Q103: 0 | R103: 0 | S103: 0 | T103: 0 | U103: 0 | V103: 0 | W103: 0 | X103: 0 | Y103: 0 | Z103: 0 | AA103: 0 | AB103: 0 | AC103: 0 | AD103: 0 | AE103: 0 | AF103: 0 | AG103: 0 | AH103: 0 | AI103: 0 | AJ103: 0 | AK103: 0 | AL103: 0 | AM103: 0 | AN103: 0 | AO103: 0 | AP103: 0 | AQ103: 0 | AR103: 0 | AS103: 0 | AT103: 0 | AU103: 0 | AV103: 0 | AW103: 0 | AX103: 0 | AY103: 0 | AZ103: 0 | BA103: 0 | BB103: 0 | BC103: 0 | BD103: 0 | BE103: 0 | BF103: 0 | BG103: 0
J104: 0 | K104: 0 | L104: 0 | M104: 0 | N104: 0 | O104: 0 | P104: 0 | Q104: 0 | R104: 0 | S104: 0 | T104: 0 | U104: 0 | V104: 0 | W104: 0 | X104: 0 | Y104: 0 | Z104: 0 | AA104: 0 | AB104: 0 | AC104: 0 | AD104: 0 | AE104: 0 | AF104: 0 | AG104: 0 | AH104: 0 | AI104: 0 | AJ104: 0 | AK104: 0 | AL104: 0 | AM104: 0 | AN104: 0 | AO104: 0 | AP104: 0 | AQ104: 0 | AR104: 0 | AS104: 0 | AT104: 0 | AU104: 0 | AV104: 0 | AW104: 0 | AX104: 0 | AY104: 0 | AZ104: 0 | BA104: 0 | BB104: 0 | BC104: 0 | BD104: 0 | BE104: 0 | BF104: 0 | BG104: 0
J105: 0 | K105: 0 | L105: 0 | M105: 0 | N105: 0 | O105: 0 | P105: 0 | Q105: 0 | R105: 0 | S105: 0 | T105: 0 | U105: 0 | V105: 0 | W105: 0 | X105: 0 | Y105: 0 | Z105: 0 | AA105: 0 | AB105: 0 | AC105: 0 | AD105: 0 | AE105: 0 | AF105: 0 | AG105: 0 | AH105: 0 | AI105: 0 | AJ105: 0 | AK105: 0 | AL105: 0 | AM105: 0 | AN105: 0 | AO105: 0 | AP105: 0 | AQ105: 0 | AR105: 0 | AS105: 0 | AT105: 0 | AU105: 0 | AV105: 0 | AW105: 0 | AX105: 0 | AY105: 0 | AZ105: 0 | BA105: 0 | BB105: 0 | BC105: 0 | BD105: 0 | BE105: 0 | BF105: 0 | BG105: 0
F106: Net Benefits | J106: =SUM(J94:J105) -> 0 | K106: =SUM(K94:K105) -> 29.03070686 | L106: 29.01757359 | M106: 101.4039253 | N106: 103.3573925 | O106: 511.4394576 | P106: 552.3586476 | Q106: 559.4268012 | R106: 570.9408526 | S106: 578.571179 | T106: 588.4867482 | U106: 614.0730535 | V106: 629.7463046 | W106: 0 | X106: 0 | Y106: 0 | Z106: 0 | AA106: 0 | AB106: 0 | AC106: 0 | AD106: 0 | AE106: 0 | AF106: 0 | AG106: 0 | AH106: 0 | AI106: 0 | AJ106: 0 | AK106: 0 | AL106: 0 | AM106: 0 | AN106: 0 | AO106: 0 | AP106: 0 | AQ106: 0 | AR106: 0 | AS106: 0 | AT106: 0 | AU106: 0 | AV106: 0 | AW106: 0 | AX106: 0 | AY106: 0 | AZ106: 0 | BA106: 0 | BB106: 0 | BC106: 0 | BD106: =SUM(BD94:BD105) -> 0 | BE106: 0 | BF106: 0 | BG106: 0
B108: Note: This table converts the values into 30 June 2024 dollars, which is needed for EDPR
F109: Category | G109: Dollar basis | H109: Conversion Factor
F110: =F94 -> Option 3 SWER | G110: 2024-06-30 | H110: 1 | J110: =J94*$H110 -> 0 | K110: 29.03070686 | L110: 29.01757359 | M110: 101.4039253 | N110: 103.3573925 | O110: 104.8090742 | P110: 106.5053858 | Q110: 108.3973332 | R110: 110.5832989 | S110: 112.6298527 | T110: 115.0579751 | U110: 117.6194516 | V110: 120.4516745 | W110: 0 | X110: 0 | Y110: 0 | Z110: 0 | AA110: 0 | AB110: 0 | AC110: 0 | AD110: 0 | AE110: 0 | AF110: 0 | AG110: 0 | AH110: 0 | AI110: 0 | AJ110: 0 | AK110: 0 | AL110: 0 | AM110: 0 | AN110: 0 | AO110: 0 | AP110: 0 | AQ110: 0 | AR110: 0 | AS110: 0 | AT110: 0 | AU110: 0 | AV110: 0 | AW110: 0 | AX110: 0 | AY110: 0 | AZ110: 0 | BA110: 0 | BB110: 0 | BC110: 0 | BD110: =BD94*$H110 -> 0 | BE110: 0 | BF110: 0 | BG110: 0
F111: Option 3 DSS | G111: 2024-06-30 | H111: 1 | J111: 0 | K111: 0 | L111: 0 | M111: 0 | N111: 0 | O111: 406.6303835 | P111: 445.8532618 | Q111: 451.029468 | R111: 460.3575537 | S111: 465.9413264 | T111: 473.4287731 | U111: 496.4536019 | V111: 509.2946302 | W111: 0 | X111: 0 | Y111: 0 | Z111: 0 | AA111: 0 | AB111: 0 | AC111: 0 | AD111: 0 | AE111: 0 | AF111: 0 | AG111: 0 | AH111: 0 | AI111: 0 | AJ111: 0 | AK111: 0 | AL111: 0 | AM111: 0 | AN111: 0 | AO111: 0 | AP111: 0 | AQ111: 0 | AR111: 0 | AS111: 0 | AT111: 0 | AU111: 0 | AV111: 0 | AW111: 0 | AX111: 0 | AY111: 0 | AZ111: 0 | BA111: 0 | BB111: 0 | BC111: 0 | BD111: 0 | BE111: 0 | BF111: 0 | BG111: 0
J112: 0 | K112: 0 | L112: 0 | M112: 0 | N112: 0 | O112: 0 | P112: 0 | Q112: 0 | R112: 0 | S112: 0 | T112: 0 | U112: 0 | V112: 0 | W112: 0 | X112: 0 | Y112: 0 | Z112: 0 | AA112: 0 | AB112: 0 | AC112: 0 | AD112: 0 | AE112: 0 | AF112: 0 | AG112: 0 | AH112: 0 | AI112: 0 | AJ112: 0 | AK112: 0 | AL112: 0 | AM112: 0 | AN112: 0 | AO112: 0 | AP112: 0 | AQ112: 0 | AR112: 0 | AS112: 0 | AT112: 0 | AU112: 0 | AV112: 0 | AW112: 0 | AX112: 0 | AY112: 0 | AZ112: 0 | BA112: 0 | BB112: 0 | BC112: 0 | BD112: 0 | BE112: 0 | BF112: 0 | BG112: 0
J113: 0 | K113: 0 | L113: 0 | M113: 0 | N113: 0 | O113: 0 | P113: 0 | Q113: 0 | R113: 0 | S113: 0 | T113: 0 | U113: 0 | V113: 0 | W113: 0 | X113: 0 | Y113: 0 | Z113: 0 | AA113: 0 | AB113: 0 | AC113: 0 | AD113: 0 | AE113: 0 | AF113: 0 | AG113: 0 | AH113: 0 | AI113: 0 | AJ113: 0 | AK113: 0 | AL113: 0 | AM113: 0 | AN113: 0 | AO113: 0 | AP113: 0 | AQ113: 0 | AR113: 0 | AS113: 0 | AT113: 0 | AU113: 0 | AV113: 0 | AW113: 0 | AX113: 0 | AY113: 0 | AZ113: 0 | BA113: 0 | BB113: 0 | BC113: 0 | BD113: 0 | BE113: 0 | BF113: 0 | BG113: 0
J114: 0 | K114: 0 | L114: 0 | M114: 0 | N114: 0 | O114: 0 | P114: 0 | Q114: 0 | R114: 0 | S114: 0 | T114: 0 | U114: 0 | V114: 0 | W114: 0 | X114: 0 | Y114: 0 | Z114: 0 | AA114: 0 | AB114: 0 | AC114: 0 | AD114: 0 | AE114: 0 | AF114: 0 | AG114: 0 | AH114: 0 | AI114: 0 | AJ114: 0 | AK114: 0 | AL114: 0 | AM114: 0 | AN114: 0 | AO114: 0 | AP114: 0 | AQ114: 0 | AR114: 0 | AS114: 0 | AT114: 0 | AU114: 0 | AV114: 0 | AW114: 0 | AX114: 0 | AY114: 0 | AZ114: 0 | BA114: 0 | BB114: 0 | BC114: 0 | BD114: 0 | BE114: 0 | BF114: 0 | BG114: 0
J115: 0 | K115: 0 | L115: 0 | M115: 0 | N115: 0 | O115: =O99*$H115 -> 0 | P115: 0 | Q115: 0 | R115: 0 | S115: 0 | T115: 0 | U115: 0 | V115: 0 | W115: 0 | X115: 0 | Y115: 0 | Z115: 0 | AA115: 0 | AB115: 0 | AC115: 0 | AD115: 0 | AE115: 0 | AF115: 0 | AG115: 0 | AH115: 0 | AI115: 0 | AJ115: 0 | AK115: 0 | AL115: 0 | AM115: 0 | AN115: 0 | AO115: 0 | AP115: 0 | AQ115: 0 | AR115: 0 | AS115: 0 | AT115: 0 | AU115: 0 | AV115: 0 | AW115: 0 | AX115: 0 | AY115: 0 | AZ115: 0 | BA115: 0 | BB115: 0 | BC115: 0 | BD115: =BD99*$H115 -> 0 | BE115: 0 | BF115: 0 | BG115: 0
J116: =J100*$H116 -> 0 | K116: 0 | L116: 0 | M116: 0 | N116: 0 | O116: 0 | P116: 0 | Q116: 0 | R116: 0 | S116: 0 | T116: 0 | U116: 0 | V116: 0 | W116: 0 | X116: 0 | Y116: 0 | Z116: 0 | AA116: 0 | AB116: 0 | AC116: 0 | AD116: 0 | AE116: 0 | AF116: 0 | AG116: 0 | AH116: 0 | AI116: 0 | AJ116: 0 | AK116: 0 | AL116: 0 | AM116: 0 | AN116: 0 | AO116: 0 | AP116: 0 | AQ116: 0 | AR116: 0 | AS116: 0 | AT116: 0 | AU116: 0 | AV116: 0 | AW116: 0 | AX116: 0 | AY116: 0 | AZ116: 0 | BA116: 0 | BB116: 0 | BC116: 0 | BD116: =BD100*$H116 -> 0 | BE116: 0 | BF116: 0 | BG116: 0
J117: 0 | K117: 0 | L117: 0 | M117: 0 | N117: 0 | O117: 0 | P117: 0 | Q117: 0 | R117: 0 | S117: 0 | T117: 0 | U117: 0 | V117: 0 | W117: 0 | X117: 0 | Y117: 0 | Z117: 0 | AA117: 0 | AB117: 0 | AC117: 0 | AD117: 0 | AE117: 0 | AF117: 0 | AG117: 0 | AH117: 0 | AI117: 0 | AJ117: 0 | AK117: 0 | AL117: 0 | AM117: 0 | AN117: 0 | AO117: 0 | AP117: 0 | AQ117: 0 | AR117: 0 | AS117: 0 | AT117: 0 | AU117: 0 | AV117: 0 | AW117: 0 | AX117: 0 | AY117: 0 | AZ117: 0 | BA117: 0 | BB117: 0 | BC117: 0 | BD117: =BD101*$H117 -> 0 | BE117: 0 | BF117: 0 | BG117: 0
J118: 0 | K118: 0 | L118: 0 | M118: 0 | N118: 0 | O118: 0 | P118: 0 | Q118: 0 | R118: 0 | S118: 0 | T118: 0 | U118: 0 | V118: 0 | W118: 0 | X118: 0 | Y118: 0 | Z118: 0 | AA118: 0 | AB118: 0 | AC118: 0 | AD118: 0 | AE118: 0 | AF118: 0 | AG118: 0 | AH118: 0 | AI118: 0 | AJ118: 0 | AK118: 0 | AL118: 0 | AM118: 0 | AN118: 0 | AO118: 0 | AP118: 0 | AQ118: 0 | AR118: 0 | AS118: 0 | AT118: 0 | AU118: 0 | AV118: 0 | AW118: 0 | AX118: 0 | AY118: 0 | AZ118: 0 | BA118: 0 | BB118: 0 | BC118: 0 | BD118: =BD102*$H118 -> 0 | BE118: 0 | BF118: 0 | BG118: 0
J119: 0 | K119: 0 | L119: 0 | M119: 0 | N119: 0 | O119: 0 | P119: 0 | Q119: 0 | R119: 0 | S119: 0 | T119: 0 | U119: 0 | V119: 0 | W119: 0 | X119: 0 | Y119: 0 | Z119: 0 | AA119: 0 | AB119: 0 | AC119: 0 | AD119: 0 | AE119: 0 | AF119: 0 | AG119: 0 | AH119: 0 | AI119: 0 | AJ119: 0 | AK119: 0 | AL119: 0 | AM119: 0 | AN119: 0 | AO119: 0 | AP119: 0 | AQ119: 0 | AR119: 0 | AS119: 0 | AT119: 0 | AU119: 0 | AV119: 0 | AW119: 0 | AX119: 0 | AY119: 0 | AZ119: 0 | BA119: 0 | BB119: 0 | BC119: 0 | BD119: =BD103*$H119 -> 0 | BE119: 0 | BF119: 0 | BG119: 0
J120: 0 | K120: 0 | L120: 0 | M120: 0 | N120: 0 | O120: 0 | P120: 0 | Q120: 0 | R120: 0 | S120: 0 | T120: 0 | U120: 0 | V120: 0 | W120: 0 | X120: 0 | Y120: 0 | Z120: 0 | AA120: 0 | AB120: 0 | AC120: 0 | AD120: 0 | AE120: 0 | AF120: 0 | AG120: 0 | AH120: 0 | AI120: 0 | AJ120: 0 | AK120: 0 | AL120: 0 | AM120: 0 | AN120: 0 | AO120: 0 | AP120: 0 | AQ120: 0 | AR120: 0 | AS120: 0 | AT120: 0 | AU120: 0 | AV120: 0 | AW120: 0 | AX120: 0 | AY120: 0 | AZ120: 0 | BA120: 0 | BB120: 0 | BC120: 0 | BD120: =BD104*$H120 -> 0 | BE120: 0 | BF120: 0 | BG120: 0
J121: 0 | K121: 0 | L121: 0 | M121: 0 | N121: 0 | O121: 0 | P121: 0 | Q121: 0 | R121: 0 | S121: 0 | T121: 0 | U121: 0 | V121: 0 | W121: 0 | X121: 0 | Y121: 0 | Z121: 0 | AA121: 0 | AB121: 0 | AC121: 0 | AD121: 0 | AE121: 0 | AF121: 0 | AG121: 0 | AH121: 0 | AI121: 0 | AJ121: 0 | AK121: 0 | AL121: 0 | AM121: 0 | AN121: 0 | AO121: 0 | AP121: 0 | AQ121: 0 | AR121: 0 | AS121: 0 | AT121: 0 | AU121: 0 | AV121: 0 | AW121: 0 | AX121: 0 | AY121: 0 | AZ121: 0 | BA121: 0 | BB121: 0 | BC121: 0 | BD121: =BD105*$H121 -> 0 | BE121: 0 | BF121: 0 | BG121: 0
F122: Net Benefits | J122: =SUM(J110:J121) -> 0 | K122: =SUM(K110:K121) -> 29.03070686 | L122: 29.01757359 | M122: 101.4039253 | N122: 103.3573925 | O122: 511.4394576 | P122: 552.3586476 | Q122: 559.4268012 | R122: 570.9408526 | S122: 578.571179 | T122: 588.4867482 | U122: 614.0730535 | V122: 629.7463046 | W122: 0 | X122: 0 | Y122: 0 | Z122: 0 | AA122: 0 | AB122: 0 | AC122: 0 | AD122: 0 | AE122: 0 | AF122: 0 | AG122: 0 | AH122: 0 | AI122: 0 | AJ122: 0 | AK122: 0 | AL122: 0 | AM122: 0 | AN122: 0 | AO122: 0 | AP122: 0 | AQ122: 0 | AR122: 0 | AS122: 0 | AT122: 0 | AU122: 0 | AV122: 0 | AW122: 0 | AX122: 0 | AY122: 0 | AZ122: 0 | BA122: 0 | BB122: 0 | BC122: 0 | BD122: =SUM(BD110:BD121) -> 0 | BE122: 0 | BF122: 0 | BG122: 0
A124: END OF INPUTS FOR THIS OPTION

Sheet Do Nothing Risk
B1: Analysis: Do Nothing Risk
B2: =Cover!$C$9 -> AusNet Services
B3: =Cover!$C$10 -> Business Case Evaluation
B4: =Cover!$C$11 -> Demand driven augex (LV augmentation) with flexible services
B6: Regulatory Period Indicator | J6: =IF(AND(J$7>=General!$H$20,J$8<=General!$H$21),1,0) -> 0 | K6: =IF(AND(K$7>=General!$H$20,K$8<=General!$H$21),1,0) -> 0 | L6: =IF(AND(L$7>=General!$H$20,L$8<=General!$H$21),1,0) -> 0 | M6: =IF(AND(M$7>=General!$H$20,M$8<=General!$H$21),1,0) -> 1 | N6: =IF(AND(N$7>=General!$H$20,N$8<=General!$H$21),1,0) -> 1 | O6: =IF(AND(O$7>=General!$H$20,O$8<=General!$H$21),1,0) -> 1 | P6: =IF(AND(P$7>=General!$H$20,P$8<=General!$H$21),1,0) -> 1 | Q6: =IF(AND(Q$7>=General!$H$20,Q$8<=General!$H$21),1,0) -> 1 | R6: =IF(AND(R$7>=General!$H$20,R$8<=General!$H$21),1,0) -> 0 | S6: =IF(AND(S$7>=General!$H$20,S$8<=General!$H$21),1,0) -> 0 | T6: =IF(AND(T$7>=General!$H$20,T$8<=General!$H$21),1,0) -> 0 | U6: =IF(AND(U$7>=General!$H$20,U$8<=General!$H$21),1,0) -> 0 | V6: =IF(AND(V$7>=General!$H$20,V$8<=General!$H$21),1,0) -> 0 | W6: =IF(AND(W$7>=General!$H$20,W$8<=General!$H$21),1,0) -> 0 | X6: =IF(AND(X$7>=General!$H$20,X$8<=General!$H$21),1,0) -> 0 | Y6: =IF(AND(Y$7>=General!$H$20,Y$8<=General!$H$21),1,0) -> 0 | Z6: =IF(AND(Z$7>=General!$H$20,Z$8<=General!$H$21),1,0) -> 0 | AA6: =IF(AND(AA$7>=General!$H$20,AA$8<=General!$H$21),1,0) -> 0 | AB6: =IF(AND(AB$7>=General!$H$20,AB$8<=General!$H$21),1,0) -> 0 | AC6: =IF(AND(AC$7>=General!$H$20,AC$8<=General!$H$21),1,0) -> 0 | AD6: =IF(AND(AD$7>=General!$H$20,AD$8<=General!$H$21),1,0) -> 0 | AE6: =IF(AND(AE$7>=General!$H$20,AE$8<=General!$H$21),1,0) -> 0 | AF6: =IF(AND(AF$7>=General!$H$20,AF$8<=General!$H$21),1,0) -> 0 | AG6: =IF(AND(AG$7>=General!$H$20,AG$8<=General!$H$21),1,0) -> 0 | AH6: =IF(AND(AH$7>=General!$H$20,AH$8<=General!$H$21),1,0) -> 0 | AI6: =IF(AND(AI$7>=General!$H$20,AI$8<=General!$H$21),1,0) -> 0 | AJ6: =IF(AND(AJ$7>=General!$H$20,AJ$8<=General!$H$21),1,0) -> 0 | AK6: =IF(AND(AK$7>=General!$H$20,AK$8<=General!$H$21),1,0) -> 0 | AL6: =IF(AND(AL$7>=General!$H$20,AL$8<=General!$H$21),1,0) -> 0 | AM6: =IF(AND(AM$7>=General!$H$20,AM$8<=General!$H$21),1,0) -> 0 | AN6: =IF(AND(AN$7>=General!$H$20,AN$8<=General!$H$21),1,0) -> 0 | AO6: =IF(AND(AO$7>=General!$H$20,AO$8<=General!$H$21),1,0) -> 0 | AP6: =IF(AND(AP$7>=General!$H$20,AP$8<=General!$H$21),1,0) -> 0 | AQ6: =IF(AND(AQ$7>=General!$H$20,AQ$8<=General!$H$21),1,0) -> 0 | AR6: =IF(AND(AR$7>=General!$H$20,AR$8<=General!$H$21),1,0) -> 0 | AS6: =IF(AND(AS$7>=General!$H$20,AS$8<=General!$H$21),1,0) -> 0 | AT6: =IF(AND(AT$7>=General!$H$20,AT$8<=General!$H$21),1,0) -> 0 | AU6: =IF(AND(AU$7>=General!$H$20,AU$8<=General!$H$21),1,0) -> 0 | AV6: =IF(AND(AV$7>=General!$H$20,AV$8<=General!$H$21),1,0) -> 0 | AW6: =IF(AND(AW$7>=General!$H$20,AW$8<=General!$H$21),1,0) -> 0 | AX6: =IF(AND(AX$7>=General!$H$20,AX$8<=General!$H$21),1,0) -> 0 | AY6: =IF(AND(AY$7>=General!$H$20,AY$8<=General!$H$21),1,0) -> 0 | AZ6: =IF(AND(AZ$7>=General!$H$20,AZ$8<=General!$H$21),1,0) -> 0 | BA6: =IF(AND(BA$7>=General!$H$20,BA$8<=General!$H$21),1,0) -> 0 | BB6: =IF(AND(BB$7>=General!$H$20,BB$8<=General!$H$21),1,0) -> 0 | BC6: =IF(AND(BC$7>=General!$H$20,BC$8<=General!$H$21),1,0) -> 0 | BD6: =IF(AND(BD$7>=General!$H$20,BD$8<=General!$H$21),1,0) -> 0 | BE6: =IF(AND(BE$7>=General!$H$20,BE$8<=General!$H$21),1,0) -> 0 | BF6: =IF(AND(BF$7>=General!$H$20,BF$8<=General!$H$21),1,0) -> 0 | BG6: =IF(AND(BG$7>=General!$H$20,BG$8<=General!$H$21),1,0) -> 0
B7: Period Start Date | J7: =EDATE(General!$H$18,(J9-1)*12) -> 2023-07-01 | K7: =EDATE(General!$H$18,(K9-1)*12) -> 2024-07-01 | L7: =EDATE(General!$H$18,(L9-1)*12) -> 2025-07-01 | M7: =EDATE(General!$H$18,(M9-1)*12) -> 2026-07-01 | N7: =EDATE(General!$H$18,(N9-1)*12) -> 2027-07-01 | O7: =EDATE(General!$H$18,(O9-1)*12) -> 2028-07-01 | P7: =EDATE(General!$H$18,(P9-1)*12) -> 2029-07-01 | Q7: =EDATE(General!$H$18,(Q9-1)*12) -> 2030-07-01 | R7: =EDATE(General!$H$18,(R9-1)*12) -> 2031-07-01 | S7: =EDATE(General!$H$18,(S9-1)*12) -> 2032-07-01 | T7: =EDATE(General!$H$18,(T9-1)*12) -> 2033-07-01 | U7: =EDATE(General!$H$18,(U9-1)*12) -> 2034-07-01 | V7: =EDATE(General!$H$18,(V9-1)*12) -> 2035-07-01 | W7: =EDATE(General!$H$18,(W9-1)*12) -> 2036-07-01 | X7: =EDATE(General!$H$18,(X9-1)*12) -> 2037-07-01 | Y7: =EDATE(General!$H$18,(Y9-1)*12) -> 2038-07-01 | Z7: =EDATE(General!$H$18,(Z9-1)*12) -> 2039-07-01 | AA7: =EDATE(General!$H$18,(AA9-1)*12) -> 2040-07-01 | AB7: =EDATE(General!$H$18,(AB9-1)*12) -> 2041-07-01 | AC7: =EDATE(General!$H$18,(AC9-1)*12) -> 2042-07-01 | AD7: =EDATE(General!$H$18,(AD9-1)*12) -> 2043-07-01 | AE7: =EDATE(General!$H$18,(AE9-1)*12) -> 2044-07-01 | AF7: =EDATE(General!$H$18,(AF9-1)*12) -> 2045-07-01 | AG7: =EDATE(General!$H$18,(AG9-1)*12) -> 2046-07-01 | AH7: =EDATE(General!$H$18,(AH9-1)*12) -> 2047-07-01 | AI7: =EDATE(General!$H$18,(AI9-1)*12) -> 2048-07-01 | AJ7: =EDATE(General!$H$18,(AJ9-1)*12) -> 2049-07-01 | AK7: =EDATE(General!$H$18,(AK9-1)*12) -> 2050-07-01 | AL7: =EDATE(General!$H$18,(AL9-1)*12) -> 2051-07-01 | AM7: =EDATE(General!$H$18,(AM9-1)*12) -> 2052-07-01 | AN7: =EDATE(General!$H$18,(AN9-1)*12) -> 2053-07-01 | AO7: =EDATE(General!$H$18,(AO9-1)*12) -> 2054-07-01 | AP7: =EDATE(General!$H$18,(AP9-1)*12) -> 2055-07-01 | AQ7: =EDATE(General!$H$18,(AQ9-1)*12) -> 2056-07-01 | AR7: =EDATE(General!$H$18,(AR9-1)*12) -> 2057-07-01 | AS7: =EDATE(General!$H$18,(AS9-1)*12) -> 2058-07-01 | AT7: =EDATE(General!$H$18,(AT9-1)*12) -> 2059-07-01 | AU7: =EDATE(General!$H$18,(AU9-1)*12) -> 2060-07-01 | AV7: =EDATE(General!$H$18,(AV9-1)*12) -> 2061-07-01 | AW7: =EDATE(General!$H$18,(AW9-1)*12) -> 2062-07-01 | AX7: =EDATE(General!$H$18,(AX9-1)*12) -> 2063-07-01 | AY7: =EDATE(General!$H$18,(AY9-1)*12) -> 2064-07-01 | AZ7: =EDATE(General!$H$18,(AZ9-1)*12) -> 2065-07-01 | BA7: =EDATE(General!$H$18,(BA9-1)*12) -> 2066-07-01 | BB7: =EDATE(General!$H$18,(BB9-1)*12) -> 2067-07-01 | BC7: =EDATE(General!$H$18,(BC9-1)*12) -> 2068-07-01 | BD7: =EDATE(General!$H$18,(BD9-1)*12) -> 2069-07-01 | BE7: =EDATE(General!$H$18,(BE9-1)*12) -> 2070-07-01 | BF7: =EDATE(General!$H$18,(BF9-1)*12) -> 2071-07-01 | BG7: =EDATE(General!$H$18,(BG9-1)*12) -> 2072-07-01
B8: Period End Date | J8: =EDATE(J7,12)-1 -> 2024-06-30 | K8: =EDATE(K7,12)-1 -> 2025-06-30 | L8: 2026-06-30 | M8: 2027-06-30 | N8: 2028-06-30 | O8: 2029-06-30 | P8: 2030-06-30 | Q8: 2031-06-30 | R8: 2032-06-30 | S8: 2033-06-30 | T8: 2034-06-30 | U8: 2035-06-30 | V8: 2036-06-30 | W8: 2037-06-30 | X8: 2038-06-30 | Y8: 2039-06-30 | Z8: 2040-06-30 | AA8: 2041-06-30 | AB8: 2042-06-30 | AC8: 2043-06-30 | AD8: 2044-06-30 | AE8: 2045-06-30 | AF8: 2046-06-30 | AG8: 2047-06-30 | AH8: 2048-06-30 | AI8: 2049-06-30 | AJ8: 2050-06-30 | AK8: 2051-06-30 | AL8: 2052-06-30 | AM8: 2053-06-30 | AN8: 2054-06-30 | AO8: 2055-06-30 | AP8: 2056-06-30 | AQ8: 2057-06-30 | AR8: 2058-06-30 | AS8: 2059-06-30 | AT8: 2060-06-30 | AU8: 2061-06-30 | AV8: 2062-06-30 | AW8: 2063-06-30 | AX8: 2064-06-30 | AY8: 2065-06-30 | AZ8: 2066-06-30 | BA8: 2067-06-30 | BB8: 2068-06-30 | BC8: 2069-06-30 | BD8: 2070-06-30 | BE8: 2071-06-30 | BF8: 2072-06-30 | BG8: 2073-06-30
B9: ="Project Year" -> Project Year | J9: =COLUMNS($J9:J9) -> 1 | K9: =COLUMNS($J9:K9) -> 2 | L9: =COLUMNS($J9:L9) -> 3 | M9: =COLUMNS($J9:M9) -> 4 | N9: =COLUMNS($J9:N9) -> 5 | O9: =COLUMNS($J9:O9) -> 6 | P9: =COLUMNS($J9:P9) -> 7 | Q9: =COLUMNS($J9:Q9) -> 8 | R9: =COLUMNS($J9:R9) -> 9 | S9: =COLUMNS($J9:S9) -> 10 | T9: =COLUMNS($J9:T9) -> 11 | U9: =COLUMNS($J9:U9) -> 12 | V9: =COLUMNS($J9:V9) -> 13 | W9: =COLUMNS($J9:W9) -> 14 | X9: =COLUMNS($J9:X9) -> 15 | Y9: =COLUMNS($J9:Y9) -> 16 | Z9: =COLUMNS($J9:Z9) -> 17 | AA9: =COLUMNS($J9:AA9) -> 18 | AB9: =COLUMNS($J9:AB9) -> 19 | AC9: =COLUMNS($J9:AC9) -> 20 | AD9: =COLUMNS($J9:AD9) -> 21 | AE9: =COLUMNS($J9:AE9) -> 22 | AF9: =COLUMNS($J9:AF9) -> 23 | AG9: =COLUMNS($J9:AG9) -> 24 | AH9: =COLUMNS($J9:AH9) -> 25 | AI9: =COLUMNS($J9:AI9) -> 26 | AJ9: =COLUMNS($J9:AJ9) -> 27 | AK9: =COLUMNS($J9:AK9) -> 28 | AL9: =COLUMNS($J9:AL9) -> 29 | AM9: =COLUMNS($J9:AM9) -> 30 | AN9: =COLUMNS($J9:AN9) -> 31 | AO9: =COLUMNS($J9:AO9) -> 32 | AP9: =COLUMNS($J9:AP9) -> 33 | AQ9: =COLUMNS($J9:AQ9) -> 34 | AR9: =COLUMNS($J9:AR9) -> 35 | AS9: =COLUMNS($J9:AS9) -> 36 | AT9: =COLUMNS($J9:AT9) -> 37 | AU9: =COLUMNS($J9:AU9) -> 38 | AV9: =COLUMNS($J9:AV9) -> 39 | AW9: =COLUMNS($J9:AW9) -> 40 | AX9: =COLUMNS($J9:AX9) -> 41 | AY9: =COLUMNS($J9:AY9) -> 42 | AZ9: =COLUMNS($J9:AZ9) -> 43 | BA9: =COLUMNS($J9:BA9) -> 44 | BB9: =COLUMNS($J9:BB9) -> 45 | BC9: =COLUMNS($J9:BC9) -> 46 | BD9: =COLUMNS($J9:BD9) -> 47 | BE9: =COLUMNS($J9:BE9) -> 48 | BF9: =COLUMNS($J9:BF9) -> 49 | BG9: =COLUMNS($J9:BG9) -> 50
B10: Financial Year | J10: =YEAR(J8)+1 -> 2025 | K10: =YEAR(K8)+1 -> 2026 | L10: 2027 | M10: 2028 | N10: 2029 | O10: 2030 | P10: 2031 | Q10: 2032 | R10: 2033 | S10: 2034 | T10: 2035 | U10: 2036 | V10: 2037 | W10: 2038 | X10: 2039 | Y10: 2040 | Z10: 2041 | AA10: 2042 | AB10: 2043 | AC10: 2044 | AD10: 2045 | AE10: 2046 | AF10: 2047 | AG10: 2048 | AH10: 2049 | AI10: 2050 | AJ10: 2051 | AK10: 2052 | AL10: 2053 | AM10: 2054 | AN10: 2055 | AO10: 2056 | AP10: 2057 | AQ10: 2058 | AR10: 2059 | AS10: 2060 | AT10: 2061 | AU10: 2062 | AV10: 2063 | AW10: 2064 | AX10: 2065 | AY10: 2066 | AZ10: 2067 | BA10: 2068 | BB10: 2069 | BC10: 2070 | BD10: 2071 | BE10: 2072 | BF10: 2073 | BG10: 2074
B11: CPI index | J11: 1 | K11: =J11*(1+IF(OR(ISBLANK(VLOOKUP(DATE(YEAR(K8),MONTH(K8),1),CPI_Con_F!$D$18:$G$67,4,FALSE)),ISERROR(VLOOKUP(DATE(YEAR(K8),MONTH(K8),1),CPI_Con_F!$D$18:$G$67,4,FALSE))),General!$H$24,VLOOKUP(DATE(YEAR(K8),MONTH(K8),1),CPI_Con_F!$D$18:$G$67,4,FALSE))) -> 1.03 | L11: =K11*(1+IF(OR(ISBLANK(VLOOKUP(DATE(YEAR(L8),MONTH(L8),1),CPI_Con_F!$D$18:$G$67,4,FALSE)),ISERROR(VLOOKUP(DATE(YEAR(L8),MONTH(L8),1),CPI_Con_F!$D$18:$G$67,4,FALSE))),General!$H$24,VLOOKUP(DATE(YEAR(L8),MONTH(L8),1),CPI_Con_F!$D$18:$G$67,4,FALSE))) -> 1.05575 | M11: =L11*(1+IF(OR(ISBLANK(VLOOKUP(DATE(YEAR(M8),MONTH(M8),1),CPI_Con_F!$D$18:$G$67,4,FALSE)),ISERROR(VLOOKUP(DATE(YEAR(M8),MONTH(M8),1),CPI_Con_F!$D$18:$G$67,4,FALSE))),General!$H$24,VLOOKUP(DATE(YEAR(M8),MONTH(M8),1),CPI_Con_F!$D$18:$G$67,4,FALSE))) -> 1.08214375 | N11: =M11*(1+IF(OR(ISBLANK(VLOOKUP(DATE(YEAR(N8),MONTH(N8),1),CPI_Con_F!$D$18:$G$67,4,FALSE)),ISERROR(VLOOKUP(DATE(YEAR(N8),MONTH(N8),1),CPI_Con_F!$D$18:$G$67,4,FALSE))),General!$H$24,VLOOKUP(DATE(YEAR(N8),MONTH(N8),1),CPI_Con_F!$D$18:$G$67,4,FALSE))) -> 1.109197344 | O11: =N11*(1+IF(OR(ISBLANK(VLOOKUP(DATE(YEAR(O8),MONTH(O8),1),CPI_Con_F!$D$18:$G$67,4,FALSE)),ISERROR(VLOOKUP(DATE(YEAR(O8),MONTH(O8),1),CPI_Con_F!$D$18:$G$67,4,FALSE))),General!$H$24,VLOOKUP(DATE(YEAR(O8),MONTH(O8),1),CPI_Con_F!$D$18:$G$67,4,FALSE))) -> 1.136927277 | P11: =O11*(1+IF(OR(ISBLANK(VLOOKUP(DATE(YEAR(P8),MONTH(P8),1),CPI_Con_F!$D$18:$G$67,4,FALSE)),ISERROR(VLOOKUP(DATE(YEAR(P8),MONTH(P8),1),CPI_Con_F!$D$18:$G$67,4,FALSE))),General!$H$24,VLOOKUP(DATE(YEAR(P8),MONTH(P8),1),CPI_Con_F!$D$18:$G$67,4,FALSE))) -> 1.165350459 | Q11: =P11*(1+IF(OR(ISBLANK(VLOOKUP(DATE(YEAR(Q8),MONTH(Q8),1),CPI_Con_F!$D$18:$G$67,4,FALSE)),ISERROR(VLOOKUP(DATE(YEAR(Q8),MONTH(Q8),1),CPI_Con_F!$D$18:$G$67,4,FALSE))),General!$H$24,VLOOKUP(DATE(YEAR(Q8),MONTH(Q8),1),CPI_Con_F!$D$18:$G$67,4,FALSE))) -> 1.194484221 | R11: =Q11*(1+IF(OR(ISBLANK(VLOOKUP(DATE(YEAR(R8),MONTH(R8),1),CPI_Con_F!$D$18:$G$67,4,FALSE)),ISERROR(VLOOKUP(DATE(YEAR(R8),MONTH(R8),1),CPI_Con_F!$D$18:$G$67,4,FALSE))),General!$H$24,VLOOKUP(DATE(YEAR(R8),MONTH(R8),1),CPI_Con_F!$D$18:$G$67,4,FALSE))) -> 1.224346326 | S11: =R11*(1+IF(OR(ISBLANK(VLOOKUP(DATE(YEAR(S8),MONTH(S8),1),CPI_Con_F!$D$18:$G$67,4,FALSE)),ISERROR(VLOOKUP(DATE(YEAR(S8),MONTH(S8),1),CPI_Con_F!$D$18:$G$67,4,FALSE))),General!$H$24,VLOOKUP(DATE(YEAR(S8),MONTH(S8),1),CPI_Con_F!$D$18:$G$67,4,FALSE))) -> 1.254954984 | T11: =S11*(1+IF(OR(ISBLANK(VLOOKUP(DATE(YEAR(T8),MONTH(T8),1),CPI_Con_F!$D$18:$G$67,4,FALSE)),ISERROR(VLOOKUP(DATE(YEAR(T8),MONTH(T8),1),CPI_Con_F!$D$18:$G$67,4,FALSE))),General!$H$24,VLOOKUP(DATE(YEAR(T8),MONTH(T8),1),CPI_Con_F!$D$18:$G$67,4,FALSE))) -> 1.286328859 | U11: =T11*(1+IF(OR(ISBLANK(VLOOKUP(DATE(YEAR(U8),MONTH(U8),1),CPI_Con_F!$D$18:$G$67,4,FALSE)),ISERROR(VLOOKUP(DATE(YEAR(U8),MONTH(U8),1),CPI_Con_F!$D$18:$G$67,4,FALSE))),General!$H$24,VLOOKUP(DATE(YEAR(U8),MONTH(U8),1),CPI_Con_F!$D$18:$G$67,4,FALSE))) -> 1.318487081 | V11: =U11*(1+IF(OR(ISBLANK(VLOOKUP(DATE(YEAR(V8),MONTH(V8),1),CPI_Con_F!$D$18:$G$67,4,FALSE)),ISERROR(VLOOKUP(DATE(YEAR(V8),MONTH(V8),1),CPI_Con_F!$D$18:$G$67,4,FALSE))),General!$H$24,VLOOKUP(DATE(YEAR(V8),MONTH(V8),1),CPI_Con_F!$D$18:$G$67,4,FALSE))) -> 1.351449258 | W11: =V11*(1+IF(OR(ISBLANK(VLOOKUP(DATE(YEAR(W8),MONTH(W8),1),CPI_Con_F!$D$18:$G$67,4,FALSE)),ISERROR(VLOOKUP(DATE(YEAR(W8),MONTH(W8),1),CPI_Con_F!$D$18:$G$67,4,FALSE))),General!$H$24,VLOOKUP(DATE(YEAR(W8),MONTH(W8),1),CPI_Con_F!$D$18:$G$67,4,FALSE))) -> 1.385235489 | X11: =W11*(1+IF(OR(ISBLANK(VLOOKUP(DATE(YEAR(X8),MONTH(X8),1),CPI_Con_F!$D$18:$G$67,4,FALSE)),ISERROR(VLOOKUP(DATE(YEAR(X8),MONTH(X8),1),CPI_Con_F!$D$18:$G$67,4,FALSE))),General!$H$24,VLOOKUP(DATE(YEAR(X8),MONTH(X8),1),CPI_Con_F!$D$18:$G$67,4,FALSE))) -> 1.419866376 | Y11: =X11*(1+IF(OR(ISBLANK(VLOOKUP(DATE(YEAR(Y8),MONTH(Y8),1),CPI_Con_F!$D$18:$G$67,4,FALSE)),ISERROR(VLOOKUP(DATE(YEAR(Y8),MONTH(Y8),1),CPI_Con_F!$D$18:$G$67,4,FALSE))),General!$H$24,VLOOKUP(DATE(YEAR(Y8),MONTH(Y8),1),CPI_Con_F!$D$18:$G$67,4,FALSE))) -> 1.455363036 | Z11: =Y11*(1+IF(OR(ISBLANK(VLOOKUP(DATE(YEAR(Z8),MONTH(Z8),1),CPI_Con_F!$D$18:$G$67,4,FALSE)),ISERROR(VLOOKUP(DATE(YEAR(Z8),MONTH(Z8),1),CPI_Con_F!$D$18:$G$67,4,FALSE))),General!$H$24,VLOOKUP(DATE(YEAR(Z8),MONTH(Z8),1),CPI_Con_F!$D$18:$G$67,4,FALSE))) -> 1.491747111 | AA11: =Z11*(1+IF(OR(ISBLANK(VLOOKUP(DATE(YEAR(AA8),MONTH(AA8),1),CPI_Con_F!$D$18:$G$67,4,FALSE)),ISERROR(VLOOKUP(DATE(YEAR(AA8),MONTH(AA8),1),CPI_Con_F!$D$18:$G$67,4,FALSE))),General!$H$24,VLOOKUP(DATE(YEAR(AA8),MONTH(AA8),1),CPI_Con_F!$D$18:$G$67,4,FALSE))) -> 1.529040789 | AB11: =AA11*(1+IF(OR(ISBLANK(VLOOKUP(DATE(YEAR(AB8),MONTH(AB8),1),CPI_Con_F!$D$18:$G$67,4,FALSE)),ISERROR(VLOOKUP(DATE(YEAR(AB8),MONTH(AB8),1),CPI_Con_F!$D$18:$G$67,4,FALSE))),General!$H$24,VLOOKUP(DATE(YEAR(AB8),MONTH(AB8),1),CPI_Con_F!$D$18:$G$67,4,FALSE))) -> 1.567266809 | AC11: =AB11*(1+IF(OR(ISBLANK(VLOOKUP(DATE(YEAR(AC8),MONTH(AC8),1),CPI_Con_F!$D$18:$G$67,4,FALSE)),ISERROR(VLOOKUP(DATE(YEAR(AC8),MONTH(AC8),1),CPI_Con_F!$D$18:$G$67,4,FALSE))),General!$H$24,VLOOKUP(DATE(YEAR(AC8),MONTH(AC8),1),CPI_Con_F!$D$18:$G$67,4,FALSE))) -> 1.606448479 | AD11: =AC11*(1+IF(OR(ISBLANK(VLOOKUP(DATE(YEAR(AD8),MONTH(AD8),1),CPI_Con_F!$D$18:$G$67,4,FALSE)),ISERROR(VLOOKUP(DATE(YEAR(AD8),MONTH(AD8),1),CPI_Con_F!$D$18:$G$67,4,FALSE))),General!$H$24,VLOOKUP(DATE(YEAR(AD8),MONTH(AD8),1),CPI_Con_F!$D$18:$G$67,4,FALSE))) -> 1.646609691 | AE11: =AD11*(1+IF(OR(ISBLANK(VLOOKUP(DATE(YEAR(AE8),MONTH(AE8),1),CPI_Con_F!$D$18:$G$67,4,FALSE)),ISERROR(VLOOKUP(DATE(YEAR(AE8),MONTH(AE8),1),CPI_Con_F!$D$18:$G$67,4,FALSE))),General!$H$24,VLOOKUP(DATE(YEAR(AE8),MONTH(AE8),1),CPI_Con_F!$D$18:$G$67,4,FALSE))) -> 1.687774933 | AF11: =AE11*(1+IF(OR(ISBLANK(VLOOKUP(DATE(YEAR(AF8),MONTH(AF8),1),CPI_Con_F!$D$18:$G$67,4,FALSE)),ISERROR(VLOOKUP(DATE(YEAR(AF8),MONTH(AF8),1),CPI_Con_F!$D$18:$G$67,4,FALSE))),General!$H$24,VLOOKUP(DATE(YEAR(AF8),MONTH(AF8),1),CPI_Con_F!$D$18:$G$67,4,FALSE))) -> 1.729969307 | AG11: =AF11*(1+IF(OR(ISBLANK(VLOOKUP(DATE(YEAR(AG8),MONTH(AG8),1),CPI_Con_F!$D$18:$G$67,4,FALSE)),ISERROR(VLOOKUP(DATE(YEAR(AG8),MONTH(AG8),1),CPI_Con_F!$D$18:$G$67,4,FALSE))),General!$H$24,VLOOKUP(DATE(YEAR(AG8),MONTH(AG8),1),CPI_Con_F!$D$18:$G$67,4,FALSE))) -> 1.77321854 | AH11: =AG11*(1+IF(OR(ISBLANK(VLOOKUP(DATE(YEAR(AH8),MONTH(AH8),1),CPI_Con_F!$D$18:$G$67,4,FALSE)),ISERROR(VLOOKUP(DATE(YEAR(AH8),MONTH(AH8),1),CPI_Con_F!$D$18:$G$67,4,FALSE))),General!$H$24,VLOOKUP(DATE(YEAR(AH8),MONTH(AH8),1),CPI_Con_F!$D$18:$G$67,4,FALSE))) -> 1.817549003 | AI11: =AH11*(1+IF(OR(ISBLANK(VLOOKUP(DATE(YEAR(AI8),MONTH(AI8),1),CPI_Con_F!$D$18:$G$67,4,FALSE)),ISERROR(VLOOKUP(DATE(YEAR(AI8),MONTH(AI8),1),CPI_Con_F!$D$18:$G$67,4,FALSE))),General!$H$24,VLOOKUP(DATE(YEAR(AI8),MONTH(AI8),1),CPI_Con_F!$D$18:$G$67,4,FALSE))) -> 1.862987728 | AJ11: =AI11*(1+IF(OR(ISBLANK(VLOOKUP(DATE(YEAR(AJ8),MONTH(AJ8),1),CPI_Con_F!$D$18:$G$67,4,FALSE)),ISERROR(VLOOKUP(DATE(YEAR(AJ8),MONTH(AJ8),1),CPI_Con_F!$D$18:$G$67,4,FALSE))),General!$H$24,VLOOKUP(DATE(YEAR(AJ8),MONTH(AJ8),1),CPI_Con_F!$D$18:$G$67,4,FALSE))) -> 1.909562421 | AK11: =AJ11*(1+IF(OR(ISBLANK(VLOOKUP(DATE(YEAR(AK8),MONTH(AK8),1),CPI_Con_F!$D$18:$G$67,4,FALSE)),ISERROR(VLOOKUP(DATE(YEAR(AK8),MONTH(AK8),1),CPI_Con_F!$D$18:$G$67,4,FALSE))),General!$H$24,VLOOKUP(DATE(YEAR(AK8),MONTH(AK8),1),CPI_Con_F!$D$18:$G$67,4,FALSE))) -> 1.957301482 | AL11: =AK11*(1+IF(OR(ISBLANK(VLOOKUP(DATE(YEAR(AL8),MONTH(AL8),1),CPI_Con_F!$D$18:$G$67,4,FALSE)),ISERROR(VLOOKUP(DATE(YEAR(AL8),MONTH(AL8),1),CPI_Con_F!$D$18:$G$67,4,FALSE))),General!$H$24,VLOOKUP(DATE(YEAR(AL8),MONTH(AL8),1),CPI_Con_F!$D$18:$G$67,4,FALSE))) -> 2.006234019 | AM11: =AL11*(1+IF(OR(ISBLANK(VLOOKUP(DATE(YEAR(AM8),MONTH(AM8),1),CPI_Con_F!$D$18:$G$67,4,FALSE)),ISERROR(VLOOKUP(DATE(YEAR(AM8),MONTH(AM8),1),CPI_Con_F!$D$18:$G$67,4,FALSE))),General!$H$24,VLOOKUP(DATE(YEAR(AM8),MONTH(AM8),1),CPI_Con_F!$D$18:$G$67,4,FALSE))) -> 2.056389869 | AN11: =AM11*(1+IF(OR(ISBLANK(VLOOKUP(DATE(YEAR(AN8),MONTH(AN8),1),CPI_Con_F!$D$18:$G$67,4,FALSE)),ISERROR(VLOOKUP(DATE(YEAR(AN8),MONTH(AN8),1),CPI_Con_F!$D$18:$G$67,4,FALSE))),General!$H$24,VLOOKUP(DATE(YEAR(AN8),MONTH(AN8),1),CPI_Con_F!$D$18:$G$67,4,FALSE))) -> 2.107799616 | AO11: =AN11*(1+IF(OR(ISBLANK(VLOOKUP(DATE(YEAR(AO8),MONTH(AO8),1),CPI_Con_F!$D$18:$G$67,4,FALSE)),ISERROR(VLOOKUP(DATE(YEAR(AO8),MONTH(AO8),1),CPI_Con_F!$D$18:$G$67,4,FALSE))),General!$H$24,VLOOKUP(DATE(YEAR(AO8),MONTH(AO8),1),CPI_Con_F!$D$18:$G$67,4,FALSE))) -> 2.160494606 | AP11: =AO11*(1+IF(OR(ISBLANK(VLOOKUP(DATE(YEAR(AP8),MONTH(AP8),1),CPI_Con_F!$D$18:$G$67,4,FALSE)),ISERROR(VLOOKUP(DATE(YEAR(AP8),MONTH(AP8),1),CPI_Con_F!$D$18:$G$67,4,FALSE))),General!$H$24,VLOOKUP(DATE(YEAR(AP8),MONTH(AP8),1),CPI_Con_F!$D$18:$G$67,4,FALSE))) -> 2.214506972 | AQ11: =AP11*(1+IF(OR(ISBLANK(VLOOKUP(DATE(YEAR(AQ8),MONTH(AQ8),1),CPI_Con_F!$D$18:$G$67,4,FALSE)),ISERROR(VLOOKUP(DATE(YEAR(AQ8),MONTH(AQ8),1),CPI_Con_F!$D$18:$G$67,4,FALSE))),General!$H$24,VLOOKUP(DATE(YEAR(AQ8),MONTH(AQ8),1),CPI_Con_F!$D$18:$G$67,4,FALSE))) -> 2.269869646 | AR11: =AQ11*(1+IF(OR(ISBLANK(VLOOKUP(DATE(YEAR(AR8),MONTH(AR8),1),CPI_Con_F!$D$18:$G$67,4,FALSE)),ISERROR(VLOOKUP(DATE(YEAR(AR8),MONTH(AR8),1),CPI_Con_F!$D$18:$G$67,4,FALSE))),General!$H$24,VLOOKUP(DATE(YEAR(AR8),MONTH(AR8),1),CPI_Con_F!$D$18:$G$67,4,FALSE))) -> 2.326616387 | AS11: =AR11*(1+IF(OR(ISBLANK(VLOOKUP(DATE(YEAR(AS8),MONTH(AS8),1),CPI_Con_F!$D$18:$G$67,4,FALSE)),ISERROR(VLOOKUP(DATE(YEAR(AS8),MONTH(AS8),1),CPI_Con_F!$D$18:$G$67,4,FALSE))),General!$H$24,VLOOKUP(DATE(YEAR(AS8),MONTH(AS8),1),CPI_Con_F!$D$18:$G$67,4,FALSE))) -> 2.384781797 | AT11: =AS11*(1+IF(OR(ISBLANK(VLOOKUP(DATE(YEAR(AT8),MONTH(AT8),1),CPI_Con_F!$D$18:$G$67,4,FALSE)),ISERROR(VLOOKUP(DATE(YEAR(AT8),MONTH(AT8),1),CPI_Con_F!$D$18:$G$67,4,FALSE))),General!$H$24,VLOOKUP(DATE(YEAR(AT8),MONTH(AT8),1),CPI_Con_F!$D$18:$G$67,4,FALSE))) -> 2.444401342 | AU11: =AT11*(1+IF(OR(ISBLANK(VLOOKUP(DATE(YEAR(AU8),MONTH(AU8),1),CPI_Con_F!$D$18:$G$67,4,FALSE)),ISERROR(VLOOKUP(DATE(YEAR(AU8),MONTH(AU8),1),CPI_Con_F!$D$18:$G$67,4,FALSE))),General!$H$24,VLOOKUP(DATE(YEAR(AU8),MONTH(AU8),1),CPI_Con_F!$D$18:$G$67,4,FALSE))) -> 2.505511375 | AV11: =AU11*(1+IF(OR(ISBLANK(VLOOKUP(DATE(YEAR(AV8),MONTH(AV8),1),CPI_Con_F!$D$18:$G$67,4,FALSE)),ISERROR(VLOOKUP(DATE(YEAR(AV8),MONTH(AV8),1),CPI_Con_F!$D$18:$G$67,4,FALSE))),General!$H$24,VLOOKUP(DATE(YEAR(AV8),MONTH(AV8),1),CPI_Con_F!$D$18:$G$67,4,FALSE))) -> 2.56814916 | AW11: =AV11*(1+IF(OR(ISBLANK(VLOOKUP(DATE(YEAR(AW8),MONTH(AW8),1),CPI_Con_F!$D$18:$G$67,4,FALSE)),ISERROR(VLOOKUP(DATE(YEAR(AW8),MONTH(AW8),1),CPI_Con_F!$D$18:$G$67,4,FALSE))),General!$H$24,VLOOKUP(DATE(YEAR(AW8),MONTH(AW8),1),CPI_Con_F!$D$18:$G$67,4,FALSE))) -> 2.632352889 | AX11: =AW11*(1+IF(OR(ISBLANK(VLOOKUP(DATE(YEAR(AX8),MONTH(AX8),1),CPI_Con_F!$D$18:$G$67,4,FALSE)),ISERROR(VLOOKUP(DATE(YEAR(AX8),MONTH(AX8),1),CPI_Con_F!$D$18:$G$67,4,FALSE))),General!$H$24,VLOOKUP(DATE(YEAR(AX8),MONTH(AX8),1),CPI_Con_F!$D$18:$G$67,4,FALSE))) -> 2.698161711 | AY11: =AX11*(1+IF(OR(ISBLANK(VLOOKUP(DATE(YEAR(AY8),MONTH(AY8),1),CPI_Con_F!$D$18:$G$67,4,FALSE)),ISERROR(VLOOKUP(DATE(YEAR(AY8),MONTH(AY8),1),CPI_Con_F!$D$18:$G$67,4,FALSE))),General!$H$24,VLOOKUP(DATE(YEAR(AY8),MONTH(AY8),1),CPI_Con_F!$D$18:$G$67,4,FALSE))) -> 2.765615754 | AZ11: =AY11*(1+IF(OR(ISBLANK(VLOOKUP(DATE(YEAR(AZ8),MONTH(AZ8),1),CPI_Con_F!$D$18:$G$67,4,FALSE)),ISERROR(VLOOKUP(DATE(YEAR(AZ8),MONTH(AZ8),1),CPI_Con_F!$D$18:$G$67,4,FALSE))),General!$H$24,VLOOKUP(DATE(YEAR(AZ8),MONTH(AZ8),1),CPI_Con_F!$D$18:$G$67,4,FALSE))) -> 2.834756147 | BA11: =AZ11*(1+IF(OR(ISBLANK(VLOOKUP(DATE(YEAR(BA8),MONTH(BA8),1),CPI_Con_F!$D$18:$G$67,4,FALSE)),ISERROR(VLOOKUP(DATE(YEAR(BA8),MONTH(BA8),1),CPI_Con_F!$D$18:$G$67,4,FALSE))),General!$H$24,VLOOKUP(DATE(YEAR(BA8),MONTH(BA8),1),CPI_Con_F!$D$18:$G$67,4,FALSE))) -> 2.905625051 | BB11: =BA11*(1+IF(OR(ISBLANK(VLOOKUP(DATE(YEAR(BB8),MONTH(BB8),1),CPI_Con_F!$D$18:$G$67,4,FALSE)),ISERROR(VLOOKUP(DATE(YEAR(BB8),MONTH(BB8),1),CPI_Con_F!$D$18:$G$67,4,FALSE))),General!$H$24,VLOOKUP(DATE(YEAR(BB8),MONTH(BB8),1),CPI_Con_F!$D$18:$G$67,4,FALSE))) -> 2.978265677 | BC11: =BB11*(1+IF(OR(ISBLANK(VLOOKUP(DATE(YEAR(BC8),MONTH(BC8),1),CPI_Con_F!$D$18:$G$67,4,FALSE)),ISERROR(VLOOKUP(DATE(YEAR(BC8),MONTH(BC8),1),CPI_Con_F!$D$18:$G$67,4,FALSE))),General!$H$24,VLOOKUP(DATE(YEAR(BC8),MONTH(BC8),1),CPI_Con_F!$D$18:$G$67,4,FALSE))) -> 3.052722319 | BD11: =BC11*(1+IF(OR(ISBLANK(VLOOKUP(DATE(YEAR(BD8),MONTH(BD8),1),CPI_Con_F!$D$18:$G$67,4,FALSE)),ISERROR(VLOOKUP(DATE(YEAR(BD8),MONTH(BD8),1),CPI_Con_F!$D$18:$G$67,4,FALSE))),General!$H$24,VLOOKUP(DATE(YEAR(BD8),MONTH(BD8),1),CPI_Con_F!$D$18:$G$67,4,FALSE))) -> 3.129040377 | BE11: =BD11*(1+IF(OR(ISBLANK(VLOOKUP(DATE(YEAR(BE8),MONTH(BE8),1),CPI_Con_F!$D$18:$G$67,4,FALSE)),ISERROR(VLOOKUP(DATE(YEAR(BE8),MONTH(BE8),1),CPI_Con_F!$D$18:$G$67,4,FALSE))),General!$H$24,VLOOKUP(DATE(YEAR(BE8),MONTH(BE8),1),CPI_Con_F!$D$18:$G$67,4,FALSE))) -> 3.207266387 | BF11: =BE11*(1+IF(OR(ISBLANK(VLOOKUP(DATE(YEAR(BF8),MONTH(BF8),1),CPI_Con_F!$D$18:$G$67,4,FALSE)),ISERROR(VLOOKUP(DATE(YEAR(BF8),MONTH(BF8),1),CPI_Con_F!$D$18:$G$67,4,FALSE))),General!$H$24,VLOOKUP(DATE(YEAR(BF8),MONTH(BF8),1),CPI_Con_F!$D$18:$G$67,4,FALSE))) -> 3.287448046 | BG11: =BF11*(1+IF(OR(ISBLANK(VLOOKUP(DATE(YEAR(BG8),MONTH(BG8),1),CPI_Con_F!$D$18:$G$67,4,FALSE)),ISERROR(VLOOKUP(DATE(YEAR(BG8),MONTH(BG8),1),CPI_Con_F!$D$18:$G$67,4,FALSE))),General!$H$24,VLOOKUP(DATE(YEAR(BG8),MONTH(BG8),1),CPI_Con_F!$D$18:$G$67,4,FALSE))) -> 3.369634248
B12: CPI Index (lagged) | J12: =IF(J9=1,1,I11) -> 1 | K12: 1 | L12: 1.03 | M12: 1.05575 | N12: 1.08214375 | O12: 1.109197344 | P12: 1.136927277 | Q12: 1.165350459 | R12: 1.194484221 | S12: 1.224346326 | T12: 1.254954984 | U12: 1.286328859 | V12: 1.318487081 | W12: 1.351449258 | X12: 1.385235489 | Y12: 1.419866376 | Z12: 1.455363036 | AA12: 1.491747111 | AB12: 1.529040789 | AC12: 1.567266809 | AD12: 1.606448479 | AE12: 1.646609691 | AF12: 1.687774933 | AG12: 1.729969307 | AH12: 1.77321854 | AI12: 1.817549003 | AJ12: 1.862987728 | AK12: 1.909562421 | AL12: 1.957301482 | AM12: 2.006234019 | AN12: 2.056389869 | AO12: 2.107799616 | AP12: 2.160494606 | AQ12: 2.214506972 | AR12: 2.269869646 | AS12: 2.326616387 | AT12: 2.384781797 | AU12: 2.444401342 | AV12: 2.505511375 | AW12: 2.56814916 | AX12: 2.632352889 | AY12: 2.698161711 | AZ12: 2.765615754 | BA12: 2.834756147 | BB12: 2.905625051 | BC12: 2.978265677 | BD12: 3.052722319 | BE12: 3.129040377 | BF12: 3.207266387 | BG12: 3.287448046
B13: Discount Index (pre tax) | J13: =(1+General!J32)^(J$9-1) -> 1 | K13: =(1+General!K32)^(K$9-1) -> 1.0556 | L13: =(1+General!L32)^(L$9-1) -> 1.11429136 | M13: =(1+General!M32)^(M$9-1) -> 1.17624596 | N13: =(1+General!N32)^(N$9-1) -> 1.241645235 | O13: =(1+General!O32)^(O$9-1) -> 1.31068071 | P13: =(1+General!P32)^(P$9-1) -> 1.383554558 | Q13: =(1+General!Q32)^(Q$9-1) -> 1.460480191 | R13: =(1+General!R32)^(R$9-1) -> 1.54168289 | S13: =(1+General!S32)^(S$9-1) -> 1.627400458 | T13: =(1+General!T32)^(T$9-1) -> 1.717883924 | U13: =(1+General!U32)^(U$9-1) -> 1.81339827 | V13: =(1+General!V32)^(V$9-1) -> 1.914223214 | W13: =(1+General!W32)^(W$9-1) -> 2.020654024 | X13: =(1+General!X32)^(X$9-1) -> 2.133002388 | Y13: =(1+General!Y32)^(Y$9-1) -> 2.251597321 | Z13: =(1+General!Z32)^(Z$9-1) -> 2.376786132 | AA13: =(1+General!AA32)^(AA$9-1) -> 2.508935441 | AB13: =(1+General!AB32)^(AB$9-1) -> 2.648432251 | AC13: =(1+General!AC32)^(AC$9-1) -> 2.795685084 | AD13: =(1+General!AD32)^(AD$9-1) -> 2.951125175 | AE13: =(1+General!AE32)^(AE$9-1) -> 3.115207735 | AF13: =(1+General!AF32)^(AF$9-1) -> 3.288413285 | AG13: =(1+General!AG32)^(AG$9-1) -> 3.471249064 | AH13: =(1+General!AH32)^(AH$9-1) -> 3.664250512 | AI13: =(1+General!AI32)^(AI$9-1) -> 3.86798284 | AJ13: =(1+General!AJ32)^(AJ$9-1) -> 4.083042686 | AK13: =(1+General!AK32)^(AK$9-1) -> 4.310059859 | AL13: =(1+General!AL32)^(AL$9-1) -> 4.549699187 | AM13: =(1+General!AM32)^(AM$9-1) -> 4.802662462 | AN13: =(1+General!AN32)^(AN$9-1) -> 5.069690495 | AO13: =(1+General!AO32)^(AO$9-1) -> 5.351565287 | AP13: =(1+General!AP32)^(AP$9-1) -> 5.649112317 | AQ13: =(1+General!AQ32)^(AQ$9-1) -> 5.963202961 | AR13: =(1+General!AR32)^(AR$9-1) -> 6.294757046 | AS13: =(1+General!AS32)^(AS$9-1) -> 6.644745538 | AT13: =(1+General!AT32)^(AT$9-1) -> 7.01419339 | AU13: =(1+General!AU32)^(AU$9-1) -> 7.404182542 | AV13: =(1+General!AV32)^(AV$9-1) -> 7.815855092 | AW13: =(1+General!AW32)^(AW$9-1) -> 8.250416635 | AX13: =(1+General!AX32)^(AX$9-1) -> 8.709139799 | AY13: =(1+General!AY32)^(AY$9-1) -> 9.193367972 | AZ13: =(1+General!AZ32)^(AZ$9-1) -> 9.704519232 | BA13: =(1+General!BA32)^(BA$9-1) -> 10.2440905 | BB13: =(1+General!BB32)^(BB$9-1) -> 10.81366193 | BC13: =(1+General!BC32)^(BC$9-1) -> 11.41490154 | BD13: =(1+General!BD32)^(BD$9-1) -> 12.04957006 | BE13: =(1+General!BE32)^(BE$9-1) -> 12.71952616 | BF13: =(1+General!BF32)^(BF$9-1) -> 13.42673181 | BG13: =(1+General!BG32)^(BG$9-1) -> 14.1732581
J16: ="FY "&RIGHT(J10,2) -> FY 25 | K16: FY 26 | L16: FY 27 | M16: FY 28 | N16: FY 29 | O16: FY 30 | P16: FY 31 | Q16: FY 32 | R16: FY 33 | S16: FY 34 | T16: FY 35 | U16: FY 36 | V16: FY 37 | W16: FY 38 | X16: FY 39 | Y16: FY 40 | Z16: FY 41 | AA16: FY 42 | AB16: FY 43 | AC16: FY 44 | AD16: FY 45 | AE16: FY 46 | AF16: FY 47 | AG16: FY 48 | AH16: FY 49 | AI16: FY 50 | AJ16: FY 51 | AK16: FY 52 | AL16: FY 53 | AM16: FY 54 | AN16: FY 55 | AO16: FY 56 | AP16: FY 57 | AQ16: FY 58 | AR16: FY 59 | AS16: FY 60 | AT16: FY 61 | AU16: FY 62 | AV16: FY 63 | AW16: FY 64 | AX16: FY 65 | AY16: FY 66 | AZ16: FY 67 | BA16: FY 68 | BB16: FY 69 | BC16: FY 70 | BD16: FY 71 | BE16: FY 72 | BF16: FY 73 | BG16: FY 74
B17: Summary | J17: =J9 -> 1 | K17: 2 | L17: 3 | M17: 4 | N17: 5 | O17: 6 | P17: 7 | Q17: 8 | R17: 9 | S17: 10 | T17: 11 | U17: 12 | V17: 13 | W17: 14 | X17: 15 | Y17: 16 | Z17: 17 | AA17: 18 | AB17: 19 | AC17: 20 | AD17: 21 | AE17: 22 | AF17: 23 | AG17: 24 | AH17: 25 | AI17: 26 | AJ17: 27 | AK17: 28 | AL17: 29 | AM17: 30 | AN17: 31 | AO17: 32 | AP17: 33 | AQ17: 34 | AR17: 35 | AS17: 36 | AT17: 37 | AU17: 38 | AV17: 39 | AW17: 40 | AX17: 41 | AY17: 42 | AZ17: 43 | BA17: 44 | BB17: 45 | BC17: 46 | BD17: 47 | BE17: 48 | BF17: 49 | BG17: 50
A19: To determine the highest value project | E19: Present Value Cost
F20: Capital Expenditure | H20: =SUM(J20:BG20) -> 0 | J20: =-(J46)*J11/J13 -> 0 | K20: 0 | L20: 0 | M20: 0 | N20: 0 | O20: 0 | P20: 0 | Q20: 0 | R20: 0 | S20: 0 | T20: 0 | U20: 0 | V20: 0 | W20: 0 | X20: 0 | Y20: 0 | Z20: 0 | AA20: 0 | AB20: 0 | AC20: 0 | AD20: 0 | AE20: 0 | AF20: 0 | AG20: 0 | AH20: 0 | AI20: 0 | AJ20: 0 | AK20: 0 | AL20: 0 | AM20: 0 | AN20: 0 | AO20: 0 | AP20: 0 | AQ20: 0 | AR20: 0 | AS20: 0 | AT20: 0 | AU20: 0 | AV20: 0 | AW20: 0 | AX20: 0 | AY20: 0 | AZ20: 0 | BA20: 0 | BB20: 0 | BC20: 0 | BD20: 0 | BE20: 0 | BF20: 0 | BG20: 0
F21: Operating Expenditure | H21: =SUM(J21:BG21) -> 0 | J21: =-J75*J11/J13 -> 0 | K21: 0 | L21: 0 | M21: 0 | N21: 0 | O21: 0 | P21: 0 | Q21: 0 | R21: 0 | S21: 0 | T21: 0 | U21: 0 | V21: 0 | W21: 0 | X21: 0 | Y21: 0 | Z21: 0 | AA21: 0 | AB21: 0 | AC21: 0 | AD21: 0 | AE21: 0 | AF21: 0 | AG21: 0 | AH21: 0 | AI21: 0 | AJ21: 0 | AK21: 0 | AL21: 0 | AM21: 0 | AN21: 0 | AO21: 0 | AP21: 0 | AQ21: 0 | AR21: 0 | AS21: 0 | AT21: 0 | AU21: 0 | AV21: 0 | AW21: 0 | AX21: 0 | AY21: 0 | AZ21: 0 | BA21: 0 | BB21: 0 | BC21: 0 | BD21: 0 | BE21: 0 | BF21: 0 | BG21: 0
F22: Net Benefits | H22: =SUM(J22:BG22) -> 6116.723851 | J22: =(J106)*J11/J13 -> 526.5211504 | K22: 512.4340818 | L22: 499.2893523 | M22: 487.9164019 | N22: 479.0225295 | O22: 469.5181866 | P22: 461.8027407 | Q22: 454.4084135 | R22: 451.3203079 | S22: 444.5490618 | T22: 439.506806 | U22: 445.8313723 | V22: 444.6034462 | W22: 0 | X22: 0 | Y22: 0 | Z22: 0 | AA22: 0 | AB22: 0 | AC22: 0 | AD22: 0 | AE22: 0 | AF22: 0 | AG22: 0 | AH22: 0 | AI22: 0 | AJ22: 0 | AK22: 0 | AL22: 0 | AM22: 0 | AN22: 0 | AO22: 0 | AP22: 0 | AQ22: 0 | AR22: 0 | AS22: 0 | AT22: 0 | AU22: 0 | AV22: 0 | AW22: 0 | AX22: 0 | AY22: 0 | AZ22: 0 | BA22: 0 | BB22: 0 | BC22: 0 | BD22: 0 | BE22: 0 | BF22: 0 | BG22: 0
E23: Total Present Value | H23: =SUM(J23:BG23) -> 6116.723851 | J23: =SUM(J20:J22) -> 526.5211504 | K23: =SUM(K20:K22) -> 512.4340818 | L23: 499.2893523 | M23: =SUM(M20:M22) -> 487.9164019 | N23: 479.0225295 | O23: 469.5181866 | P23: 461.8027407 | Q23: 454.4084135 | R23: 451.3203079 | S23: 444.5490618 | T23: 439.506806 | U23: 445.8313723 | V23: 444.6034462 | W23: 0 | X23: 0 | Y23: 0 | Z23: 0 | AA23: 0 | AB23: 0 | AC23: 0 | AD23: 0 | AE23: 0 | AF23: 0 | AG23: 0 | AH23: 0 | AI23: 0 | AJ23: 0 | AK23: 0 | AL23: 0 | AM23: 0 | AN23: 0 | AO23: 0 | AP23: 0 | AQ23: 0 | AR23: 0 | AS23: 0 | AT23: 0 | AU23: 0 | AV23: 0 | AW23: 0 | AX23: 0 | AY23: 0 | AZ23: 0 | BA23: 0 | BB23: 0 | BC23: 0 | BD23: 0 | BE23: 0 | BF23: 0 | BG23: 0
A25: To determine the capex & opex need for the EDPR period | E25: Undiscounted
F26: Capital Expenditure | H26: =SUM(J26:BG26) -> 0 | J26: =-(J60)*J$6 -> 0 | K26: =-(K60)*K$6 -> 0 | L26: 0 | M26: 0 | N26: 0 | O26: 0 | P26: =-(P60)*P$6 -> 0 | Q26: 0 | R26: 0 | S26: 0 | T26: 0 | U26: 0 | V26: 0 | W26: 0 | X26: 0 | Y26: 0 | Z26: 0 | AA26: 0 | AB26: 0 | AC26: 0 | AD26: 0 | AE26: 0 | AF26: 0 | AG26: 0 | AH26: 0 | AI26: 0 | AJ26: 0 | AK26: 0 | AL26: 0 | AM26: 0 | AN26: 0 | AO26: 0 | AP26: 0 | AQ26: 0 | AR26: 0 | AS26: 0 | AT26: 0 | AU26: 0 | AV26: 0 | AW26: 0 | AX26: 0 | AY26: 0 | AZ26: 0 | BA26: 0 | BB26: 0 | BC26: 0 | BD26: 0 | BE26: 0 | BF26: 0 | BG26: 0
F27: Operating Expenditure | H27: =SUM(J27:BG27) -> 0 | J27: =-J89*J$6 -> 0 | K27: =-K89*K$6 -> 0 | L27: 0 | M27: 0 | N27: 0 | O27: 0 | P27: 0 | Q27: 0 | R27: 0 | S27: 0 | T27: 0 | U27: 0 | V27: 0 | W27: 0 | X27: 0 | Y27: 0 | Z27: 0 | AA27: 0 | AB27: 0 | AC27: 0 | AD27: 0 | AE27: 0 | AF27: 0 | AG27: 0 | AH27: 0 | AI27: 0 | AJ27: 0 | AK27: 0 | AL27: 0 | AM27: 0 | AN27: 0 | AO27: 0 | AP27: 0 | AQ27: 0 | AR27: 0 | AS27: 0 | AT27: 0 | AU27: 0 | AV27: 0 | AW27: 0 | AX27: 0 | AY27: 0 | AZ27: 0 | BA27: 0 | BB27: 0 | BC27: 0 | BD27: 0 | BE27: 0 | BF27: 0 | BG27: 0
F28: Net Benefits | H28: =SUM(J28:BG28) -> 2711.711952 | J28: =(J122)*J$6 -> 0 | K28: =(K122)*K$6 -> 0 | L28: 0 | M28: 530.3451565 | N28: 536.2220208 | O28: 541.2733447 | P28: 548.2722227 | Q28: 555.5992076 | R28: 0 | S28: 0 | T28: 0 | U28: 0 | V28: 0 | W28: 0 | X28: 0 | Y28: 0 | Z28: 0 | AA28: 0 | AB28: 0 | AC28: 0 | AD28: 0 | AE28: 0 | AF28: 0 | AG28: 0 | AH28: 0 | AI28: 0 | AJ28: 0 | AK28: 0 | AL28: 0 | AM28: 0 | AN28: 0 | AO28: 0 | AP28: 0 | AQ28: 0 | AR28: 0 | AS28: 0 | AT28: 0 | AU28: 0 | AV28: 0 | AW28: 0 | AX28: 0 | AY28: 0 | AZ28: 0 | BA28: 0 | BB28: 0 | BC28: 0 | BD28: 0 | BE28: 0 | BF28: 0 | BG28: 0
E29: Undiscounted Total Value | H29: =SUM(J29:BG29) -> 2711.711952 | J29: =SUM(J26:J28) -> 0 | K29: =SUM(K26:K28) -> 0 | L29: 0 | M29: 530.3451565 | N29: 536.2220208 | O29: 541.2733447 | P29: 548.2722227 | Q29: 555.5992076 | R29: 0 | S29: 0 | T29: 0 | U29: 0 | V29: 0 | W29: 0 | X29: 0 | Y29: 0 | Z29: 0 | AA29: 0 | AB29: 0 | AC29: 0 | AD29: 0 | AE29: 0 | AF29: 0 | AG29: 0 | AH29: 0 | AI29: 0 | AJ29: 0 | AK29: 0 | AL29: 0 | AM29: 0 | AN29: 0 | AO29: 0 | AP29: 0 | AQ29: 0 | AR29: 0 | AS29: 0 | AT29: 0 | AU29: 0 | AV29: 0 | AW29: 0 | AX29: 0 | AY29: 0 | AZ29: 0 | BA29: 0 | BB29: 0 | BC29: 0 | BD29: 0 | BE29: 0 | BF29: 0 | BG29: 0
B32: Capital Expenditure
B33: Note: You can enter the values in here directly, or use the "Calculations" sheets to calculate the values and then link it to this sheet
F35: Category | G35: Description (optional) | I35: Dollar Basis
F36: =General!D9 -> Base Case | G36: =General!G9 -> Do Nothing
F46: Total Direct Capex | J46: =SUM(J36:J45) -> 0 | K46: =SUM(K36:K45) -> 0 | L46: =SUM(L36:L45) -> 0 | M46: 0 | N46: 0 | O46: 0 | P46: 0 | Q46: =SUM(Q36:Q45) -> 0 | R46: 0 | S46: 0 | T46: 0 | U46: 0 | V46: 0 | W46: 0 | X46: 0 | Y46: 0 | Z46: 0 | AA46: 0 | AB46: 0 | AC46: 0 | AD46: 0 | AE46: 0 | AF46: 0 | AG46: 0 | AH46: 0 | AI46: 0 | AJ46: 0 | AK46: 0 | AL46: 0 | AM46: 0 | AN46: 0 | AO46: 0 | AP46: 0 | AQ46: 0 | AR46: 0 | AS46: 0 | AT46: 0 | AU46: 0 | AV46: 0 | AW46: 0 | AX46: 0 | AY46: 0 | AZ46: 0 | BA46: 0 | BB46: 0 | BC46: 0 | BD46: 0 | BE46: 0 | BF46: 0 | BG46: 0
B48: Note: This table converts the values into 30 June 2024 dollars, which is needed for EDPR
G49: Dollar Basis for Conversion | H49: Conversion Factor
F50: =F36 -> Base Case | G50: 2024-06-30 | H50: 1 | J50: =J36*$H50 -> 0 | K50: 0 | L50: 0 | M50: 0 | N50: 0 | O50: 0 | P50: 0 | Q50: 0 | R50: 0 | S50: 0 | T50: 0 | U50: 0 | V50: 0 | W50: 0 | X50: 0 | Y50: 0 | Z50: 0 | AA50: 0 | AB50: 0 | AC50: 0 | AD50: 0 | AE50: 0 | AF50: 0 | AG50: 0 | AH50: 0 | AI50: 0 | AJ50: 0 | AK50: 0 | AL50: 0 | AM50: 0 | AN50: 0 | AO50: 0 | AP50: 0 | AQ50: 0 | AR50: 0 | AS50: 0 | AT50: 0 | AU50: 0 | AV50: 0 | AW50: 0 | AX50: 0 | AY50: 0 | AZ50: 0 | BA50: 0 | BB50: 0 | BC50: 0 | BD50: 0 | BE50: 0 | BF50: 0 | BG50: 0
J51: 0 | K51: 0 | L51: 0 | M51: 0 | N51: 0 | O51: 0 | P51: 0 | Q51: 0 | R51: 0 | S51: 0 | T51: 0 | U51: 0 | V51: 0 | W51: 0 | X51: 0 | Y51: 0 | Z51: 0 | AA51: 0 | AB51: 0 | AC51: 0 | AD51: 0 | AE51: 0 | AF51: 0 | AG51: 0 | AH51: 0 | AI51: 0 | AJ51: 0 | AK51: 0 | AL51: 0 | AM51: 0 | AN51: 0 | AO51: 0 | AP51: 0 | AQ51: 0 | AR51: 0 | AS51: 0 | AT51: 0 | AU51: 0 | AV51: 0 | AW51: 0 | AX51: 0 | AY51: 0 | AZ51: 0 | BA51: 0 | BB51: 0 | BC51: 0 | BD51: 0 | BE51: 0 | BF51: 0 | BG51: 0
J52: 0 | K52: 0 | L52: 0 | M52: 0 | N52: 0 | O52: 0 | P52: 0 | Q52: 0 | R52: 0 | S52: 0 | T52: 0 | U52: 0 | V52: 0 | W52: 0 | X52: 0 | Y52: 0 | Z52: 0 | AA52: 0 | AB52: 0 | AC52: 0 | AD52: 0 | AE52: 0 | AF52: 0 | AG52: 0 | AH52: 0 | AI52: 0 | AJ52: 0 | AK52: 0 | AL52: 0 | AM52: 0 | AN52: 0 | AO52: 0 | AP52: 0 | AQ52: 0 | AR52: 0 | AS52: 0 | AT52: 0 | AU52: 0 | AV52: 0 | AW52: 0 | AX52: 0 | AY52: 0 | AZ52: 0 | BA52: 0 | BB52: 0 | BC52: 0 | BD52: 0 | BE52: 0 | BF52: 0 | BG52: 0
J53: 0 | K53: 0 | L53: 0 | M53: 0 | N53: 0 | O53: 0 | P53: 0 | Q53: 0 | R53: 0 | S53: 0 | T53: 0 | U53: 0 | V53: 0 | W53: 0 | X53: 0 | Y53: 0 | Z53: 0 | AA53: 0 | AB53: 0 | AC53: 0 | AD53: 0 | AE53: 0 | AF53: 0 | AG53: 0 | AH53: 0 | AI53: 0 | AJ53: 0 | AK53: 0 | AL53: 0 | AM53: 0 | AN53: 0 | AO53: 0 | AP53: 0 | AQ53: 0 | AR53: 0 | AS53: 0 | AT53: 0 | AU53: 0 | AV53: 0 | AW53: 0 | AX53: 0 | AY53: 0 | AZ53: 0 | BA53: 0 | BB53: 0 | BC53: 0 | BD53: 0 | BE53: 0 | BF53: 0 | BG53: 0
J54: 0 | K54: 0 | L54: 0 | M54: 0 | N54: 0 | O54: 0 | P54: 0 | Q54: 0 | R54: 0 | S54: 0 | T54: 0 | U54: 0 | V54: 0 | W54: 0 | X54: 0 | Y54: 0 | Z54: 0 | AA54: 0 | AB54: 0 | AC54: 0 | AD54: 0 | AE54: 0 | AF54: 0 | AG54: 0 | AH54: 0 | AI54: 0 | AJ54: 0 | AK54: 0 | AL54: 0 | AM54: 0 | AN54: 0 | AO54: 0 | AP54: 0 | AQ54: 0 | AR54: 0 | AS54: 0 | AT54: 0 | AU54: 0 | AV54: 0 | AW54: 0 | AX54: 0 | AY54: 0 | AZ54: 0 | BA54: 0 | BB54: 0 | BC54: 0 | BD54: 0 | BE54: 0 | BF54: 0 | BG54: 0
J55: 0 | K55: 0 | L55: 0 | M55: 0 | N55: 0 | O55: =O41*$H55 -> 0 | P55: 0 | Q55: 0 | R55: 0 | S55: 0 | T55: 0 | U55: 0 | V55: 0 | W55: 0 | X55: 0 | Y55: 0 | Z55: 0 | AA55: 0 | AB55: 0 | AC55: 0 | AD55: 0 | AE55: 0 | AF55: 0 | AG55: 0 | AH55: 0 | AI55: 0 | AJ55: 0 | AK55: 0 | AL55: 0 | AM55: 0 | AN55: 0 | AO55: 0 | AP55: 0 | AQ55: 0 | AR55: 0 | AS55: 0 | AT55: 0 | AU55: 0 | AV55: 0 | AW55: 0 | AX55: 0 | AY55: 0 | AZ55: 0 | BA55: 0 | BB55: 0 | BC55: 0 | BD55: 0 | BE55: 0 | BF55: 0 | BG55: 0
J56: =J42*$H56 -> 0 | K56: 0 | L56: 0 | M56: 0 | N56: 0 | O56: 0 | P56: 0 | Q56: 0 | R56: 0 | S56: 0 | T56: 0 | U56: 0 | V56: 0 | W56: 0 | X56: 0 | Y56: 0 | Z56: 0 | AA56: 0 | AB56: 0 | AC56: 0 | AD56: 0 | AE56: 0 | AF56: 0 | AG56: 0 | AH56: 0 | AI56: 0 | AJ56: 0 | AK56: 0 | AL56: 0 | AM56: 0 | AN56: 0 | AO56: 0 | AP56: 0 | AQ56: 0 | AR56: 0 | AS56: 0 | AT56: 0 | AU56: 0 | AV56: 0 | AW56: 0 | AX56: 0 | AY56: 0 | AZ56: 0 | BA56: 0 | BB56: 0 | BC56: 0 | BD56: 0 | BE56: 0 | BF56: 0 | BG56: 0
J57: 0 | K57: 0 | L57: 0 | M57: 0 | N57: 0 | O57: 0 | P57: 0 | Q57: 0 | R57: 0 | S57: 0 | T57: 0 | U57: 0 | V57: 0 | W57: 0 | X57: 0 | Y57: 0 | Z57: 0 | AA57: 0 | AB57: 0 | AC57: 0 | AD57: 0 | AE57: 0 | AF57: 0 | AG57: 0 | AH57: 0 | AI57: 0 | AJ57: 0 | AK57: 0 | AL57: 0 | AM57: 0 | AN57: 0 | AO57: 0 | AP57: 0 | AQ57: 0 | AR57: 0 | AS57: 0 | AT57: 0 | AU57: 0 | AV57: 0 | AW57: 0 | AX57: 0 | AY57: 0 | AZ57: 0 | BA57: 0 | BB57: 0 | BC57: 0 | BD57: 0 | BE57: 0 | BF57: 0 | BG57: 0
J58: 0 | K58: 0 | L58: 0 | M58: 0 | N58: 0 | O58: 0 | P58: 0 | Q58: 0 | R58: 0 | S58: 0 | T58: 0 | U58: 0 | V58: 0 | W58: 0 | X58: 0 | Y58: 0 | Z58: 0 | AA58: 0 | AB58: 0 | AC58: 0 | AD58: 0 | AE58: 0 | AF58: 0 | AG58: 0 | AH58: 0 | AI58: 0 | AJ58: 0 | AK58: 0 | AL58: 0 | AM58: 0 | AN58: 0 | AO58: 0 | AP58: 0 | AQ58: 0 | AR58: 0 | AS58: 0 | AT58: 0 | AU58: 0 | AV58: 0 | AW58: 0 | AX58: 0 | AY58: 0 | AZ58: 0 | BA58: 0 | BB58: 0 | BC58: 0 | BD58: 0 | BE58: 0 | BF58: 0 | BG58: 0
J59: 0 | K59: 0 | L59: 0 | M59: 0 | N59: 0 | O59: 0 | P59: 0 | Q59: 0 | R59: 0 | S59: 0 | T59: 0 | U59: 0 | V59: 0 | W59: 0 | X59: 0 | Y59: 0 | Z59: 0 | AA59: 0 | AB59: 0 | AC59: 0 | AD59: 0 | AE59: 0 | AF59: 0 | AG59: 0 | AH59: 0 | AI59: 0 | AJ59: 0 | AK59: 0 | AL59: 0 | AM59: 0 | AN59: 0 | AO59: 0 | AP59: 0 | AQ59: 0 | AR59: 0 | AS59: 0 | AT59: 0 | AU59: 0 | AV59: 0 | AW59: 0 | AX59: 0 | AY59: 0 | AZ59: 0 | BA59: 0 | BB59: 0 | BC59: 0 | BD59: 0 | BE59: 0 | BF59: 0 | BG59: 0
F60: Total Direct Capex | J60: =SUM(J50:J59) -> 0 | K60: =SUM(K50:K59) -> 0 | L60: 0 | M60: 0 | N60: 0 | O60: 0 | P60: 0 | Q60: 0 | R60: 0 | S60: 0 | T60: 0 | U60: 0 | V60: 0 | W60: 0 | X60: 0 | Y60: 0 | Z60: 0 | AA60: 0 | AB60: 0 | AC60: 0 | AD60: 0 | AE60: 0 | AF60: 0 | AG60: 0 | AH60: 0 | AI60: 0 | AJ60: 0 | AK60: 0 | AL60: 0 | AM60: 0 | AN60: 0 | AO60: 0 | AP60: 0 | AQ60: 0 | AR60: 0 | AS60: 0 | AT60: 0 | AU60: 0 | AV60: 0 | AW60: 0 | AX60: 0 | AY60: 0 | AZ60: 0 | BA60: 0 | BB60: 0 | BC60: 0 | BD60: 0 | BE60: 0 | BF60: 0 | BG60: 0
B62: Operating Expenditure (enter costs as positive numbers and savings as negative numbers)
B63: Note: You can enter the values in here directly, or use the "Calculations" sheets to calculate the values and then link it to this sheet
F64: Category | G64: Description (optional) | I64: Dollar Basis
F65: =F36 -> Base Case | G65: =G36 -> Do Nothing
F75: Total Opex | J75: =SUM(J65:J74) -> 0 | K75: =SUM(K65:K74) -> 0 | L75: 0 | M75: 0 | N75: 0 | O75: 0 | P75: =SUM(P65:P74) -> 0 | Q75: 0 | R75: 0 | S75: 0 | T75: 0 | U75: 0 | V75: 0 | W75: 0 | X75: 0 | Y75: 0 | Z75: 0 | AA75: 0 | AB75: 0 | AC75: 0 | AD75: 0 | AE75: 0 | AF75: 0 | AG75: 0 | AH75: 0 | AI75: 0 | AJ75: 0 | AK75: 0 | AL75: 0 | AM75: 0 | AN75: 0 | AO75: 0 | AP75: 0 | AQ75: 0 | AR75: 0 | AS75: 0 | AT75: 0 | AU75: 0 | AV75: 0 | AW75: 0 | AX75: 0 | AY75: 0 | AZ75: 0 | BA75: 0 | BB75: 0 | BC75: 0 | BD75: 0 | BE75: 0 | BF75: 0 | BG75: 0
B77: Note: This table converts the values into 30 June 2024 dollars, which is needed for EDPR
F78: Category | G78: Dollar Basis for Conversion | H78: Conversion Factor
F79: =F65 -> Base Case | G79: 2024-06-30 | H79: 1 | J79: =J65*$H79 -> 0 | K79: 0 | L79: 0 | M79: 0 | N79: 0 | O79: 0 | P79: 0 | Q79: 0 | R79: 0 | S79: 0 | T79: 0 | U79: 0 | V79: 0 | W79: 0 | X79: 0 | Y79: 0 | Z79: 0 | AA79: 0 | AB79: 0 | AC79: 0 | AD79: 0 | AE79: 0 | AF79: 0 | AG79: 0 | AH79: 0 | AI79: 0 | AJ79: 0 | AK79: 0 | AL79: 0 | AM79: 0 | AN79: 0 | AO79: 0 | AP79: 0 | AQ79: 0 | AR79: 0 | AS79: 0 | AT79: 0 | AU79: 0 | AV79: 0 | AW79: 0 | AX79: 0 | AY79: 0 | AZ79: 0 | BA79: 0 | BB79: 0 | BC79: 0 | BD79: 0 | BE79: 0 | BF79: 0 | BG79: 0
J80: 0 | K80: 0 | L80: 0 | M80: 0 | N80: 0 | O80: 0 | P80: 0 | Q80: 0 | R80: 0 | S80: 0 | T80: 0 | U80: 0 | V80: 0 | W80: 0 | X80: 0 | Y80: 0 | Z80: 0 | AA80: 0 | AB80: 0 | AC80: 0 | AD80: 0 | AE80: 0 | AF80: 0 | AG80: 0 | AH80: 0 | AI80: 0 | AJ80: 0 | AK80: 0 | AL80: 0 | AM80: 0 | AN80: 0 | AO80: 0 | AP80: 0 | AQ80: 0 | AR80: 0 | AS80: 0 | AT80: 0 | AU80: 0 | AV80: 0 | AW80: 0 | AX80: 0 | AY80: 0 | AZ80: 0 | BA80: 0 | BB80: 0 | BC80: 0 | BD80: 0 | BE80: 0 | BF80: 0 | BG80: 0
J81: 0 | K81: 0 | L81: 0 | M81: 0 | N81: 0 | O81: 0 | P81: 0 | Q81: 0 | R81: 0 | S81: 0 | T81: 0 | U81: 0 | V81: 0 | W81: 0 | X81: 0 | Y81: 0 | Z81: 0 | AA81: 0 | AB81: 0 | AC81: 0 | AD81: 0 | AE81: 0 | AF81: 0 | AG81: 0 | AH81: 0 | AI81: 0 | AJ81: 0 | AK81: 0 | AL81: 0 | AM81: 0 | AN81: 0 | AO81: 0 | AP81: 0 | AQ81: 0 | AR81: 0 | AS81: 0 | AT81: 0 | AU81: 0 | AV81: 0 | AW81: 0 | AX81: 0 | AY81: 0 | AZ81: 0 | BA81: 0 | BB81: 0 | BC81: 0 | BD81: 0 | BE81: 0 | BF81: 0 | BG81: 0
J82: 0 | K82: 0 | L82: 0 | M82: 0 | N82: 0 | O82: 0 | P82: 0 | Q82: 0 | R82: 0 | S82: 0 | T82: 0 | U82: 0 | V82: 0 | W82: 0 | X82: 0 | Y82: 0 | Z82: 0 | AA82: 0 | AB82: 0 | AC82: 0 | AD82: 0 | AE82: 0 | AF82: 0 | AG82: 0 | AH82: 0 | AI82: 0 | AJ82: 0 | AK82: 0 | AL82: 0 | AM82: 0 | AN82: 0 | AO82: 0 | AP82: 0 | AQ82: 0 | AR82: 0 | AS82: 0 | AT82: 0 | AU82: 0 | AV82: 0 | AW82: 0 | AX82: 0 | AY82: 0 | AZ82: 0 | BA82: 0 | BB82: 0 | BC82: 0 | BD82: 0 | BE82: 0 | BF82: 0 | BG82: 0
J83: 0 | K83: 0 | L83: 0 | M83: 0 | N83: 0 | O83: 0 | P83: 0 | Q83: 0 | R83: 0 | S83: 0 | T83: 0 | U83: 0 | V83: 0 | W83: 0 | X83: 0 | Y83: 0 | Z83: 0 | AA83: 0 | AB83: 0 | AC83: 0 | AD83: 0 | AE83: 0 | AF83: 0 | AG83: 0 | AH83: 0 | AI83: 0 | AJ83: 0 | AK83: 0 | AL83: 0 | AM83: 0 | AN83: 0 | AO83: 0 | AP83: 0 | AQ83: 0 | AR83: 0 | AS83: 0 | AT83: 0 | AU83: 0 | AV83: 0 | AW83: 0 | AX83: 0 | AY83: 0 | AZ83: 0 | BA83: 0 | BB83: 0 | BC83: 0 | BD83: 0 | BE83: 0 | BF83: 0 | BG83: 0
J84: 0 | K84: 0 | L84: 0 | M84: 0 | N84: 0 | O84: =O70*$H84 -> 0 | P84: 0 | Q84: 0 | R84: 0 | S84: 0 | T84: 0 | U84: 0 | V84: 0 | W84: 0 | X84: 0 | Y84: 0 | Z84: 0 | AA84: 0 | AB84: 0 | AC84: 0 | AD84: 0 | AE84: 0 | AF84: 0 | AG84: 0 | AH84: 0 | AI84: 0 | AJ84: 0 | AK84: 0 | AL84: 0 | AM84: 0 | AN84: 0 | AO84: 0 | AP84: 0 | AQ84: 0 | AR84: 0 | AS84: 0 | AT84: 0 | AU84: 0 | AV84: 0 | AW84: 0 | AX84: 0 | AY84: 0 | AZ84: 0 | BA84: 0 | BB84: 0 | BC84: 0 | BD84: 0 | BE84: 0 | BF84: 0 | BG84: 0
J85: =J71*$H85 -> 0 | K85: 0 | L85: 0 | M85: 0 | N85: 0 | O85: 0 | P85: 0 | Q85: 0 | R85: 0 | S85: 0 | T85: 0 | U85: 0 | V85: 0 | W85: 0 | X85: 0 | Y85: 0 | Z85: 0 | AA85: 0 | AB85: 0 | AC85: 0 | AD85: 0 | AE85: 0 | AF85: 0 | AG85: 0 | AH85: 0 | AI85: 0 | AJ85: 0 | AK85: 0 | AL85: 0 | AM85: 0 | AN85: 0 | AO85: 0 | AP85: 0 | AQ85: 0 | AR85: 0 | AS85: 0 | AT85: 0 | AU85: 0 | AV85: 0 | AW85: 0 | AX85: 0 | AY85: 0 | AZ85: 0 | BA85: 0 | BB85: 0 | BC85: 0 | BD85: 0 | BE85: 0 | BF85: 0 | BG85: 0
J86: 0 | K86: 0 | L86: 0 | M86: 0 | N86: 0 | O86: 0 | P86: 0 | Q86: 0 | R86: 0 | S86: 0 | T86: 0 | U86: 0 | V86: 0 | W86: 0 | X86: 0 | Y86: 0 | Z86: 0 | AA86: 0 | AB86: 0 | AC86: 0 | AD86: 0 | AE86: 0 | AF86: 0 | AG86: 0 | AH86: 0 | AI86: 0 | AJ86: 0 | AK86: 0 | AL86: 0 | AM86: 0 | AN86: 0 | AO86: 0 | AP86: 0 | AQ86: 0 | AR86: 0 | AS86: 0 | AT86: 0 | AU86: 0 | AV86: 0 | AW86: 0 | AX86: 0 | AY86: 0 | AZ86: 0 | BA86: 0 | BB86: 0 | BC86: 0 | BD86: 0 | BE86: 0 | BF86: 0 | BG86: 0
J87: 0 | K87: 0 | L87: 0 | M87: 0 | N87: 0 | O87: 0 | P87: 0 | Q87: 0 | R87: 0 | S87: 0 | T87: 0 | U87: 0 | V87: 0 | W87: 0 | X87: 0 | Y87: 0 | Z87: 0 | AA87: 0 | AB87: 0 | AC87: 0 | AD87: 0 | AE87: 0 | AF87: 0 | AG87: 0 | AH87: 0 | AI87: 0 | AJ87: 0 | AK87: 0 | AL87: 0 | AM87: 0 | AN87: 0 | AO87: 0 | AP87: 0 | AQ87: 0 | AR87: 0 | AS87: 0 | AT87: 0 | AU87: 0 | AV87: 0 | AW87: 0 | AX87: 0 | AY87: 0 | AZ87: 0 | BA87: 0 | BB87: 0 | BC87: 0 | BD87: 0 | BE87: 0 | BF87: 0 | BG87: 0
J88: 0 | K88: 0 | L88: 0 | M88: 0 | N88: 0 | O88: 0 | P88: 0 | Q88: 0 | R88: 0 | S88: 0 | T88: 0 | U88: 0 | V88: 0 | W88: 0 | X88: 0 | Y88: 0 | Z88: 0 | AA88: 0 | AB88: 0 | AC88: 0 | AD88: 0 | AE88: 0 | AF88: 0 | AG88: 0 | AH88: 0 | AI88: 0 | AJ88: 0 | AK88: 0 | AL88: 0 | AM88: 0 | AN88: 0 | AO88: 0 | AP88: 0 | AQ88: 0 | AR88: 0 | AS88: 0 | AT88: 0 | AU88: 0 | AV88: 0 | AW88: 0 | AX88: 0 | AY88: 0 | AZ88: 0 | BA88: 0 | BB88: 0 | BC88: 0 | BD88: 0 | BE88: 0 | BF88: 0 | BG88: 0
F89: Total Opex | J89: =SUM(J79:J88) -> 0 | K89: =SUM(K79:K88) -> 0 | L89: 0 | M89: 0 | N89: 0 | O89: 0 | P89: =SUM(P79:P88) -> 0 | Q89: =SUM(Q79:Q88) -> 0 | R89: 0 | S89: 0 | T89: 0 | U89: 0 | V89: 0 | W89: 0 | X89: 0 | Y89: 0 | Z89: 0 | AA89: 0 | AB89: 0 | AC89: 0 | AD89: 0 | AE89: 0 | AF89: 0 | AG89: 0 | AH89: 0 | AI89: 0 | AJ89: 0 | AK89: 0 | AL89: 0 | AM89: 0 | AN89: 0 | AO89: 0 | AP89: 0 | AQ89: 0 | AR89: 0 | AS89: 0 | AT89: 0 | AU89: 0 | AV89: 0 | AW89: 0 | AX89: 0 | AY89: 0 | AZ89: 0 | BA89: 0 | BB89: 0 | BC89: 0 | BD89: 0 | BE89: 0 | BF89: 0 | BG89: 0
B91: Benefits
B92: Note: You can enter the values in here directly, or use the "Calculations" sheets to calculate the values and then link it to this sheet
F93: Category | G93: Description (optional) | I93: Dollar basis
F94: Do Nothing Risk | G94: Expected Energy at Risk | J94: 526.5211504 | K94: 525.1703075 | L94: 526.9749575 | M94: 530.3451565 | N94: 536.2220208 | O94: 541.2733447 | P94: 548.2722227 | Q94: 555.5992076 | R94: 568.2973693 | S94: 576.4823088 | T94: 586.9585146 | U94: 613.1799477 | V94: 629.7463503 | AG94: 0 | AH94: 0 | AI94: 0 | AJ94: 0 | AK94: 0 | AL94: 0 | AM94: 0 | AN94: 0 | AO94: 0 | AP94: 0 | AQ94: 0 | AR94: 0 | AS94: 0 | AT94: 0 | AU94: 0 | AV94: 0 | AW94: 0 | AX94: 0 | AY94: 0 | AZ94: 0 | BA94: 0 | BB94: 0 | BC94: 0 | BD94: 0 | BE94: 0 | BF94: 0 | BG94: 0
J95: 0 | K95: 0 | L95: 0 | M95: 0 | N95: 0 | O95: 0 | P95: 0 | Q95: 0 | R95: 0 | S95: 0 | T95: 0 | U95: 0 | V95: 0 | W95: 0 | X95: 0 | Y95: 0 | Z95: 0 | AA95: 0 | AB95: 0 | AC95: 0 | AD95: 0 | AE95: 0 | AF95: 0 | AG95: 0 | AH95: 0 | AI95: 0 | AJ95: 0 | AK95: 0 | AL95: 0 | AM95: 0 | AN95: 0 | AO95: 0 | AP95: 0 | AQ95: 0 | AR95: 0 | AS95: 0 | AT95: 0 | AU95: 0 | AV95: 0 | AW95: 0 | AX95: 0 | AY95: 0 | AZ95: 0 | BA95: 0 | BB95: 0 | BC95: 0 | BD95: 0 | BE95: 0 | BF95: 0 | BG95: 0
J96: 0 | K96: 0 | L96: 0 | M96: 0 | N96: 0 | O96: 0 | P96: 0 | Q96: 0 | R96: 0 | S96: 0 | T96: 0 | U96: 0 | V96: 0 | W96: 0 | X96: 0 | Y96: 0 | Z96: 0 | AA96: 0 | AB96: 0 | AC96: 0 | AD96: 0 | AE96: 0 | AF96: 0 | AG96: 0 | AH96: 0 | AI96: 0 | AJ96: 0 | AK96: 0 | AL96: 0 | AM96: 0 | AN96: 0 | AO96: 0 | AP96: 0 | AQ96: 0 | AR96: 0 | AS96: 0 | AT96: 0 | AU96: 0 | AV96: 0 | AW96: 0 | AX96: 0 | AY96: 0 | AZ96: 0 | BA96: 0 | BB96: 0 | BC96: 0 | BD96: 0 | BE96: 0 | BF96: 0 | BG96: 0
J97: 0 | K97: 0 | L97: 0 | M97: 0 | N97: 0 | O97: 0 | P97: 0 | Q97: 0 | R97: 0 | S97: 0 | T97: 0 | U97: 0 | V97: 0 | W97: 0 | X97: 0 | Y97: 0 | Z97: 0 | AA97: 0 | AB97: 0 | AC97: 0 | AD97: 0 | AE97: 0 | AF97: 0 | AG97: 0 | AH97: 0 | AI97: 0 | AJ97: 0 | AK97: 0 | AL97: 0 | AM97: 0 | AN97: 0 | AO97: 0 | AP97: 0 | AQ97: 0 | AR97: 0 | AS97: 0 | AT97: 0 | AU97: 0 | AV97: 0 | AW97: 0 | AX97: 0 | AY97: 0 | AZ97: 0 | BA97: 0 | BB97: 0 | BC97: 0 | BD97: 0 | BE97: 0 | BF97: 0 | BG97: 0
J98: 0 | K98: 0 | L98: 0 | M98: 0 | N98: 0 | O98: 0 | P98: 0 | Q98: 0 | R98: 0 | S98: 0 | T98: 0 | U98: 0 | V98: 0 | W98: 0 | X98: 0 | Y98: 0 | Z98: 0 | AA98: 0 | AB98: 0 | AC98: 0 | AD98: 0 | AE98: 0 | AF98: 0 | AG98: 0 | AH98: 0 | AI98: 0 | AJ98: 0 | AK98: 0 | AL98: 0 | AM98: 0 | AN98: 0 | AO98: 0 | AP98: 0 | AQ98: 0 | AR98: 0 | AS98: 0 | AT98: 0 | AU98: 0 | AV98: 0 | AW98: 0 | AX98: 0 | AY98: 0 | AZ98: 0 | BA98: 0 | BB98: 0 | BC98: 0 | BD98: 0 | BE98: 0 | BF98: 0 | BG98: 0
